Workbook

Sheet Main
A3: =MID(MID(CELL("Dateiname"),FIND("[",CELL("Dateiname"))+1,FIND("]",CELL("Dateiname"))-FIND("[",CELL("Dateiname"))-1),1,(LEN(MID(CELL("Dateiname"),FIND("[",CELL("Dateiname"))+1,FIND("]",CELL("Dateiname"))-FIND("[",CELL("Dateiname"))-1)))-(IF((MID(RIGHT(MID(CELL("Dateiname"),FIND("[",CELL("Dateiname"))+1,FIND("]",CELL("Dateiname"))-FIND("[",CELL("Dateiname"))-1),5),1,1))=".",5,4))) -> AnyDim_V2.35 | U3: Änderungshistorie
U4: Ver 1.7 nach 1.8 26.06.2004 Hinzufügen von ca. 300 Linearmotoren ver. Baureihen H. Goergen
U5: Ver 2.0 nach 2.1 14.11.07 H Krug | V5: Berechnung erweitert dass 10 Fremdlinearmotoren berechnet werden können in Reiter "LinMotor".
V6: Reiter "LinMotor": Bei den L1S 25..75 Polpitch auf 48mm gesetzt bei L1S 80..200 Polpitch auf 66mm. Gesetzt
V7: Im Reiter "Main" bei Linmot auswahl in Spalte "R" Fehler im Induktivitätsscheck L>Lmax und Umot> Umot auf Wert "5" in Berechnungsvorschrift geändert
V8: Alle Platinum IC Linearmotoren auf UDC max = 330Vdc geändert
B9: =IF(deutsch,"Allgemeines","General") -> Allgemeines | O9: Sprache/Language
B10: =IF(deutsch,"Bearbeiter:","Author:") -> Bearbeiter: | F10: Kunde:
B11: =IF(deutsch,"Datum:","Date:") -> Datum: | F11: Anwendung:
B14: =IF(deutsch,"Motorart","Motor type") -> Motorart | C14: =D91 ->  | E14: Drive | G14: Uac max = | H14: =Drives!B2 -> 480 | I14: =IF(Drives!G2="","","P br int =") -> P br int = | J14: =IF(Drives!G2="","",Drives!G2) -> 200 | L14: =IF(deutsch,"AC-Spg. [V]","AC-Voltage [V]") -> AC-Spg. [V] | M14: =MIN(ROUND((UAC_V*SQRT(2)-5)/10,0)*10,640) -> 560 | O14: =IF(deutsch,"Eingabeänderung","Input changes") -> Eingabeänderung
G15: I cont = | H15: =Drives!C2 -> 24 | I15: =IF(Drives!E2="","","L min =") -> L min = | J15: =IF(Drives!E2="","",Drives!E2/H14*UAC_V) -> 1.416666667
G16: I peak = | H16: =Drives!D2 -> 48 | I16: =IF(Drives!F2="","","L max =") -> L max = | J16: =IF(Drives!F2="","",Drives!F2/H14*UAC_V) -> 13.33333333
K17: =IF((Calc!B2-Drives!B2)>0," AC Spannung inkonsistent","") -> 
B18: =IF(deutsch,"Motorlinien","Motor lines") -> Motorlinien
E20: =IF(deutsch,"Mechanische Daten (Abtrieb)","Mech. data (gear output side)") -> Mechanische Daten (Abtrieb) | L20: =IF(deutsch,"Getriebe","Gear") -> Getriebe
E21: =IF(deutsch,"Massenträgheit","Inertia") -> Massenträgheit | G21: =IF(deutsch,"Lastmoment","Load") -> Lastmoment | I21: =IF(deutsch,"Tr.-Reibung","Dry friction") -> Tr.-Reibung | L21: =IF(deutsch,"Faktor","Ratio") -> Faktor | M21: =IF(deutsch,"Trägheit","Inertia") -> Trägheit | N21: =IF(deutsch,"Wirkungsgr.","Efficiency") -> Wirkungsgr. | O21: =IF(deutsch,"Eingangsdrehzahl","Input speed") -> Eingangsdrehzahl | Q21: =IF(deutsch,"Mittl. Drehz.","Avg.-Speed") -> Mittl. Drehz.
E22: [10-3kgm2] | G22: [Nm] | I22: [Nm] | L22: i | M22: [10-3kgm2] | N22: h | O22: [1/min] | Q22: [1/min]
D23: =IF(Calc!A31,"","1.") ->  | E23: 112.5 | G23: 7.5 | I23: 1.5 | L23: 1 | M23: 0 | N23: 1 | O23: =IF(move1,gear*MAX(ABS(speed1),ABS(speed2)),gear*MAX(ABS(speed1),ABS(speed2),ABS(speed6))) -> 127.3239545 | Q23: =IF(move1,(((ABS(speed2+speed1)/2*time1+ABS(speed2)*time2+ABS(speed2+speed1)/2*time3+speed1*time4)/time))*gear,(((ABS(speed2+speed1)/2*time1+ABS(speed2)*time2+ABS(speed2+speed1)/2*time3+speed1*time4+ABS(speed6+speed1)/2*time5+ABS(speed6)*time6+ABS(speed6+speed1)/2*time7+speed1*time8)/time))*gear) -> 22.18598096
D25: =IF(Calc!A31,"","2.") ->  | E25: 112.5 | G25: 7.5 | I25: 1.5
L27: =IF(L23>0,"",IF(deutsch,"Fehler: Getriebefaktor <= 0","Error: Gear ratio <= 0")) -> 
E32: =IF(deutsch,"Mechanische Daten","Mechanical data") -> Mechanische Daten
E33: =IF(deutsch,"Gewicht","Weight") -> Gewicht | F33: =IF(deutsch,"Last","Load") -> Last | G33: =IF(deutsch,"Tr.Reibung","Dry Fric.") -> Tr.Reibung | H33: =IF(deutsch,"Wirkungsgr","Efficiency") -> Wirkungsgr
E34: [kg] | F34: [N] | G34: [N] | H34: h
D35: =IF(Calc!A31,"","1.") ->  | E35: 5 | F35: 0 | G35: 0 | H35: 1
D36: =IF(Calc!A31,"","2.") ->  | E36: 5 | F36: 0 | G36: 0
B39: =IF(deutsch,"Bewegungsprofil","Motion profile") -> Bewegungsprofil
B40: =IF(deutsch,"Einheiten / Umdrehung","Units / turn") -> Einheiten / Umdrehung | D40: =Inertia!H9 * PI() -> 942.4777961
D43: =IF(deutsch,"Bewegungszeit","Cylce time") -> Bewegungszeit | E43: =IF(deutsch,"Geschwindigkeit","Speed") -> Geschwindigkeit | G43: =IF(deutsch,"Beschleunigung","Acceleration") -> Beschleunigung | I43: Position | Q43: M0 [Nm] | R43: =Calc!A108 -> 42
D44: t [ms] | E44: =IF(deutsch,"Abtrieb","Gear output side") -> Abtrieb | G44: =IF(deutsch,"Abtrieb","Gear output side") -> Abtrieb | I44: =IF(deutsch,"Abtrieb","Gear outp.") -> Abtrieb | Q44: I0 [A] | R44: =Calc!A109 -> 13.6
D45: =IF(Calc!A31,time1+time2+time3+time4,time1+time2+time3+time4+time5+time6+time7+time8) -> 2481 | E45: =IF(deutsch,"[Einheiten/s]","[Units/s]") -> [Einheiten/s] | F45: [1/min] | G45: =IF(deutsch,"[Einheiten/s2]","[Units/s2]") -> [Einheiten/s2] | H45: [rad/s2] | I45: =IF(deutsch,"[Einheiten]","[Units]") -> [Einheiten] | Q45: Mn [Nm] | R45: =Calc!A110 -> 33.8
B46: =IF(deutsch,"Beschleunigung","Acceleration") -> Beschleunigung | C46: t1 [ ms ] | D46: 81 | E46: 2000 | F46: =E46/$D$40*60 -> 127.3239545 | G46: =(E48-E46)/D46*Calc!B30*1000 -> -38009.48148 | H46: =G46/ULU*2*PI() -> -253.3965432 | I46: =E46*D46/1000+((E48+E46)/2-E46)*D46/1000 -> 82.62 | Q46: In [A] | R46: =Calc!A111 -> 10.90322581
Q47: nn [min-1] | R47: =Calc!A112 -> 1500
B48: =IF(deutsch,"Geschwindigkeit","Speed") -> Geschwindigkeit | C48: t2 [ ms ] | D48: 2000 | E48: 40 | F48: =E48/$D$40*60 -> 2.546479089 | G48: 0 | H48: 0 | I48: =I46+E48*D48/1000 -> 162.62 | Q48: Mmax[Nm] | R48: =Calc!A113 -> 112
Q49: nmax[min-1] | R49: =Calc!A114 -> 6000
B50: =IF(deutsch,"Verzögerung","Deceleration") -> Verzögerung | C50: t3 [ ms ] | D50: 100 | E50: =E46 -> 2000 | F50: =E50/$D$40*60 -> 127.3239545 | G50: =(E50-E48)/D50*Calc!B30*1000 -> 30787.68 | H50: =G50/ULU*2*PI() -> 205.2512 | I50: =I48+((E50+E48)/2-E48)*D50/1000+E48*D50/1000 -> 264.62 | Q50: RU-V [W] | R50: =Calc!A115 -> 0.68
Q51: LU-V [mH] | R51: =Calc!A116 -> 12.4
B52: Pause | C52: t4 [ ms ] | D52: 300 | E52: =E46 -> 2000 | F52: =E52/$D$40*60 -> 127.3239545 | G52: 0 | H52: 0 | I52: =I50+E52*D52/1000 -> 864.62 | Q52: KE [V/103] | R52: =Calc!A117 -> 200
Q53: =IF(Calc!A71,"J [kgcm2]","J[10-3kgm2") -> J[10-3kgm2 | R53: =IF(Calc!A71,10*Calc!A107,Calc!A107) -> 9.2
B54: =IF(deutsch,IF(move1,"","2. Fahrsatz"),IF(move1,"","2. Motion task")) ->  | Q54: UDCmax [V] | R54: =Calc!A118 -> 640
B55: =IF(deutsch,"Beschleunigung","Acceleration") -> Beschleunigung | C55: t5 [ ms ] | D55: 1 | E55: =E46 -> 2000 | F55: =E55/$D$40*60 -> 127.3239545 | G55: =(E57-E55)/D55*AccType*1000 -> -3141600 | H55: =G55/ULU*2*PI() -> -20944 | I55: =I52+E55*D55/1000+((E57+E55)/2-E55)*D55/1000 -> 865.62
B57: =IF(deutsch,"Geschwindigkeit","Speed") -> Geschwindigkeit | C57: t6 [ ms ] | D57: 0 | E57: 0 | F57: =E57/$D$40*60 -> 0 | G57: 0 | H57: 0 | I57: =I55+E57*D57/1000 -> 865.62
B59: =IF(deutsch,"Verzögerung","Deceleration") -> Verzögerung | C59: t7 [ ms ] | D59: 1 | E59: =E55 -> 2000 | F59: =E59/$D$40*60 -> 127.3239545 | G59: =(E59-E57)/D59*AccType*1000 -> 3141600 | H59: =G59/ULU*2*PI() -> 20944 | I59: =I57+((E59+E57)/2-E57)*D59/1000+E57*D59/1000 -> 866.62
B61: Pause | C61: t8 [ ms ] | D61: 0 | E61: =E55 -> 2000 | F61: =E61/$D$40*60 -> 127.3239545 | G61: 0 | H61: 0 | I61: =I59+E61*D61/1000 -> 866.62
B65: =IF(deutsch,"Bewegungsprofil","Motion profile") -> Bewegungsprofil
D69: =IF(deutsch,"Bewegungszeit","Cycle time") -> Bewegungszeit | E69: =IF(deutsch,"Geschwindigkeit","Speed") -> Geschwindigkeit | G69: =IF(deutsch,"Beschleunigung","Acceleration") -> Beschleunigung | I69: Position
D70: t [ms]
B71: =IF(deutsch,IF(move1,"","1. Fahrsatz"),IF(move1,"","1. Motion task")) ->  | D71: =IF(Calc!A31,Ltime1+Ltime2+Ltime3+Ltime4,Ltime1+Ltime2+Ltime3+Ltime4+Ltime5+Ltime6+Ltime7+Ltime8) -> 130 | E71: [m/s] | G71: [m/s2] | I71: [mm] | Q71: Fn [N] | R71: =Calc!A108 -> 42
B72: =IF(deutsch,"Beschleunigung","Acceleration") -> Beschleunigung | C72: t1 [ ms ] | D72: 50 | E72: 0 | G72: =(E74-E72)/D72*AccType*1000 -> 31.416 | I72: =E72*D72+((E74+E72)/2-E72)*D72 -> 25 | Q72: In [A] | R72: =Calc!A109 -> 13.6
Q73: Fmax [N] | R73: =Calc!A110 -> 33.8
B74: =IF(deutsch,"Geschwindigkeit","Const. speed") -> Geschwindigkeit | C74: t2 [ ms ] | D74: 0 | E74: 1 | G74: 0 | I74: =I72+E74*D74 -> 25 | Q74: Imax [A] | R74: =Calc!A111 -> 10.90322581
Q75: vmax [m/s] | R75: =Calc!A112 -> 1500
B76: =IF(deutsch,"Verzögerung","Deceleration") -> Verzögerung | C76: t3 [ ms ] | D76: 30 | E76: =Lspeed1 -> 0 | G76: =(E76-E74)/D76*AccType*1000 -> -52.36 | I76: =I74+((E76+E74)/2-E74)*D76+E74*D76 -> 40 | Q76: RU-V [W] | R76: =Calc!A113 -> 112
Q77: LU-V [mH] | R77: =Calc!A114 -> 6000
B78: Pause | C78: t4 [ ms ] | D78: 50 | E78: =Lspeed1 -> 0 | G78: 0 | I78: =I76+E78*D78 -> 40 | Q78: KE [V/m/s] | R78: =Calc!A115 -> 0.68
Q79: G [kg] | R79: =Calc!A107 -> 9.2
B80: =IF(deutsch,IF(move1,"","2. Fahrsatz"),IF(move1,"","2. Motion task")) ->  | Q80: UDCmax [V] | R80: =Calc!A117 -> 200
B81: =IF(deutsch,"Beschleunigung","Acceleration") -> Beschleunigung | C81: t5 [ ms ] | D81: 1 | E81: =Lspeed1 -> 0 | G81: =(E83-E81)/D81*AccType*1000 -> 0 | I81: =I78+E81*D81+((E83+E81)/2-E81)*D81 -> 40
B83: =IF(deutsch,"Geschwindigkeit","Speed") -> Geschwindigkeit | C83: t6 [ ms ] | D83: 0 | E83: 0 | G83: 0 | I83: =I81+E83*D83 -> 40
B85: =IF(deutsch,"Verzögerung","Deceleration") -> Verzögerung | C85: t7 [ ms ] | D85: 1 | E85: =Lspeed1 -> 0 | G85: =(E85-E83)/D85*AccType*1000 -> 0 | I85: =I83+((E85+E83)/2-E83)*D85+E83*D85 -> 40
B87: Pause | C87: t8 [ ms ] | D87: 0 | E87: =Lspeed1 -> 0 | G87: 0 | I87: =I85+E87*D87 -> 40
A91: =IF(deutsch,"Motorkennlinie","Motor curves") -> Motorkennlinie | D91: =IF(Calc!A140=0,"",Calc!A140) ->  | E91: =IF(Calc!B140=0,"",Calc!B140) ->  | F91: =IF(deutsch,"Motordaten","Motor data") -> Motordaten | K91: =IF(deutsch,"Reglerdaten","Drive data") -> Reglerdaten
B92: =IF(deutsch,"Typ","Type") -> Typ | C92: Jext/Jmot | D92: Trms | E92: Tpk | F92: n | G92: T (t1) | H92: T (t2) | I92: T (t3) | J92: T (t4) | K92: Irms | L92: Ipeak | M92: Irms | N92: Ipeak | O92: P | P92: PbrRMS | Q92: PbrPEAK
G93: [Nm] | H93: [Nm] | I93: [Nm] | J93: [Nm] | M93: [A] | N93: [A] | O93: [W] | P93: [W] | Q93: [W]
A94: t | B94: Filter (Maximum) | C94: =IF(jjbar<500,jjbar,IF(deutsch,"alle","all")) -> 15 | D94: =IF(mrmsbar<20,mrmsbar/10,IF(deutsch,"alle","all")) -> 1 | E94: =IF(mpkbar<20,mpkbar/10,IF(deutsch,"alle","all")) -> 0.8 | F94: =IF(nbar<20,nbar/10,IF(deutsch,"alle","all")) -> 0.6 | K94: =IF(irmsbar<20,irmsbar/10,IF(deutsch,"alle","all")) -> alle | L94: =IF(ipkbar<20,ipkbar/10,IF(deutsch,"alle","all")) -> alle
B96: =Calc!A70 -> AKM73M
A97: 122 | B97: =IF(Calc!$A$90,INDEX(Motor!$B$1:$B$1223,A97,1),INDEX(LinMotor!$B$1:$B$1341,A97,1)) -> AKM73M | C97: =IF(Calc!$A$90,INDEX(Motor!$T$1:$T$1223,A97,1),INDEX(LinMotor!$R$1:$R$1355,A97,1)) -> 12.22826087 | D97: =IF(Calc!$A$90,INDEX(Motor!$U$1:$U$1223,A97,1),INDEX(LinMotor!$S$1:$S$1355,A97,1)) -> 0.2406095572 | E97: =IF(Calc!$A$90,INDEX(Motor!$V$1:$V$1223,A97,1),INDEX(LinMotor!$T$1:$T$1355,A97,1)) -> 0.2765988486 | F97: =IF(Calc!$A$90,INDEX(Motor!$W$1:$W$1223,A97,1),INDEX(LinMotor!$U$1:$U$1355,A97,1)) -> 0.06710375985 | G97: =IF(A97<>2,IF(ABS(IF(Calc!$A$90,INDEX(Motor!$X$1:$X$1223,A97,1),INDEX(LinMotor!$V$1:$V$1355,A97,1)))<1000,IF(Calc!$A$90,INDEX(Motor!$X$1:$X$1223,A97,1),INDEX(LinMotor!$V$1:$V$1355,A97,1)),TEXT(IF(Calc!$A$90,INDEX(Motor!$X$1:$X$1223,A97,1),INDEX(LinMotor!$V$1:$V$1355,A97,1))/1000,"0.0k")),"") -> -24.83835931 | H97: =IF(A97<>2,IF(ABS(IF(move1,IF(Calc!$A$90,INDEX(Motor!$Y$1:$Y$1223,A97,1),INDEX(LinMotor!$W$1:$W$1355,A97,1)),IF(Calc!$A$90,INDEX(Motor!$Z$1:$Z$1068,A97,1),INDEX(LinMotor!$X$1:$X$1355,A97,1))))<1000,IF(move1,IF(Calc!$A$90,INDEX(Motor!$Y$1:$Y$1223,A97,1),INDEX(LinMotor!$W$1:$W$1355,A97,1)),IF(Calc!$A$90,INDEX(Motor!$Z$1:$Z$1223,A97,1),INDEX(LinMotor!$X$1:$X$1355,A97,1))),TEXT(IF(move1,IF(Calc!$A$90,INDEX(Motor!$Y$1:$Y$1223,A97,1),INDEX(LinMotor!$W$1:$W$1355,A97,1)),IF(Calc!$A$90,INDEX(Motor!$Z$1:$Z$1223,A97,1),INDEX(LinMotor!$X$1:$X$1355,A97,1)))/1000,"0.0k")),"") -> 9 | I97: =IF(A97<>2,IF(ABS(IF(move1,IF(Calc!$A$90,INDEX(Motor!$Z$1:$Z$1223,A97,1),INDEX(LinMotor!$X$1:$X$1355,A97,1)),IF(Calc!$A$90,INDEX(Motor!$AB$1:$AB$1223,A97,1),INDEX(LinMotor!$Z$1:$Z$1355,A97,1))))<1000,IF(move1,IF(Calc!$A$90,INDEX(Motor!$Z$1:$Z$1223,A97,1),INDEX(LinMotor!$X$1:$X$1355,A97,1)),IF(Calc!$A$90,INDEX(Motor!$AB$1:$AB$1223,A97,1),INDEX(LinMotor!$Z$1:$Z$1355,A97,1))),TEXT(IF(move1,IF(Calc!$A$90,INDEX(Motor!$Z$1:$Z$1223,A97,1),INDEX(LinMotor!$X$1:$X$1355,A97,1)),IF(Calc!$A$90,INDEX(Motor!$AB$1:$AB$1223,A97,1),INDEX(LinMotor!$Z$1:$Z$1355,A97,1)))/1000,"0.0k")),"") -> 30.97907104 | J97: =IF(A97<>2,IF(ABS(IF(move1,IF(Calc!$A$90,INDEX(Motor!$AA$1:$AA$1223,A97,1),INDEX(LinMotor!$Y$1:$Y$1355,A97,1)),IF(Calc!$A$90,INDEX(Motor!$AD$1:$AD$1223,A97,1),INDEX(LinMotor!$AB$1:$AB$445,A97,1))))<1000,IF(move1,IF(Calc!$A$90,INDEX(Motor!$AA$1:$AA$1223,A97,1),INDEX(LinMotor!$Y$1:$Y$1355,A97,1)),IF(Calc!$A$90,INDEX(Motor!$AD$1:$AD$1223,A97,1),INDEX(LinMotor!$AB$1:$AB$445,A97,1))),TEXT(IF(move1,IF(Calc!$A$90,INDEX(Motor!$AA$1:$AA$1223,A97,1),INDEX(LinMotor!$Y$1:$Y$1355,A97,1)),IF(Calc!$A$90,INDEX(Motor!$AD$1:$AD$1223,A97,1),INDEX(LinMotor!$AB$1:$AB$445,A97,1)))/1000,"0.0k")),"") -> 9 | K97: =IF(Calc!$A$90,INDEX(Motor!$AF$1:$AF$1223,A97,1),INDEX(LinMotor!$AD$1:$AD$1355,A97,1)) -> 0.1359516912 | L97: =IF(Calc!$A$90,INDEX(Motor!$AG$1:$AG$1223,A97,1),INDEX(LinMotor!$AE$1:$AE$1355,A97,1)) -> 0.2089857967 | M97: =IF(Calc!$A$90,INDEX(Motor!$AH$1:$AH$1223,A97,1),INDEX(LinMotor!$AF$1:$AF$1355,A97,1)) -> 3.26284059 | N97: =IF(Calc!$A$90,INDEX(Motor!$AI$1:$AI$1223,A97,1),INDEX(LinMotor!$AG$1:$AG$1355,A97,1)) -> 10.03131824 | O97: =IF(A97<>2,IF(IF(Calc!$A$90,INDEX(Motor!$AK$1:$AK$1223,A97,1),INDEX(LinMotor!$AI$1:$AI$1355,A97,1))<1000,IF(Calc!$A$90,INDEX(Motor!$AK$1:$AK$1223,A97,1),INDEX(LinMotor!$AI$1:$AI$1355,A97,1)),TEXT(IF(Calc!$A$90,INDEX(Motor!$AK$1:$AK$1223,A97,1),INDEX(LinMotor!$AI$1:$AI$1355,A97,1))/1000,"0.0k")),"") -> 23.40892675 | P97: =IF(A97<>2,IF(IF(Calc!$A$90,INDEX(Motor!$AL$1:$AL$1223,A97,1),INDEX(LinMotor!$AJ$1:$AJ$1355,A97,1))<1000,IF(Calc!$A$90,INDEX(Motor!$AL$1:$AL$1223,A97,1),INDEX(LinMotor!$AJ$1:$AJ$1355,A97,1)),TEXT(IF(Calc!$A$90,INDEX(Motor!$AL$1:$AL$1223,A97,1),INDEX(LinMotor!$AJ$1:$AJ$1355,A97,1))/1000,"0.0k")),"") -> 2.729855318 | Q97: =IF(A97<>2,IF(IF(Calc!$A$90,INDEX(Motor!$AM$1:$AM$1223,A97,1),INDEX(LinMotor!$AK$1:$AK$1355,A97,1))<1000,IF(Calc!$A$90,INDEX(Motor!$AM$1:$AM$1223,A97,1),INDEX(LinMotor!$AK$1:$AK$1355,A97,1)),TEXT(IF(Calc!$A$90,INDEX(Motor!$AM$1:$AM$1223,A97,1),INDEX(LinMotor!$AK$1:$AK$1355,A97,1))/1000,"0.0k")),"") -> 167.2289147 | R97: =IF(T97=1,"L<Lmin",IF(T97=2,"Udc>Umot",IF(T97=3,"L<Lmin & Udc>Umot",IF(T97=4,"L>Lmax",IF(T97=5,"L>Lmax & Udc>Umot",""))))) -> 
A98: 123 | B98: =IF(Calc!$A$90,INDEX(Motor!$B$1:$B$1223,A98,1),INDEX(LinMotor!$B$1:$B$1341,A98,1)) -> AKM73P | C98: =IF(Calc!$A$90,INDEX(Motor!$T$1:$T$1223,A98,1),INDEX(LinMotor!$R$1:$R$1355,A98,1)) -> 12.22826087 | D98: =IF(Calc!$A$90,INDEX(Motor!$U$1:$U$1223,A98,1),INDEX(LinMotor!$S$1:$S$1355,A98,1)) -> 0.2429287927 | E98: =IF(Calc!$A$90,INDEX(Motor!$V$1:$V$1223,A98,1),INDEX(LinMotor!$T$1:$T$1355,A98,1)) -> 0.2790907301 | F98: =IF(Calc!$A$90,INDEX(Motor!$W$1:$W$1223,A98,1),INDEX(LinMotor!$U$1:$U$1355,A98,1)) -> 0.0458472581 | G98: =IF(A98<>2,IF(ABS(IF(Calc!$A$90,INDEX(Motor!$X$1:$X$1223,A98,1),INDEX(LinMotor!$V$1:$V$1355,A98,1)))<1000,IF(Calc!$A$90,INDEX(Motor!$X$1:$X$1223,A98,1),INDEX(LinMotor!$V$1:$V$1355,A98,1)),TEXT(IF(Calc!$A$90,INDEX(Motor!$X$1:$X$1223,A98,1),INDEX(LinMotor!$V$1:$V$1355,A98,1))/1000,"0.0k")),"") -> -24.83835931 | H98: =IF(A98<>2,IF(ABS(IF(move1,IF(Calc!$A$90,INDEX(Motor!$Y$1:$Y$1223,A98,1),INDEX(LinMotor!$W$1:$W$1355,A98,1)),IF(Calc!$A$90,INDEX(Motor!$Z$1:$Z$1068,A98,1),INDEX(LinMotor!$X$1:$X$1355,A98,1))))<1000,IF(move1,IF(Calc!$A$90,INDEX(Motor!$Y$1:$Y$1223,A98,1),INDEX(LinMotor!$W$1:$W$1355,A98,1)),IF(Calc!$A$90,INDEX(Motor!$Z$1:$Z$1223,A98,1),INDEX(LinMotor!$X$1:$X$1355,A98,1))),TEXT(IF(move1,IF(Calc!$A$90,INDEX(Motor!$Y$1:$Y$1223,A98,1),INDEX(LinMotor!$W$1:$W$1355,A98,1)),IF(Calc!$A$90,INDEX(Motor!$Z$1:$Z$1223,A98,1),INDEX(LinMotor!$X$1:$X$1355,A98,1)))/1000,"0.0k")),"") -> 9 | I98: =IF(A98<>2,IF(ABS(IF(move1,IF(Calc!$A$90,INDEX(Motor!$Z$1:$Z$1223,A98,1),INDEX(LinMotor!$X$1:$X$1355,A98,1)),IF(Calc!$A$90,INDEX(Motor!$AB$1:$AB$1223,A98,1),INDEX(LinMotor!$Z$1:$Z$1355,A98,1))))<1000,IF(move1,IF(Calc!$A$90,INDEX(Motor!$Z$1:$Z$1223,A98,1),INDEX(LinMotor!$X$1:$X$1355,A98,1)),IF(Calc!$A$90,INDEX(Motor!$AB$1:$AB$1223,A98,1),INDEX(LinMotor!$Z$1:$Z$1355,A98,1))),TEXT(IF(move1,IF(Calc!$A$90,INDEX(Motor!$Z$1:$Z$1223,A98,1),INDEX(LinMotor!$X$1:$X$1355,A98,1)),IF(Calc!$A$90,INDEX(Motor!$AB$1:$AB$1223,A98,1),INDEX(LinMotor!$Z$1:$Z$1355,A98,1)))/1000,"0.0k")),"") -> 30.97907104 | J98: =IF(A98<>2,IF(ABS(IF(move1,IF(Calc!$A$90,INDEX(Motor!$AA$1:$AA$1223,A98,1),INDEX(LinMotor!$Y$1:$Y$1355,A98,1)),IF(Calc!$A$90,INDEX(Motor!$AD$1:$AD$1223,A98,1),INDEX(LinMotor!$AB$1:$AB$445,A98,1))))<1000,IF(move1,IF(Calc!$A$90,INDEX(Motor!$AA$1:$AA$1223,A98,1),INDEX(LinMotor!$Y$1:$Y$1355,A98,1)),IF(Calc!$A$90,INDEX(Motor!$AD$1:$AD$1223,A98,1),INDEX(LinMotor!$AB$1:$AB$445,A98,1))),TEXT(IF(move1,IF(Calc!$A$90,INDEX(Motor!$AA$1:$AA$1223,A98,1),INDEX(LinMotor!$Y$1:$Y$1355,A98,1)),IF(Calc!$A$90,INDEX(Motor!$AD$1:$AD$1223,A98,1),INDEX(LinMotor!$AB$1:$AB$445,A98,1)))/1000,"0.0k")),"") -> 9 | K98: =IF(Calc!$A$90,INDEX(Motor!$AF$1:$AF$1223,A98,1),INDEX(LinMotor!$AD$1:$AD$1355,A98,1)) -> 0.1968050677 | L98: =IF(Calc!$A$90,INDEX(Motor!$AG$1:$AG$1223,A98,1),INDEX(LinMotor!$AE$1:$AE$1355,A98,1)) -> 0.3025299906 | M98: =IF(Calc!$A$90,INDEX(Motor!$AH$1:$AH$1223,A98,1),INDEX(LinMotor!$AF$1:$AF$1355,A98,1)) -> 4.723321626 | N98: =IF(Calc!$A$90,INDEX(Motor!$AI$1:$AI$1223,A98,1),INDEX(LinMotor!$AG$1:$AG$1355,A98,1)) -> 14.52143955 | O98: =IF(A98<>2,IF(IF(Calc!$A$90,INDEX(Motor!$AK$1:$AK$1223,A98,1),INDEX(LinMotor!$AI$1:$AI$1355,A98,1))<1000,IF(Calc!$A$90,INDEX(Motor!$AK$1:$AK$1223,A98,1),INDEX(LinMotor!$AI$1:$AI$1355,A98,1)),TEXT(IF(Calc!$A$90,INDEX(Motor!$AK$1:$AK$1223,A98,1),INDEX(LinMotor!$AI$1:$AI$1355,A98,1))/1000,"0.0k")),"") -> 23.40892675 | P98: =IF(A98<>2,IF(IF(Calc!$A$90,INDEX(Motor!$AL$1:$AL$1223,A98,1),INDEX(LinMotor!$AJ$1:$AJ$1355,A98,1))<1000,IF(Calc!$A$90,INDEX(Motor!$AL$1:$AL$1223,A98,1),INDEX(LinMotor!$AJ$1:$AJ$1355,A98,1)),TEXT(IF(Calc!$A$90,INDEX(Motor!$AL$1:$AL$1223,A98,1),INDEX(LinMotor!$AJ$1:$AJ$1355,A98,1))/1000,"0.0k")),"") -> 2.729855318 | Q98: =IF(A98<>2,IF(IF(Calc!$A$90,INDEX(Motor!$AM$1:$AM$1223,A98,1),INDEX(LinMotor!$AK$1:$AK$1355,A98,1))<1000,IF(Calc!$A$90,INDEX(Motor!$AM$1:$AM$1223,A98,1),INDEX(LinMotor!$AK$1:$AK$1355,A98,1)),TEXT(IF(Calc!$A$90,INDEX(Motor!$AM$1:$AM$1223,A98,1),INDEX(LinMotor!$AK$1:$AK$1355,A98,1))/1000,"0.0k")),"") -> 167.2289147 | R98: =IF(T98=1,"L<Lmin",IF(T98=2,"Udc>Umot",IF(T98=3,"L<Lmin & Udc>Umot",IF(T98=4,"L>Lmax",IF(T98=5,"L>Lmax & Udc>Umot",""))))) -> 
A99: 124 | B99: =IF(Calc!$A$90,INDEX(Motor!$B$1:$B$1223,A99,1),INDEX(LinMotor!$B$1:$B$1341,A99,1)) -> AKM73Q | C99: =IF(Calc!$A$90,INDEX(Motor!$T$1:$T$1223,A99,1),INDEX(LinMotor!$R$1:$R$1355,A99,1)) -> 12.22826087 | D99: =IF(Calc!$A$90,INDEX(Motor!$U$1:$U$1223,A99,1),INDEX(LinMotor!$S$1:$S$1355,A99,1)) -> 0.2435126123 | E99: =IF(Calc!$A$90,INDEX(Motor!$V$1:$V$1223,A99,1),INDEX(LinMotor!$T$1:$T$1355,A99,1)) -> 0.2790907301 | F99: =IF(Calc!$A$90,INDEX(Motor!$W$1:$W$1223,A99,1),INDEX(LinMotor!$U$1:$U$1355,A99,1)) -> 0.03652145244 | G99: =IF(A99<>2,IF(ABS(IF(Calc!$A$90,INDEX(Motor!$X$1:$X$1223,A99,1),INDEX(LinMotor!$V$1:$V$1355,A99,1)))<1000,IF(Calc!$A$90,INDEX(Motor!$X$1:$X$1223,A99,1),INDEX(LinMotor!$V$1:$V$1355,A99,1)),TEXT(IF(Calc!$A$90,INDEX(Motor!$X$1:$X$1223,A99,1),INDEX(LinMotor!$V$1:$V$1355,A99,1))/1000,"0.0k")),"") -> -24.83835931 | H99: =IF(A99<>2,IF(ABS(IF(move1,IF(Calc!$A$90,INDEX(Motor!$Y$1:$Y$1223,A99,1),INDEX(LinMotor!$W$1:$W$1355,A99,1)),IF(Calc!$A$90,INDEX(Motor!$Z$1:$Z$1068,A99,1),INDEX(LinMotor!$X$1:$X$1355,A99,1))))<1000,IF(move1,IF(Calc!$A$90,INDEX(Motor!$Y$1:$Y$1223,A99,1),INDEX(LinMotor!$W$1:$W$1355,A99,1)),IF(Calc!$A$90,INDEX(Motor!$Z$1:$Z$1223,A99,1),INDEX(LinMotor!$X$1:$X$1355,A99,1))),TEXT(IF(move1,IF(Calc!$A$90,INDEX(Motor!$Y$1:$Y$1223,A99,1),INDEX(LinMotor!$W$1:$W$1355,A99,1)),IF(Calc!$A$90,INDEX(Motor!$Z$1:$Z$1223,A99,1),INDEX(LinMotor!$X$1:$X$1355,A99,1)))/1000,"0.0k")),"") -> 9 | I99: =IF(A99<>2,IF(ABS(IF(move1,IF(Calc!$A$90,INDEX(Motor!$Z$1:$Z$1223,A99,1),INDEX(LinMotor!$X$1:$X$1355,A99,1)),IF(Calc!$A$90,INDEX(Motor!$AB$1:$AB$1223,A99,1),INDEX(LinMotor!$Z$1:$Z$1355,A99,1))))<1000,IF(move1,IF(Calc!$A$90,INDEX(Motor!$Z$1:$Z$1223,A99,1),INDEX(LinMotor!$X$1:$X$1355,A99,1)),IF(Calc!$A$90,INDEX(Motor!$AB$1:$AB$1223,A99,1),INDEX(LinMotor!$Z$1:$Z$1355,A99,1))),TEXT(IF(move1,IF(Calc!$A$90,INDEX(Motor!$Z$1:$Z$1223,A99,1),INDEX(LinMotor!$X$1:$X$1355,A99,1)),IF(Calc!$A$90,INDEX(Motor!$AB$1:$AB$1223,A99,1),INDEX(LinMotor!$Z$1:$Z$1355,A99,1)))/1000,"0.0k")),"") -> 30.97907104 | J99: =IF(A99<>2,IF(ABS(IF(move1,IF(Calc!$A$90,INDEX(Motor!$AA$1:$AA$1223,A99,1),INDEX(LinMotor!$Y$1:$Y$1355,A99,1)),IF(Calc!$A$90,INDEX(Motor!$AD$1:$AD$1223,A99,1),INDEX(LinMotor!$AB$1:$AB$445,A99,1))))<1000,IF(move1,IF(Calc!$A$90,INDEX(Motor!$AA$1:$AA$1223,A99,1),INDEX(LinMotor!$Y$1:$Y$1355,A99,1)),IF(Calc!$A$90,INDEX(Motor!$AD$1:$AD$1223,A99,1),INDEX(LinMotor!$AB$1:$AB$445,A99,1))),TEXT(IF(move1,IF(Calc!$A$90,INDEX(Motor!$AA$1:$AA$1223,A99,1),INDEX(LinMotor!$Y$1:$Y$1355,A99,1)),IF(Calc!$A$90,INDEX(Motor!$AD$1:$AD$1223,A99,1),INDEX(LinMotor!$AB$1:$AB$445,A99,1)))/1000,"0.0k")),"") -> 9 | K99: =IF(Calc!$A$90,INDEX(Motor!$AF$1:$AF$1223,A99,1),INDEX(LinMotor!$AD$1:$AD$1355,A99,1)) -> 0.2478637319 | L99: =IF(Calc!$A$90,INDEX(Motor!$AG$1:$AG$1223,A99,1),INDEX(LinMotor!$AE$1:$AE$1355,A99,1)) -> 0.381017691 | M99: =IF(Calc!$A$90,INDEX(Motor!$AH$1:$AH$1223,A99,1),INDEX(LinMotor!$AF$1:$AF$1355,A99,1)) -> 5.948729566 | N99: =IF(Calc!$A$90,INDEX(Motor!$AI$1:$AI$1223,A99,1),INDEX(LinMotor!$AG$1:$AG$1355,A99,1)) -> 18.28884917 | O99: =IF(A99<>2,IF(IF(Calc!$A$90,INDEX(Motor!$AK$1:$AK$1223,A99,1),INDEX(LinMotor!$AI$1:$AI$1355,A99,1))<1000,IF(Calc!$A$90,INDEX(Motor!$AK$1:$AK$1223,A99,1),INDEX(LinMotor!$AI$1:$AI$1355,A99,1)),TEXT(IF(Calc!$A$90,INDEX(Motor!$AK$1:$AK$1223,A99,1),INDEX(LinMotor!$AI$1:$AI$1355,A99,1))/1000,"0.0k")),"") -> 23.40892675 | P99: =IF(A99<>2,IF(IF(Calc!$A$90,INDEX(Motor!$AL$1:$AL$1223,A99,1),INDEX(LinMotor!$AJ$1:$AJ$1355,A99,1))<1000,IF(Calc!$A$90,INDEX(Motor!$AL$1:$AL$1223,A99,1),INDEX(LinMotor!$AJ$1:$AJ$1355,A99,1)),TEXT(IF(Calc!$A$90,INDEX(Motor!$AL$1:$AL$1223,A99,1),INDEX(LinMotor!$AJ$1:$AJ$1355,A99,1))/1000,"0.0k")),"") -> 2.729855318 | Q99: =IF(A99<>2,IF(IF(Calc!$A$90,INDEX(Motor!$AM$1:$AM$1223,A99,1),INDEX(LinMotor!$AK$1:$AK$1355,A99,1))<1000,IF(Calc!$A$90,INDEX(Motor!$AM$1:$AM$1223,A99,1),INDEX(LinMotor!$AK$1:$AK$1355,A99,1)),TEXT(IF(Calc!$A$90,INDEX(Motor!$AM$1:$AM$1223,A99,1),INDEX(LinMotor!$AK$1:$AK$1355,A99,1))/1000,"0.0k")),"") -> 167.2289147
A100: 126 | B100: =IF(Calc!$A$90,INDEX(Motor!$B$1:$B$1223,A100,1),INDEX(LinMotor!$B$1:$B$1341,A100,1)) -> AKM74P | C100: =IF(Calc!$A$90,INDEX(Motor!$T$1:$T$1223,A100,1),INDEX(LinMotor!$R$1:$R$1355,A100,1)) -> 9.375 | D100: =IF(Calc!$A$90,INDEX(Motor!$U$1:$U$1223,A100,1),INDEX(LinMotor!$S$1:$S$1355,A100,1)) -> 0.1935172335 | E100: =IF(Calc!$A$90,INDEX(Motor!$V$1:$V$1223,A100,1),INDEX(LinMotor!$T$1:$T$1355,A100,1)) -> 0.2222096789 | F100: =IF(Calc!$A$90,INDEX(Motor!$W$1:$W$1223,A100,1),INDEX(LinMotor!$U$1:$U$1355,A100,1)) -> 0.06063643864 | G100: =IF(A100<>2,IF(ABS(IF(Calc!$A$90,INDEX(Motor!$X$1:$X$1223,A100,1),INDEX(LinMotor!$V$1:$V$1355,A100,1)))<1000,IF(Calc!$A$90,INDEX(Motor!$X$1:$X$1223,A100,1),INDEX(LinMotor!$V$1:$V$1355,A100,1)),TEXT(IF(Calc!$A$90,INDEX(Motor!$X$1:$X$1223,A100,1),INDEX(LinMotor!$V$1:$V$1355,A100,1))/1000,"0.0k")),"") -> -25.54786963 | H100: =IF(A100<>2,IF(ABS(IF(move1,IF(Calc!$A$90,INDEX(Motor!$Y$1:$Y$1223,A100,1),INDEX(LinMotor!$W$1:$W$1355,A100,1)),IF(Calc!$A$90,INDEX(Motor!$Z$1:$Z$1068,A100,1),INDEX(LinMotor!$X$1:$X$1355,A100,1))))<1000,IF(move1,IF(Calc!$A$90,INDEX(Motor!$Y$1:$Y$1223,A100,1),INDEX(LinMotor!$W$1:$W$1355,A100,1)),IF(Calc!$A$90,INDEX(Motor!$Z$1:$Z$1223,A100,1),INDEX(LinMotor!$X$1:$X$1355,A100,1))),TEXT(IF(move1,IF(Calc!$A$90,INDEX(Motor!$Y$1:$Y$1223,A100,1),INDEX(LinMotor!$W$1:$W$1355,A100,1)),IF(Calc!$A$90,INDEX(Motor!$Z$1:$Z$1223,A100,1),INDEX(LinMotor!$X$1:$X$1355,A100,1)))/1000,"0.0k")),"") -> 9 | I100: =IF(A100<>2,IF(ABS(IF(move1,IF(Calc!$A$90,INDEX(Motor!$Z$1:$Z$1223,A100,1),INDEX(LinMotor!$X$1:$X$1355,A100,1)),IF(Calc!$A$90,INDEX(Motor!$AB$1:$AB$1223,A100,1),INDEX(LinMotor!$Z$1:$Z$1355,A100,1))))<1000,IF(move1,IF(Calc!$A$90,INDEX(Motor!$Z$1:$Z$1223,A100,1),INDEX(LinMotor!$X$1:$X$1355,A100,1)),IF(Calc!$A$90,INDEX(Motor!$AB$1:$AB$1223,A100,1),INDEX(LinMotor!$Z$1:$Z$1355,A100,1))),TEXT(IF(move1,IF(Calc!$A$90,INDEX(Motor!$Z$1:$Z$1223,A100,1),INDEX(LinMotor!$X$1:$X$1355,A100,1)),IF(Calc!$A$90,INDEX(Motor!$AB$1:$AB$1223,A100,1),INDEX(LinMotor!$Z$1:$Z$1355,A100,1)))/1000,"0.0k")),"") -> 31.5537744 | J100: =IF(A100<>2,IF(ABS(IF(move1,IF(Calc!$A$90,INDEX(Motor!$AA$1:$AA$1223,A100,1),INDEX(LinMotor!$Y$1:$Y$1355,A100,1)),IF(Calc!$A$90,INDEX(Motor!$AD$1:$AD$1223,A100,1),INDEX(LinMotor!$AB$1:$AB$445,A100,1))))<1000,IF(move1,IF(Calc!$A$90,INDEX(Motor!$AA$1:$AA$1223,A100,1),INDEX(LinMotor!$Y$1:$Y$1355,A100,1)),IF(Calc!$A$90,INDEX(Motor!$AD$1:$AD$1223,A100,1),INDEX(LinMotor!$AB$1:$AB$445,A100,1))),TEXT(IF(move1,IF(Calc!$A$90,INDEX(Motor!$AA$1:$AA$1223,A100,1),INDEX(LinMotor!$Y$1:$Y$1355,A100,1)),IF(Calc!$A$90,INDEX(Motor!$AD$1:$AD$1223,A100,1),INDEX(LinMotor!$AB$1:$AB$445,A100,1)))/1000,"0.0k")),"") -> 9 | K100: =IF(Calc!$A$90,INDEX(Motor!$AF$1:$AF$1223,A100,1),INDEX(LinMotor!$AD$1:$AD$1355,A100,1)) -> 0.1487177649 | L100: =IF(Calc!$A$90,INDEX(Motor!$AG$1:$AG$1223,A100,1),INDEX(LinMotor!$AE$1:$AE$1355,A100,1)) -> 0.2316447724 | M100: =IF(Calc!$A$90,INDEX(Motor!$AH$1:$AH$1223,A100,1),INDEX(LinMotor!$AF$1:$AF$1355,A100,1)) -> 3.569226357 | N100: =IF(Calc!$A$90,INDEX(Motor!$AI$1:$AI$1223,A100,1),INDEX(LinMotor!$AG$1:$AG$1355,A100,1)) -> 11.11894907 | O100: =IF(A100<>2,IF(IF(Calc!$A$90,INDEX(Motor!$AK$1:$AK$1223,A100,1),INDEX(LinMotor!$AI$1:$AI$1355,A100,1))<1000,IF(Calc!$A$90,INDEX(Motor!$AK$1:$AK$1223,A100,1),INDEX(LinMotor!$AI$1:$AI$1355,A100,1)),TEXT(IF(Calc!$A$90,INDEX(Motor!$AK$1:$AK$1223,A100,1),INDEX(LinMotor!$AI$1:$AI$1355,A100,1))/1000,"0.0k")),"") -> 23.5308129 | P100: =IF(A100<>2,IF(IF(Calc!$A$90,INDEX(Motor!$AL$1:$AL$1223,A100,1),INDEX(LinMotor!$AJ$1:$AJ$1355,A100,1))<1000,IF(Calc!$A$90,INDEX(Motor!$AL$1:$AL$1223,A100,1),INDEX(LinMotor!$AJ$1:$AJ$1355,A100,1)),TEXT(IF(Calc!$A$90,INDEX(Motor!$AL$1:$AL$1223,A100,1),INDEX(LinMotor!$AJ$1:$AJ$1355,A100,1))/1000,"0.0k")),"") -> 2.828167161 | Q100: =IF(A100<>2,IF(IF(Calc!$A$90,INDEX(Motor!$AM$1:$AM$1223,A100,1),INDEX(LinMotor!$AK$1:$AK$1355,A100,1))<1000,IF(Calc!$A$90,INDEX(Motor!$AM$1:$AM$1223,A100,1),INDEX(LinMotor!$AK$1:$AK$1355,A100,1)),TEXT(IF(Calc!$A$90,INDEX(Motor!$AM$1:$AM$1223,A100,1),INDEX(LinMotor!$AK$1:$AK$1355,A100,1))/1000,"0.0k")),"") -> 173.2514253
A101: 127 | B101: =IF(Calc!$A$90,INDEX(Motor!$B$1:$B$1223,A101,1),INDEX(LinMotor!$B$1:$B$1341,A101,1)) -> AKM74Q | C101: =IF(Calc!$A$90,INDEX(Motor!$T$1:$T$1223,A101,1),INDEX(LinMotor!$R$1:$R$1355,A101,1)) -> 9.375 | D101: =IF(Calc!$A$90,INDEX(Motor!$U$1:$U$1223,A101,1),INDEX(LinMotor!$S$1:$S$1355,A101,1)) -> 0.1947252225 | E101: =IF(Calc!$A$90,INDEX(Motor!$V$1:$V$1223,A101,1),INDEX(LinMotor!$T$1:$T$1355,A101,1)) -> 0.223785634 | F101: =IF(Calc!$A$90,INDEX(Motor!$W$1:$W$1223,A101,1),INDEX(LinMotor!$U$1:$U$1355,A101,1)) -> 0.04268975196 | G101: =IF(A101<>2,IF(ABS(IF(Calc!$A$90,INDEX(Motor!$X$1:$X$1223,A101,1),INDEX(LinMotor!$V$1:$V$1355,A101,1)))<1000,IF(Calc!$A$90,INDEX(Motor!$X$1:$X$1223,A101,1),INDEX(LinMotor!$V$1:$V$1355,A101,1)),TEXT(IF(Calc!$A$90,INDEX(Motor!$X$1:$X$1223,A101,1),INDEX(LinMotor!$V$1:$V$1355,A101,1))/1000,"0.0k")),"") -> -25.54786963 | H101: =IF(A101<>2,IF(ABS(IF(move1,IF(Calc!$A$90,INDEX(Motor!$Y$1:$Y$1223,A101,1),INDEX(LinMotor!$W$1:$W$1355,A101,1)),IF(Calc!$A$90,INDEX(Motor!$Z$1:$Z$1068,A101,1),INDEX(LinMotor!$X$1:$X$1355,A101,1))))<1000,IF(move1,IF(Calc!$A$90,INDEX(Motor!$Y$1:$Y$1223,A101,1),INDEX(LinMotor!$W$1:$W$1355,A101,1)),IF(Calc!$A$90,INDEX(Motor!$Z$1:$Z$1223,A101,1),INDEX(LinMotor!$X$1:$X$1355,A101,1))),TEXT(IF(move1,IF(Calc!$A$90,INDEX(Motor!$Y$1:$Y$1223,A101,1),INDEX(LinMotor!$W$1:$W$1355,A101,1)),IF(Calc!$A$90,INDEX(Motor!$Z$1:$Z$1223,A101,1),INDEX(LinMotor!$X$1:$X$1355,A101,1)))/1000,"0.0k")),"") -> 9 | I101: =IF(A101<>2,IF(ABS(IF(move1,IF(Calc!$A$90,INDEX(Motor!$Z$1:$Z$1223,A101,1),INDEX(LinMotor!$X$1:$X$1355,A101,1)),IF(Calc!$A$90,INDEX(Motor!$AB$1:$AB$1223,A101,1),INDEX(LinMotor!$Z$1:$Z$1355,A101,1))))<1000,IF(move1,IF(Calc!$A$90,INDEX(Motor!$Z$1:$Z$1223,A101,1),INDEX(LinMotor!$X$1:$X$1355,A101,1)),IF(Calc!$A$90,INDEX(Motor!$AB$1:$AB$1223,A101,1),INDEX(LinMotor!$Z$1:$Z$1355,A101,1))),TEXT(IF(move1,IF(Calc!$A$90,INDEX(Motor!$Z$1:$Z$1223,A101,1),INDEX(LinMotor!$X$1:$X$1355,A101,1)),IF(Calc!$A$90,INDEX(Motor!$AB$1:$AB$1223,A101,1),INDEX(LinMotor!$Z$1:$Z$1355,A101,1)))/1000,"0.0k")),"") -> 31.5537744 | J101: =IF(A101<>2,IF(ABS(IF(move1,IF(Calc!$A$90,INDEX(Motor!$AA$1:$AA$1223,A101,1),INDEX(LinMotor!$Y$1:$Y$1355,A101,1)),IF(Calc!$A$90,INDEX(Motor!$AD$1:$AD$1223,A101,1),INDEX(LinMotor!$AB$1:$AB$445,A101,1))))<1000,IF(move1,IF(Calc!$A$90,INDEX(Motor!$AA$1:$AA$1223,A101,1),INDEX(LinMotor!$Y$1:$Y$1355,A101,1)),IF(Calc!$A$90,INDEX(Motor!$AD$1:$AD$1223,A101,1),INDEX(LinMotor!$AB$1:$AB$445,A101,1))),TEXT(IF(move1,IF(Calc!$A$90,INDEX(Motor!$AA$1:$AA$1223,A101,1),INDEX(LinMotor!$Y$1:$Y$1355,A101,1)),IF(Calc!$A$90,INDEX(Motor!$AD$1:$AD$1223,A101,1),INDEX(LinMotor!$AB$1:$AB$445,A101,1)))/1000,"0.0k")),"") -> 9 | K101: =IF(Calc!$A$90,INDEX(Motor!$AF$1:$AF$1223,A101,1),INDEX(LinMotor!$AD$1:$AD$1355,A101,1)) -> 0.2110184502 | L101: =IF(Calc!$A$90,INDEX(Motor!$AG$1:$AG$1223,A101,1),INDEX(LinMotor!$AE$1:$AE$1355,A101,1)) -> 0.32868515 | M101: =IF(Calc!$A$90,INDEX(Motor!$AH$1:$AH$1223,A101,1),INDEX(LinMotor!$AF$1:$AF$1355,A101,1)) -> 5.064442804 | N101: =IF(Calc!$A$90,INDEX(Motor!$AI$1:$AI$1223,A101,1),INDEX(LinMotor!$AG$1:$AG$1355,A101,1)) -> 15.7768872 | O101: =IF(A101<>2,IF(IF(Calc!$A$90,INDEX(Motor!$AK$1:$AK$1223,A101,1),INDEX(LinMotor!$AI$1:$AI$1355,A101,1))<1000,IF(Calc!$A$90,INDEX(Motor!$AK$1:$AK$1223,A101,1),INDEX(LinMotor!$AI$1:$AI$1355,A101,1)),TEXT(IF(Calc!$A$90,INDEX(Motor!$AK$1:$AK$1223,A101,1),INDEX(LinMotor!$AI$1:$AI$1355,A101,1))/1000,"0.0k")),"") -> 23.5308129 | P101: =IF(A101<>2,IF(IF(Calc!$A$90,INDEX(Motor!$AL$1:$AL$1223,A101,1),INDEX(LinMotor!$AJ$1:$AJ$1355,A101,1))<1000,IF(Calc!$A$90,INDEX(Motor!$AL$1:$AL$1223,A101,1),INDEX(LinMotor!$AJ$1:$AJ$1355,A101,1)),TEXT(IF(Calc!$A$90,INDEX(Motor!$AL$1:$AL$1223,A101,1),INDEX(LinMotor!$AJ$1:$AJ$1355,A101,1))/1000,"0.0k")),"") -> 2.828167161 | Q101: =IF(A101<>2,IF(IF(Calc!$A$90,INDEX(Motor!$AM$1:$AM$1223,A101,1),INDEX(LinMotor!$AK$1:$AK$1355,A101,1))<1000,IF(Calc!$A$90,INDEX(Motor!$AM$1:$AM$1223,A101,1),INDEX(LinMotor!$AK$1:$AK$1355,A101,1)),TEXT(IF(Calc!$A$90,INDEX(Motor!$AM$1:$AM$1223,A101,1),INDEX(LinMotor!$AK$1:$AK$1355,A101,1))/1000,"0.0k")),"") -> 173.2514253
A102: 128 | B102: =IF(Calc!$A$90,INDEX(Motor!$B$1:$B$1223,A102,1),INDEX(LinMotor!$B$1:$B$1341,A102,1)) -> AKM82T | C102: =IF(Calc!$A$90,INDEX(Motor!$T$1:$T$1223,A102,1),INDEX(LinMotor!$R$1:$R$1355,A102,1)) -> 6.540697674 | D102: =IF(Calc!$A$90,INDEX(Motor!$U$1:$U$1223,A102,1),INDEX(LinMotor!$S$1:$S$1355,A102,1)) -> 0.1368283801 | E102: =IF(Calc!$A$90,INDEX(Motor!$V$1:$V$1223,A102,1),INDEX(LinMotor!$T$1:$T$1355,A102,1)) -> 0.1553384792 | F102: =IF(Calc!$A$90,INDEX(Motor!$W$1:$W$1223,A102,1),INDEX(LinMotor!$U$1:$U$1355,A102,1)) -> 0.03585864559 | G102: =IF(A102<>2,IF(ABS(IF(Calc!$A$90,INDEX(Motor!$X$1:$X$1223,A102,1),INDEX(LinMotor!$V$1:$V$1355,A102,1)))<1000,IF(Calc!$A$90,INDEX(Motor!$X$1:$X$1223,A102,1),INDEX(LinMotor!$V$1:$V$1355,A102,1)),TEXT(IF(Calc!$A$90,INDEX(Motor!$X$1:$X$1223,A102,1),INDEX(LinMotor!$V$1:$V$1355,A102,1))/1000,"0.0k")),"") -> -26.86553165 | H102: =IF(A102<>2,IF(ABS(IF(move1,IF(Calc!$A$90,INDEX(Motor!$Y$1:$Y$1223,A102,1),INDEX(LinMotor!$W$1:$W$1355,A102,1)),IF(Calc!$A$90,INDEX(Motor!$Z$1:$Z$1068,A102,1),INDEX(LinMotor!$X$1:$X$1355,A102,1))))<1000,IF(move1,IF(Calc!$A$90,INDEX(Motor!$Y$1:$Y$1223,A102,1),INDEX(LinMotor!$W$1:$W$1355,A102,1)),IF(Calc!$A$90,INDEX(Motor!$Z$1:$Z$1223,A102,1),INDEX(LinMotor!$X$1:$X$1355,A102,1))),TEXT(IF(move1,IF(Calc!$A$90,INDEX(Motor!$Y$1:$Y$1223,A102,1),INDEX(LinMotor!$W$1:$W$1355,A102,1)),IF(Calc!$A$90,INDEX(Motor!$Z$1:$Z$1223,A102,1),INDEX(LinMotor!$X$1:$X$1355,A102,1)))/1000,"0.0k")),"") -> 9 | I102: =IF(A102<>2,IF(ABS(IF(move1,IF(Calc!$A$90,INDEX(Motor!$Z$1:$Z$1223,A102,1),INDEX(LinMotor!$X$1:$X$1355,A102,1)),IF(Calc!$A$90,INDEX(Motor!$AB$1:$AB$1223,A102,1),INDEX(LinMotor!$Z$1:$Z$1355,A102,1))))<1000,IF(move1,IF(Calc!$A$90,INDEX(Motor!$Z$1:$Z$1223,A102,1),INDEX(LinMotor!$X$1:$X$1355,A102,1)),IF(Calc!$A$90,INDEX(Motor!$AB$1:$AB$1223,A102,1),INDEX(LinMotor!$Z$1:$Z$1355,A102,1))),TEXT(IF(move1,IF(Calc!$A$90,INDEX(Motor!$Z$1:$Z$1223,A102,1),INDEX(LinMotor!$X$1:$X$1355,A102,1)),IF(Calc!$A$90,INDEX(Motor!$AB$1:$AB$1223,A102,1),INDEX(LinMotor!$Z$1:$Z$1355,A102,1)))/1000,"0.0k")),"") -> 32.62108064 | J102: =IF(A102<>2,IF(ABS(IF(move1,IF(Calc!$A$90,INDEX(Motor!$AA$1:$AA$1223,A102,1),INDEX(LinMotor!$Y$1:$Y$1355,A102,1)),IF(Calc!$A$90,INDEX(Motor!$AD$1:$AD$1223,A102,1),INDEX(LinMotor!$AB$1:$AB$445,A102,1))))<1000,IF(move1,IF(Calc!$A$90,INDEX(Motor!$AA$1:$AA$1223,A102,1),INDEX(LinMotor!$Y$1:$Y$1355,A102,1)),IF(Calc!$A$90,INDEX(Motor!$AD$1:$AD$1223,A102,1),INDEX(LinMotor!$AB$1:$AB$445,A102,1))),TEXT(IF(move1,IF(Calc!$A$90,INDEX(Motor!$AA$1:$AA$1223,A102,1),INDEX(LinMotor!$Y$1:$Y$1355,A102,1)),IF(Calc!$A$90,INDEX(Motor!$AD$1:$AD$1223,A102,1),INDEX(LinMotor!$AB$1:$AB$445,A102,1)))/1000,"0.0k")),"") -> 9 | K102: =IF(Calc!$A$90,INDEX(Motor!$AF$1:$AF$1223,A102,1),INDEX(LinMotor!$AD$1:$AD$1355,A102,1)) -> 0.2727662965 | L102: =IF(Calc!$A$90,INDEX(Motor!$AG$1:$AG$1223,A102,1),INDEX(LinMotor!$AE$1:$AE$1355,A102,1)) -> 0.4349477419 | M102: =IF(Calc!$A$90,INDEX(Motor!$AH$1:$AH$1223,A102,1),INDEX(LinMotor!$AF$1:$AF$1355,A102,1)) -> 6.546391117 | N102: =IF(Calc!$A$90,INDEX(Motor!$AI$1:$AI$1223,A102,1),INDEX(LinMotor!$AG$1:$AG$1355,A102,1)) -> 20.87749161 | O102: =IF(A102<>2,IF(IF(Calc!$A$90,INDEX(Motor!$AK$1:$AK$1223,A102,1),INDEX(LinMotor!$AI$1:$AI$1355,A102,1))<1000,IF(Calc!$A$90,INDEX(Motor!$AK$1:$AK$1223,A102,1),INDEX(LinMotor!$AI$1:$AI$1355,A102,1)),TEXT(IF(Calc!$A$90,INDEX(Motor!$AK$1:$AK$1223,A102,1),INDEX(LinMotor!$AI$1:$AI$1355,A102,1))/1000,"0.0k")),"") -> 23.76277956 | P102: =IF(A102<>2,IF(IF(Calc!$A$90,INDEX(Motor!$AL$1:$AL$1223,A102,1),INDEX(LinMotor!$AJ$1:$AJ$1355,A102,1))<1000,IF(Calc!$A$90,INDEX(Motor!$AL$1:$AL$1223,A102,1),INDEX(LinMotor!$AJ$1:$AJ$1355,A102,1)),TEXT(IF(Calc!$A$90,INDEX(Motor!$AL$1:$AL$1223,A102,1),INDEX(LinMotor!$AJ$1:$AJ$1355,A102,1))/1000,"0.0k")),"") -> 3.010746297 | Q102: =IF(A102<>2,IF(IF(Calc!$A$90,INDEX(Motor!$AM$1:$AM$1223,A102,1),INDEX(LinMotor!$AK$1:$AK$1355,A102,1))<1000,IF(Calc!$A$90,INDEX(Motor!$AM$1:$AM$1223,A102,1),INDEX(LinMotor!$AK$1:$AK$1355,A102,1)),TEXT(IF(Calc!$A$90,INDEX(Motor!$AM$1:$AM$1223,A102,1),INDEX(LinMotor!$AK$1:$AK$1355,A102,1))/1000,"0.0k")),"") -> 184.436088
A103: 129 | B103: =IF(Calc!$A$90,INDEX(Motor!$B$1:$B$1223,A103,1),INDEX(LinMotor!$B$1:$B$1341,A103,1)) -> AKM83T | C103: =IF(Calc!$A$90,INDEX(Motor!$T$1:$T$1223,A103,1),INDEX(LinMotor!$R$1:$R$1355,A103,1)) -> 3.368263473 | D103: =IF(Calc!$A$90,INDEX(Motor!$U$1:$U$1223,A103,1),INDEX(LinMotor!$S$1:$S$1355,A103,1)) -> 0.08160303072 | E103: =IF(Calc!$A$90,INDEX(Motor!$V$1:$V$1223,A103,1),INDEX(LinMotor!$T$1:$T$1355,A103,1)) -> 0.07882927649 | F103: =IF(Calc!$A$90,INDEX(Motor!$W$1:$W$1223,A103,1),INDEX(LinMotor!$U$1:$U$1355,A103,1)) -> 0.04578802874 | G103: =IF(A103<>2,IF(ABS(IF(Calc!$A$90,INDEX(Motor!$X$1:$X$1223,A103,1),INDEX(LinMotor!$V$1:$V$1355,A103,1)))<1000,IF(Calc!$A$90,INDEX(Motor!$X$1:$X$1223,A103,1),INDEX(LinMotor!$V$1:$V$1355,A103,1)),TEXT(IF(Calc!$A$90,INDEX(Motor!$X$1:$X$1223,A103,1),INDEX(LinMotor!$V$1:$V$1355,A103,1))/1000,"0.0k")),"") -> -30.97055565 | H103: =IF(A103<>2,IF(ABS(IF(move1,IF(Calc!$A$90,INDEX(Motor!$Y$1:$Y$1223,A103,1),INDEX(LinMotor!$W$1:$W$1355,A103,1)),IF(Calc!$A$90,INDEX(Motor!$Z$1:$Z$1068,A103,1),INDEX(LinMotor!$X$1:$X$1355,A103,1))))<1000,IF(move1,IF(Calc!$A$90,INDEX(Motor!$Y$1:$Y$1223,A103,1),INDEX(LinMotor!$W$1:$W$1355,A103,1)),IF(Calc!$A$90,INDEX(Motor!$Z$1:$Z$1223,A103,1),INDEX(LinMotor!$X$1:$X$1355,A103,1))),TEXT(IF(move1,IF(Calc!$A$90,INDEX(Motor!$Y$1:$Y$1223,A103,1),INDEX(LinMotor!$W$1:$W$1355,A103,1)),IF(Calc!$A$90,INDEX(Motor!$Z$1:$Z$1223,A103,1),INDEX(LinMotor!$X$1:$X$1355,A103,1)))/1000,"0.0k")),"") -> 9 | I103: =IF(A103<>2,IF(ABS(IF(move1,IF(Calc!$A$90,INDEX(Motor!$Z$1:$Z$1223,A103,1),INDEX(LinMotor!$X$1:$X$1355,A103,1)),IF(Calc!$A$90,INDEX(Motor!$AB$1:$AB$1223,A103,1),INDEX(LinMotor!$Z$1:$Z$1355,A103,1))))<1000,IF(move1,IF(Calc!$A$90,INDEX(Motor!$Z$1:$Z$1223,A103,1),INDEX(LinMotor!$X$1:$X$1355,A103,1)),IF(Calc!$A$90,INDEX(Motor!$AB$1:$AB$1223,A103,1),INDEX(LinMotor!$Z$1:$Z$1355,A103,1))),TEXT(IF(move1,IF(Calc!$A$90,INDEX(Motor!$Z$1:$Z$1223,A103,1),INDEX(LinMotor!$X$1:$X$1355,A103,1)),IF(Calc!$A$90,INDEX(Motor!$AB$1:$AB$1223,A103,1),INDEX(LinMotor!$Z$1:$Z$1355,A103,1)))/1000,"0.0k")),"") -> 35.94615008 | J103: =IF(A103<>2,IF(ABS(IF(move1,IF(Calc!$A$90,INDEX(Motor!$AA$1:$AA$1223,A103,1),INDEX(LinMotor!$Y$1:$Y$1355,A103,1)),IF(Calc!$A$90,INDEX(Motor!$AD$1:$AD$1223,A103,1),INDEX(LinMotor!$AB$1:$AB$445,A103,1))))<1000,IF(move1,IF(Calc!$A$90,INDEX(Motor!$AA$1:$AA$1223,A103,1),INDEX(LinMotor!$Y$1:$Y$1355,A103,1)),IF(Calc!$A$90,INDEX(Motor!$AD$1:$AD$1223,A103,1),INDEX(LinMotor!$AB$1:$AB$445,A103,1))),TEXT(IF(move1,IF(Calc!$A$90,INDEX(Motor!$AA$1:$AA$1223,A103,1),INDEX(LinMotor!$Y$1:$Y$1355,A103,1)),IF(Calc!$A$90,INDEX(Motor!$AD$1:$AD$1223,A103,1),INDEX(LinMotor!$AB$1:$AB$445,A103,1)))/1000,"0.0k")),"") -> 9 | K103: =IF(Calc!$A$90,INDEX(Motor!$AF$1:$AF$1223,A103,1),INDEX(LinMotor!$AD$1:$AD$1355,A103,1)) -> 0.209826645 | L103: =IF(Calc!$A$90,INDEX(Motor!$AG$1:$AG$1223,A103,1),INDEX(LinMotor!$AE$1:$AE$1355,A103,1)) -> 0.3571572604 | M103: =IF(Calc!$A$90,INDEX(Motor!$AH$1:$AH$1223,A103,1),INDEX(LinMotor!$AF$1:$AF$1355,A103,1)) -> 5.035839481 | N103: =IF(Calc!$A$90,INDEX(Motor!$AI$1:$AI$1223,A103,1),INDEX(LinMotor!$AG$1:$AG$1355,A103,1)) -> 17.1435485 | O103: =IF(A103<>2,IF(IF(Calc!$A$90,INDEX(Motor!$AK$1:$AK$1223,A103,1),INDEX(LinMotor!$AI$1:$AI$1355,A103,1))<1000,IF(Calc!$A$90,INDEX(Motor!$AK$1:$AK$1223,A103,1),INDEX(LinMotor!$AI$1:$AI$1355,A103,1)),TEXT(IF(Calc!$A$90,INDEX(Motor!$AK$1:$AK$1223,A103,1),INDEX(LinMotor!$AI$1:$AI$1355,A103,1))/1000,"0.0k")),"") -> 24.53007102 | P103: =IF(A103<>2,IF(IF(Calc!$A$90,INDEX(Motor!$AL$1:$AL$1223,A103,1),INDEX(LinMotor!$AJ$1:$AJ$1355,A103,1))<1000,IF(Calc!$A$90,INDEX(Motor!$AL$1:$AL$1223,A103,1),INDEX(LinMotor!$AJ$1:$AJ$1355,A103,1)),TEXT(IF(Calc!$A$90,INDEX(Motor!$AL$1:$AL$1223,A103,1),INDEX(LinMotor!$AJ$1:$AJ$1355,A103,1))/1000,"0.0k")),"") -> 3.579550529 | Q103: =IF(A103<>2,IF(IF(Calc!$A$90,INDEX(Motor!$AM$1:$AM$1223,A103,1),INDEX(LinMotor!$AK$1:$AK$1355,A103,1))<1000,IF(Calc!$A$90,INDEX(Motor!$AM$1:$AM$1223,A103,1),INDEX(LinMotor!$AK$1:$AK$1355,A103,1)),TEXT(IF(Calc!$A$90,INDEX(Motor!$AM$1:$AM$1223,A103,1),INDEX(LinMotor!$AK$1:$AK$1355,A103,1))/1000,"0.0k")),"") -> 219.2806139
A104: 130 | B104: =IF(Calc!$A$90,INDEX(Motor!$B$1:$B$1223,A104,1),INDEX(LinMotor!$B$1:$B$1341,A104,1)) -> AKM84T | C104: =IF(Calc!$A$90,INDEX(Motor!$T$1:$T$1223,A104,1),INDEX(LinMotor!$R$1:$R$1355,A104,1)) -> 2.272727273 | D104: =IF(Calc!$A$90,INDEX(Motor!$U$1:$U$1223,A104,1),INDEX(LinMotor!$S$1:$S$1355,A104,1)) -> 0.06094648876 | E104: =IF(Calc!$A$90,INDEX(Motor!$V$1:$V$1223,A104,1),INDEX(LinMotor!$T$1:$T$1355,A104,1)) -> 0.05875852455 | F104: =IF(Calc!$A$90,INDEX(Motor!$W$1:$W$1223,A104,1),INDEX(LinMotor!$U$1:$U$1355,A104,1)) -> 0.05782836198 | G104: =IF(A104<>2,IF(ABS(IF(Calc!$A$90,INDEX(Motor!$X$1:$X$1223,A104,1),INDEX(LinMotor!$V$1:$V$1355,A104,1)))<1000,IF(Calc!$A$90,INDEX(Motor!$X$1:$X$1223,A104,1),INDEX(LinMotor!$V$1:$V$1355,A104,1)),TEXT(IF(Calc!$A$90,INDEX(Motor!$X$1:$X$1223,A104,1),INDEX(LinMotor!$V$1:$V$1355,A104,1))/1000,"0.0k")),"") -> -35.05024 | H104: =IF(A104<>2,IF(ABS(IF(move1,IF(Calc!$A$90,INDEX(Motor!$Y$1:$Y$1223,A104,1),INDEX(LinMotor!$W$1:$W$1355,A104,1)),IF(Calc!$A$90,INDEX(Motor!$Z$1:$Z$1068,A104,1),INDEX(LinMotor!$X$1:$X$1355,A104,1))))<1000,IF(move1,IF(Calc!$A$90,INDEX(Motor!$Y$1:$Y$1223,A104,1),INDEX(LinMotor!$W$1:$W$1355,A104,1)),IF(Calc!$A$90,INDEX(Motor!$Z$1:$Z$1223,A104,1),INDEX(LinMotor!$X$1:$X$1355,A104,1))),TEXT(IF(move1,IF(Calc!$A$90,INDEX(Motor!$Y$1:$Y$1223,A104,1),INDEX(LinMotor!$W$1:$W$1355,A104,1)),IF(Calc!$A$90,INDEX(Motor!$Z$1:$Z$1223,A104,1),INDEX(LinMotor!$X$1:$X$1355,A104,1)))/1000,"0.0k")),"") -> 9 | I104: =IF(A104<>2,IF(ABS(IF(move1,IF(Calc!$A$90,INDEX(Motor!$Z$1:$Z$1223,A104,1),INDEX(LinMotor!$X$1:$X$1355,A104,1)),IF(Calc!$A$90,INDEX(Motor!$AB$1:$AB$1223,A104,1),INDEX(LinMotor!$Z$1:$Z$1355,A104,1))))<1000,IF(move1,IF(Calc!$A$90,INDEX(Motor!$Z$1:$Z$1223,A104,1),INDEX(LinMotor!$X$1:$X$1355,A104,1)),IF(Calc!$A$90,INDEX(Motor!$AB$1:$AB$1223,A104,1),INDEX(LinMotor!$Z$1:$Z$1355,A104,1))),TEXT(IF(move1,IF(Calc!$A$90,INDEX(Motor!$Z$1:$Z$1223,A104,1),INDEX(LinMotor!$X$1:$X$1355,A104,1)),IF(Calc!$A$90,INDEX(Motor!$AB$1:$AB$1223,A104,1),INDEX(LinMotor!$Z$1:$Z$1355,A104,1)))/1000,"0.0k")),"") -> 39.2506944 | J104: =IF(A104<>2,IF(ABS(IF(move1,IF(Calc!$A$90,INDEX(Motor!$AA$1:$AA$1223,A104,1),INDEX(LinMotor!$Y$1:$Y$1355,A104,1)),IF(Calc!$A$90,INDEX(Motor!$AD$1:$AD$1223,A104,1),INDEX(LinMotor!$AB$1:$AB$445,A104,1))))<1000,IF(move1,IF(Calc!$A$90,INDEX(Motor!$AA$1:$AA$1223,A104,1),INDEX(LinMotor!$Y$1:$Y$1355,A104,1)),IF(Calc!$A$90,INDEX(Motor!$AD$1:$AD$1223,A104,1),INDEX(LinMotor!$AB$1:$AB$445,A104,1))),TEXT(IF(move1,IF(Calc!$A$90,INDEX(Motor!$AA$1:$AA$1223,A104,1),INDEX(LinMotor!$Y$1:$Y$1355,A104,1)),IF(Calc!$A$90,INDEX(Motor!$AD$1:$AD$1223,A104,1),INDEX(LinMotor!$AB$1:$AB$445,A104,1)))/1000,"0.0k")),"") -> 9 | K104: =IF(Calc!$A$90,INDEX(Motor!$AF$1:$AF$1223,A104,1),INDEX(LinMotor!$AD$1:$AD$1355,A104,1)) -> 0.169268491 | L104: =IF(Calc!$A$90,INDEX(Motor!$AG$1:$AG$1223,A104,1),INDEX(LinMotor!$AE$1:$AE$1355,A104,1)) -> 0.3043745978 | M104: =IF(Calc!$A$90,INDEX(Motor!$AH$1:$AH$1223,A104,1),INDEX(LinMotor!$AF$1:$AF$1355,A104,1)) -> 4.062443783 | N104: =IF(Calc!$A$90,INDEX(Motor!$AI$1:$AI$1223,A104,1),INDEX(LinMotor!$AG$1:$AG$1355,A104,1)) -> 14.60998069 | O104: =IF(A104<>2,IF(IF(Calc!$A$90,INDEX(Motor!$AK$1:$AK$1223,A104,1),INDEX(LinMotor!$AI$1:$AI$1355,A104,1))<1000,IF(Calc!$A$90,INDEX(Motor!$AK$1:$AK$1223,A104,1),INDEX(LinMotor!$AI$1:$AI$1355,A104,1)),TEXT(IF(Calc!$A$90,INDEX(Motor!$AK$1:$AK$1223,A104,1),INDEX(LinMotor!$AI$1:$AI$1355,A104,1))/1000,"0.0k")),"") -> 25.35480828 | P104: =IF(A104<>2,IF(IF(Calc!$A$90,INDEX(Motor!$AL$1:$AL$1223,A104,1),INDEX(LinMotor!$AJ$1:$AJ$1355,A104,1))<1000,IF(Calc!$A$90,INDEX(Motor!$AL$1:$AL$1223,A104,1),INDEX(LinMotor!$AJ$1:$AJ$1355,A104,1)),TEXT(IF(Calc!$A$90,INDEX(Motor!$AL$1:$AL$1223,A104,1),INDEX(LinMotor!$AJ$1:$AJ$1355,A104,1))/1000,"0.0k")),"") -> 4.144843624 | Q104: =IF(A104<>2,IF(IF(Calc!$A$90,INDEX(Motor!$AM$1:$AM$1223,A104,1),INDEX(LinMotor!$AK$1:$AK$1355,A104,1))<1000,IF(Calc!$A$90,INDEX(Motor!$AM$1:$AM$1223,A104,1),INDEX(LinMotor!$AK$1:$AK$1355,A104,1)),TEXT(IF(Calc!$A$90,INDEX(Motor!$AM$1:$AM$1223,A104,1),INDEX(LinMotor!$AK$1:$AK$1355,A104,1))/1000,"0.0k")),"") -> 253.9100502
A105: 173 | B105: =IF(Calc!$A$90,INDEX(Motor!$B$1:$B$1223,A105,1),INDEX(LinMotor!$B$1:$B$1341,A105,1)) -> DBL7N02600 | C105: =IF(Calc!$A$90,INDEX(Motor!$T$1:$T$1223,A105,1),INDEX(LinMotor!$R$1:$R$1355,A105,1)) -> 11.55030801 | D105: =IF(Calc!$A$90,INDEX(Motor!$U$1:$U$1223,A105,1),INDEX(LinMotor!$S$1:$S$1355,A105,1)) -> 0.388604203 | E105: =IF(Calc!$A$90,INDEX(Motor!$V$1:$V$1223,A105,1),INDEX(LinMotor!$T$1:$T$1355,A105,1)) -> 0.2673710585 | F105: =IF(Calc!$A$90,INDEX(Motor!$W$1:$W$1223,A105,1),INDEX(LinMotor!$U$1:$U$1355,A105,1)) -> 0.03110473567 | G105: =IF(A105<>2,IF(ABS(IF(Calc!$A$90,INDEX(Motor!$X$1:$X$1223,A105,1),INDEX(LinMotor!$V$1:$V$1355,A105,1)))<1000,IF(Calc!$A$90,INDEX(Motor!$X$1:$X$1223,A105,1),INDEX(LinMotor!$V$1:$V$1355,A105,1)),TEXT(IF(Calc!$A$90,INDEX(Motor!$X$1:$X$1223,A105,1),INDEX(LinMotor!$V$1:$V$1355,A105,1))/1000,"0.0k")),"") -> -24.97519344 | H105: =IF(A105<>2,IF(ABS(IF(move1,IF(Calc!$A$90,INDEX(Motor!$Y$1:$Y$1223,A105,1),INDEX(LinMotor!$W$1:$W$1355,A105,1)),IF(Calc!$A$90,INDEX(Motor!$Z$1:$Z$1068,A105,1),INDEX(LinMotor!$X$1:$X$1355,A105,1))))<1000,IF(move1,IF(Calc!$A$90,INDEX(Motor!$Y$1:$Y$1223,A105,1),INDEX(LinMotor!$W$1:$W$1355,A105,1)),IF(Calc!$A$90,INDEX(Motor!$Z$1:$Z$1223,A105,1),INDEX(LinMotor!$X$1:$X$1355,A105,1))),TEXT(IF(move1,IF(Calc!$A$90,INDEX(Motor!$Y$1:$Y$1223,A105,1),INDEX(LinMotor!$W$1:$W$1355,A105,1)),IF(Calc!$A$90,INDEX(Motor!$Z$1:$Z$1223,A105,1),INDEX(LinMotor!$X$1:$X$1355,A105,1)))/1000,"0.0k")),"") -> 9 | I105: =IF(A105<>2,IF(ABS(IF(move1,IF(Calc!$A$90,INDEX(Motor!$Z$1:$Z$1223,A105,1),INDEX(LinMotor!$X$1:$X$1355,A105,1)),IF(Calc!$A$90,INDEX(Motor!$AB$1:$AB$1223,A105,1),INDEX(LinMotor!$Z$1:$Z$1355,A105,1))))<1000,IF(move1,IF(Calc!$A$90,INDEX(Motor!$Z$1:$Z$1223,A105,1),INDEX(LinMotor!$X$1:$X$1355,A105,1)),IF(Calc!$A$90,INDEX(Motor!$AB$1:$AB$1223,A105,1),INDEX(LinMotor!$Z$1:$Z$1355,A105,1))),TEXT(IF(move1,IF(Calc!$A$90,INDEX(Motor!$Z$1:$Z$1223,A105,1),INDEX(LinMotor!$X$1:$X$1355,A105,1)),IF(Calc!$A$90,INDEX(Motor!$AB$1:$AB$1223,A105,1),INDEX(LinMotor!$Z$1:$Z$1355,A105,1)))/1000,"0.0k")),"") -> 31.08990669 | J105: =IF(A105<>2,IF(ABS(IF(move1,IF(Calc!$A$90,INDEX(Motor!$AA$1:$AA$1223,A105,1),INDEX(LinMotor!$Y$1:$Y$1355,A105,1)),IF(Calc!$A$90,INDEX(Motor!$AD$1:$AD$1223,A105,1),INDEX(LinMotor!$AB$1:$AB$445,A105,1))))<1000,IF(move1,IF(Calc!$A$90,INDEX(Motor!$AA$1:$AA$1223,A105,1),INDEX(LinMotor!$Y$1:$Y$1355,A105,1)),IF(Calc!$A$90,INDEX(Motor!$AD$1:$AD$1223,A105,1),INDEX(LinMotor!$AB$1:$AB$445,A105,1))),TEXT(IF(move1,IF(Calc!$A$90,INDEX(Motor!$AA$1:$AA$1223,A105,1),INDEX(LinMotor!$Y$1:$Y$1355,A105,1)),IF(Calc!$A$90,INDEX(Motor!$AD$1:$AD$1223,A105,1),INDEX(LinMotor!$AB$1:$AB$445,A105,1)))/1000,"0.0k")),"") -> 9 | K105: =IF(Calc!$A$90,INDEX(Motor!$AF$1:$AF$1223,A105,1),INDEX(LinMotor!$AD$1:$AD$1355,A105,1)) -> 0.2747915457 | L105: =IF(Calc!$A$90,INDEX(Motor!$AG$1:$AG$1223,A105,1),INDEX(LinMotor!$AE$1:$AE$1355,A105,1)) -> 0.4235003315 | M105: =IF(Calc!$A$90,INDEX(Motor!$AH$1:$AH$1223,A105,1),INDEX(LinMotor!$AF$1:$AF$1355,A105,1)) -> 6.594997096 | N105: =IF(Calc!$A$90,INDEX(Motor!$AI$1:$AI$1223,A105,1),INDEX(LinMotor!$AG$1:$AG$1355,A105,1)) -> 20.32801591 | O105: =IF(A105<>2,IF(IF(Calc!$A$90,INDEX(Motor!$AK$1:$AK$1223,A105,1),INDEX(LinMotor!$AI$1:$AI$1355,A105,1))<1000,IF(Calc!$A$90,INDEX(Motor!$AK$1:$AK$1223,A105,1),INDEX(LinMotor!$AI$1:$AI$1355,A105,1)),TEXT(IF(Calc!$A$90,INDEX(Motor!$AK$1:$AK$1223,A105,1),INDEX(LinMotor!$AI$1:$AI$1355,A105,1))/1000,"0.0k")),"") -> 23.43226659 | P105: =IF(A105<>2,IF(IF(Calc!$A$90,INDEX(Motor!$AL$1:$AL$1223,A105,1),INDEX(LinMotor!$AJ$1:$AJ$1355,A105,1))<1000,IF(Calc!$A$90,INDEX(Motor!$AL$1:$AL$1223,A105,1),INDEX(LinMotor!$AJ$1:$AJ$1355,A105,1)),TEXT(IF(Calc!$A$90,INDEX(Motor!$AL$1:$AL$1223,A105,1),INDEX(LinMotor!$AJ$1:$AJ$1355,A105,1))/1000,"0.0k")),"") -> 2.748815459 | Q105: =IF(A105<>2,IF(IF(Calc!$A$90,INDEX(Motor!$AM$1:$AM$1223,A105,1),INDEX(LinMotor!$AK$1:$AK$1355,A105,1))<1000,IF(Calc!$A$90,INDEX(Motor!$AM$1:$AM$1223,A105,1),INDEX(LinMotor!$AK$1:$AK$1355,A105,1)),TEXT(IF(Calc!$A$90,INDEX(Motor!$AM$1:$AM$1223,A105,1),INDEX(LinMotor!$AK$1:$AK$1355,A105,1))/1000,"0.0k")),"") -> 168.3903989
A106: 174 | B106: =IF(Calc!$A$90,INDEX(Motor!$B$1:$B$1223,A106,1),INDEX(LinMotor!$B$1:$B$1341,A106,1)) -> DBL7N03200 | C106: =IF(Calc!$A$90,INDEX(Motor!$T$1:$T$1223,A106,1),INDEX(LinMotor!$R$1:$R$1355,A106,1)) -> 9.85977213 | D106: =IF(Calc!$A$90,INDEX(Motor!$U$1:$U$1223,A106,1),INDEX(LinMotor!$S$1:$S$1355,A106,1)) -> 0.3168388099 | E106: =IF(Calc!$A$90,INDEX(Motor!$V$1:$V$1223,A106,1),INDEX(LinMotor!$T$1:$T$1355,A106,1)) -> 0.2187686261 | F106: =IF(Calc!$A$90,INDEX(Motor!$W$1:$W$1223,A106,1),INDEX(LinMotor!$U$1:$U$1355,A106,1)) -> 0.03221330338 | G106: =IF(A106<>2,IF(ABS(IF(Calc!$A$90,INDEX(Motor!$X$1:$X$1223,A106,1),INDEX(LinMotor!$V$1:$V$1355,A106,1)))<1000,IF(Calc!$A$90,INDEX(Motor!$X$1:$X$1223,A106,1),INDEX(LinMotor!$V$1:$V$1355,A106,1)),TEXT(IF(Calc!$A$90,INDEX(Motor!$X$1:$X$1223,A106,1),INDEX(LinMotor!$V$1:$V$1355,A106,1))/1000,"0.0k")),"") -> -25.39836567 | H106: =IF(A106<>2,IF(ABS(IF(move1,IF(Calc!$A$90,INDEX(Motor!$Y$1:$Y$1223,A106,1),INDEX(LinMotor!$W$1:$W$1355,A106,1)),IF(Calc!$A$90,INDEX(Motor!$Z$1:$Z$1068,A106,1),INDEX(LinMotor!$X$1:$X$1355,A106,1))))<1000,IF(move1,IF(Calc!$A$90,INDEX(Motor!$Y$1:$Y$1223,A106,1),INDEX(LinMotor!$W$1:$W$1355,A106,1)),IF(Calc!$A$90,INDEX(Motor!$Z$1:$Z$1223,A106,1),INDEX(LinMotor!$X$1:$X$1355,A106,1))),TEXT(IF(move1,IF(Calc!$A$90,INDEX(Motor!$Y$1:$Y$1223,A106,1),INDEX(LinMotor!$W$1:$W$1355,A106,1)),IF(Calc!$A$90,INDEX(Motor!$Z$1:$Z$1223,A106,1),INDEX(LinMotor!$X$1:$X$1355,A106,1)))/1000,"0.0k")),"") -> 9 | I106: =IF(A106<>2,IF(ABS(IF(move1,IF(Calc!$A$90,INDEX(Motor!$Z$1:$Z$1223,A106,1),INDEX(LinMotor!$X$1:$X$1355,A106,1)),IF(Calc!$A$90,INDEX(Motor!$AB$1:$AB$1223,A106,1),INDEX(LinMotor!$Z$1:$Z$1355,A106,1))))<1000,IF(move1,IF(Calc!$A$90,INDEX(Motor!$Z$1:$Z$1223,A106,1),INDEX(LinMotor!$X$1:$X$1355,A106,1)),IF(Calc!$A$90,INDEX(Motor!$AB$1:$AB$1223,A106,1),INDEX(LinMotor!$Z$1:$Z$1355,A106,1))),TEXT(IF(move1,IF(Calc!$A$90,INDEX(Motor!$Z$1:$Z$1223,A106,1),INDEX(LinMotor!$X$1:$X$1355,A106,1)),IF(Calc!$A$90,INDEX(Motor!$AB$1:$AB$1223,A106,1),INDEX(LinMotor!$Z$1:$Z$1355,A106,1)))/1000,"0.0k")),"") -> 31.43267619 | J106: =IF(A106<>2,IF(ABS(IF(move1,IF(Calc!$A$90,INDEX(Motor!$AA$1:$AA$1223,A106,1),INDEX(LinMotor!$Y$1:$Y$1355,A106,1)),IF(Calc!$A$90,INDEX(Motor!$AD$1:$AD$1223,A106,1),INDEX(LinMotor!$AB$1:$AB$445,A106,1))))<1000,IF(move1,IF(Calc!$A$90,INDEX(Motor!$AA$1:$AA$1223,A106,1),INDEX(LinMotor!$Y$1:$Y$1355,A106,1)),IF(Calc!$A$90,INDEX(Motor!$AD$1:$AD$1223,A106,1),INDEX(LinMotor!$AB$1:$AB$445,A106,1))),TEXT(IF(move1,IF(Calc!$A$90,INDEX(Motor!$AA$1:$AA$1223,A106,1),INDEX(LinMotor!$Y$1:$Y$1355,A106,1)),IF(Calc!$A$90,INDEX(Motor!$AD$1:$AD$1223,A106,1),INDEX(LinMotor!$AB$1:$AB$445,A106,1)))/1000,"0.0k")),"") -> 9 | K106: =IF(Calc!$A$90,INDEX(Motor!$AF$1:$AF$1223,A106,1),INDEX(LinMotor!$AD$1:$AD$1355,A106,1)) -> 0.2634831713 | L106: =IF(Calc!$A$90,INDEX(Motor!$AG$1:$AG$1223,A106,1),INDEX(LinMotor!$AE$1:$AE$1355,A106,1)) -> 0.4092796379 | M106: =IF(Calc!$A$90,INDEX(Motor!$AH$1:$AH$1223,A106,1),INDEX(LinMotor!$AF$1:$AF$1355,A106,1)) -> 6.323596111 | N106: =IF(Calc!$A$90,INDEX(Motor!$AI$1:$AI$1223,A106,1),INDEX(LinMotor!$AG$1:$AG$1355,A106,1)) -> 19.64542262 | O106: =IF(A106<>2,IF(IF(Calc!$A$90,INDEX(Motor!$AK$1:$AK$1223,A106,1),INDEX(LinMotor!$AI$1:$AI$1355,A106,1))<1000,IF(Calc!$A$90,INDEX(Motor!$AK$1:$AK$1223,A106,1),INDEX(LinMotor!$AI$1:$AI$1355,A106,1)),TEXT(IF(Calc!$A$90,INDEX(Motor!$AK$1:$AK$1223,A106,1),INDEX(LinMotor!$AI$1:$AI$1355,A106,1))/1000,"0.0k")),"") -> 23.50495211 | P106: =IF(A106<>2,IF(IF(Calc!$A$90,INDEX(Motor!$AL$1:$AL$1223,A106,1),INDEX(LinMotor!$AJ$1:$AJ$1355,A106,1))<1000,IF(Calc!$A$90,INDEX(Motor!$AL$1:$AL$1223,A106,1),INDEX(LinMotor!$AJ$1:$AJ$1355,A106,1)),TEXT(IF(Calc!$A$90,INDEX(Motor!$AL$1:$AL$1223,A106,1),INDEX(LinMotor!$AJ$1:$AJ$1355,A106,1))/1000,"0.0k")),"") -> 2.807451451 | Q106: =IF(A106<>2,IF(IF(Calc!$A$90,INDEX(Motor!$AM$1:$AM$1223,A106,1),INDEX(LinMotor!$AK$1:$AK$1355,A106,1))<1000,IF(Calc!$A$90,INDEX(Motor!$AM$1:$AM$1223,A106,1),INDEX(LinMotor!$AK$1:$AK$1355,A106,1)),TEXT(IF(Calc!$A$90,INDEX(Motor!$AM$1:$AM$1223,A106,1),INDEX(LinMotor!$AK$1:$AK$1355,A106,1))/1000,"0.0k")),"") -> 171.9823963
A107: 175 | B107: =IF(Calc!$A$90,INDEX(Motor!$B$1:$B$1223,A107,1),INDEX(LinMotor!$B$1:$B$1341,A107,1)) -> DBL7N04000 | C107: =IF(Calc!$A$90,INDEX(Motor!$T$1:$T$1223,A107,1),INDEX(LinMotor!$R$1:$R$1355,A107,1)) -> 8.070301291 | D107: =IF(Calc!$A$90,INDEX(Motor!$U$1:$U$1223,A107,1),INDEX(LinMotor!$S$1:$S$1355,A107,1)) -> 0.2548038723 | E107: =IF(Calc!$A$90,INDEX(Motor!$V$1:$V$1223,A107,1),INDEX(LinMotor!$T$1:$T$1355,A107,1)) -> 0.1987804014 | F107: =IF(Calc!$A$90,INDEX(Motor!$W$1:$W$1223,A107,1),INDEX(LinMotor!$U$1:$U$1355,A107,1)) -> 0.0341138819 | G107: =IF(A107<>2,IF(ABS(IF(Calc!$A$90,INDEX(Motor!$X$1:$X$1223,A107,1),INDEX(LinMotor!$V$1:$V$1355,A107,1)))<1000,IF(Calc!$A$90,INDEX(Motor!$X$1:$X$1223,A107,1),INDEX(LinMotor!$V$1:$V$1355,A107,1)),TEXT(IF(Calc!$A$90,INDEX(Motor!$X$1:$X$1223,A107,1),INDEX(LinMotor!$V$1:$V$1355,A107,1))/1000,"0.0k")),"") -> -26.03945892 | H107: =IF(A107<>2,IF(ABS(IF(move1,IF(Calc!$A$90,INDEX(Motor!$Y$1:$Y$1223,A107,1),INDEX(LinMotor!$W$1:$W$1355,A107,1)),IF(Calc!$A$90,INDEX(Motor!$Z$1:$Z$1068,A107,1),INDEX(LinMotor!$X$1:$X$1355,A107,1))))<1000,IF(move1,IF(Calc!$A$90,INDEX(Motor!$Y$1:$Y$1223,A107,1),INDEX(LinMotor!$W$1:$W$1355,A107,1)),IF(Calc!$A$90,INDEX(Motor!$Z$1:$Z$1223,A107,1),INDEX(LinMotor!$X$1:$X$1355,A107,1))),TEXT(IF(move1,IF(Calc!$A$90,INDEX(Motor!$Y$1:$Y$1223,A107,1),INDEX(LinMotor!$W$1:$W$1355,A107,1)),IF(Calc!$A$90,INDEX(Motor!$Z$1:$Z$1223,A107,1),INDEX(LinMotor!$X$1:$X$1355,A107,1)))/1000,"0.0k")),"") -> 9 | I107: =IF(A107<>2,IF(ABS(IF(move1,IF(Calc!$A$90,INDEX(Motor!$Z$1:$Z$1223,A107,1),INDEX(LinMotor!$X$1:$X$1355,A107,1)),IF(Calc!$A$90,INDEX(Motor!$AB$1:$AB$1223,A107,1),INDEX(LinMotor!$Z$1:$Z$1355,A107,1))))<1000,IF(move1,IF(Calc!$A$90,INDEX(Motor!$Z$1:$Z$1223,A107,1),INDEX(LinMotor!$X$1:$X$1355,A107,1)),IF(Calc!$A$90,INDEX(Motor!$AB$1:$AB$1223,A107,1),INDEX(LinMotor!$Z$1:$Z$1355,A107,1))),TEXT(IF(move1,IF(Calc!$A$90,INDEX(Motor!$Z$1:$Z$1223,A107,1),INDEX(LinMotor!$X$1:$X$1355,A107,1)),IF(Calc!$A$90,INDEX(Motor!$AB$1:$AB$1223,A107,1),INDEX(LinMotor!$Z$1:$Z$1355,A107,1)))/1000,"0.0k")),"") -> 31.95196173 | J107: =IF(A107<>2,IF(ABS(IF(move1,IF(Calc!$A$90,INDEX(Motor!$AA$1:$AA$1223,A107,1),INDEX(LinMotor!$Y$1:$Y$1355,A107,1)),IF(Calc!$A$90,INDEX(Motor!$AD$1:$AD$1223,A107,1),INDEX(LinMotor!$AB$1:$AB$445,A107,1))))<1000,IF(move1,IF(Calc!$A$90,INDEX(Motor!$AA$1:$AA$1223,A107,1),INDEX(LinMotor!$Y$1:$Y$1355,A107,1)),IF(Calc!$A$90,INDEX(Motor!$AD$1:$AD$1223,A107,1),INDEX(LinMotor!$AB$1:$AB$445,A107,1))),TEXT(IF(move1,IF(Calc!$A$90,INDEX(Motor!$AA$1:$AA$1223,A107,1),INDEX(LinMotor!$Y$1:$Y$1355,A107,1)),IF(Calc!$A$90,INDEX(Motor!$AD$1:$AD$1223,A107,1),INDEX(LinMotor!$AB$1:$AB$445,A107,1)))/1000,"0.0k")),"") -> 9 | K107: =IF(Calc!$A$90,INDEX(Motor!$AF$1:$AF$1223,A107,1),INDEX(LinMotor!$AD$1:$AD$1355,A107,1)) -> 0.2477907383 | L107: =IF(Calc!$A$90,INDEX(Motor!$AG$1:$AG$1223,A107,1),INDEX(LinMotor!$AE$1:$AE$1355,A107,1)) -> 0.3894145336 | M107: =IF(Calc!$A$90,INDEX(Motor!$AH$1:$AH$1223,A107,1),INDEX(LinMotor!$AF$1:$AF$1355,A107,1)) -> 5.94697772 | N107: =IF(Calc!$A$90,INDEX(Motor!$AI$1:$AI$1223,A107,1),INDEX(LinMotor!$AG$1:$AG$1355,A107,1)) -> 18.69189761 | O107: =IF(A107<>2,IF(IF(Calc!$A$90,INDEX(Motor!$AK$1:$AK$1223,A107,1),INDEX(LinMotor!$AI$1:$AI$1355,A107,1))<1000,IF(Calc!$A$90,INDEX(Motor!$AK$1:$AK$1223,A107,1),INDEX(LinMotor!$AI$1:$AI$1355,A107,1)),TEXT(IF(Calc!$A$90,INDEX(Motor!$AK$1:$AK$1223,A107,1),INDEX(LinMotor!$AI$1:$AI$1355,A107,1))/1000,"0.0k")),"") -> 23.6165095 | P107: =IF(A107<>2,IF(IF(Calc!$A$90,INDEX(Motor!$AL$1:$AL$1223,A107,1),INDEX(LinMotor!$AJ$1:$AJ$1355,A107,1))<1000,IF(Calc!$A$90,INDEX(Motor!$AL$1:$AL$1223,A107,1),INDEX(LinMotor!$AJ$1:$AJ$1355,A107,1)),TEXT(IF(Calc!$A$90,INDEX(Motor!$AL$1:$AL$1223,A107,1),INDEX(LinMotor!$AJ$1:$AJ$1355,A107,1))/1000,"0.0k")),"") -> 2.896283223 | Q107: =IF(A107<>2,IF(IF(Calc!$A$90,INDEX(Motor!$AM$1:$AM$1223,A107,1),INDEX(LinMotor!$AK$1:$AK$1355,A107,1))<1000,IF(Calc!$A$90,INDEX(Motor!$AM$1:$AM$1223,A107,1),INDEX(LinMotor!$AK$1:$AK$1355,A107,1)),TEXT(IF(Calc!$A$90,INDEX(Motor!$AM$1:$AM$1223,A107,1),INDEX(LinMotor!$AK$1:$AK$1355,A107,1))/1000,"0.0k")),"") -> 177.4241648
A108: 177 | B108: =IF(Calc!$A$90,INDEX(Motor!$B$1:$B$1223,A108,1),INDEX(LinMotor!$B$1:$B$1341,A108,1)) -> DBL8N06800 | C108: =IF(Calc!$A$90,INDEX(Motor!$T$1:$T$1223,A108,1),INDEX(LinMotor!$R$1:$R$1355,A108,1)) -> 9.903169014 | D108: =IF(Calc!$A$90,INDEX(Motor!$U$1:$U$1223,A108,1),INDEX(LinMotor!$S$1:$S$1355,A108,1)) -> 0.1490684655 | E108: =IF(Calc!$A$90,INDEX(Motor!$V$1:$V$1223,A108,1),INDEX(LinMotor!$T$1:$T$1355,A108,1)) -> 0.1213220604 | F108: =IF(Calc!$A$90,INDEX(Motor!$W$1:$W$1223,A108,1),INDEX(LinMotor!$U$1:$U$1355,A108,1)) -> 0.03669927382 | G108: =IF(A108<>2,IF(ABS(IF(Calc!$A$90,INDEX(Motor!$X$1:$X$1223,A108,1),INDEX(LinMotor!$V$1:$V$1355,A108,1)))<1000,IF(Calc!$A$90,INDEX(Motor!$X$1:$X$1223,A108,1),INDEX(LinMotor!$V$1:$V$1355,A108,1)),TEXT(IF(Calc!$A$90,INDEX(Motor!$X$1:$X$1223,A108,1),INDEX(LinMotor!$V$1:$V$1355,A108,1))/1000,"0.0k")),"") -> -25.38569584 | H108: =IF(A108<>2,IF(ABS(IF(move1,IF(Calc!$A$90,INDEX(Motor!$Y$1:$Y$1223,A108,1),INDEX(LinMotor!$W$1:$W$1355,A108,1)),IF(Calc!$A$90,INDEX(Motor!$Z$1:$Z$1068,A108,1),INDEX(LinMotor!$X$1:$X$1355,A108,1))))<1000,IF(move1,IF(Calc!$A$90,INDEX(Motor!$Y$1:$Y$1223,A108,1),INDEX(LinMotor!$W$1:$W$1355,A108,1)),IF(Calc!$A$90,INDEX(Motor!$Z$1:$Z$1223,A108,1),INDEX(LinMotor!$X$1:$X$1355,A108,1))),TEXT(IF(move1,IF(Calc!$A$90,INDEX(Motor!$Y$1:$Y$1223,A108,1),INDEX(LinMotor!$W$1:$W$1355,A108,1)),IF(Calc!$A$90,INDEX(Motor!$Z$1:$Z$1223,A108,1),INDEX(LinMotor!$X$1:$X$1355,A108,1)))/1000,"0.0k")),"") -> 9 | I108: =IF(A108<>2,IF(ABS(IF(move1,IF(Calc!$A$90,INDEX(Motor!$Z$1:$Z$1223,A108,1),INDEX(LinMotor!$X$1:$X$1355,A108,1)),IF(Calc!$A$90,INDEX(Motor!$AB$1:$AB$1223,A108,1),INDEX(LinMotor!$Z$1:$Z$1355,A108,1))))<1000,IF(move1,IF(Calc!$A$90,INDEX(Motor!$Z$1:$Z$1223,A108,1),INDEX(LinMotor!$X$1:$X$1355,A108,1)),IF(Calc!$A$90,INDEX(Motor!$AB$1:$AB$1223,A108,1),INDEX(LinMotor!$Z$1:$Z$1355,A108,1))),TEXT(IF(move1,IF(Calc!$A$90,INDEX(Motor!$Z$1:$Z$1223,A108,1),INDEX(LinMotor!$X$1:$X$1355,A108,1)),IF(Calc!$A$90,INDEX(Motor!$AB$1:$AB$1223,A108,1),INDEX(LinMotor!$Z$1:$Z$1355,A108,1)))/1000,"0.0k")),"") -> 31.42241363 | J108: =IF(A108<>2,IF(ABS(IF(move1,IF(Calc!$A$90,INDEX(Motor!$AA$1:$AA$1223,A108,1),INDEX(LinMotor!$Y$1:$Y$1355,A108,1)),IF(Calc!$A$90,INDEX(Motor!$AD$1:$AD$1223,A108,1),INDEX(LinMotor!$AB$1:$AB$445,A108,1))))<1000,IF(move1,IF(Calc!$A$90,INDEX(Motor!$AA$1:$AA$1223,A108,1),INDEX(LinMotor!$Y$1:$Y$1355,A108,1)),IF(Calc!$A$90,INDEX(Motor!$AD$1:$AD$1223,A108,1),INDEX(LinMotor!$AB$1:$AB$445,A108,1))),TEXT(IF(move1,IF(Calc!$A$90,INDEX(Motor!$AA$1:$AA$1223,A108,1),INDEX(LinMotor!$Y$1:$Y$1355,A108,1)),IF(Calc!$A$90,INDEX(Motor!$AD$1:$AD$1223,A108,1),INDEX(LinMotor!$AB$1:$AB$445,A108,1)))/1000,"0.0k")),"") -> 9 | K108: =IF(Calc!$A$90,INDEX(Motor!$AF$1:$AF$1223,A108,1),INDEX(LinMotor!$AD$1:$AD$1355,A108,1)) -> 0.2293640037 | L108: =IF(Calc!$A$90,INDEX(Motor!$AG$1:$AG$1223,A108,1),INDEX(LinMotor!$AE$1:$AE$1355,A108,1)) -> 0.3561977035 | M108: =IF(Calc!$A$90,INDEX(Motor!$AH$1:$AH$1223,A108,1),INDEX(LinMotor!$AF$1:$AF$1355,A108,1)) -> 5.504736089 | N108: =IF(Calc!$A$90,INDEX(Motor!$AI$1:$AI$1223,A108,1),INDEX(LinMotor!$AG$1:$AG$1355,A108,1)) -> 17.09748977 | O108: =IF(A108<>2,IF(IF(Calc!$A$90,INDEX(Motor!$AK$1:$AK$1223,A108,1),INDEX(LinMotor!$AI$1:$AI$1355,A108,1))<1000,IF(Calc!$A$90,INDEX(Motor!$AK$1:$AK$1223,A108,1),INDEX(LinMotor!$AI$1:$AI$1355,A108,1)),TEXT(IF(Calc!$A$90,INDEX(Motor!$AK$1:$AK$1223,A108,1),INDEX(LinMotor!$AI$1:$AI$1355,A108,1))/1000,"0.0k")),"") -> 23.50276486 | P108: =IF(A108<>2,IF(IF(Calc!$A$90,INDEX(Motor!$AL$1:$AL$1223,A108,1),INDEX(LinMotor!$AJ$1:$AJ$1355,A108,1))<1000,IF(Calc!$A$90,INDEX(Motor!$AL$1:$AL$1223,A108,1),INDEX(LinMotor!$AJ$1:$AJ$1355,A108,1)),TEXT(IF(Calc!$A$90,INDEX(Motor!$AL$1:$AL$1223,A108,1),INDEX(LinMotor!$AJ$1:$AJ$1355,A108,1))/1000,"0.0k")),"") -> 2.805695882 | Q108: =IF(A108<>2,IF(IF(Calc!$A$90,INDEX(Motor!$AM$1:$AM$1223,A108,1),INDEX(LinMotor!$AK$1:$AK$1355,A108,1))<1000,IF(Calc!$A$90,INDEX(Motor!$AM$1:$AM$1223,A108,1),INDEX(LinMotor!$AK$1:$AK$1355,A108,1)),TEXT(IF(Calc!$A$90,INDEX(Motor!$AM$1:$AM$1223,A108,1),INDEX(LinMotor!$AK$1:$AK$1355,A108,1))/1000,"0.0k")),"") -> 171.8748515
A109: 178 | B109: =IF(Calc!$A$90,INDEX(Motor!$B$1:$B$1223,A109,1),INDEX(LinMotor!$B$1:$B$1341,A109,1)) -> DBL8L09300 | C109: =IF(Calc!$A$90,INDEX(Motor!$T$1:$T$1223,A109,1),INDEX(LinMotor!$R$1:$R$1355,A109,1)) -> 7.352941176 | D109: =IF(Calc!$A$90,INDEX(Motor!$U$1:$U$1223,A109,1),INDEX(LinMotor!$S$1:$S$1355,A109,1)) -> 0.1098917239 | E109: =IF(Calc!$A$90,INDEX(Motor!$V$1:$V$1223,A109,1),INDEX(LinMotor!$T$1:$T$1355,A109,1)) -> 0.1007914922 | F109: =IF(Calc!$A$90,INDEX(Motor!$W$1:$W$1223,A109,1),INDEX(LinMotor!$U$1:$U$1355,A109,1)) -> 0.05353968675 | G109: =IF(A109<>2,IF(ABS(IF(Calc!$A$90,INDEX(Motor!$X$1:$X$1223,A109,1),INDEX(LinMotor!$V$1:$V$1355,A109,1)))<1000,IF(Calc!$A$90,INDEX(Motor!$X$1:$X$1223,A109,1),INDEX(LinMotor!$V$1:$V$1355,A109,1)),TEXT(IF(Calc!$A$90,INDEX(Motor!$X$1:$X$1223,A109,1),INDEX(LinMotor!$V$1:$V$1355,A109,1))/1000,"0.0k")),"") -> -26.38407822 | H109: =IF(A109<>2,IF(ABS(IF(move1,IF(Calc!$A$90,INDEX(Motor!$Y$1:$Y$1223,A109,1),INDEX(LinMotor!$W$1:$W$1355,A109,1)),IF(Calc!$A$90,INDEX(Motor!$Z$1:$Z$1068,A109,1),INDEX(LinMotor!$X$1:$X$1355,A109,1))))<1000,IF(move1,IF(Calc!$A$90,INDEX(Motor!$Y$1:$Y$1223,A109,1),INDEX(LinMotor!$W$1:$W$1355,A109,1)),IF(Calc!$A$90,INDEX(Motor!$Z$1:$Z$1223,A109,1),INDEX(LinMotor!$X$1:$X$1355,A109,1))),TEXT(IF(move1,IF(Calc!$A$90,INDEX(Motor!$Y$1:$Y$1223,A109,1),INDEX(LinMotor!$W$1:$W$1355,A109,1)),IF(Calc!$A$90,INDEX(Motor!$Z$1:$Z$1223,A109,1),INDEX(LinMotor!$X$1:$X$1355,A109,1)))/1000,"0.0k")),"") -> 9 | I109: =IF(A109<>2,IF(ABS(IF(move1,IF(Calc!$A$90,INDEX(Motor!$Z$1:$Z$1223,A109,1),INDEX(LinMotor!$X$1:$X$1355,A109,1)),IF(Calc!$A$90,INDEX(Motor!$AB$1:$AB$1223,A109,1),INDEX(LinMotor!$Z$1:$Z$1355,A109,1))))<1000,IF(move1,IF(Calc!$A$90,INDEX(Motor!$Z$1:$Z$1223,A109,1),INDEX(LinMotor!$X$1:$X$1355,A109,1)),IF(Calc!$A$90,INDEX(Motor!$AB$1:$AB$1223,A109,1),INDEX(LinMotor!$Z$1:$Z$1355,A109,1))),TEXT(IF(move1,IF(Calc!$A$90,INDEX(Motor!$Z$1:$Z$1223,A109,1),INDEX(LinMotor!$X$1:$X$1355,A109,1)),IF(Calc!$A$90,INDEX(Motor!$AB$1:$AB$1223,A109,1),INDEX(LinMotor!$Z$1:$Z$1355,A109,1)))/1000,"0.0k")),"") -> 32.23110336 | J109: =IF(A109<>2,IF(ABS(IF(move1,IF(Calc!$A$90,INDEX(Motor!$AA$1:$AA$1223,A109,1),INDEX(LinMotor!$Y$1:$Y$1355,A109,1)),IF(Calc!$A$90,INDEX(Motor!$AD$1:$AD$1223,A109,1),INDEX(LinMotor!$AB$1:$AB$445,A109,1))))<1000,IF(move1,IF(Calc!$A$90,INDEX(Motor!$AA$1:$AA$1223,A109,1),INDEX(LinMotor!$Y$1:$Y$1355,A109,1)),IF(Calc!$A$90,INDEX(Motor!$AD$1:$AD$1223,A109,1),INDEX(LinMotor!$AB$1:$AB$445,A109,1))),TEXT(IF(move1,IF(Calc!$A$90,INDEX(Motor!$AA$1:$AA$1223,A109,1),INDEX(LinMotor!$Y$1:$Y$1355,A109,1)),IF(Calc!$A$90,INDEX(Motor!$AD$1:$AD$1223,A109,1),INDEX(LinMotor!$AB$1:$AB$445,A109,1)))/1000,"0.0k")),"") -> 9 | K109: =IF(Calc!$A$90,INDEX(Motor!$AF$1:$AF$1223,A109,1),INDEX(LinMotor!$AD$1:$AD$1355,A109,1)) -> 0.1552528455 | L109: =IF(Calc!$A$90,INDEX(Motor!$AG$1:$AG$1223,A109,1),INDEX(LinMotor!$AE$1:$AE$1355,A109,1)) -> 0.2454877944 | M109: =IF(Calc!$A$90,INDEX(Motor!$AH$1:$AH$1223,A109,1),INDEX(LinMotor!$AF$1:$AF$1355,A109,1)) -> 3.726068292 | N109: =IF(Calc!$A$90,INDEX(Motor!$AI$1:$AI$1223,A109,1),INDEX(LinMotor!$AG$1:$AG$1355,A109,1)) -> 11.78341413 | O109: =IF(A109<>2,IF(IF(Calc!$A$90,INDEX(Motor!$AK$1:$AK$1223,A109,1),INDEX(LinMotor!$AI$1:$AI$1355,A109,1))<1000,IF(Calc!$A$90,INDEX(Motor!$AK$1:$AK$1223,A109,1),INDEX(LinMotor!$AI$1:$AI$1355,A109,1)),TEXT(IF(Calc!$A$90,INDEX(Motor!$AK$1:$AK$1223,A109,1),INDEX(LinMotor!$AI$1:$AI$1355,A109,1))/1000,"0.0k")),"") -> 23.67718711 | P109: =IF(A109<>2,IF(IF(Calc!$A$90,INDEX(Motor!$AL$1:$AL$1223,A109,1),INDEX(LinMotor!$AJ$1:$AJ$1355,A109,1))<1000,IF(Calc!$A$90,INDEX(Motor!$AL$1:$AL$1223,A109,1),INDEX(LinMotor!$AJ$1:$AJ$1355,A109,1)),TEXT(IF(Calc!$A$90,INDEX(Motor!$AL$1:$AL$1223,A109,1),INDEX(LinMotor!$AJ$1:$AJ$1355,A109,1))/1000,"0.0k")),"") -> 2.944034689 | Q109: =IF(A109<>2,IF(IF(Calc!$A$90,INDEX(Motor!$AM$1:$AM$1223,A109,1),INDEX(LinMotor!$AK$1:$AK$1355,A109,1))<1000,IF(Calc!$A$90,INDEX(Motor!$AM$1:$AM$1223,A109,1),INDEX(LinMotor!$AK$1:$AK$1355,A109,1)),TEXT(IF(Calc!$A$90,INDEX(Motor!$AM$1:$AM$1223,A109,1),INDEX(LinMotor!$AK$1:$AK$1355,A109,1))/1000,"0.0k")),"") -> 180.3493843
A110: 179 | B110: =IF(Calc!$A$90,INDEX(Motor!$B$1:$B$1223,A110,1),INDEX(LinMotor!$B$1:$B$1341,A110,1)) -> DBL8L11500 | C110: =IF(Calc!$A$90,INDEX(Motor!$T$1:$T$1223,A110,1),INDEX(LinMotor!$R$1:$R$1355,A110,1)) -> 5.921052632 | D110: =IF(Calc!$A$90,INDEX(Motor!$U$1:$U$1223,A110,1),INDEX(LinMotor!$S$1:$S$1355,A110,1)) -> 0.08951135492 | E110: =IF(Calc!$A$90,INDEX(Motor!$V$1:$V$1223,A110,1),INDEX(LinMotor!$T$1:$T$1355,A110,1)) -> 0.08338101602 | F110: =IF(Calc!$A$90,INDEX(Motor!$W$1:$W$1223,A110,1),INDEX(LinMotor!$U$1:$U$1355,A110,1)) -> 0.05347769267 | G110: =IF(A110<>2,IF(ABS(IF(Calc!$A$90,INDEX(Motor!$X$1:$X$1223,A110,1),INDEX(LinMotor!$V$1:$V$1355,A110,1)))<1000,IF(Calc!$A$90,INDEX(Motor!$X$1:$X$1223,A110,1),INDEX(LinMotor!$V$1:$V$1355,A110,1)),TEXT(IF(Calc!$A$90,INDEX(Motor!$X$1:$X$1223,A110,1),INDEX(LinMotor!$V$1:$V$1355,A110,1))/1000,"0.0k")),"") -> -27.32164543 | H110: =IF(A110<>2,IF(ABS(IF(move1,IF(Calc!$A$90,INDEX(Motor!$Y$1:$Y$1223,A110,1),INDEX(LinMotor!$W$1:$W$1355,A110,1)),IF(Calc!$A$90,INDEX(Motor!$Z$1:$Z$1068,A110,1),INDEX(LinMotor!$X$1:$X$1355,A110,1))))<1000,IF(move1,IF(Calc!$A$90,INDEX(Motor!$Y$1:$Y$1223,A110,1),INDEX(LinMotor!$W$1:$W$1355,A110,1)),IF(Calc!$A$90,INDEX(Motor!$Z$1:$Z$1223,A110,1),INDEX(LinMotor!$X$1:$X$1355,A110,1))),TEXT(IF(move1,IF(Calc!$A$90,INDEX(Motor!$Y$1:$Y$1223,A110,1),INDEX(LinMotor!$W$1:$W$1355,A110,1)),IF(Calc!$A$90,INDEX(Motor!$Z$1:$Z$1223,A110,1),INDEX(LinMotor!$X$1:$X$1355,A110,1)))/1000,"0.0k")),"") -> 9 | I110: =IF(A110<>2,IF(ABS(IF(move1,IF(Calc!$A$90,INDEX(Motor!$Z$1:$Z$1223,A110,1),INDEX(LinMotor!$X$1:$X$1355,A110,1)),IF(Calc!$A$90,INDEX(Motor!$AB$1:$AB$1223,A110,1),INDEX(LinMotor!$Z$1:$Z$1355,A110,1))))<1000,IF(move1,IF(Calc!$A$90,INDEX(Motor!$Z$1:$Z$1223,A110,1),INDEX(LinMotor!$X$1:$X$1355,A110,1)),IF(Calc!$A$90,INDEX(Motor!$AB$1:$AB$1223,A110,1),INDEX(LinMotor!$Z$1:$Z$1355,A110,1))),TEXT(IF(move1,IF(Calc!$A$90,INDEX(Motor!$Z$1:$Z$1223,A110,1),INDEX(LinMotor!$X$1:$X$1355,A110,1)),IF(Calc!$A$90,INDEX(Motor!$AB$1:$AB$1223,A110,1),INDEX(LinMotor!$Z$1:$Z$1355,A110,1)))/1000,"0.0k")),"") -> 32.9905328 | J110: =IF(A110<>2,IF(ABS(IF(move1,IF(Calc!$A$90,INDEX(Motor!$AA$1:$AA$1223,A110,1),INDEX(LinMotor!$Y$1:$Y$1355,A110,1)),IF(Calc!$A$90,INDEX(Motor!$AD$1:$AD$1223,A110,1),INDEX(LinMotor!$AB$1:$AB$445,A110,1))))<1000,IF(move1,IF(Calc!$A$90,INDEX(Motor!$AA$1:$AA$1223,A110,1),INDEX(LinMotor!$Y$1:$Y$1355,A110,1)),IF(Calc!$A$90,INDEX(Motor!$AD$1:$AD$1223,A110,1),INDEX(LinMotor!$AB$1:$AB$445,A110,1))),TEXT(IF(move1,IF(Calc!$A$90,INDEX(Motor!$AA$1:$AA$1223,A110,1),INDEX(LinMotor!$Y$1:$Y$1355,A110,1)),IF(Calc!$A$90,INDEX(Motor!$AD$1:$AD$1223,A110,1),INDEX(LinMotor!$AB$1:$AB$445,A110,1)))/1000,"0.0k")),"") -> 9 | K110: =IF(Calc!$A$90,INDEX(Motor!$AF$1:$AF$1223,A110,1),INDEX(LinMotor!$AD$1:$AD$1355,A110,1)) -> 0.1599104154 | L110: =IF(Calc!$A$90,INDEX(Motor!$AG$1:$AG$1223,A110,1),INDEX(LinMotor!$AE$1:$AE$1355,A110,1)) -> 0.2569914693 | M110: =IF(Calc!$A$90,INDEX(Motor!$AH$1:$AH$1223,A110,1),INDEX(LinMotor!$AF$1:$AF$1355,A110,1)) -> 3.837849969 | N110: =IF(Calc!$A$90,INDEX(Motor!$AI$1:$AI$1223,A110,1),INDEX(LinMotor!$AG$1:$AG$1355,A110,1)) -> 12.33559053 | O110: =IF(A110<>2,IF(IF(Calc!$A$90,INDEX(Motor!$AK$1:$AK$1223,A110,1),INDEX(LinMotor!$AI$1:$AI$1355,A110,1))<1000,IF(Calc!$A$90,INDEX(Motor!$AK$1:$AK$1223,A110,1),INDEX(LinMotor!$AI$1:$AI$1355,A110,1)),TEXT(IF(Calc!$A$90,INDEX(Motor!$AK$1:$AK$1223,A110,1),INDEX(LinMotor!$AI$1:$AI$1355,A110,1))/1000,"0.0k")),"") -> 23.84474279 | P110: =IF(A110<>2,IF(IF(Calc!$A$90,INDEX(Motor!$AL$1:$AL$1223,A110,1),INDEX(LinMotor!$AJ$1:$AJ$1355,A110,1))<1000,IF(Calc!$A$90,INDEX(Motor!$AL$1:$AL$1223,A110,1),INDEX(LinMotor!$AJ$1:$AJ$1355,A110,1)),TEXT(IF(Calc!$A$90,INDEX(Motor!$AL$1:$AL$1223,A110,1),INDEX(LinMotor!$AJ$1:$AJ$1355,A110,1))/1000,"0.0k")),"") -> 3.073946767 | Q110: =IF(A110<>2,IF(IF(Calc!$A$90,INDEX(Motor!$AM$1:$AM$1223,A110,1),INDEX(LinMotor!$AK$1:$AK$1355,A110,1))<1000,IF(Calc!$A$90,INDEX(Motor!$AM$1:$AM$1223,A110,1),INDEX(LinMotor!$AK$1:$AK$1355,A110,1)),TEXT(IF(Calc!$A$90,INDEX(Motor!$AM$1:$AM$1223,A110,1),INDEX(LinMotor!$AK$1:$AK$1355,A110,1))/1000,"0.0k")),"") -> 188.307702
A111: 38 | B111: =IF(Calc!$A$90,INDEX(Motor!$B$1:$B$1223,A111,1),INDEX(LinMotor!$B$1:$B$1341,A111,1)) -> AKM32C | C111: =IF(Calc!$A$90,INDEX(Motor!$T$1:$T$1223,A111,1),INDEX(LinMotor!$R$1:$R$1355,A111,1)) -> 1906.779661 | D111: =IF(Calc!$A$90,INDEX(Motor!$U$1:$U$1223,A111,1),INDEX(LinMotor!$S$1:$S$1355,A111,1)) -> 4.958403144 | E111: =IF(Calc!$A$90,INDEX(Motor!$V$1:$V$1223,A111,1),INDEX(LinMotor!$T$1:$T$1355,A111,1)) -> 4.205617026 | F111: =IF(Calc!$A$90,INDEX(Motor!$W$1:$W$1223,A111,1),INDEX(LinMotor!$U$1:$U$1355,A111,1)) -> 0.2273968447 | G111: =IF(A111<>2,IF(ABS(IF(Calc!$A$90,INDEX(Motor!$X$1:$X$1223,A111,1),INDEX(LinMotor!$V$1:$V$1355,A111,1)))<1000,IF(Calc!$A$90,INDEX(Motor!$X$1:$X$1223,A111,1),INDEX(LinMotor!$V$1:$V$1355,A111,1)),TEXT(IF(Calc!$A$90,INDEX(Motor!$X$1:$X$1223,A111,1),INDEX(LinMotor!$V$1:$V$1355,A111,1))/1000,"0.0k")),"") -> -22.52206151 | H111: =IF(A111<>2,IF(ABS(IF(move1,IF(Calc!$A$90,INDEX(Motor!$Y$1:$Y$1223,A111,1),INDEX(LinMotor!$W$1:$W$1355,A111,1)),IF(Calc!$A$90,INDEX(Motor!$Z$1:$Z$1068,A111,1),INDEX(LinMotor!$X$1:$X$1355,A111,1))))<1000,IF(move1,IF(Calc!$A$90,INDEX(Motor!$Y$1:$Y$1223,A111,1),INDEX(LinMotor!$W$1:$W$1355,A111,1)),IF(Calc!$A$90,INDEX(Motor!$Z$1:$Z$1223,A111,1),INDEX(LinMotor!$X$1:$X$1355,A111,1))),TEXT(IF(move1,IF(Calc!$A$90,INDEX(Motor!$Y$1:$Y$1223,A111,1),INDEX(LinMotor!$W$1:$W$1355,A111,1)),IF(Calc!$A$90,INDEX(Motor!$Z$1:$Z$1223,A111,1),INDEX(LinMotor!$X$1:$X$1355,A111,1)))/1000,"0.0k")),"") -> 9 | I111: =IF(A111<>2,IF(ABS(IF(move1,IF(Calc!$A$90,INDEX(Motor!$Z$1:$Z$1223,A111,1),INDEX(LinMotor!$X$1:$X$1355,A111,1)),IF(Calc!$A$90,INDEX(Motor!$AB$1:$AB$1223,A111,1),INDEX(LinMotor!$Z$1:$Z$1355,A111,1))))<1000,IF(move1,IF(Calc!$A$90,INDEX(Motor!$Z$1:$Z$1223,A111,1),INDEX(LinMotor!$X$1:$X$1355,A111,1)),IF(Calc!$A$90,INDEX(Motor!$AB$1:$AB$1223,A111,1),INDEX(LinMotor!$Z$1:$Z$1355,A111,1))),TEXT(IF(move1,IF(Calc!$A$90,INDEX(Motor!$Z$1:$Z$1223,A111,1),INDEX(LinMotor!$X$1:$X$1355,A111,1)),IF(Calc!$A$90,INDEX(Motor!$AB$1:$AB$1223,A111,1),INDEX(LinMotor!$Z$1:$Z$1355,A111,1)))/1000,"0.0k")),"") -> 29.10286982 | J111: =IF(A111<>2,IF(ABS(IF(move1,IF(Calc!$A$90,INDEX(Motor!$AA$1:$AA$1223,A111,1),INDEX(LinMotor!$Y$1:$Y$1355,A111,1)),IF(Calc!$A$90,INDEX(Motor!$AD$1:$AD$1223,A111,1),INDEX(LinMotor!$AB$1:$AB$445,A111,1))))<1000,IF(move1,IF(Calc!$A$90,INDEX(Motor!$AA$1:$AA$1223,A111,1),INDEX(LinMotor!$Y$1:$Y$1355,A111,1)),IF(Calc!$A$90,INDEX(Motor!$AD$1:$AD$1223,A111,1),INDEX(LinMotor!$AB$1:$AB$445,A111,1))),TEXT(IF(move1,IF(Calc!$A$90,INDEX(Motor!$AA$1:$AA$1223,A111,1),INDEX(LinMotor!$Y$1:$Y$1355,A111,1)),IF(Calc!$A$90,INDEX(Motor!$AD$1:$AD$1223,A111,1),INDEX(LinMotor!$AB$1:$AB$445,A111,1)))/1000,"0.0k")),"") -> 9 | K111: =IF(Calc!$A$90,INDEX(Motor!$AF$1:$AF$1223,A111,1),INDEX(LinMotor!$AD$1:$AD$1355,A111,1)) -> 0.2973501788 | L111: =IF(Calc!$A$90,INDEX(Motor!$AG$1:$AG$1223,A111,1),INDEX(LinMotor!$AE$1:$AE$1355,A111,1)) -> 0.4365430473 | M111: =IF(Calc!$A$90,INDEX(Motor!$AH$1:$AH$1223,A111,1),INDEX(LinMotor!$AF$1:$AF$1355,A111,1)) -> 7.136404291 | N111: =IF(Calc!$A$90,INDEX(Motor!$AI$1:$AI$1223,A111,1),INDEX(LinMotor!$AG$1:$AG$1355,A111,1)) -> 20.95406627 | O111: =IF(A111<>2,IF(IF(Calc!$A$90,INDEX(Motor!$AK$1:$AK$1223,A111,1),INDEX(LinMotor!$AI$1:$AI$1355,A111,1))<1000,IF(Calc!$A$90,INDEX(Motor!$AK$1:$AK$1223,A111,1),INDEX(LinMotor!$AI$1:$AI$1355,A111,1)),TEXT(IF(Calc!$A$90,INDEX(Motor!$AK$1:$AK$1223,A111,1),INDEX(LinMotor!$AI$1:$AI$1355,A111,1))/1000,"0.0k")),"") -> 23.02619687 | P111: =IF(A111<>2,IF(IF(Calc!$A$90,INDEX(Motor!$AL$1:$AL$1223,A111,1),INDEX(LinMotor!$AJ$1:$AJ$1355,A111,1))<1000,IF(Calc!$A$90,INDEX(Motor!$AL$1:$AL$1223,A111,1),INDEX(LinMotor!$AJ$1:$AJ$1355,A111,1)),TEXT(IF(Calc!$A$90,INDEX(Motor!$AL$1:$AL$1223,A111,1),INDEX(LinMotor!$AJ$1:$AJ$1355,A111,1))/1000,"0.0k")),"") -> 2.408902263 | Q111: =IF(A111<>2,IF(IF(Calc!$A$90,INDEX(Motor!$AM$1:$AM$1223,A111,1),INDEX(LinMotor!$AK$1:$AK$1355,A111,1))<1000,IF(Calc!$A$90,INDEX(Motor!$AM$1:$AM$1223,A111,1),INDEX(LinMotor!$AK$1:$AK$1355,A111,1)),TEXT(IF(Calc!$A$90,INDEX(Motor!$AM$1:$AM$1223,A111,1),INDEX(LinMotor!$AK$1:$AK$1355,A111,1))/1000,"0.0k")),"") -> 147.5675683
A112: 39 | B112: =IF(Calc!$A$90,INDEX(Motor!$B$1:$B$1223,A112,1),INDEX(LinMotor!$B$1:$B$1341,A112,1)) -> AKM32D | C112: =IF(Calc!$A$90,INDEX(Motor!$T$1:$T$1223,A112,1),INDEX(LinMotor!$R$1:$R$1355,A112,1)) -> 1906.779661 | D112: =IF(Calc!$A$90,INDEX(Motor!$U$1:$U$1223,A112,1),INDEX(LinMotor!$S$1:$S$1355,A112,1)) -> 4.862412801 | E112: =IF(Calc!$A$90,INDEX(Motor!$V$1:$V$1223,A112,1),INDEX(LinMotor!$T$1:$T$1355,A112,1)) -> 4.098995749 | F112: =IF(Calc!$A$90,INDEX(Motor!$W$1:$W$1223,A112,1),INDEX(LinMotor!$U$1:$U$1355,A112,1)) -> 0.0831327976 | G112: =IF(A112<>2,IF(ABS(IF(Calc!$A$90,INDEX(Motor!$X$1:$X$1223,A112,1),INDEX(LinMotor!$V$1:$V$1355,A112,1)))<1000,IF(Calc!$A$90,INDEX(Motor!$X$1:$X$1223,A112,1),INDEX(LinMotor!$V$1:$V$1355,A112,1)),TEXT(IF(Calc!$A$90,INDEX(Motor!$X$1:$X$1223,A112,1),INDEX(LinMotor!$V$1:$V$1355,A112,1))/1000,"0.0k")),"") -> -22.52206151 | H112: =IF(A112<>2,IF(ABS(IF(move1,IF(Calc!$A$90,INDEX(Motor!$Y$1:$Y$1223,A112,1),INDEX(LinMotor!$W$1:$W$1355,A112,1)),IF(Calc!$A$90,INDEX(Motor!$Z$1:$Z$1068,A112,1),INDEX(LinMotor!$X$1:$X$1355,A112,1))))<1000,IF(move1,IF(Calc!$A$90,INDEX(Motor!$Y$1:$Y$1223,A112,1),INDEX(LinMotor!$W$1:$W$1355,A112,1)),IF(Calc!$A$90,INDEX(Motor!$Z$1:$Z$1223,A112,1),INDEX(LinMotor!$X$1:$X$1355,A112,1))),TEXT(IF(move1,IF(Calc!$A$90,INDEX(Motor!$Y$1:$Y$1223,A112,1),INDEX(LinMotor!$W$1:$W$1355,A112,1)),IF(Calc!$A$90,INDEX(Motor!$Z$1:$Z$1223,A112,1),INDEX(LinMotor!$X$1:$X$1355,A112,1)))/1000,"0.0k")),"") -> 9 | I112: =IF(A112<>2,IF(ABS(IF(move1,IF(Calc!$A$90,INDEX(Motor!$Z$1:$Z$1223,A112,1),INDEX(LinMotor!$X$1:$X$1355,A112,1)),IF(Calc!$A$90,INDEX(Motor!$AB$1:$AB$1223,A112,1),INDEX(LinMotor!$Z$1:$Z$1355,A112,1))))<1000,IF(move1,IF(Calc!$A$90,INDEX(Motor!$Z$1:$Z$1223,A112,1),INDEX(LinMotor!$X$1:$X$1355,A112,1)),IF(Calc!$A$90,INDEX(Motor!$AB$1:$AB$1223,A112,1),INDEX(LinMotor!$Z$1:$Z$1355,A112,1))),TEXT(IF(move1,IF(Calc!$A$90,INDEX(Motor!$Z$1:$Z$1223,A112,1),INDEX(LinMotor!$X$1:$X$1355,A112,1)),IF(Calc!$A$90,INDEX(Motor!$AB$1:$AB$1223,A112,1),INDEX(LinMotor!$Z$1:$Z$1355,A112,1)))/1000,"0.0k")),"") -> 29.10286982 | J112: =IF(A112<>2,IF(ABS(IF(move1,IF(Calc!$A$90,INDEX(Motor!$AA$1:$AA$1223,A112,1),INDEX(LinMotor!$Y$1:$Y$1355,A112,1)),IF(Calc!$A$90,INDEX(Motor!$AD$1:$AD$1223,A112,1),INDEX(LinMotor!$AB$1:$AB$445,A112,1))))<1000,IF(move1,IF(Calc!$A$90,INDEX(Motor!$AA$1:$AA$1223,A112,1),INDEX(LinMotor!$Y$1:$Y$1355,A112,1)),IF(Calc!$A$90,INDEX(Motor!$AD$1:$AD$1223,A112,1),INDEX(LinMotor!$AB$1:$AB$445,A112,1))),TEXT(IF(move1,IF(Calc!$A$90,INDEX(Motor!$AA$1:$AA$1223,A112,1),INDEX(LinMotor!$Y$1:$Y$1355,A112,1)),IF(Calc!$A$90,INDEX(Motor!$AD$1:$AD$1223,A112,1),INDEX(LinMotor!$AB$1:$AB$445,A112,1)))/1000,"0.0k")),"") -> 9 | K112: =IF(Calc!$A$90,INDEX(Motor!$AF$1:$AF$1223,A112,1),INDEX(LinMotor!$AD$1:$AD$1355,A112,1)) -> 0.4514507752 | L112: =IF(Calc!$A$90,INDEX(Motor!$AG$1:$AG$1223,A112,1),INDEX(LinMotor!$AE$1:$AE$1355,A112,1)) -> 0.6627798172 | M112: =IF(Calc!$A$90,INDEX(Motor!$AH$1:$AH$1223,A112,1),INDEX(LinMotor!$AF$1:$AF$1355,A112,1)) -> 10.83481861 | N112: =IF(Calc!$A$90,INDEX(Motor!$AI$1:$AI$1223,A112,1),INDEX(LinMotor!$AG$1:$AG$1355,A112,1)) -> 31.81343123 | O112: =IF(A112<>2,IF(IF(Calc!$A$90,INDEX(Motor!$AK$1:$AK$1223,A112,1),INDEX(LinMotor!$AI$1:$AI$1355,A112,1))<1000,IF(Calc!$A$90,INDEX(Motor!$AK$1:$AK$1223,A112,1),INDEX(LinMotor!$AI$1:$AI$1355,A112,1)),TEXT(IF(Calc!$A$90,INDEX(Motor!$AK$1:$AK$1223,A112,1),INDEX(LinMotor!$AI$1:$AI$1355,A112,1))/1000,"0.0k")),"") -> 23.02619687 | P112: =IF(A112<>2,IF(IF(Calc!$A$90,INDEX(Motor!$AL$1:$AL$1223,A112,1),INDEX(LinMotor!$AJ$1:$AJ$1355,A112,1))<1000,IF(Calc!$A$90,INDEX(Motor!$AL$1:$AL$1223,A112,1),INDEX(LinMotor!$AJ$1:$AJ$1355,A112,1)),TEXT(IF(Calc!$A$90,INDEX(Motor!$AL$1:$AL$1223,A112,1),INDEX(LinMotor!$AJ$1:$AJ$1355,A112,1))/1000,"0.0k")),"") -> 2.408902263 | Q112: =IF(A112<>2,IF(IF(Calc!$A$90,INDEX(Motor!$AM$1:$AM$1223,A112,1),INDEX(LinMotor!$AK$1:$AK$1355,A112,1))<1000,IF(Calc!$A$90,INDEX(Motor!$AM$1:$AM$1223,A112,1),INDEX(LinMotor!$AK$1:$AK$1355,A112,1)),TEXT(IF(Calc!$A$90,INDEX(Motor!$AM$1:$AM$1223,A112,1),INDEX(LinMotor!$AK$1:$AK$1355,A112,1))/1000,"0.0k")),"") -> 147.5675683
A113: 40 | B113: =IF(Calc!$A$90,INDEX(Motor!$B$1:$B$1223,A113,1),INDEX(LinMotor!$B$1:$B$1341,A113,1)) -> AKM32E | C113: =IF(Calc!$A$90,INDEX(Motor!$T$1:$T$1223,A113,1),INDEX(LinMotor!$R$1:$R$1355,A113,1)) -> 1906.779661 | D113: =IF(Calc!$A$90,INDEX(Motor!$U$1:$U$1223,A113,1),INDEX(LinMotor!$S$1:$S$1355,A113,1)) -> 4.863423338 | E113: =IF(Calc!$A$90,INDEX(Motor!$V$1:$V$1223,A113,1),INDEX(LinMotor!$T$1:$T$1355,A113,1)) -> 4.093230636 | F113: =IF(Calc!$A$90,INDEX(Motor!$W$1:$W$1223,A113,1),INDEX(LinMotor!$U$1:$U$1355,A113,1)) -> 0.06117668223 | G113: =IF(A113<>2,IF(ABS(IF(Calc!$A$90,INDEX(Motor!$X$1:$X$1223,A113,1),INDEX(LinMotor!$V$1:$V$1355,A113,1)))<1000,IF(Calc!$A$90,INDEX(Motor!$X$1:$X$1223,A113,1),INDEX(LinMotor!$V$1:$V$1355,A113,1)),TEXT(IF(Calc!$A$90,INDEX(Motor!$X$1:$X$1223,A113,1),INDEX(LinMotor!$V$1:$V$1355,A113,1))/1000,"0.0k")),"") -> -22.52206151 | H113: =IF(A113<>2,IF(ABS(IF(move1,IF(Calc!$A$90,INDEX(Motor!$Y$1:$Y$1223,A113,1),INDEX(LinMotor!$W$1:$W$1355,A113,1)),IF(Calc!$A$90,INDEX(Motor!$Z$1:$Z$1068,A113,1),INDEX(LinMotor!$X$1:$X$1355,A113,1))))<1000,IF(move1,IF(Calc!$A$90,INDEX(Motor!$Y$1:$Y$1223,A113,1),INDEX(LinMotor!$W$1:$W$1355,A113,1)),IF(Calc!$A$90,INDEX(Motor!$Z$1:$Z$1223,A113,1),INDEX(LinMotor!$X$1:$X$1355,A113,1))),TEXT(IF(move1,IF(Calc!$A$90,INDEX(Motor!$Y$1:$Y$1223,A113,1),INDEX(LinMotor!$W$1:$W$1355,A113,1)),IF(Calc!$A$90,INDEX(Motor!$Z$1:$Z$1223,A113,1),INDEX(LinMotor!$X$1:$X$1355,A113,1)))/1000,"0.0k")),"") -> 9 | I113: =IF(A113<>2,IF(ABS(IF(move1,IF(Calc!$A$90,INDEX(Motor!$Z$1:$Z$1223,A113,1),INDEX(LinMotor!$X$1:$X$1355,A113,1)),IF(Calc!$A$90,INDEX(Motor!$AB$1:$AB$1223,A113,1),INDEX(LinMotor!$Z$1:$Z$1355,A113,1))))<1000,IF(move1,IF(Calc!$A$90,INDEX(Motor!$Z$1:$Z$1223,A113,1),INDEX(LinMotor!$X$1:$X$1355,A113,1)),IF(Calc!$A$90,INDEX(Motor!$AB$1:$AB$1223,A113,1),INDEX(LinMotor!$Z$1:$Z$1355,A113,1))),TEXT(IF(move1,IF(Calc!$A$90,INDEX(Motor!$Z$1:$Z$1223,A113,1),INDEX(LinMotor!$X$1:$X$1355,A113,1)),IF(Calc!$A$90,INDEX(Motor!$AB$1:$AB$1223,A113,1),INDEX(LinMotor!$Z$1:$Z$1355,A113,1)))/1000,"0.0k")),"") -> 29.10286982 | J113: =IF(A113<>2,IF(ABS(IF(move1,IF(Calc!$A$90,INDEX(Motor!$AA$1:$AA$1223,A113,1),INDEX(LinMotor!$Y$1:$Y$1355,A113,1)),IF(Calc!$A$90,INDEX(Motor!$AD$1:$AD$1223,A113,1),INDEX(LinMotor!$AB$1:$AB$445,A113,1))))<1000,IF(move1,IF(Calc!$A$90,INDEX(Motor!$AA$1:$AA$1223,A113,1),INDEX(LinMotor!$Y$1:$Y$1355,A113,1)),IF(Calc!$A$90,INDEX(Motor!$AD$1:$AD$1223,A113,1),INDEX(LinMotor!$AB$1:$AB$445,A113,1))),TEXT(IF(move1,IF(Calc!$A$90,INDEX(Motor!$AA$1:$AA$1223,A113,1),INDEX(LinMotor!$Y$1:$Y$1355,A113,1)),IF(Calc!$A$90,INDEX(Motor!$AD$1:$AD$1223,A113,1),INDEX(LinMotor!$AB$1:$AB$445,A113,1)))/1000,"0.0k")),"") -> 9 | K113: =IF(Calc!$A$90,INDEX(Motor!$AF$1:$AF$1223,A113,1),INDEX(LinMotor!$AD$1:$AD$1355,A113,1)) -> 0.5708929086 | L113: =IF(Calc!$A$90,INDEX(Motor!$AG$1:$AG$1223,A113,1),INDEX(LinMotor!$AE$1:$AE$1355,A113,1)) -> 0.8381341186 | M113: =IF(Calc!$A$90,INDEX(Motor!$AH$1:$AH$1223,A113,1),INDEX(LinMotor!$AF$1:$AF$1355,A113,1)) -> 13.70142981 | N113: =IF(Calc!$A$90,INDEX(Motor!$AI$1:$AI$1223,A113,1),INDEX(LinMotor!$AG$1:$AG$1355,A113,1)) -> 40.23043769 | O113: =IF(A113<>2,IF(IF(Calc!$A$90,INDEX(Motor!$AK$1:$AK$1223,A113,1),INDEX(LinMotor!$AI$1:$AI$1355,A113,1))<1000,IF(Calc!$A$90,INDEX(Motor!$AK$1:$AK$1223,A113,1),INDEX(LinMotor!$AI$1:$AI$1355,A113,1)),TEXT(IF(Calc!$A$90,INDEX(Motor!$AK$1:$AK$1223,A113,1),INDEX(LinMotor!$AI$1:$AI$1355,A113,1))/1000,"0.0k")),"") -> 23.02619687 | P113: =IF(A113<>2,IF(IF(Calc!$A$90,INDEX(Motor!$AL$1:$AL$1223,A113,1),INDEX(LinMotor!$AJ$1:$AJ$1355,A113,1))<1000,IF(Calc!$A$90,INDEX(Motor!$AL$1:$AL$1223,A113,1),INDEX(LinMotor!$AJ$1:$AJ$1355,A113,1)),TEXT(IF(Calc!$A$90,INDEX(Motor!$AL$1:$AL$1223,A113,1),INDEX(LinMotor!$AJ$1:$AJ$1355,A113,1))/1000,"0.0k")),"") -> 2.408902263 | Q113: =IF(A113<>2,IF(IF(Calc!$A$90,INDEX(Motor!$AM$1:$AM$1223,A113,1),INDEX(LinMotor!$AK$1:$AK$1355,A113,1))<1000,IF(Calc!$A$90,INDEX(Motor!$AM$1:$AM$1223,A113,1),INDEX(LinMotor!$AK$1:$AK$1355,A113,1)),TEXT(IF(Calc!$A$90,INDEX(Motor!$AM$1:$AM$1223,A113,1),INDEX(LinMotor!$AK$1:$AK$1355,A113,1))/1000,"0.0k")),"") -> 147.5675683
A114: 41 | B114: =IF(Calc!$A$90,INDEX(Motor!$B$1:$B$1223,A114,1),INDEX(LinMotor!$B$1:$B$1341,A114,1)) -> AKM32H | C114: =IF(Calc!$A$90,INDEX(Motor!$T$1:$T$1223,A114,1),INDEX(LinMotor!$R$1:$R$1355,A114,1)) -> 1906.779661 | D114: =IF(Calc!$A$90,INDEX(Motor!$U$1:$U$1223,A114,1),INDEX(LinMotor!$S$1:$S$1355,A114,1)) -> 4.724478882 | E114: =IF(Calc!$A$90,INDEX(Motor!$V$1:$V$1223,A114,1),INDEX(LinMotor!$T$1:$T$1355,A114,1)) -> 4.008659755 | F114: =IF(Calc!$A$90,INDEX(Motor!$W$1:$W$1223,A114,1),INDEX(LinMotor!$U$1:$U$1355,A114,1)) -> 0.02755820541 | G114: =IF(A114<>2,IF(ABS(IF(Calc!$A$90,INDEX(Motor!$X$1:$X$1223,A114,1),INDEX(LinMotor!$V$1:$V$1355,A114,1)))<1000,IF(Calc!$A$90,INDEX(Motor!$X$1:$X$1223,A114,1),INDEX(LinMotor!$V$1:$V$1355,A114,1)),TEXT(IF(Calc!$A$90,INDEX(Motor!$X$1:$X$1223,A114,1),INDEX(LinMotor!$V$1:$V$1355,A114,1))/1000,"0.0k")),"") -> -22.52206151 | H114: =IF(A114<>2,IF(ABS(IF(move1,IF(Calc!$A$90,INDEX(Motor!$Y$1:$Y$1223,A114,1),INDEX(LinMotor!$W$1:$W$1355,A114,1)),IF(Calc!$A$90,INDEX(Motor!$Z$1:$Z$1068,A114,1),INDEX(LinMotor!$X$1:$X$1355,A114,1))))<1000,IF(move1,IF(Calc!$A$90,INDEX(Motor!$Y$1:$Y$1223,A114,1),INDEX(LinMotor!$W$1:$W$1355,A114,1)),IF(Calc!$A$90,INDEX(Motor!$Z$1:$Z$1223,A114,1),INDEX(LinMotor!$X$1:$X$1355,A114,1))),TEXT(IF(move1,IF(Calc!$A$90,INDEX(Motor!$Y$1:$Y$1223,A114,1),INDEX(LinMotor!$W$1:$W$1355,A114,1)),IF(Calc!$A$90,INDEX(Motor!$Z$1:$Z$1223,A114,1),INDEX(LinMotor!$X$1:$X$1355,A114,1)))/1000,"0.0k")),"") -> 9 | I114: =IF(A114<>2,IF(ABS(IF(move1,IF(Calc!$A$90,INDEX(Motor!$Z$1:$Z$1223,A114,1),INDEX(LinMotor!$X$1:$X$1355,A114,1)),IF(Calc!$A$90,INDEX(Motor!$AB$1:$AB$1223,A114,1),INDEX(LinMotor!$Z$1:$Z$1355,A114,1))))<1000,IF(move1,IF(Calc!$A$90,INDEX(Motor!$Z$1:$Z$1223,A114,1),INDEX(LinMotor!$X$1:$X$1355,A114,1)),IF(Calc!$A$90,INDEX(Motor!$AB$1:$AB$1223,A114,1),INDEX(LinMotor!$Z$1:$Z$1355,A114,1))),TEXT(IF(move1,IF(Calc!$A$90,INDEX(Motor!$Z$1:$Z$1223,A114,1),INDEX(LinMotor!$X$1:$X$1355,A114,1)),IF(Calc!$A$90,INDEX(Motor!$AB$1:$AB$1223,A114,1),INDEX(LinMotor!$Z$1:$Z$1355,A114,1)))/1000,"0.0k")),"") -> 29.10286982 | J114: =IF(A114<>2,IF(ABS(IF(move1,IF(Calc!$A$90,INDEX(Motor!$AA$1:$AA$1223,A114,1),INDEX(LinMotor!$Y$1:$Y$1355,A114,1)),IF(Calc!$A$90,INDEX(Motor!$AD$1:$AD$1223,A114,1),INDEX(LinMotor!$AB$1:$AB$445,A114,1))))<1000,IF(move1,IF(Calc!$A$90,INDEX(Motor!$AA$1:$AA$1223,A114,1),INDEX(LinMotor!$Y$1:$Y$1355,A114,1)),IF(Calc!$A$90,INDEX(Motor!$AD$1:$AD$1223,A114,1),INDEX(LinMotor!$AB$1:$AB$445,A114,1))),TEXT(IF(move1,IF(Calc!$A$90,INDEX(Motor!$AA$1:$AA$1223,A114,1),INDEX(LinMotor!$Y$1:$Y$1355,A114,1)),IF(Calc!$A$90,INDEX(Motor!$AD$1:$AD$1223,A114,1),INDEX(LinMotor!$AB$1:$AB$445,A114,1)))/1000,"0.0k")),"") -> 9 | K114: =IF(Calc!$A$90,INDEX(Motor!$AF$1:$AF$1223,A114,1),INDEX(LinMotor!$AD$1:$AD$1355,A114,1)) -> 1.081630941 | L114: =IF(Calc!$A$90,INDEX(Motor!$AG$1:$AG$1223,A114,1),INDEX(LinMotor!$AE$1:$AE$1355,A114,1)) -> 1.587954206 | M114: =IF(Calc!$A$90,INDEX(Motor!$AH$1:$AH$1223,A114,1),INDEX(LinMotor!$AF$1:$AF$1355,A114,1)) -> 25.95914259 | N114: =IF(Calc!$A$90,INDEX(Motor!$AI$1:$AI$1223,A114,1),INDEX(LinMotor!$AG$1:$AG$1355,A114,1)) -> 76.22180191 | O114: =IF(A114<>2,IF(IF(Calc!$A$90,INDEX(Motor!$AK$1:$AK$1223,A114,1),INDEX(LinMotor!$AI$1:$AI$1355,A114,1))<1000,IF(Calc!$A$90,INDEX(Motor!$AK$1:$AK$1223,A114,1),INDEX(LinMotor!$AI$1:$AI$1355,A114,1)),TEXT(IF(Calc!$A$90,INDEX(Motor!$AK$1:$AK$1223,A114,1),INDEX(LinMotor!$AI$1:$AI$1355,A114,1))/1000,"0.0k")),"") -> 23.02619687 | P114: =IF(A114<>2,IF(IF(Calc!$A$90,INDEX(Motor!$AL$1:$AL$1223,A114,1),INDEX(LinMotor!$AJ$1:$AJ$1355,A114,1))<1000,IF(Calc!$A$90,INDEX(Motor!$AL$1:$AL$1223,A114,1),INDEX(LinMotor!$AJ$1:$AJ$1355,A114,1)),TEXT(IF(Calc!$A$90,INDEX(Motor!$AL$1:$AL$1223,A114,1),INDEX(LinMotor!$AJ$1:$AJ$1355,A114,1))/1000,"0.0k")),"") -> 2.408902263 | Q114: =IF(A114<>2,IF(IF(Calc!$A$90,INDEX(Motor!$AM$1:$AM$1223,A114,1),INDEX(LinMotor!$AK$1:$AK$1355,A114,1))<1000,IF(Calc!$A$90,INDEX(Motor!$AM$1:$AM$1223,A114,1),INDEX(LinMotor!$AK$1:$AK$1355,A114,1)),TEXT(IF(Calc!$A$90,INDEX(Motor!$AM$1:$AM$1223,A114,1),INDEX(LinMotor!$AK$1:$AK$1355,A114,1))/1000,"0.0k")),"") -> 147.5675683
A115: 42 | B115: =IF(Calc!$A$90,INDEX(Motor!$B$1:$B$1223,A115,1),INDEX(LinMotor!$B$1:$B$1341,A115,1)) -> AKM33C | C115: =IF(Calc!$A$90,INDEX(Motor!$T$1:$T$1223,A115,1),INDEX(LinMotor!$R$1:$R$1355,A115,1)) -> 1323.529412 | D115: =IF(Calc!$A$90,INDEX(Motor!$U$1:$U$1223,A115,1),INDEX(LinMotor!$S$1:$S$1355,A115,1)) -> 3.660158331 | E115: =IF(Calc!$A$90,INDEX(Motor!$V$1:$V$1223,A115,1),INDEX(LinMotor!$T$1:$T$1355,A115,1)) -> 2.982398192 | F115: =IF(Calc!$A$90,INDEX(Motor!$W$1:$W$1223,A115,1),INDEX(LinMotor!$U$1:$U$1355,A115,1)) -> 0.1679471187 | G115: =IF(A115<>2,IF(ABS(IF(Calc!$A$90,INDEX(Motor!$X$1:$X$1223,A115,1),INDEX(LinMotor!$V$1:$V$1355,A115,1)))<1000,IF(Calc!$A$90,INDEX(Motor!$X$1:$X$1223,A115,1),INDEX(LinMotor!$V$1:$V$1355,A115,1)),TEXT(IF(Calc!$A$90,INDEX(Motor!$X$1:$X$1223,A115,1),INDEX(LinMotor!$V$1:$V$1355,A115,1))/1000,"0.0k")),"") -> -22.52864982 | H115: =IF(A115<>2,IF(ABS(IF(move1,IF(Calc!$A$90,INDEX(Motor!$Y$1:$Y$1223,A115,1),INDEX(LinMotor!$W$1:$W$1355,A115,1)),IF(Calc!$A$90,INDEX(Motor!$Z$1:$Z$1068,A115,1),INDEX(LinMotor!$X$1:$X$1355,A115,1))))<1000,IF(move1,IF(Calc!$A$90,INDEX(Motor!$Y$1:$Y$1223,A115,1),INDEX(LinMotor!$W$1:$W$1355,A115,1)),IF(Calc!$A$90,INDEX(Motor!$Z$1:$Z$1223,A115,1),INDEX(LinMotor!$X$1:$X$1355,A115,1))),TEXT(IF(move1,IF(Calc!$A$90,INDEX(Motor!$Y$1:$Y$1223,A115,1),INDEX(LinMotor!$W$1:$W$1355,A115,1)),IF(Calc!$A$90,INDEX(Motor!$Z$1:$Z$1223,A115,1),INDEX(LinMotor!$X$1:$X$1355,A115,1)))/1000,"0.0k")),"") -> 9 | I115: =IF(A115<>2,IF(ABS(IF(move1,IF(Calc!$A$90,INDEX(Motor!$Z$1:$Z$1223,A115,1),INDEX(LinMotor!$X$1:$X$1355,A115,1)),IF(Calc!$A$90,INDEX(Motor!$AB$1:$AB$1223,A115,1),INDEX(LinMotor!$Z$1:$Z$1355,A115,1))))<1000,IF(move1,IF(Calc!$A$90,INDEX(Motor!$Z$1:$Z$1223,A115,1),INDEX(LinMotor!$X$1:$X$1355,A115,1)),IF(Calc!$A$90,INDEX(Motor!$AB$1:$AB$1223,A115,1),INDEX(LinMotor!$Z$1:$Z$1355,A115,1))),TEXT(IF(move1,IF(Calc!$A$90,INDEX(Motor!$Z$1:$Z$1223,A115,1),INDEX(LinMotor!$X$1:$X$1355,A115,1)),IF(Calc!$A$90,INDEX(Motor!$AB$1:$AB$1223,A115,1),INDEX(LinMotor!$Z$1:$Z$1355,A115,1)))/1000,"0.0k")),"") -> 29.10820635 | J115: =IF(A115<>2,IF(ABS(IF(move1,IF(Calc!$A$90,INDEX(Motor!$AA$1:$AA$1223,A115,1),INDEX(LinMotor!$Y$1:$Y$1355,A115,1)),IF(Calc!$A$90,INDEX(Motor!$AD$1:$AD$1223,A115,1),INDEX(LinMotor!$AB$1:$AB$445,A115,1))))<1000,IF(move1,IF(Calc!$A$90,INDEX(Motor!$AA$1:$AA$1223,A115,1),INDEX(LinMotor!$Y$1:$Y$1355,A115,1)),IF(Calc!$A$90,INDEX(Motor!$AD$1:$AD$1223,A115,1),INDEX(LinMotor!$AB$1:$AB$445,A115,1))),TEXT(IF(move1,IF(Calc!$A$90,INDEX(Motor!$AA$1:$AA$1223,A115,1),INDEX(LinMotor!$Y$1:$Y$1355,A115,1)),IF(Calc!$A$90,INDEX(Motor!$AD$1:$AD$1223,A115,1),INDEX(LinMotor!$AB$1:$AB$445,A115,1)))/1000,"0.0k")),"") -> 9 | K115: =IF(Calc!$A$90,INDEX(Motor!$AF$1:$AF$1223,A115,1),INDEX(LinMotor!$AD$1:$AD$1355,A115,1)) -> 0.2240286943 | L115: =IF(Calc!$A$90,INDEX(Motor!$AG$1:$AG$1223,A115,1),INDEX(LinMotor!$AE$1:$AE$1355,A115,1)) -> 0.3289442138 | M115: =IF(Calc!$A$90,INDEX(Motor!$AH$1:$AH$1223,A115,1),INDEX(LinMotor!$AF$1:$AF$1355,A115,1)) -> 5.376688663 | N115: =IF(Calc!$A$90,INDEX(Motor!$AI$1:$AI$1223,A115,1),INDEX(LinMotor!$AG$1:$AG$1355,A115,1)) -> 15.78932226 | O115: =IF(A115<>2,IF(IF(Calc!$A$90,INDEX(Motor!$AK$1:$AK$1223,A115,1),INDEX(LinMotor!$AI$1:$AI$1355,A115,1))<1000,IF(Calc!$A$90,INDEX(Motor!$AK$1:$AK$1223,A115,1),INDEX(LinMotor!$AI$1:$AI$1355,A115,1)),TEXT(IF(Calc!$A$90,INDEX(Motor!$AK$1:$AK$1223,A115,1),INDEX(LinMotor!$AI$1:$AI$1355,A115,1))/1000,"0.0k")),"") -> 23.0272518 | P115: =IF(A115<>2,IF(IF(Calc!$A$90,INDEX(Motor!$AL$1:$AL$1223,A115,1),INDEX(LinMotor!$AJ$1:$AJ$1355,A115,1))<1000,IF(Calc!$A$90,INDEX(Motor!$AL$1:$AL$1223,A115,1),INDEX(LinMotor!$AJ$1:$AJ$1355,A115,1)),TEXT(IF(Calc!$A$90,INDEX(Motor!$AL$1:$AL$1223,A115,1),INDEX(LinMotor!$AJ$1:$AJ$1355,A115,1))/1000,"0.0k")),"") -> 2.409815159 | Q115: =IF(A115<>2,IF(IF(Calc!$A$90,INDEX(Motor!$AM$1:$AM$1223,A115,1),INDEX(LinMotor!$AK$1:$AK$1355,A115,1))<1000,IF(Calc!$A$90,INDEX(Motor!$AM$1:$AM$1223,A115,1),INDEX(LinMotor!$AK$1:$AK$1355,A115,1)),TEXT(IF(Calc!$A$90,INDEX(Motor!$AM$1:$AM$1223,A115,1),INDEX(LinMotor!$AK$1:$AK$1355,A115,1))/1000,"0.0k")),"") -> 147.6234916
A116: 43 | B116: =IF(Calc!$A$90,INDEX(Motor!$B$1:$B$1223,A116,1),INDEX(LinMotor!$B$1:$B$1341,A116,1)) -> AKM33E | C116: =IF(Calc!$A$90,INDEX(Motor!$T$1:$T$1223,A116,1),INDEX(LinMotor!$R$1:$R$1355,A116,1)) -> 1323.529412 | D116: =IF(Calc!$A$90,INDEX(Motor!$U$1:$U$1223,A116,1),INDEX(LinMotor!$S$1:$S$1355,A116,1)) -> 3.555560961 | E116: =IF(Calc!$A$90,INDEX(Motor!$V$1:$V$1223,A116,1),INDEX(LinMotor!$T$1:$T$1355,A116,1)) -> 2.922510678 | F116: =IF(Calc!$A$90,INDEX(Motor!$W$1:$W$1223,A116,1),INDEX(LinMotor!$U$1:$U$1355,A116,1)) -> 0.0642338025 | G116: =IF(A116<>2,IF(ABS(IF(Calc!$A$90,INDEX(Motor!$X$1:$X$1223,A116,1),INDEX(LinMotor!$V$1:$V$1355,A116,1)))<1000,IF(Calc!$A$90,INDEX(Motor!$X$1:$X$1223,A116,1),INDEX(LinMotor!$V$1:$V$1355,A116,1)),TEXT(IF(Calc!$A$90,INDEX(Motor!$X$1:$X$1223,A116,1),INDEX(LinMotor!$V$1:$V$1355,A116,1))/1000,"0.0k")),"") -> -22.52864982 | H116: =IF(A116<>2,IF(ABS(IF(move1,IF(Calc!$A$90,INDEX(Motor!$Y$1:$Y$1223,A116,1),INDEX(LinMotor!$W$1:$W$1355,A116,1)),IF(Calc!$A$90,INDEX(Motor!$Z$1:$Z$1068,A116,1),INDEX(LinMotor!$X$1:$X$1355,A116,1))))<1000,IF(move1,IF(Calc!$A$90,INDEX(Motor!$Y$1:$Y$1223,A116,1),INDEX(LinMotor!$W$1:$W$1355,A116,1)),IF(Calc!$A$90,INDEX(Motor!$Z$1:$Z$1223,A116,1),INDEX(LinMotor!$X$1:$X$1355,A116,1))),TEXT(IF(move1,IF(Calc!$A$90,INDEX(Motor!$Y$1:$Y$1223,A116,1),INDEX(LinMotor!$W$1:$W$1355,A116,1)),IF(Calc!$A$90,INDEX(Motor!$Z$1:$Z$1223,A116,1),INDEX(LinMotor!$X$1:$X$1355,A116,1)))/1000,"0.0k")),"") -> 9 | I116: =IF(A116<>2,IF(ABS(IF(move1,IF(Calc!$A$90,INDEX(Motor!$Z$1:$Z$1223,A116,1),INDEX(LinMotor!$X$1:$X$1355,A116,1)),IF(Calc!$A$90,INDEX(Motor!$AB$1:$AB$1223,A116,1),INDEX(LinMotor!$Z$1:$Z$1355,A116,1))))<1000,IF(move1,IF(Calc!$A$90,INDEX(Motor!$Z$1:$Z$1223,A116,1),INDEX(LinMotor!$X$1:$X$1355,A116,1)),IF(Calc!$A$90,INDEX(Motor!$AB$1:$AB$1223,A116,1),INDEX(LinMotor!$Z$1:$Z$1355,A116,1))),TEXT(IF(move1,IF(Calc!$A$90,INDEX(Motor!$Z$1:$Z$1223,A116,1),INDEX(LinMotor!$X$1:$X$1355,A116,1)),IF(Calc!$A$90,INDEX(Motor!$AB$1:$AB$1223,A116,1),INDEX(LinMotor!$Z$1:$Z$1355,A116,1)))/1000,"0.0k")),"") -> 29.10820635 | J116: =IF(A116<>2,IF(ABS(IF(move1,IF(Calc!$A$90,INDEX(Motor!$AA$1:$AA$1223,A116,1),INDEX(LinMotor!$Y$1:$Y$1355,A116,1)),IF(Calc!$A$90,INDEX(Motor!$AD$1:$AD$1223,A116,1),INDEX(LinMotor!$AB$1:$AB$445,A116,1))))<1000,IF(move1,IF(Calc!$A$90,INDEX(Motor!$AA$1:$AA$1223,A116,1),INDEX(LinMotor!$Y$1:$Y$1355,A116,1)),IF(Calc!$A$90,INDEX(Motor!$AD$1:$AD$1223,A116,1),INDEX(LinMotor!$AB$1:$AB$445,A116,1))),TEXT(IF(move1,IF(Calc!$A$90,INDEX(Motor!$AA$1:$AA$1223,A116,1),INDEX(LinMotor!$Y$1:$Y$1355,A116,1)),IF(Calc!$A$90,INDEX(Motor!$AD$1:$AD$1223,A116,1),INDEX(LinMotor!$AB$1:$AB$445,A116,1)))/1000,"0.0k")),"") -> 9 | K116: =IF(Calc!$A$90,INDEX(Motor!$AF$1:$AF$1223,A116,1),INDEX(LinMotor!$AD$1:$AD$1355,A116,1)) -> 0.381918861 | L116: =IF(Calc!$A$90,INDEX(Motor!$AG$1:$AG$1223,A116,1),INDEX(LinMotor!$AE$1:$AE$1355,A116,1)) -> 0.5607763769 | M116: =IF(Calc!$A$90,INDEX(Motor!$AH$1:$AH$1223,A116,1),INDEX(LinMotor!$AF$1:$AF$1355,A116,1)) -> 9.166052665 | N116: =IF(Calc!$A$90,INDEX(Motor!$AI$1:$AI$1223,A116,1),INDEX(LinMotor!$AG$1:$AG$1355,A116,1)) -> 26.91726609 | O116: =IF(A116<>2,IF(IF(Calc!$A$90,INDEX(Motor!$AK$1:$AK$1223,A116,1),INDEX(LinMotor!$AI$1:$AI$1355,A116,1))<1000,IF(Calc!$A$90,INDEX(Motor!$AK$1:$AK$1223,A116,1),INDEX(LinMotor!$AI$1:$AI$1355,A116,1)),TEXT(IF(Calc!$A$90,INDEX(Motor!$AK$1:$AK$1223,A116,1),INDEX(LinMotor!$AI$1:$AI$1355,A116,1))/1000,"0.0k")),"") -> 23.0272518 | P116: =IF(A116<>2,IF(IF(Calc!$A$90,INDEX(Motor!$AL$1:$AL$1223,A116,1),INDEX(LinMotor!$AJ$1:$AJ$1355,A116,1))<1000,IF(Calc!$A$90,INDEX(Motor!$AL$1:$AL$1223,A116,1),INDEX(LinMotor!$AJ$1:$AJ$1355,A116,1)),TEXT(IF(Calc!$A$90,INDEX(Motor!$AL$1:$AL$1223,A116,1),INDEX(LinMotor!$AJ$1:$AJ$1355,A116,1))/1000,"0.0k")),"") -> 2.409815159 | Q116: =IF(A116<>2,IF(IF(Calc!$A$90,INDEX(Motor!$AM$1:$AM$1223,A116,1),INDEX(LinMotor!$AK$1:$AK$1355,A116,1))<1000,IF(Calc!$A$90,INDEX(Motor!$AM$1:$AM$1223,A116,1),INDEX(LinMotor!$AK$1:$AK$1355,A116,1)),TEXT(IF(Calc!$A$90,INDEX(Motor!$AM$1:$AM$1223,A116,1),INDEX(LinMotor!$AK$1:$AK$1355,A116,1))/1000,"0.0k")),"") -> 147.6234916
A117: 44 | B117: =IF(Calc!$A$90,INDEX(Motor!$B$1:$B$1223,A117,1),INDEX(LinMotor!$B$1:$B$1341,A117,1)) -> AKM33H | C117: =IF(Calc!$A$90,INDEX(Motor!$T$1:$T$1223,A117,1),INDEX(LinMotor!$R$1:$R$1355,A117,1)) -> 1323.529412 | D117: =IF(Calc!$A$90,INDEX(Motor!$U$1:$U$1223,A117,1),INDEX(LinMotor!$S$1:$S$1355,A117,1)) -> 3.444653725 | E117: =IF(Calc!$A$90,INDEX(Motor!$V$1:$V$1223,A117,1),INDEX(LinMotor!$T$1:$T$1355,A117,1)) -> 2.848161091 | F117: =IF(Calc!$A$90,INDEX(Motor!$W$1:$W$1223,A117,1),INDEX(LinMotor!$U$1:$U$1355,A117,1)) -> 0.02557611497 | G117: =IF(A117<>2,IF(ABS(IF(Calc!$A$90,INDEX(Motor!$X$1:$X$1223,A117,1),INDEX(LinMotor!$V$1:$V$1355,A117,1)))<1000,IF(Calc!$A$90,INDEX(Motor!$X$1:$X$1223,A117,1),INDEX(LinMotor!$V$1:$V$1355,A117,1)),TEXT(IF(Calc!$A$90,INDEX(Motor!$X$1:$X$1223,A117,1),INDEX(LinMotor!$V$1:$V$1355,A117,1))/1000,"0.0k")),"") -> -22.52864982 | H117: =IF(A117<>2,IF(ABS(IF(move1,IF(Calc!$A$90,INDEX(Motor!$Y$1:$Y$1223,A117,1),INDEX(LinMotor!$W$1:$W$1355,A117,1)),IF(Calc!$A$90,INDEX(Motor!$Z$1:$Z$1068,A117,1),INDEX(LinMotor!$X$1:$X$1355,A117,1))))<1000,IF(move1,IF(Calc!$A$90,INDEX(Motor!$Y$1:$Y$1223,A117,1),INDEX(LinMotor!$W$1:$W$1355,A117,1)),IF(Calc!$A$90,INDEX(Motor!$Z$1:$Z$1223,A117,1),INDEX(LinMotor!$X$1:$X$1355,A117,1))),TEXT(IF(move1,IF(Calc!$A$90,INDEX(Motor!$Y$1:$Y$1223,A117,1),INDEX(LinMotor!$W$1:$W$1355,A117,1)),IF(Calc!$A$90,INDEX(Motor!$Z$1:$Z$1223,A117,1),INDEX(LinMotor!$X$1:$X$1355,A117,1)))/1000,"0.0k")),"") -> 9 | I117: =IF(A117<>2,IF(ABS(IF(move1,IF(Calc!$A$90,INDEX(Motor!$Z$1:$Z$1223,A117,1),INDEX(LinMotor!$X$1:$X$1355,A117,1)),IF(Calc!$A$90,INDEX(Motor!$AB$1:$AB$1223,A117,1),INDEX(LinMotor!$Z$1:$Z$1355,A117,1))))<1000,IF(move1,IF(Calc!$A$90,INDEX(Motor!$Z$1:$Z$1223,A117,1),INDEX(LinMotor!$X$1:$X$1355,A117,1)),IF(Calc!$A$90,INDEX(Motor!$AB$1:$AB$1223,A117,1),INDEX(LinMotor!$Z$1:$Z$1355,A117,1))),TEXT(IF(move1,IF(Calc!$A$90,INDEX(Motor!$Z$1:$Z$1223,A117,1),INDEX(LinMotor!$X$1:$X$1355,A117,1)),IF(Calc!$A$90,INDEX(Motor!$AB$1:$AB$1223,A117,1),INDEX(LinMotor!$Z$1:$Z$1355,A117,1)))/1000,"0.0k")),"") -> 29.10820635 | J117: =IF(A117<>2,IF(ABS(IF(move1,IF(Calc!$A$90,INDEX(Motor!$AA$1:$AA$1223,A117,1),INDEX(LinMotor!$Y$1:$Y$1355,A117,1)),IF(Calc!$A$90,INDEX(Motor!$AD$1:$AD$1223,A117,1),INDEX(LinMotor!$AB$1:$AB$445,A117,1))))<1000,IF(move1,IF(Calc!$A$90,INDEX(Motor!$AA$1:$AA$1223,A117,1),INDEX(LinMotor!$Y$1:$Y$1355,A117,1)),IF(Calc!$A$90,INDEX(Motor!$AD$1:$AD$1223,A117,1),INDEX(LinMotor!$AB$1:$AB$445,A117,1))),TEXT(IF(move1,IF(Calc!$A$90,INDEX(Motor!$AA$1:$AA$1223,A117,1),INDEX(LinMotor!$Y$1:$Y$1355,A117,1)),IF(Calc!$A$90,INDEX(Motor!$AD$1:$AD$1223,A117,1),INDEX(LinMotor!$AB$1:$AB$445,A117,1)))/1000,"0.0k")),"") -> 9 | K117: =IF(Calc!$A$90,INDEX(Motor!$AF$1:$AF$1223,A117,1),INDEX(LinMotor!$AD$1:$AD$1355,A117,1)) -> 0.8059339144 | L117: =IF(Calc!$A$90,INDEX(Motor!$AG$1:$AG$1223,A117,1),INDEX(LinMotor!$AE$1:$AE$1355,A117,1)) -> 1.183363134 | M117: =IF(Calc!$A$90,INDEX(Motor!$AH$1:$AH$1223,A117,1),INDEX(LinMotor!$AF$1:$AF$1355,A117,1)) -> 19.34241395 | N117: =IF(Calc!$A$90,INDEX(Motor!$AI$1:$AI$1223,A117,1),INDEX(LinMotor!$AG$1:$AG$1355,A117,1)) -> 56.80143045 | O117: =IF(A117<>2,IF(IF(Calc!$A$90,INDEX(Motor!$AK$1:$AK$1223,A117,1),INDEX(LinMotor!$AI$1:$AI$1355,A117,1))<1000,IF(Calc!$A$90,INDEX(Motor!$AK$1:$AK$1223,A117,1),INDEX(LinMotor!$AI$1:$AI$1355,A117,1)),TEXT(IF(Calc!$A$90,INDEX(Motor!$AK$1:$AK$1223,A117,1),INDEX(LinMotor!$AI$1:$AI$1355,A117,1))/1000,"0.0k")),"") -> 23.0272518 | P117: =IF(A117<>2,IF(IF(Calc!$A$90,INDEX(Motor!$AL$1:$AL$1223,A117,1),INDEX(LinMotor!$AJ$1:$AJ$1355,A117,1))<1000,IF(Calc!$A$90,INDEX(Motor!$AL$1:$AL$1223,A117,1),INDEX(LinMotor!$AJ$1:$AJ$1355,A117,1)),TEXT(IF(Calc!$A$90,INDEX(Motor!$AL$1:$AL$1223,A117,1),INDEX(LinMotor!$AJ$1:$AJ$1355,A117,1))/1000,"0.0k")),"") -> 2.409815159 | Q117: =IF(A117<>2,IF(IF(Calc!$A$90,INDEX(Motor!$AM$1:$AM$1223,A117,1),INDEX(LinMotor!$AK$1:$AK$1355,A117,1))<1000,IF(Calc!$A$90,INDEX(Motor!$AM$1:$AM$1223,A117,1),INDEX(LinMotor!$AK$1:$AK$1355,A117,1)),TEXT(IF(Calc!$A$90,INDEX(Motor!$AM$1:$AM$1223,A117,1),INDEX(LinMotor!$AK$1:$AK$1355,A117,1))/1000,"0.0k")),"") -> 147.6234916
A118: 45 | B118: =IF(Calc!$A$90,INDEX(Motor!$B$1:$B$1223,A118,1),INDEX(LinMotor!$B$1:$B$1341,A118,1)) -> AKM41C | C118: =IF(Calc!$A$90,INDEX(Motor!$T$1:$T$1223,A118,1),INDEX(LinMotor!$R$1:$R$1355,A118,1)) -> 1388.888889 | D118: =IF(Calc!$A$90,INDEX(Motor!$U$1:$U$1223,A118,1),INDEX(LinMotor!$S$1:$S$1355,A118,1)) -> 5.086578409 | E118: =IF(Calc!$A$90,INDEX(Motor!$V$1:$V$1223,A118,1),INDEX(LinMotor!$T$1:$T$1355,A118,1)) -> 4.756108717 | F118: =IF(Calc!$A$90,INDEX(Motor!$W$1:$W$1223,A118,1),INDEX(LinMotor!$U$1:$U$1355,A118,1)) -> 0.3218465597 | G118: =IF(A118<>2,IF(ABS(IF(Calc!$A$90,INDEX(Motor!$X$1:$X$1223,A118,1),INDEX(LinMotor!$V$1:$V$1355,A118,1)))<1000,IF(Calc!$A$90,INDEX(Motor!$X$1:$X$1223,A118,1),INDEX(LinMotor!$V$1:$V$1355,A118,1)),TEXT(IF(Calc!$A$90,INDEX(Motor!$X$1:$X$1223,A118,1),INDEX(LinMotor!$V$1:$V$1355,A118,1))/1000,"0.0k")),"") -> -22.52763623 | H118: =IF(A118<>2,IF(ABS(IF(move1,IF(Calc!$A$90,INDEX(Motor!$Y$1:$Y$1223,A118,1),INDEX(LinMotor!$W$1:$W$1355,A118,1)),IF(Calc!$A$90,INDEX(Motor!$Z$1:$Z$1068,A118,1),INDEX(LinMotor!$X$1:$X$1355,A118,1))))<1000,IF(move1,IF(Calc!$A$90,INDEX(Motor!$Y$1:$Y$1223,A118,1),INDEX(LinMotor!$W$1:$W$1355,A118,1)),IF(Calc!$A$90,INDEX(Motor!$Z$1:$Z$1223,A118,1),INDEX(LinMotor!$X$1:$X$1355,A118,1))),TEXT(IF(move1,IF(Calc!$A$90,INDEX(Motor!$Y$1:$Y$1223,A118,1),INDEX(LinMotor!$W$1:$W$1355,A118,1)),IF(Calc!$A$90,INDEX(Motor!$Z$1:$Z$1223,A118,1),INDEX(LinMotor!$X$1:$X$1355,A118,1)))/1000,"0.0k")),"") -> 9 | I118: =IF(A118<>2,IF(ABS(IF(move1,IF(Calc!$A$90,INDEX(Motor!$Z$1:$Z$1223,A118,1),INDEX(LinMotor!$X$1:$X$1355,A118,1)),IF(Calc!$A$90,INDEX(Motor!$AB$1:$AB$1223,A118,1),INDEX(LinMotor!$Z$1:$Z$1355,A118,1))))<1000,IF(move1,IF(Calc!$A$90,INDEX(Motor!$Z$1:$Z$1223,A118,1),INDEX(LinMotor!$X$1:$X$1355,A118,1)),IF(Calc!$A$90,INDEX(Motor!$AB$1:$AB$1223,A118,1),INDEX(LinMotor!$Z$1:$Z$1355,A118,1))),TEXT(IF(move1,IF(Calc!$A$90,INDEX(Motor!$Z$1:$Z$1223,A118,1),INDEX(LinMotor!$X$1:$X$1355,A118,1)),IF(Calc!$A$90,INDEX(Motor!$AB$1:$AB$1223,A118,1),INDEX(LinMotor!$Z$1:$Z$1355,A118,1)))/1000,"0.0k")),"") -> 29.10738535 | J118: =IF(A118<>2,IF(ABS(IF(move1,IF(Calc!$A$90,INDEX(Motor!$AA$1:$AA$1223,A118,1),INDEX(LinMotor!$Y$1:$Y$1355,A118,1)),IF(Calc!$A$90,INDEX(Motor!$AD$1:$AD$1223,A118,1),INDEX(LinMotor!$AB$1:$AB$445,A118,1))))<1000,IF(move1,IF(Calc!$A$90,INDEX(Motor!$AA$1:$AA$1223,A118,1),INDEX(LinMotor!$Y$1:$Y$1355,A118,1)),IF(Calc!$A$90,INDEX(Motor!$AD$1:$AD$1223,A118,1),INDEX(LinMotor!$AB$1:$AB$445,A118,1))),TEXT(IF(move1,IF(Calc!$A$90,INDEX(Motor!$AA$1:$AA$1223,A118,1),INDEX(LinMotor!$Y$1:$Y$1355,A118,1)),IF(Calc!$A$90,INDEX(Motor!$AD$1:$AD$1223,A118,1),INDEX(LinMotor!$AB$1:$AB$445,A118,1)))/1000,"0.0k")),"") -> 9 | K118: =IF(Calc!$A$90,INDEX(Motor!$AF$1:$AF$1223,A118,1),INDEX(LinMotor!$AD$1:$AD$1355,A118,1)) -> 0.3092222864 | L118: =IF(Calc!$A$90,INDEX(Motor!$AG$1:$AG$1223,A118,1),INDEX(LinMotor!$AE$1:$AE$1355,A118,1)) -> 0.4540254552 | M118: =IF(Calc!$A$90,INDEX(Motor!$AH$1:$AH$1223,A118,1),INDEX(LinMotor!$AF$1:$AF$1355,A118,1)) -> 7.421334875 | N118: =IF(Calc!$A$90,INDEX(Motor!$AI$1:$AI$1223,A118,1),INDEX(LinMotor!$AG$1:$AG$1355,A118,1)) -> 21.79322185 | O118: =IF(A118<>2,IF(IF(Calc!$A$90,INDEX(Motor!$AK$1:$AK$1223,A118,1),INDEX(LinMotor!$AI$1:$AI$1355,A118,1))<1000,IF(Calc!$A$90,INDEX(Motor!$AK$1:$AK$1223,A118,1),INDEX(LinMotor!$AI$1:$AI$1355,A118,1)),TEXT(IF(Calc!$A$90,INDEX(Motor!$AK$1:$AK$1223,A118,1),INDEX(LinMotor!$AI$1:$AI$1355,A118,1))/1000,"0.0k")),"") -> 23.02708949 | P118: =IF(A118<>2,IF(IF(Calc!$A$90,INDEX(Motor!$AL$1:$AL$1223,A118,1),INDEX(LinMotor!$AJ$1:$AJ$1355,A118,1))<1000,IF(Calc!$A$90,INDEX(Motor!$AL$1:$AL$1223,A118,1),INDEX(LinMotor!$AJ$1:$AJ$1355,A118,1)),TEXT(IF(Calc!$A$90,INDEX(Motor!$AL$1:$AL$1223,A118,1),INDEX(LinMotor!$AJ$1:$AJ$1355,A118,1))/1000,"0.0k")),"") -> 2.409674714 | Q118: =IF(A118<>2,IF(IF(Calc!$A$90,INDEX(Motor!$AM$1:$AM$1223,A118,1),INDEX(LinMotor!$AK$1:$AK$1355,A118,1))<1000,IF(Calc!$A$90,INDEX(Motor!$AM$1:$AM$1223,A118,1),INDEX(LinMotor!$AK$1:$AK$1355,A118,1)),TEXT(IF(Calc!$A$90,INDEX(Motor!$AM$1:$AM$1223,A118,1),INDEX(LinMotor!$AK$1:$AK$1355,A118,1))/1000,"0.0k")),"") -> 147.614888
A119: 46 | B119: =IF(Calc!$A$90,INDEX(Motor!$B$1:$B$1223,A119,1),INDEX(LinMotor!$B$1:$B$1341,A119,1)) -> AKM41E | C119: =IF(Calc!$A$90,INDEX(Motor!$T$1:$T$1223,A119,1),INDEX(LinMotor!$R$1:$R$1355,A119,1)) -> 1388.888889 | D119: =IF(Calc!$A$90,INDEX(Motor!$U$1:$U$1223,A119,1),INDEX(LinMotor!$S$1:$S$1355,A119,1)) -> 4.910914244 | E119: =IF(Calc!$A$90,INDEX(Motor!$V$1:$V$1223,A119,1),INDEX(LinMotor!$T$1:$T$1355,A119,1)) -> 4.634933972 | F119: =IF(Calc!$A$90,INDEX(Motor!$W$1:$W$1223,A119,1),INDEX(LinMotor!$U$1:$U$1355,A119,1)) -> 0.09882691621 | G119: =IF(A119<>2,IF(ABS(IF(Calc!$A$90,INDEX(Motor!$X$1:$X$1223,A119,1),INDEX(LinMotor!$V$1:$V$1355,A119,1)))<1000,IF(Calc!$A$90,INDEX(Motor!$X$1:$X$1223,A119,1),INDEX(LinMotor!$V$1:$V$1355,A119,1)),TEXT(IF(Calc!$A$90,INDEX(Motor!$X$1:$X$1223,A119,1),INDEX(LinMotor!$V$1:$V$1355,A119,1))/1000,"0.0k")),"") -> -22.52763623 | H119: =IF(A119<>2,IF(ABS(IF(move1,IF(Calc!$A$90,INDEX(Motor!$Y$1:$Y$1223,A119,1),INDEX(LinMotor!$W$1:$W$1355,A119,1)),IF(Calc!$A$90,INDEX(Motor!$Z$1:$Z$1068,A119,1),INDEX(LinMotor!$X$1:$X$1355,A119,1))))<1000,IF(move1,IF(Calc!$A$90,INDEX(Motor!$Y$1:$Y$1223,A119,1),INDEX(LinMotor!$W$1:$W$1355,A119,1)),IF(Calc!$A$90,INDEX(Motor!$Z$1:$Z$1223,A119,1),INDEX(LinMotor!$X$1:$X$1355,A119,1))),TEXT(IF(move1,IF(Calc!$A$90,INDEX(Motor!$Y$1:$Y$1223,A119,1),INDEX(LinMotor!$W$1:$W$1355,A119,1)),IF(Calc!$A$90,INDEX(Motor!$Z$1:$Z$1223,A119,1),INDEX(LinMotor!$X$1:$X$1355,A119,1)))/1000,"0.0k")),"") -> 9 | I119: =IF(A119<>2,IF(ABS(IF(move1,IF(Calc!$A$90,INDEX(Motor!$Z$1:$Z$1223,A119,1),INDEX(LinMotor!$X$1:$X$1355,A119,1)),IF(Calc!$A$90,INDEX(Motor!$AB$1:$AB$1223,A119,1),INDEX(LinMotor!$Z$1:$Z$1355,A119,1))))<1000,IF(move1,IF(Calc!$A$90,INDEX(Motor!$Z$1:$Z$1223,A119,1),INDEX(LinMotor!$X$1:$X$1355,A119,1)),IF(Calc!$A$90,INDEX(Motor!$AB$1:$AB$1223,A119,1),INDEX(LinMotor!$Z$1:$Z$1355,A119,1))),TEXT(IF(move1,IF(Calc!$A$90,INDEX(Motor!$Z$1:$Z$1223,A119,1),INDEX(LinMotor!$X$1:$X$1355,A119,1)),IF(Calc!$A$90,INDEX(Motor!$AB$1:$AB$1223,A119,1),INDEX(LinMotor!$Z$1:$Z$1355,A119,1)))/1000,"0.0k")),"") -> 29.10738535 | J119: =IF(A119<>2,IF(ABS(IF(move1,IF(Calc!$A$90,INDEX(Motor!$AA$1:$AA$1223,A119,1),INDEX(LinMotor!$Y$1:$Y$1355,A119,1)),IF(Calc!$A$90,INDEX(Motor!$AD$1:$AD$1223,A119,1),INDEX(LinMotor!$AB$1:$AB$445,A119,1))))<1000,IF(move1,IF(Calc!$A$90,INDEX(Motor!$AA$1:$AA$1223,A119,1),INDEX(LinMotor!$Y$1:$Y$1355,A119,1)),IF(Calc!$A$90,INDEX(Motor!$AD$1:$AD$1223,A119,1),INDEX(LinMotor!$AB$1:$AB$445,A119,1))),TEXT(IF(move1,IF(Calc!$A$90,INDEX(Motor!$AA$1:$AA$1223,A119,1),INDEX(LinMotor!$Y$1:$Y$1355,A119,1)),IF(Calc!$A$90,INDEX(Motor!$AD$1:$AD$1223,A119,1),INDEX(LinMotor!$AB$1:$AB$445,A119,1)))/1000,"0.0k")),"") -> 9 | K119: =IF(Calc!$A$90,INDEX(Motor!$AF$1:$AF$1223,A119,1),INDEX(LinMotor!$AD$1:$AD$1355,A119,1)) -> 0.582701362 | L119: =IF(Calc!$A$90,INDEX(Motor!$AG$1:$AG$1223,A119,1),INDEX(LinMotor!$AE$1:$AE$1355,A119,1)) -> 0.8555698045 | M119: =IF(Calc!$A$90,INDEX(Motor!$AH$1:$AH$1223,A119,1),INDEX(LinMotor!$AF$1:$AF$1355,A119,1)) -> 13.98483269 | N119: =IF(Calc!$A$90,INDEX(Motor!$AI$1:$AI$1223,A119,1),INDEX(LinMotor!$AG$1:$AG$1355,A119,1)) -> 41.06735061 | O119: =IF(A119<>2,IF(IF(Calc!$A$90,INDEX(Motor!$AK$1:$AK$1223,A119,1),INDEX(LinMotor!$AI$1:$AI$1355,A119,1))<1000,IF(Calc!$A$90,INDEX(Motor!$AK$1:$AK$1223,A119,1),INDEX(LinMotor!$AI$1:$AI$1355,A119,1)),TEXT(IF(Calc!$A$90,INDEX(Motor!$AK$1:$AK$1223,A119,1),INDEX(LinMotor!$AI$1:$AI$1355,A119,1))/1000,"0.0k")),"") -> 23.02708949 | P119: =IF(A119<>2,IF(IF(Calc!$A$90,INDEX(Motor!$AL$1:$AL$1223,A119,1),INDEX(LinMotor!$AJ$1:$AJ$1355,A119,1))<1000,IF(Calc!$A$90,INDEX(Motor!$AL$1:$AL$1223,A119,1),INDEX(LinMotor!$AJ$1:$AJ$1355,A119,1)),TEXT(IF(Calc!$A$90,INDEX(Motor!$AL$1:$AL$1223,A119,1),INDEX(LinMotor!$AJ$1:$AJ$1355,A119,1))/1000,"0.0k")),"") -> 2.409674714 | Q119: =IF(A119<>2,IF(IF(Calc!$A$90,INDEX(Motor!$AM$1:$AM$1223,A119,1),INDEX(LinMotor!$AK$1:$AK$1355,A119,1))<1000,IF(Calc!$A$90,INDEX(Motor!$AM$1:$AM$1223,A119,1),INDEX(LinMotor!$AK$1:$AK$1355,A119,1)),TEXT(IF(Calc!$A$90,INDEX(Motor!$AM$1:$AM$1223,A119,1),INDEX(LinMotor!$AK$1:$AK$1355,A119,1))/1000,"0.0k")),"") -> 147.614888
A120: 47 | B120: =IF(Calc!$A$90,INDEX(Motor!$B$1:$B$1223,A120,1),INDEX(LinMotor!$B$1:$B$1341,A120,1)) -> AKM41H | C120: =IF(Calc!$A$90,INDEX(Motor!$T$1:$T$1223,A120,1),INDEX(LinMotor!$R$1:$R$1355,A120,1)) -> 1388.888889 | D120: =IF(Calc!$A$90,INDEX(Motor!$U$1:$U$1223,A120,1),INDEX(LinMotor!$S$1:$S$1355,A120,1)) -> 4.815481314 | E120: =IF(Calc!$A$90,INDEX(Motor!$V$1:$V$1223,A120,1),INDEX(LinMotor!$T$1:$T$1355,A120,1)) -> 4.576632916 | F120: =IF(Calc!$A$90,INDEX(Motor!$W$1:$W$1223,A120,1),INDEX(LinMotor!$U$1:$U$1355,A120,1)) -> 0.04682068689 | G120: =IF(A120<>2,IF(ABS(IF(Calc!$A$90,INDEX(Motor!$X$1:$X$1223,A120,1),INDEX(LinMotor!$V$1:$V$1355,A120,1)))<1000,IF(Calc!$A$90,INDEX(Motor!$X$1:$X$1223,A120,1),INDEX(LinMotor!$V$1:$V$1355,A120,1)),TEXT(IF(Calc!$A$90,INDEX(Motor!$X$1:$X$1223,A120,1),INDEX(LinMotor!$V$1:$V$1355,A120,1))/1000,"0.0k")),"") -> -22.52763623 | H120: =IF(A120<>2,IF(ABS(IF(move1,IF(Calc!$A$90,INDEX(Motor!$Y$1:$Y$1223,A120,1),INDEX(LinMotor!$W$1:$W$1355,A120,1)),IF(Calc!$A$90,INDEX(Motor!$Z$1:$Z$1068,A120,1),INDEX(LinMotor!$X$1:$X$1355,A120,1))))<1000,IF(move1,IF(Calc!$A$90,INDEX(Motor!$Y$1:$Y$1223,A120,1),INDEX(LinMotor!$W$1:$W$1355,A120,1)),IF(Calc!$A$90,INDEX(Motor!$Z$1:$Z$1223,A120,1),INDEX(LinMotor!$X$1:$X$1355,A120,1))),TEXT(IF(move1,IF(Calc!$A$90,INDEX(Motor!$Y$1:$Y$1223,A120,1),INDEX(LinMotor!$W$1:$W$1355,A120,1)),IF(Calc!$A$90,INDEX(Motor!$Z$1:$Z$1223,A120,1),INDEX(LinMotor!$X$1:$X$1355,A120,1)))/1000,"0.0k")),"") -> 9 | I120: =IF(A120<>2,IF(ABS(IF(move1,IF(Calc!$A$90,INDEX(Motor!$Z$1:$Z$1223,A120,1),INDEX(LinMotor!$X$1:$X$1355,A120,1)),IF(Calc!$A$90,INDEX(Motor!$AB$1:$AB$1223,A120,1),INDEX(LinMotor!$Z$1:$Z$1355,A120,1))))<1000,IF(move1,IF(Calc!$A$90,INDEX(Motor!$Z$1:$Z$1223,A120,1),INDEX(LinMotor!$X$1:$X$1355,A120,1)),IF(Calc!$A$90,INDEX(Motor!$AB$1:$AB$1223,A120,1),INDEX(LinMotor!$Z$1:$Z$1355,A120,1))),TEXT(IF(move1,IF(Calc!$A$90,INDEX(Motor!$Z$1:$Z$1223,A120,1),INDEX(LinMotor!$X$1:$X$1355,A120,1)),IF(Calc!$A$90,INDEX(Motor!$AB$1:$AB$1223,A120,1),INDEX(LinMotor!$Z$1:$Z$1355,A120,1)))/1000,"0.0k")),"") -> 29.10738535 | J120: =IF(A120<>2,IF(ABS(IF(move1,IF(Calc!$A$90,INDEX(Motor!$AA$1:$AA$1223,A120,1),INDEX(LinMotor!$Y$1:$Y$1355,A120,1)),IF(Calc!$A$90,INDEX(Motor!$AD$1:$AD$1223,A120,1),INDEX(LinMotor!$AB$1:$AB$445,A120,1))))<1000,IF(move1,IF(Calc!$A$90,INDEX(Motor!$AA$1:$AA$1223,A120,1),INDEX(LinMotor!$Y$1:$Y$1355,A120,1)),IF(Calc!$A$90,INDEX(Motor!$AD$1:$AD$1223,A120,1),INDEX(LinMotor!$AB$1:$AB$445,A120,1))),TEXT(IF(move1,IF(Calc!$A$90,INDEX(Motor!$AA$1:$AA$1223,A120,1),INDEX(LinMotor!$Y$1:$Y$1355,A120,1)),IF(Calc!$A$90,INDEX(Motor!$AD$1:$AD$1223,A120,1),INDEX(LinMotor!$AB$1:$AB$445,A120,1)))/1000,"0.0k")),"") -> 9 | K120: =IF(Calc!$A$90,INDEX(Motor!$AF$1:$AF$1223,A120,1),INDEX(LinMotor!$AD$1:$AD$1355,A120,1)) -> 1.122724886 | L120: =IF(Calc!$A$90,INDEX(Motor!$AG$1:$AG$1223,A120,1),INDEX(LinMotor!$AE$1:$AE$1355,A120,1)) -> 1.648476516 | M120: =IF(Calc!$A$90,INDEX(Motor!$AH$1:$AH$1223,A120,1),INDEX(LinMotor!$AF$1:$AF$1355,A120,1)) -> 26.94539727 | N120: =IF(Calc!$A$90,INDEX(Motor!$AI$1:$AI$1223,A120,1),INDEX(LinMotor!$AG$1:$AG$1355,A120,1)) -> 79.12687279 | O120: =IF(A120<>2,IF(IF(Calc!$A$90,INDEX(Motor!$AK$1:$AK$1223,A120,1),INDEX(LinMotor!$AI$1:$AI$1355,A120,1))<1000,IF(Calc!$A$90,INDEX(Motor!$AK$1:$AK$1223,A120,1),INDEX(LinMotor!$AI$1:$AI$1355,A120,1)),TEXT(IF(Calc!$A$90,INDEX(Motor!$AK$1:$AK$1223,A120,1),INDEX(LinMotor!$AI$1:$AI$1355,A120,1))/1000,"0.0k")),"") -> 23.02708949 | P120: =IF(A120<>2,IF(IF(Calc!$A$90,INDEX(Motor!$AL$1:$AL$1223,A120,1),INDEX(LinMotor!$AJ$1:$AJ$1355,A120,1))<1000,IF(Calc!$A$90,INDEX(Motor!$AL$1:$AL$1223,A120,1),INDEX(LinMotor!$AJ$1:$AJ$1355,A120,1)),TEXT(IF(Calc!$A$90,INDEX(Motor!$AL$1:$AL$1223,A120,1),INDEX(LinMotor!$AJ$1:$AJ$1355,A120,1))/1000,"0.0k")),"") -> 2.409674714 | Q120: =IF(A120<>2,IF(IF(Calc!$A$90,INDEX(Motor!$AM$1:$AM$1223,A120,1),INDEX(LinMotor!$AK$1:$AK$1355,A120,1))<1000,IF(Calc!$A$90,INDEX(Motor!$AM$1:$AM$1223,A120,1),INDEX(LinMotor!$AK$1:$AK$1355,A120,1)),TEXT(IF(Calc!$A$90,INDEX(Motor!$AM$1:$AM$1223,A120,1),INDEX(LinMotor!$AK$1:$AK$1355,A120,1))/1000,"0.0k")),"") -> 147.614888
A121: 48 | B121: =IF(Calc!$A$90,INDEX(Motor!$B$1:$B$1223,A121,1),INDEX(LinMotor!$B$1:$B$1341,A121,1)) -> AKM42C | C121: =IF(Calc!$A$90,INDEX(Motor!$T$1:$T$1223,A121,1),INDEX(LinMotor!$R$1:$R$1355,A121,1)) -> 750 | D121: =IF(Calc!$A$90,INDEX(Motor!$U$1:$U$1223,A121,1),INDEX(LinMotor!$S$1:$S$1355,A121,1)) -> 2.962452679 | E121: =IF(Calc!$A$90,INDEX(Motor!$V$1:$V$1223,A121,1),INDEX(LinMotor!$T$1:$T$1355,A121,1)) -> 2.577128113 | F121: =IF(Calc!$A$90,INDEX(Motor!$W$1:$W$1223,A121,1),INDEX(LinMotor!$U$1:$U$1355,A121,1)) -> 0.2128712047 | G121: =IF(A121<>2,IF(ABS(IF(Calc!$A$90,INDEX(Motor!$X$1:$X$1223,A121,1),INDEX(LinMotor!$V$1:$V$1355,A121,1)))<1000,IF(Calc!$A$90,INDEX(Motor!$X$1:$X$1223,A121,1),INDEX(LinMotor!$V$1:$V$1355,A121,1)),TEXT(IF(Calc!$A$90,INDEX(Motor!$X$1:$X$1223,A121,1),INDEX(LinMotor!$V$1:$V$1355,A121,1))/1000,"0.0k")),"") -> -22.54512059 | H121: =IF(A121<>2,IF(ABS(IF(move1,IF(Calc!$A$90,INDEX(Motor!$Y$1:$Y$1223,A121,1),INDEX(LinMotor!$W$1:$W$1355,A121,1)),IF(Calc!$A$90,INDEX(Motor!$Z$1:$Z$1068,A121,1),INDEX(LinMotor!$X$1:$X$1355,A121,1))))<1000,IF(move1,IF(Calc!$A$90,INDEX(Motor!$Y$1:$Y$1223,A121,1),INDEX(LinMotor!$W$1:$W$1355,A121,1)),IF(Calc!$A$90,INDEX(Motor!$Z$1:$Z$1223,A121,1),INDEX(LinMotor!$X$1:$X$1355,A121,1))),TEXT(IF(move1,IF(Calc!$A$90,INDEX(Motor!$Y$1:$Y$1223,A121,1),INDEX(LinMotor!$W$1:$W$1355,A121,1)),IF(Calc!$A$90,INDEX(Motor!$Z$1:$Z$1223,A121,1),INDEX(LinMotor!$X$1:$X$1355,A121,1)))/1000,"0.0k")),"") -> 9 | I121: =IF(A121<>2,IF(ABS(IF(move1,IF(Calc!$A$90,INDEX(Motor!$Z$1:$Z$1223,A121,1),INDEX(LinMotor!$X$1:$X$1355,A121,1)),IF(Calc!$A$90,INDEX(Motor!$AB$1:$AB$1223,A121,1),INDEX(LinMotor!$Z$1:$Z$1355,A121,1))))<1000,IF(move1,IF(Calc!$A$90,INDEX(Motor!$Z$1:$Z$1223,A121,1),INDEX(LinMotor!$X$1:$X$1355,A121,1)),IF(Calc!$A$90,INDEX(Motor!$AB$1:$AB$1223,A121,1),INDEX(LinMotor!$Z$1:$Z$1355,A121,1))),TEXT(IF(move1,IF(Calc!$A$90,INDEX(Motor!$Z$1:$Z$1223,A121,1),INDEX(LinMotor!$X$1:$X$1355,A121,1)),IF(Calc!$A$90,INDEX(Motor!$AB$1:$AB$1223,A121,1),INDEX(LinMotor!$Z$1:$Z$1355,A121,1)))/1000,"0.0k")),"") -> 29.12154768 | J121: =IF(A121<>2,IF(ABS(IF(move1,IF(Calc!$A$90,INDEX(Motor!$AA$1:$AA$1223,A121,1),INDEX(LinMotor!$Y$1:$Y$1355,A121,1)),IF(Calc!$A$90,INDEX(Motor!$AD$1:$AD$1223,A121,1),INDEX(LinMotor!$AB$1:$AB$445,A121,1))))<1000,IF(move1,IF(Calc!$A$90,INDEX(Motor!$AA$1:$AA$1223,A121,1),INDEX(LinMotor!$Y$1:$Y$1355,A121,1)),IF(Calc!$A$90,INDEX(Motor!$AD$1:$AD$1223,A121,1),INDEX(LinMotor!$AB$1:$AB$445,A121,1))),TEXT(IF(move1,IF(Calc!$A$90,INDEX(Motor!$AA$1:$AA$1223,A121,1),INDEX(LinMotor!$Y$1:$Y$1355,A121,1)),IF(Calc!$A$90,INDEX(Motor!$AD$1:$AD$1223,A121,1),INDEX(LinMotor!$AB$1:$AB$445,A121,1)))/1000,"0.0k")),"") -> 9 | K121: =IF(Calc!$A$90,INDEX(Motor!$AF$1:$AF$1223,A121,1),INDEX(LinMotor!$AD$1:$AD$1355,A121,1)) -> 0.1726189956 | L121: =IF(Calc!$A$90,INDEX(Motor!$AG$1:$AG$1223,A121,1),INDEX(LinMotor!$AE$1:$AE$1355,A121,1)) -> 0.2535458131 | M121: =IF(Calc!$A$90,INDEX(Motor!$AH$1:$AH$1223,A121,1),INDEX(LinMotor!$AF$1:$AF$1355,A121,1)) -> 4.142855895 | N121: =IF(Calc!$A$90,INDEX(Motor!$AI$1:$AI$1223,A121,1),INDEX(LinMotor!$AG$1:$AG$1355,A121,1)) -> 12.17019903 | O121: =IF(A121<>2,IF(IF(Calc!$A$90,INDEX(Motor!$AK$1:$AK$1223,A121,1),INDEX(LinMotor!$AI$1:$AI$1355,A121,1))<1000,IF(Calc!$A$90,INDEX(Motor!$AK$1:$AK$1223,A121,1),INDEX(LinMotor!$AI$1:$AI$1355,A121,1)),TEXT(IF(Calc!$A$90,INDEX(Motor!$AK$1:$AK$1223,A121,1),INDEX(LinMotor!$AI$1:$AI$1355,A121,1))/1000,"0.0k")),"") -> 23.02988996 | P121: =IF(A121<>2,IF(IF(Calc!$A$90,INDEX(Motor!$AL$1:$AL$1223,A121,1),INDEX(LinMotor!$AJ$1:$AJ$1355,A121,1))<1000,IF(Calc!$A$90,INDEX(Motor!$AL$1:$AL$1223,A121,1),INDEX(LinMotor!$AJ$1:$AJ$1355,A121,1)),TEXT(IF(Calc!$A$90,INDEX(Motor!$AL$1:$AL$1223,A121,1),INDEX(LinMotor!$AJ$1:$AJ$1355,A121,1))/1000,"0.0k")),"") -> 2.412097398 | Q121: =IF(A121<>2,IF(IF(Calc!$A$90,INDEX(Motor!$AM$1:$AM$1223,A121,1),INDEX(LinMotor!$AK$1:$AK$1355,A121,1))<1000,IF(Calc!$A$90,INDEX(Motor!$AM$1:$AM$1223,A121,1),INDEX(LinMotor!$AK$1:$AK$1355,A121,1)),TEXT(IF(Calc!$A$90,INDEX(Motor!$AM$1:$AM$1223,A121,1),INDEX(LinMotor!$AK$1:$AK$1355,A121,1))/1000,"0.0k")),"") -> 147.7632999
A122: 49 | B122: =IF(Calc!$A$90,INDEX(Motor!$B$1:$B$1223,A122,1),INDEX(LinMotor!$B$1:$B$1341,A122,1)) -> AKM42E | C122: =IF(Calc!$A$90,INDEX(Motor!$T$1:$T$1223,A122,1),INDEX(LinMotor!$R$1:$R$1355,A122,1)) -> 750 | D122: =IF(Calc!$A$90,INDEX(Motor!$U$1:$U$1223,A122,1),INDEX(LinMotor!$S$1:$S$1355,A122,1)) -> 2.901895637 | E122: =IF(Calc!$A$90,INDEX(Motor!$V$1:$V$1223,A122,1),INDEX(LinMotor!$T$1:$T$1355,A122,1)) -> 2.577128113 | F122: =IF(Calc!$A$90,INDEX(Motor!$W$1:$W$1223,A122,1),INDEX(LinMotor!$U$1:$U$1355,A122,1)) -> 0.08520150742 | G122: =IF(A122<>2,IF(ABS(IF(Calc!$A$90,INDEX(Motor!$X$1:$X$1223,A122,1),INDEX(LinMotor!$V$1:$V$1355,A122,1)))<1000,IF(Calc!$A$90,INDEX(Motor!$X$1:$X$1223,A122,1),INDEX(LinMotor!$V$1:$V$1355,A122,1)),TEXT(IF(Calc!$A$90,INDEX(Motor!$X$1:$X$1223,A122,1),INDEX(LinMotor!$V$1:$V$1355,A122,1))/1000,"0.0k")),"") -> -22.54512059 | H122: =IF(A122<>2,IF(ABS(IF(move1,IF(Calc!$A$90,INDEX(Motor!$Y$1:$Y$1223,A122,1),INDEX(LinMotor!$W$1:$W$1355,A122,1)),IF(Calc!$A$90,INDEX(Motor!$Z$1:$Z$1068,A122,1),INDEX(LinMotor!$X$1:$X$1355,A122,1))))<1000,IF(move1,IF(Calc!$A$90,INDEX(Motor!$Y$1:$Y$1223,A122,1),INDEX(LinMotor!$W$1:$W$1355,A122,1)),IF(Calc!$A$90,INDEX(Motor!$Z$1:$Z$1223,A122,1),INDEX(LinMotor!$X$1:$X$1355,A122,1))),TEXT(IF(move1,IF(Calc!$A$90,INDEX(Motor!$Y$1:$Y$1223,A122,1),INDEX(LinMotor!$W$1:$W$1355,A122,1)),IF(Calc!$A$90,INDEX(Motor!$Z$1:$Z$1223,A122,1),INDEX(LinMotor!$X$1:$X$1355,A122,1)))/1000,"0.0k")),"") -> 9 | I122: =IF(A122<>2,IF(ABS(IF(move1,IF(Calc!$A$90,INDEX(Motor!$Z$1:$Z$1223,A122,1),INDEX(LinMotor!$X$1:$X$1355,A122,1)),IF(Calc!$A$90,INDEX(Motor!$AB$1:$AB$1223,A122,1),INDEX(LinMotor!$Z$1:$Z$1355,A122,1))))<1000,IF(move1,IF(Calc!$A$90,INDEX(Motor!$Z$1:$Z$1223,A122,1),INDEX(LinMotor!$X$1:$X$1355,A122,1)),IF(Calc!$A$90,INDEX(Motor!$AB$1:$AB$1223,A122,1),INDEX(LinMotor!$Z$1:$Z$1355,A122,1))),TEXT(IF(move1,IF(Calc!$A$90,INDEX(Motor!$Z$1:$Z$1223,A122,1),INDEX(LinMotor!$X$1:$X$1355,A122,1)),IF(Calc!$A$90,INDEX(Motor!$AB$1:$AB$1223,A122,1),INDEX(LinMotor!$Z$1:$Z$1355,A122,1)))/1000,"0.0k")),"") -> 29.12154768 | J122: =IF(A122<>2,IF(ABS(IF(move1,IF(Calc!$A$90,INDEX(Motor!$AA$1:$AA$1223,A122,1),INDEX(LinMotor!$Y$1:$Y$1355,A122,1)),IF(Calc!$A$90,INDEX(Motor!$AD$1:$AD$1223,A122,1),INDEX(LinMotor!$AB$1:$AB$445,A122,1))))<1000,IF(move1,IF(Calc!$A$90,INDEX(Motor!$AA$1:$AA$1223,A122,1),INDEX(LinMotor!$Y$1:$Y$1355,A122,1)),IF(Calc!$A$90,INDEX(Motor!$AD$1:$AD$1223,A122,1),INDEX(LinMotor!$AB$1:$AB$445,A122,1))),TEXT(IF(move1,IF(Calc!$A$90,INDEX(Motor!$AA$1:$AA$1223,A122,1),INDEX(LinMotor!$Y$1:$Y$1355,A122,1)),IF(Calc!$A$90,INDEX(Motor!$AD$1:$AD$1223,A122,1),INDEX(LinMotor!$AB$1:$AB$445,A122,1)))/1000,"0.0k")),"") -> 9 | K122: =IF(Calc!$A$90,INDEX(Motor!$AF$1:$AF$1223,A122,1),INDEX(LinMotor!$AD$1:$AD$1355,A122,1)) -> 0.3309251798 | L122: =IF(Calc!$A$90,INDEX(Motor!$AG$1:$AG$1223,A122,1),INDEX(LinMotor!$AE$1:$AE$1355,A122,1)) -> 0.4860687174 | M122: =IF(Calc!$A$90,INDEX(Motor!$AH$1:$AH$1223,A122,1),INDEX(LinMotor!$AF$1:$AF$1355,A122,1)) -> 7.942204315 | N122: =IF(Calc!$A$90,INDEX(Motor!$AI$1:$AI$1223,A122,1),INDEX(LinMotor!$AG$1:$AG$1355,A122,1)) -> 23.33129843 | O122: =IF(A122<>2,IF(IF(Calc!$A$90,INDEX(Motor!$AK$1:$AK$1223,A122,1),INDEX(LinMotor!$AI$1:$AI$1355,A122,1))<1000,IF(Calc!$A$90,INDEX(Motor!$AK$1:$AK$1223,A122,1),INDEX(LinMotor!$AI$1:$AI$1355,A122,1)),TEXT(IF(Calc!$A$90,INDEX(Motor!$AK$1:$AK$1223,A122,1),INDEX(LinMotor!$AI$1:$AI$1355,A122,1))/1000,"0.0k")),"") -> 23.02988996 | P122: =IF(A122<>2,IF(IF(Calc!$A$90,INDEX(Motor!$AL$1:$AL$1223,A122,1),INDEX(LinMotor!$AJ$1:$AJ$1355,A122,1))<1000,IF(Calc!$A$90,INDEX(Motor!$AL$1:$AL$1223,A122,1),INDEX(LinMotor!$AJ$1:$AJ$1355,A122,1)),TEXT(IF(Calc!$A$90,INDEX(Motor!$AL$1:$AL$1223,A122,1),INDEX(LinMotor!$AJ$1:$AJ$1355,A122,1))/1000,"0.0k")),"") -> 2.412097398 | Q122: =IF(A122<>2,IF(IF(Calc!$A$90,INDEX(Motor!$AM$1:$AM$1223,A122,1),INDEX(LinMotor!$AK$1:$AK$1355,A122,1))<1000,IF(Calc!$A$90,INDEX(Motor!$AM$1:$AM$1223,A122,1),INDEX(LinMotor!$AK$1:$AK$1355,A122,1)),TEXT(IF(Calc!$A$90,INDEX(Motor!$AM$1:$AM$1223,A122,1),INDEX(LinMotor!$AK$1:$AK$1355,A122,1))/1000,"0.0k")),"") -> 147.7632999
A123: 50 | B123: =IF(Calc!$A$90,INDEX(Motor!$B$1:$B$1223,A123,1),INDEX(LinMotor!$B$1:$B$1341,A123,1)) -> AKM42G | C123: =IF(Calc!$A$90,INDEX(Motor!$T$1:$T$1223,A123,1),INDEX(LinMotor!$R$1:$R$1355,A123,1)) -> 750 | D123: =IF(Calc!$A$90,INDEX(Motor!$U$1:$U$1223,A123,1),INDEX(LinMotor!$S$1:$S$1355,A123,1)) -> 2.811765081 | E123: =IF(Calc!$A$90,INDEX(Motor!$V$1:$V$1223,A123,1),INDEX(LinMotor!$T$1:$T$1355,A123,1)) -> 2.532308494 | F123: =IF(Calc!$A$90,INDEX(Motor!$W$1:$W$1223,A123,1),INDEX(LinMotor!$U$1:$U$1355,A123,1)) -> 0.04611299376 | G123: =IF(A123<>2,IF(ABS(IF(Calc!$A$90,INDEX(Motor!$X$1:$X$1223,A123,1),INDEX(LinMotor!$V$1:$V$1355,A123,1)))<1000,IF(Calc!$A$90,INDEX(Motor!$X$1:$X$1223,A123,1),INDEX(LinMotor!$V$1:$V$1355,A123,1)),TEXT(IF(Calc!$A$90,INDEX(Motor!$X$1:$X$1223,A123,1),INDEX(LinMotor!$V$1:$V$1355,A123,1))/1000,"0.0k")),"") -> -22.54512059 | H123: =IF(A123<>2,IF(ABS(IF(move1,IF(Calc!$A$90,INDEX(Motor!$Y$1:$Y$1223,A123,1),INDEX(LinMotor!$W$1:$W$1355,A123,1)),IF(Calc!$A$90,INDEX(Motor!$Z$1:$Z$1068,A123,1),INDEX(LinMotor!$X$1:$X$1355,A123,1))))<1000,IF(move1,IF(Calc!$A$90,INDEX(Motor!$Y$1:$Y$1223,A123,1),INDEX(LinMotor!$W$1:$W$1355,A123,1)),IF(Calc!$A$90,INDEX(Motor!$Z$1:$Z$1223,A123,1),INDEX(LinMotor!$X$1:$X$1355,A123,1))),TEXT(IF(move1,IF(Calc!$A$90,INDEX(Motor!$Y$1:$Y$1223,A123,1),INDEX(LinMotor!$W$1:$W$1355,A123,1)),IF(Calc!$A$90,INDEX(Motor!$Z$1:$Z$1223,A123,1),INDEX(LinMotor!$X$1:$X$1355,A123,1)))/1000,"0.0k")),"") -> 9 | I123: =IF(A123<>2,IF(ABS(IF(move1,IF(Calc!$A$90,INDEX(Motor!$Z$1:$Z$1223,A123,1),INDEX(LinMotor!$X$1:$X$1355,A123,1)),IF(Calc!$A$90,INDEX(Motor!$AB$1:$AB$1223,A123,1),INDEX(LinMotor!$Z$1:$Z$1355,A123,1))))<1000,IF(move1,IF(Calc!$A$90,INDEX(Motor!$Z$1:$Z$1223,A123,1),INDEX(LinMotor!$X$1:$X$1355,A123,1)),IF(Calc!$A$90,INDEX(Motor!$AB$1:$AB$1223,A123,1),INDEX(LinMotor!$Z$1:$Z$1355,A123,1))),TEXT(IF(move1,IF(Calc!$A$90,INDEX(Motor!$Z$1:$Z$1223,A123,1),INDEX(LinMotor!$X$1:$X$1355,A123,1)),IF(Calc!$A$90,INDEX(Motor!$AB$1:$AB$1223,A123,1),INDEX(LinMotor!$Z$1:$Z$1355,A123,1)))/1000,"0.0k")),"") -> 29.12154768 | J123: =IF(A123<>2,IF(ABS(IF(move1,IF(Calc!$A$90,INDEX(Motor!$AA$1:$AA$1223,A123,1),INDEX(LinMotor!$Y$1:$Y$1355,A123,1)),IF(Calc!$A$90,INDEX(Motor!$AD$1:$AD$1223,A123,1),INDEX(LinMotor!$AB$1:$AB$445,A123,1))))<1000,IF(move1,IF(Calc!$A$90,INDEX(Motor!$AA$1:$AA$1223,A123,1),INDEX(LinMotor!$Y$1:$Y$1355,A123,1)),IF(Calc!$A$90,INDEX(Motor!$AD$1:$AD$1223,A123,1),INDEX(LinMotor!$AB$1:$AB$445,A123,1))),TEXT(IF(move1,IF(Calc!$A$90,INDEX(Motor!$AA$1:$AA$1223,A123,1),INDEX(LinMotor!$Y$1:$Y$1355,A123,1)),IF(Calc!$A$90,INDEX(Motor!$AD$1:$AD$1223,A123,1),INDEX(LinMotor!$AB$1:$AB$445,A123,1)))/1000,"0.0k")),"") -> 9 | K123: =IF(Calc!$A$90,INDEX(Motor!$AF$1:$AF$1223,A123,1),INDEX(LinMotor!$AD$1:$AD$1355,A123,1)) -> 0.5616579219 | L123: =IF(Calc!$A$90,INDEX(Motor!$AG$1:$AG$1223,A123,1),INDEX(LinMotor!$AE$1:$AE$1355,A123,1)) -> 0.8249730221 | M123: =IF(Calc!$A$90,INDEX(Motor!$AH$1:$AH$1223,A123,1),INDEX(LinMotor!$AF$1:$AF$1355,A123,1)) -> 13.47979012 | N123: =IF(Calc!$A$90,INDEX(Motor!$AI$1:$AI$1223,A123,1),INDEX(LinMotor!$AG$1:$AG$1355,A123,1)) -> 39.59870506 | O123: =IF(A123<>2,IF(IF(Calc!$A$90,INDEX(Motor!$AK$1:$AK$1223,A123,1),INDEX(LinMotor!$AI$1:$AI$1355,A123,1))<1000,IF(Calc!$A$90,INDEX(Motor!$AK$1:$AK$1223,A123,1),INDEX(LinMotor!$AI$1:$AI$1355,A123,1)),TEXT(IF(Calc!$A$90,INDEX(Motor!$AK$1:$AK$1223,A123,1),INDEX(LinMotor!$AI$1:$AI$1355,A123,1))/1000,"0.0k")),"") -> 23.02988996 | P123: =IF(A123<>2,IF(IF(Calc!$A$90,INDEX(Motor!$AL$1:$AL$1223,A123,1),INDEX(LinMotor!$AJ$1:$AJ$1355,A123,1))<1000,IF(Calc!$A$90,INDEX(Motor!$AL$1:$AL$1223,A123,1),INDEX(LinMotor!$AJ$1:$AJ$1355,A123,1)),TEXT(IF(Calc!$A$90,INDEX(Motor!$AL$1:$AL$1223,A123,1),INDEX(LinMotor!$AJ$1:$AJ$1355,A123,1))/1000,"0.0k")),"") -> 2.412097398 | Q123: =IF(A123<>2,IF(IF(Calc!$A$90,INDEX(Motor!$AM$1:$AM$1223,A123,1),INDEX(LinMotor!$AK$1:$AK$1355,A123,1))<1000,IF(Calc!$A$90,INDEX(Motor!$AM$1:$AM$1223,A123,1),INDEX(LinMotor!$AK$1:$AK$1355,A123,1)),TEXT(IF(Calc!$A$90,INDEX(Motor!$AM$1:$AM$1223,A123,1),INDEX(LinMotor!$AK$1:$AK$1355,A123,1))/1000,"0.0k")),"") -> 147.7632999
A124: 51 | B124: =IF(Calc!$A$90,INDEX(Motor!$B$1:$B$1223,A124,1),INDEX(LinMotor!$B$1:$B$1341,A124,1)) -> AKM42H | C124: =IF(Calc!$A$90,INDEX(Motor!$T$1:$T$1223,A124,1),INDEX(LinMotor!$R$1:$R$1355,A124,1)) -> 750 | D124: =IF(Calc!$A$90,INDEX(Motor!$U$1:$U$1223,A124,1),INDEX(LinMotor!$S$1:$S$1355,A124,1)) -> 2.80355833 | E124: =IF(Calc!$A$90,INDEX(Motor!$V$1:$V$1223,A124,1),INDEX(LinMotor!$T$1:$T$1355,A124,1)) -> 2.532308494 | F124: =IF(Calc!$A$90,INDEX(Motor!$W$1:$W$1223,A124,1),INDEX(LinMotor!$U$1:$U$1355,A124,1)) -> 0.03702545158 | G124: =IF(A124<>2,IF(ABS(IF(Calc!$A$90,INDEX(Motor!$X$1:$X$1223,A124,1),INDEX(LinMotor!$V$1:$V$1355,A124,1)))<1000,IF(Calc!$A$90,INDEX(Motor!$X$1:$X$1223,A124,1),INDEX(LinMotor!$V$1:$V$1355,A124,1)),TEXT(IF(Calc!$A$90,INDEX(Motor!$X$1:$X$1223,A124,1),INDEX(LinMotor!$V$1:$V$1355,A124,1))/1000,"0.0k")),"") -> -22.54512059 | H124: =IF(A124<>2,IF(ABS(IF(move1,IF(Calc!$A$90,INDEX(Motor!$Y$1:$Y$1223,A124,1),INDEX(LinMotor!$W$1:$W$1355,A124,1)),IF(Calc!$A$90,INDEX(Motor!$Z$1:$Z$1068,A124,1),INDEX(LinMotor!$X$1:$X$1355,A124,1))))<1000,IF(move1,IF(Calc!$A$90,INDEX(Motor!$Y$1:$Y$1223,A124,1),INDEX(LinMotor!$W$1:$W$1355,A124,1)),IF(Calc!$A$90,INDEX(Motor!$Z$1:$Z$1223,A124,1),INDEX(LinMotor!$X$1:$X$1355,A124,1))),TEXT(IF(move1,IF(Calc!$A$90,INDEX(Motor!$Y$1:$Y$1223,A124,1),INDEX(LinMotor!$W$1:$W$1355,A124,1)),IF(Calc!$A$90,INDEX(Motor!$Z$1:$Z$1223,A124,1),INDEX(LinMotor!$X$1:$X$1355,A124,1)))/1000,"0.0k")),"") -> 9 | I124: =IF(A124<>2,IF(ABS(IF(move1,IF(Calc!$A$90,INDEX(Motor!$Z$1:$Z$1223,A124,1),INDEX(LinMotor!$X$1:$X$1355,A124,1)),IF(Calc!$A$90,INDEX(Motor!$AB$1:$AB$1223,A124,1),INDEX(LinMotor!$Z$1:$Z$1355,A124,1))))<1000,IF(move1,IF(Calc!$A$90,INDEX(Motor!$Z$1:$Z$1223,A124,1),INDEX(LinMotor!$X$1:$X$1355,A124,1)),IF(Calc!$A$90,INDEX(Motor!$AB$1:$AB$1223,A124,1),INDEX(LinMotor!$Z$1:$Z$1355,A124,1))),TEXT(IF(move1,IF(Calc!$A$90,INDEX(Motor!$Z$1:$Z$1223,A124,1),INDEX(LinMotor!$X$1:$X$1355,A124,1)),IF(Calc!$A$90,INDEX(Motor!$AB$1:$AB$1223,A124,1),INDEX(LinMotor!$Z$1:$Z$1355,A124,1)))/1000,"0.0k")),"") -> 29.12154768 | J124: =IF(A124<>2,IF(ABS(IF(move1,IF(Calc!$A$90,INDEX(Motor!$AA$1:$AA$1223,A124,1),INDEX(LinMotor!$Y$1:$Y$1355,A124,1)),IF(Calc!$A$90,INDEX(Motor!$AD$1:$AD$1223,A124,1),INDEX(LinMotor!$AB$1:$AB$445,A124,1))))<1000,IF(move1,IF(Calc!$A$90,INDEX(Motor!$AA$1:$AA$1223,A124,1),INDEX(LinMotor!$Y$1:$Y$1355,A124,1)),IF(Calc!$A$90,INDEX(Motor!$AD$1:$AD$1223,A124,1),INDEX(LinMotor!$AB$1:$AB$445,A124,1))),TEXT(IF(move1,IF(Calc!$A$90,INDEX(Motor!$AA$1:$AA$1223,A124,1),INDEX(LinMotor!$Y$1:$Y$1355,A124,1)),IF(Calc!$A$90,INDEX(Motor!$AD$1:$AD$1223,A124,1),INDEX(LinMotor!$AB$1:$AB$445,A124,1)))/1000,"0.0k")),"") -> 9 | K124: =IF(Calc!$A$90,INDEX(Motor!$AF$1:$AF$1223,A124,1),INDEX(LinMotor!$AD$1:$AD$1355,A124,1)) -> 0.7000891469 | L124: =IF(Calc!$A$90,INDEX(Motor!$AG$1:$AG$1223,A124,1),INDEX(LinMotor!$AE$1:$AE$1355,A124,1)) -> 1.028303237 | M124: =IF(Calc!$A$90,INDEX(Motor!$AH$1:$AH$1223,A124,1),INDEX(LinMotor!$AF$1:$AF$1355,A124,1)) -> 16.80213953 | N124: =IF(Calc!$A$90,INDEX(Motor!$AI$1:$AI$1223,A124,1),INDEX(LinMotor!$AG$1:$AG$1355,A124,1)) -> 49.35855539 | O124: =IF(A124<>2,IF(IF(Calc!$A$90,INDEX(Motor!$AK$1:$AK$1223,A124,1),INDEX(LinMotor!$AI$1:$AI$1355,A124,1))<1000,IF(Calc!$A$90,INDEX(Motor!$AK$1:$AK$1223,A124,1),INDEX(LinMotor!$AI$1:$AI$1355,A124,1)),TEXT(IF(Calc!$A$90,INDEX(Motor!$AK$1:$AK$1223,A124,1),INDEX(LinMotor!$AI$1:$AI$1355,A124,1))/1000,"0.0k")),"") -> 23.02988996 | P124: =IF(A124<>2,IF(IF(Calc!$A$90,INDEX(Motor!$AL$1:$AL$1223,A124,1),INDEX(LinMotor!$AJ$1:$AJ$1355,A124,1))<1000,IF(Calc!$A$90,INDEX(Motor!$AL$1:$AL$1223,A124,1),INDEX(LinMotor!$AJ$1:$AJ$1355,A124,1)),TEXT(IF(Calc!$A$90,INDEX(Motor!$AL$1:$AL$1223,A124,1),INDEX(LinMotor!$AJ$1:$AJ$1355,A124,1))/1000,"0.0k")),"") -> 2.412097398 | Q124: =IF(A124<>2,IF(IF(Calc!$A$90,INDEX(Motor!$AM$1:$AM$1223,A124,1),INDEX(LinMotor!$AK$1:$AK$1355,A124,1))<1000,IF(Calc!$A$90,INDEX(Motor!$AM$1:$AM$1223,A124,1),INDEX(LinMotor!$AK$1:$AK$1355,A124,1)),TEXT(IF(Calc!$A$90,INDEX(Motor!$AM$1:$AM$1223,A124,1),INDEX(LinMotor!$AK$1:$AK$1355,A124,1))/1000,"0.0k")),"") -> 147.7632999
A125: 52 | B125: =IF(Calc!$A$90,INDEX(Motor!$B$1:$B$1223,A125,1),INDEX(LinMotor!$B$1:$B$1341,A125,1)) -> AKM42J | C125: =IF(Calc!$A$90,INDEX(Motor!$T$1:$T$1223,A125,1),INDEX(LinMotor!$R$1:$R$1355,A125,1)) -> 750 | D125: =IF(Calc!$A$90,INDEX(Motor!$U$1:$U$1223,A125,1),INDEX(LinMotor!$S$1:$S$1355,A125,1)) -> 2.788041355 | E125: =IF(Calc!$A$90,INDEX(Motor!$V$1:$V$1223,A125,1),INDEX(LinMotor!$T$1:$T$1355,A125,1)) -> 2.510478248 | F125: =IF(Calc!$A$90,INDEX(Motor!$W$1:$W$1223,A125,1),INDEX(LinMotor!$U$1:$U$1355,A125,1)) -> 0.02607370555 | G125: =IF(A125<>2,IF(ABS(IF(Calc!$A$90,INDEX(Motor!$X$1:$X$1223,A125,1),INDEX(LinMotor!$V$1:$V$1355,A125,1)))<1000,IF(Calc!$A$90,INDEX(Motor!$X$1:$X$1223,A125,1),INDEX(LinMotor!$V$1:$V$1355,A125,1)),TEXT(IF(Calc!$A$90,INDEX(Motor!$X$1:$X$1223,A125,1),INDEX(LinMotor!$V$1:$V$1355,A125,1))/1000,"0.0k")),"") -> -22.54512059 | H125: =IF(A125<>2,IF(ABS(IF(move1,IF(Calc!$A$90,INDEX(Motor!$Y$1:$Y$1223,A125,1),INDEX(LinMotor!$W$1:$W$1355,A125,1)),IF(Calc!$A$90,INDEX(Motor!$Z$1:$Z$1068,A125,1),INDEX(LinMotor!$X$1:$X$1355,A125,1))))<1000,IF(move1,IF(Calc!$A$90,INDEX(Motor!$Y$1:$Y$1223,A125,1),INDEX(LinMotor!$W$1:$W$1355,A125,1)),IF(Calc!$A$90,INDEX(Motor!$Z$1:$Z$1223,A125,1),INDEX(LinMotor!$X$1:$X$1355,A125,1))),TEXT(IF(move1,IF(Calc!$A$90,INDEX(Motor!$Y$1:$Y$1223,A125,1),INDEX(LinMotor!$W$1:$W$1355,A125,1)),IF(Calc!$A$90,INDEX(Motor!$Z$1:$Z$1223,A125,1),INDEX(LinMotor!$X$1:$X$1355,A125,1)))/1000,"0.0k")),"") -> 9 | I125: =IF(A125<>2,IF(ABS(IF(move1,IF(Calc!$A$90,INDEX(Motor!$Z$1:$Z$1223,A125,1),INDEX(LinMotor!$X$1:$X$1355,A125,1)),IF(Calc!$A$90,INDEX(Motor!$AB$1:$AB$1223,A125,1),INDEX(LinMotor!$Z$1:$Z$1355,A125,1))))<1000,IF(move1,IF(Calc!$A$90,INDEX(Motor!$Z$1:$Z$1223,A125,1),INDEX(LinMotor!$X$1:$X$1355,A125,1)),IF(Calc!$A$90,INDEX(Motor!$AB$1:$AB$1223,A125,1),INDEX(LinMotor!$Z$1:$Z$1355,A125,1))),TEXT(IF(move1,IF(Calc!$A$90,INDEX(Motor!$Z$1:$Z$1223,A125,1),INDEX(LinMotor!$X$1:$X$1355,A125,1)),IF(Calc!$A$90,INDEX(Motor!$AB$1:$AB$1223,A125,1),INDEX(LinMotor!$Z$1:$Z$1355,A125,1)))/1000,"0.0k")),"") -> 29.12154768 | J125: =IF(A125<>2,IF(ABS(IF(move1,IF(Calc!$A$90,INDEX(Motor!$AA$1:$AA$1223,A125,1),INDEX(LinMotor!$Y$1:$Y$1355,A125,1)),IF(Calc!$A$90,INDEX(Motor!$AD$1:$AD$1223,A125,1),INDEX(LinMotor!$AB$1:$AB$445,A125,1))))<1000,IF(move1,IF(Calc!$A$90,INDEX(Motor!$AA$1:$AA$1223,A125,1),INDEX(LinMotor!$Y$1:$Y$1355,A125,1)),IF(Calc!$A$90,INDEX(Motor!$AD$1:$AD$1223,A125,1),INDEX(LinMotor!$AB$1:$AB$445,A125,1))),TEXT(IF(move1,IF(Calc!$A$90,INDEX(Motor!$AA$1:$AA$1223,A125,1),INDEX(LinMotor!$Y$1:$Y$1355,A125,1)),IF(Calc!$A$90,INDEX(Motor!$AD$1:$AD$1223,A125,1),INDEX(LinMotor!$AB$1:$AB$445,A125,1)))/1000,"0.0k")),"") -> 9 | K125: =IF(Calc!$A$90,INDEX(Motor!$AF$1:$AF$1223,A125,1),INDEX(LinMotor!$AD$1:$AD$1355,A125,1)) -> 0.9746184866 | L125: =IF(Calc!$A$90,INDEX(Motor!$AG$1:$AG$1223,A125,1),INDEX(LinMotor!$AE$1:$AE$1355,A125,1)) -> 1.431536754 | M125: =IF(Calc!$A$90,INDEX(Motor!$AH$1:$AH$1223,A125,1),INDEX(LinMotor!$AF$1:$AF$1355,A125,1)) -> 23.39084368 | N125: =IF(Calc!$A$90,INDEX(Motor!$AI$1:$AI$1223,A125,1),INDEX(LinMotor!$AG$1:$AG$1355,A125,1)) -> 68.71376419 | O125: =IF(A125<>2,IF(IF(Calc!$A$90,INDEX(Motor!$AK$1:$AK$1223,A125,1),INDEX(LinMotor!$AI$1:$AI$1355,A125,1))<1000,IF(Calc!$A$90,INDEX(Motor!$AK$1:$AK$1223,A125,1),INDEX(LinMotor!$AI$1:$AI$1355,A125,1)),TEXT(IF(Calc!$A$90,INDEX(Motor!$AK$1:$AK$1223,A125,1),INDEX(LinMotor!$AI$1:$AI$1355,A125,1))/1000,"0.0k")),"") -> 23.02988996 | P125: =IF(A125<>2,IF(IF(Calc!$A$90,INDEX(Motor!$AL$1:$AL$1223,A125,1),INDEX(LinMotor!$AJ$1:$AJ$1355,A125,1))<1000,IF(Calc!$A$90,INDEX(Motor!$AL$1:$AL$1223,A125,1),INDEX(LinMotor!$AJ$1:$AJ$1355,A125,1)),TEXT(IF(Calc!$A$90,INDEX(Motor!$AL$1:$AL$1223,A125,1),INDEX(LinMotor!$AJ$1:$AJ$1355,A125,1))/1000,"0.0k")),"") -> 2.412097398 | Q125: =IF(A125<>2,IF(IF(Calc!$A$90,INDEX(Motor!$AM$1:$AM$1223,A125,1),INDEX(LinMotor!$AK$1:$AK$1355,A125,1))<1000,IF(Calc!$A$90,INDEX(Motor!$AM$1:$AM$1223,A125,1),INDEX(LinMotor!$AK$1:$AK$1355,A125,1)),TEXT(IF(Calc!$A$90,INDEX(Motor!$AM$1:$AM$1223,A125,1),INDEX(LinMotor!$AK$1:$AK$1355,A125,1))/1000,"0.0k")),"") -> 147.7632999
A126: 53 | B126: =IF(Calc!$A$90,INDEX(Motor!$B$1:$B$1223,A126,1),INDEX(LinMotor!$B$1:$B$1341,A126,1)) -> AKM43E | C126: =IF(Calc!$A$90,INDEX(Motor!$T$1:$T$1223,A126,1),INDEX(LinMotor!$R$1:$R$1355,A126,1)) -> 535.7142857 | D126: =IF(Calc!$A$90,INDEX(Motor!$U$1:$U$1223,A126,1),INDEX(LinMotor!$S$1:$S$1355,A126,1)) -> 2.112539167 | E126: =IF(Calc!$A$90,INDEX(Motor!$V$1:$V$1223,A126,1),INDEX(LinMotor!$T$1:$T$1355,A126,1)) -> 1.832318412 | F126: =IF(Calc!$A$90,INDEX(Motor!$W$1:$W$1223,A126,1),INDEX(LinMotor!$U$1:$U$1355,A126,1)) -> 0.08238651626 | G126: =IF(A126<>2,IF(ABS(IF(Calc!$A$90,INDEX(Motor!$X$1:$X$1223,A126,1),INDEX(LinMotor!$V$1:$V$1355,A126,1)))<1000,IF(Calc!$A$90,INDEX(Motor!$X$1:$X$1223,A126,1),INDEX(LinMotor!$V$1:$V$1355,A126,1)),TEXT(IF(Calc!$A$90,INDEX(Motor!$X$1:$X$1223,A126,1),INDEX(LinMotor!$V$1:$V$1355,A126,1))/1000,"0.0k")),"") -> -22.56032439 | H126: =IF(A126<>2,IF(ABS(IF(move1,IF(Calc!$A$90,INDEX(Motor!$Y$1:$Y$1223,A126,1),INDEX(LinMotor!$W$1:$W$1355,A126,1)),IF(Calc!$A$90,INDEX(Motor!$Z$1:$Z$1068,A126,1),INDEX(LinMotor!$X$1:$X$1355,A126,1))))<1000,IF(move1,IF(Calc!$A$90,INDEX(Motor!$Y$1:$Y$1223,A126,1),INDEX(LinMotor!$W$1:$W$1355,A126,1)),IF(Calc!$A$90,INDEX(Motor!$Z$1:$Z$1223,A126,1),INDEX(LinMotor!$X$1:$X$1355,A126,1))),TEXT(IF(move1,IF(Calc!$A$90,INDEX(Motor!$Y$1:$Y$1223,A126,1),INDEX(LinMotor!$W$1:$W$1355,A126,1)),IF(Calc!$A$90,INDEX(Motor!$Z$1:$Z$1223,A126,1),INDEX(LinMotor!$X$1:$X$1355,A126,1)))/1000,"0.0k")),"") -> 9 | I126: =IF(A126<>2,IF(ABS(IF(move1,IF(Calc!$A$90,INDEX(Motor!$Z$1:$Z$1223,A126,1),INDEX(LinMotor!$X$1:$X$1355,A126,1)),IF(Calc!$A$90,INDEX(Motor!$AB$1:$AB$1223,A126,1),INDEX(LinMotor!$Z$1:$Z$1355,A126,1))))<1000,IF(move1,IF(Calc!$A$90,INDEX(Motor!$Z$1:$Z$1223,A126,1),INDEX(LinMotor!$X$1:$X$1355,A126,1)),IF(Calc!$A$90,INDEX(Motor!$AB$1:$AB$1223,A126,1),INDEX(LinMotor!$Z$1:$Z$1355,A126,1))),TEXT(IF(move1,IF(Calc!$A$90,INDEX(Motor!$Z$1:$Z$1223,A126,1),INDEX(LinMotor!$X$1:$X$1355,A126,1)),IF(Calc!$A$90,INDEX(Motor!$AB$1:$AB$1223,A126,1),INDEX(LinMotor!$Z$1:$Z$1355,A126,1)))/1000,"0.0k")),"") -> 29.13386275 | J126: =IF(A126<>2,IF(ABS(IF(move1,IF(Calc!$A$90,INDEX(Motor!$AA$1:$AA$1223,A126,1),INDEX(LinMotor!$Y$1:$Y$1355,A126,1)),IF(Calc!$A$90,INDEX(Motor!$AD$1:$AD$1223,A126,1),INDEX(LinMotor!$AB$1:$AB$445,A126,1))))<1000,IF(move1,IF(Calc!$A$90,INDEX(Motor!$AA$1:$AA$1223,A126,1),INDEX(LinMotor!$Y$1:$Y$1355,A126,1)),IF(Calc!$A$90,INDEX(Motor!$AD$1:$AD$1223,A126,1),INDEX(LinMotor!$AB$1:$AB$445,A126,1))),TEXT(IF(move1,IF(Calc!$A$90,INDEX(Motor!$AA$1:$AA$1223,A126,1),INDEX(LinMotor!$Y$1:$Y$1355,A126,1)),IF(Calc!$A$90,INDEX(Motor!$AD$1:$AD$1223,A126,1),INDEX(LinMotor!$AB$1:$AB$445,A126,1)))/1000,"0.0k")),"") -> 9 | K126: =IF(Calc!$A$90,INDEX(Motor!$AF$1:$AF$1223,A126,1),INDEX(LinMotor!$AD$1:$AD$1355,A126,1)) -> 0.2425842062 | L126: =IF(Calc!$A$90,INDEX(Motor!$AG$1:$AG$1223,A126,1),INDEX(LinMotor!$AE$1:$AE$1355,A126,1)) -> 0.3564249166 | M126: =IF(Calc!$A$90,INDEX(Motor!$AH$1:$AH$1223,A126,1),INDEX(LinMotor!$AF$1:$AF$1355,A126,1)) -> 5.822020948 | N126: =IF(Calc!$A$90,INDEX(Motor!$AI$1:$AI$1223,A126,1),INDEX(LinMotor!$AG$1:$AG$1355,A126,1)) -> 17.108396 | O126: =IF(A126<>2,IF(IF(Calc!$A$90,INDEX(Motor!$AK$1:$AK$1223,A126,1),INDEX(LinMotor!$AI$1:$AI$1355,A126,1))<1000,IF(Calc!$A$90,INDEX(Motor!$AK$1:$AK$1223,A126,1),INDEX(LinMotor!$AI$1:$AI$1355,A126,1)),TEXT(IF(Calc!$A$90,INDEX(Motor!$AK$1:$AK$1223,A126,1),INDEX(LinMotor!$AI$1:$AI$1355,A126,1))/1000,"0.0k")),"") -> 23.03232626 | P126: =IF(A126<>2,IF(IF(Calc!$A$90,INDEX(Motor!$AL$1:$AL$1223,A126,1),INDEX(LinMotor!$AJ$1:$AJ$1355,A126,1))<1000,IF(Calc!$A$90,INDEX(Motor!$AL$1:$AL$1223,A126,1),INDEX(LinMotor!$AJ$1:$AJ$1355,A126,1)),TEXT(IF(Calc!$A$90,INDEX(Motor!$AL$1:$AL$1223,A126,1),INDEX(LinMotor!$AJ$1:$AJ$1355,A126,1))/1000,"0.0k")),"") -> 2.414204081 | Q126: =IF(A126<>2,IF(IF(Calc!$A$90,INDEX(Motor!$AM$1:$AM$1223,A126,1),INDEX(LinMotor!$AK$1:$AK$1355,A126,1))<1000,IF(Calc!$A$90,INDEX(Motor!$AM$1:$AM$1223,A126,1),INDEX(LinMotor!$AK$1:$AK$1355,A126,1)),TEXT(IF(Calc!$A$90,INDEX(Motor!$AM$1:$AM$1223,A126,1),INDEX(LinMotor!$AK$1:$AK$1355,A126,1))/1000,"0.0k")),"") -> 147.8923537
A127: 54 | B127: =IF(Calc!$A$90,INDEX(Motor!$B$1:$B$1223,A127,1),INDEX(LinMotor!$B$1:$B$1341,A127,1)) -> AKM43G | C127: =IF(Calc!$A$90,INDEX(Motor!$T$1:$T$1223,A127,1),INDEX(LinMotor!$R$1:$R$1355,A127,1)) -> 535.7142857 | D127: =IF(Calc!$A$90,INDEX(Motor!$U$1:$U$1223,A127,1),INDEX(LinMotor!$S$1:$S$1355,A127,1)) -> 2.068904892 | E127: =IF(Calc!$A$90,INDEX(Motor!$V$1:$V$1223,A127,1),INDEX(LinMotor!$T$1:$T$1355,A127,1)) -> 1.809556693 | F127: =IF(Calc!$A$90,INDEX(Motor!$W$1:$W$1223,A127,1),INDEX(LinMotor!$U$1:$U$1355,A127,1)) -> 0.04399037063 | G127: =IF(A127<>2,IF(ABS(IF(Calc!$A$90,INDEX(Motor!$X$1:$X$1223,A127,1),INDEX(LinMotor!$V$1:$V$1355,A127,1)))<1000,IF(Calc!$A$90,INDEX(Motor!$X$1:$X$1223,A127,1),INDEX(LinMotor!$V$1:$V$1355,A127,1)),TEXT(IF(Calc!$A$90,INDEX(Motor!$X$1:$X$1223,A127,1),INDEX(LinMotor!$V$1:$V$1355,A127,1))/1000,"0.0k")),"") -> -22.56032439 | H127: =IF(A127<>2,IF(ABS(IF(move1,IF(Calc!$A$90,INDEX(Motor!$Y$1:$Y$1223,A127,1),INDEX(LinMotor!$W$1:$W$1355,A127,1)),IF(Calc!$A$90,INDEX(Motor!$Z$1:$Z$1068,A127,1),INDEX(LinMotor!$X$1:$X$1355,A127,1))))<1000,IF(move1,IF(Calc!$A$90,INDEX(Motor!$Y$1:$Y$1223,A127,1),INDEX(LinMotor!$W$1:$W$1355,A127,1)),IF(Calc!$A$90,INDEX(Motor!$Z$1:$Z$1223,A127,1),INDEX(LinMotor!$X$1:$X$1355,A127,1))),TEXT(IF(move1,IF(Calc!$A$90,INDEX(Motor!$Y$1:$Y$1223,A127,1),INDEX(LinMotor!$W$1:$W$1355,A127,1)),IF(Calc!$A$90,INDEX(Motor!$Z$1:$Z$1223,A127,1),INDEX(LinMotor!$X$1:$X$1355,A127,1)))/1000,"0.0k")),"") -> 9 | I127: =IF(A127<>2,IF(ABS(IF(move1,IF(Calc!$A$90,INDEX(Motor!$Z$1:$Z$1223,A127,1),INDEX(LinMotor!$X$1:$X$1355,A127,1)),IF(Calc!$A$90,INDEX(Motor!$AB$1:$AB$1223,A127,1),INDEX(LinMotor!$Z$1:$Z$1355,A127,1))))<1000,IF(move1,IF(Calc!$A$90,INDEX(Motor!$Z$1:$Z$1223,A127,1),INDEX(LinMotor!$X$1:$X$1355,A127,1)),IF(Calc!$A$90,INDEX(Motor!$AB$1:$AB$1223,A127,1),INDEX(LinMotor!$Z$1:$Z$1355,A127,1))),TEXT(IF(move1,IF(Calc!$A$90,INDEX(Motor!$Z$1:$Z$1223,A127,1),INDEX(LinMotor!$X$1:$X$1355,A127,1)),IF(Calc!$A$90,INDEX(Motor!$AB$1:$AB$1223,A127,1),INDEX(LinMotor!$Z$1:$Z$1355,A127,1)))/1000,"0.0k")),"") -> 29.13386275 | J127: =IF(A127<>2,IF(ABS(IF(move1,IF(Calc!$A$90,INDEX(Motor!$AA$1:$AA$1223,A127,1),INDEX(LinMotor!$Y$1:$Y$1355,A127,1)),IF(Calc!$A$90,INDEX(Motor!$AD$1:$AD$1223,A127,1),INDEX(LinMotor!$AB$1:$AB$445,A127,1))))<1000,IF(move1,IF(Calc!$A$90,INDEX(Motor!$AA$1:$AA$1223,A127,1),INDEX(LinMotor!$Y$1:$Y$1355,A127,1)),IF(Calc!$A$90,INDEX(Motor!$AD$1:$AD$1223,A127,1),INDEX(LinMotor!$AB$1:$AB$445,A127,1))),TEXT(IF(move1,IF(Calc!$A$90,INDEX(Motor!$AA$1:$AA$1223,A127,1),INDEX(LinMotor!$Y$1:$Y$1355,A127,1)),IF(Calc!$A$90,INDEX(Motor!$AD$1:$AD$1223,A127,1),INDEX(LinMotor!$AB$1:$AB$445,A127,1)))/1000,"0.0k")),"") -> 9 | K127: =IF(Calc!$A$90,INDEX(Motor!$AF$1:$AF$1223,A127,1),INDEX(LinMotor!$AD$1:$AD$1355,A127,1)) -> 0.419120614 | L127: =IF(Calc!$A$90,INDEX(Motor!$AG$1:$AG$1223,A127,1),INDEX(LinMotor!$AE$1:$AE$1355,A127,1)) -> 0.615806908 | M127: =IF(Calc!$A$90,INDEX(Motor!$AH$1:$AH$1223,A127,1),INDEX(LinMotor!$AF$1:$AF$1355,A127,1)) -> 10.05889474 | N127: =IF(Calc!$A$90,INDEX(Motor!$AI$1:$AI$1223,A127,1),INDEX(LinMotor!$AG$1:$AG$1355,A127,1)) -> 29.55873158 | O127: =IF(A127<>2,IF(IF(Calc!$A$90,INDEX(Motor!$AK$1:$AK$1223,A127,1),INDEX(LinMotor!$AI$1:$AI$1355,A127,1))<1000,IF(Calc!$A$90,INDEX(Motor!$AK$1:$AK$1223,A127,1),INDEX(LinMotor!$AI$1:$AI$1355,A127,1)),TEXT(IF(Calc!$A$90,INDEX(Motor!$AK$1:$AK$1223,A127,1),INDEX(LinMotor!$AI$1:$AI$1355,A127,1))/1000,"0.0k")),"") -> 23.03232626 | P127: =IF(A127<>2,IF(IF(Calc!$A$90,INDEX(Motor!$AL$1:$AL$1223,A127,1),INDEX(LinMotor!$AJ$1:$AJ$1355,A127,1))<1000,IF(Calc!$A$90,INDEX(Motor!$AL$1:$AL$1223,A127,1),INDEX(LinMotor!$AJ$1:$AJ$1355,A127,1)),TEXT(IF(Calc!$A$90,INDEX(Motor!$AL$1:$AL$1223,A127,1),INDEX(LinMotor!$AJ$1:$AJ$1355,A127,1))/1000,"0.0k")),"") -> 2.414204081 | Q127: =IF(A127<>2,IF(IF(Calc!$A$90,INDEX(Motor!$AM$1:$AM$1223,A127,1),INDEX(LinMotor!$AK$1:$AK$1355,A127,1))<1000,IF(Calc!$A$90,INDEX(Motor!$AM$1:$AM$1223,A127,1),INDEX(LinMotor!$AK$1:$AK$1355,A127,1)),TEXT(IF(Calc!$A$90,INDEX(Motor!$AM$1:$AM$1223,A127,1),INDEX(LinMotor!$AK$1:$AK$1355,A127,1))/1000,"0.0k")),"") -> 147.8923537
A128: 55 | B128: =IF(Calc!$A$90,INDEX(Motor!$B$1:$B$1223,A128,1),INDEX(LinMotor!$B$1:$B$1341,A128,1)) -> AKM43H | C128: =IF(Calc!$A$90,INDEX(Motor!$T$1:$T$1223,A128,1),INDEX(LinMotor!$R$1:$R$1355,A128,1)) -> 535.7142857 | D128: =IF(Calc!$A$90,INDEX(Motor!$U$1:$U$1223,A128,1),INDEX(LinMotor!$S$1:$S$1355,A128,1)) -> 2.060451717 | E128: =IF(Calc!$A$90,INDEX(Motor!$V$1:$V$1223,A128,1),INDEX(LinMotor!$T$1:$T$1355,A128,1)) -> 1.809556693 | F128: =IF(Calc!$A$90,INDEX(Motor!$W$1:$W$1223,A128,1),INDEX(LinMotor!$U$1:$U$1355,A128,1)) -> 0.0331869074 | G128: =IF(A128<>2,IF(ABS(IF(Calc!$A$90,INDEX(Motor!$X$1:$X$1223,A128,1),INDEX(LinMotor!$V$1:$V$1355,A128,1)))<1000,IF(Calc!$A$90,INDEX(Motor!$X$1:$X$1223,A128,1),INDEX(LinMotor!$V$1:$V$1355,A128,1)),TEXT(IF(Calc!$A$90,INDEX(Motor!$X$1:$X$1223,A128,1),INDEX(LinMotor!$V$1:$V$1355,A128,1))/1000,"0.0k")),"") -> -22.56032439 | H128: =IF(A128<>2,IF(ABS(IF(move1,IF(Calc!$A$90,INDEX(Motor!$Y$1:$Y$1223,A128,1),INDEX(LinMotor!$W$1:$W$1355,A128,1)),IF(Calc!$A$90,INDEX(Motor!$Z$1:$Z$1068,A128,1),INDEX(LinMotor!$X$1:$X$1355,A128,1))))<1000,IF(move1,IF(Calc!$A$90,INDEX(Motor!$Y$1:$Y$1223,A128,1),INDEX(LinMotor!$W$1:$W$1355,A128,1)),IF(Calc!$A$90,INDEX(Motor!$Z$1:$Z$1223,A128,1),INDEX(LinMotor!$X$1:$X$1355,A128,1))),TEXT(IF(move1,IF(Calc!$A$90,INDEX(Motor!$Y$1:$Y$1223,A128,1),INDEX(LinMotor!$W$1:$W$1355,A128,1)),IF(Calc!$A$90,INDEX(Motor!$Z$1:$Z$1223,A128,1),INDEX(LinMotor!$X$1:$X$1355,A128,1)))/1000,"0.0k")),"") -> 9 | I128: =IF(A128<>2,IF(ABS(IF(move1,IF(Calc!$A$90,INDEX(Motor!$Z$1:$Z$1223,A128,1),INDEX(LinMotor!$X$1:$X$1355,A128,1)),IF(Calc!$A$90,INDEX(Motor!$AB$1:$AB$1223,A128,1),INDEX(LinMotor!$Z$1:$Z$1355,A128,1))))<1000,IF(move1,IF(Calc!$A$90,INDEX(Motor!$Z$1:$Z$1223,A128,1),INDEX(LinMotor!$X$1:$X$1355,A128,1)),IF(Calc!$A$90,INDEX(Motor!$AB$1:$AB$1223,A128,1),INDEX(LinMotor!$Z$1:$Z$1355,A128,1))),TEXT(IF(move1,IF(Calc!$A$90,INDEX(Motor!$Z$1:$Z$1223,A128,1),INDEX(LinMotor!$X$1:$X$1355,A128,1)),IF(Calc!$A$90,INDEX(Motor!$AB$1:$AB$1223,A128,1),INDEX(LinMotor!$Z$1:$Z$1355,A128,1)))/1000,"0.0k")),"") -> 29.13386275 | J128: =IF(A128<>2,IF(ABS(IF(move1,IF(Calc!$A$90,INDEX(Motor!$AA$1:$AA$1223,A128,1),INDEX(LinMotor!$Y$1:$Y$1355,A128,1)),IF(Calc!$A$90,INDEX(Motor!$AD$1:$AD$1223,A128,1),INDEX(LinMotor!$AB$1:$AB$445,A128,1))))<1000,IF(move1,IF(Calc!$A$90,INDEX(Motor!$AA$1:$AA$1223,A128,1),INDEX(LinMotor!$Y$1:$Y$1355,A128,1)),IF(Calc!$A$90,INDEX(Motor!$AD$1:$AD$1223,A128,1),INDEX(LinMotor!$AB$1:$AB$445,A128,1))),TEXT(IF(move1,IF(Calc!$A$90,INDEX(Motor!$AA$1:$AA$1223,A128,1),INDEX(LinMotor!$Y$1:$Y$1355,A128,1)),IF(Calc!$A$90,INDEX(Motor!$AD$1:$AD$1223,A128,1),INDEX(LinMotor!$AB$1:$AB$445,A128,1)))/1000,"0.0k")),"") -> 9 | K128: =IF(Calc!$A$90,INDEX(Motor!$AF$1:$AF$1223,A128,1),INDEX(LinMotor!$AD$1:$AD$1355,A128,1)) -> 0.4628049757 | L128: =IF(Calc!$A$90,INDEX(Motor!$AG$1:$AG$1223,A128,1),INDEX(LinMotor!$AE$1:$AE$1355,A128,1)) -> 0.6799916099 | M128: =IF(Calc!$A$90,INDEX(Motor!$AH$1:$AH$1223,A128,1),INDEX(LinMotor!$AF$1:$AF$1355,A128,1)) -> 11.10731942 | N128: =IF(Calc!$A$90,INDEX(Motor!$AI$1:$AI$1223,A128,1),INDEX(LinMotor!$AG$1:$AG$1355,A128,1)) -> 32.63959727 | O128: =IF(A128<>2,IF(IF(Calc!$A$90,INDEX(Motor!$AK$1:$AK$1223,A128,1),INDEX(LinMotor!$AI$1:$AI$1355,A128,1))<1000,IF(Calc!$A$90,INDEX(Motor!$AK$1:$AK$1223,A128,1),INDEX(LinMotor!$AI$1:$AI$1355,A128,1)),TEXT(IF(Calc!$A$90,INDEX(Motor!$AK$1:$AK$1223,A128,1),INDEX(LinMotor!$AI$1:$AI$1355,A128,1))/1000,"0.0k")),"") -> 23.03232626 | P128: =IF(A128<>2,IF(IF(Calc!$A$90,INDEX(Motor!$AL$1:$AL$1223,A128,1),INDEX(LinMotor!$AJ$1:$AJ$1355,A128,1))<1000,IF(Calc!$A$90,INDEX(Motor!$AL$1:$AL$1223,A128,1),INDEX(LinMotor!$AJ$1:$AJ$1355,A128,1)),TEXT(IF(Calc!$A$90,INDEX(Motor!$AL$1:$AL$1223,A128,1),INDEX(LinMotor!$AJ$1:$AJ$1355,A128,1))/1000,"0.0k")),"") -> 2.414204081 | Q128: =IF(A128<>2,IF(IF(Calc!$A$90,INDEX(Motor!$AM$1:$AM$1223,A128,1),INDEX(LinMotor!$AK$1:$AK$1355,A128,1))<1000,IF(Calc!$A$90,INDEX(Motor!$AM$1:$AM$1223,A128,1),INDEX(LinMotor!$AK$1:$AK$1355,A128,1)),TEXT(IF(Calc!$A$90,INDEX(Motor!$AM$1:$AM$1223,A128,1),INDEX(LinMotor!$AK$1:$AK$1355,A128,1))/1000,"0.0k")),"") -> 147.8923537
A129: 56 | B129: =IF(Calc!$A$90,INDEX(Motor!$B$1:$B$1223,A129,1),INDEX(LinMotor!$B$1:$B$1341,A129,1)) -> AKM43K | C129: =IF(Calc!$A$90,INDEX(Motor!$T$1:$T$1223,A129,1),INDEX(LinMotor!$R$1:$R$1355,A129,1)) -> 535.7142857 | D129: =IF(Calc!$A$90,INDEX(Motor!$U$1:$U$1223,A129,1),INDEX(LinMotor!$S$1:$S$1355,A129,1)) -> 2.026816012 | E129: =IF(Calc!$A$90,INDEX(Motor!$V$1:$V$1223,A129,1),INDEX(LinMotor!$T$1:$T$1355,A129,1)) -> 1.776455046 | F129: =IF(Calc!$A$90,INDEX(Motor!$W$1:$W$1223,A129,1),INDEX(LinMotor!$U$1:$U$1355,A129,1)) -> 0.02197850278 | G129: =IF(A129<>2,IF(ABS(IF(Calc!$A$90,INDEX(Motor!$X$1:$X$1223,A129,1),INDEX(LinMotor!$V$1:$V$1355,A129,1)))<1000,IF(Calc!$A$90,INDEX(Motor!$X$1:$X$1223,A129,1),INDEX(LinMotor!$V$1:$V$1355,A129,1)),TEXT(IF(Calc!$A$90,INDEX(Motor!$X$1:$X$1223,A129,1),INDEX(LinMotor!$V$1:$V$1355,A129,1))/1000,"0.0k")),"") -> -22.56032439 | H129: =IF(A129<>2,IF(ABS(IF(move1,IF(Calc!$A$90,INDEX(Motor!$Y$1:$Y$1223,A129,1),INDEX(LinMotor!$W$1:$W$1355,A129,1)),IF(Calc!$A$90,INDEX(Motor!$Z$1:$Z$1068,A129,1),INDEX(LinMotor!$X$1:$X$1355,A129,1))))<1000,IF(move1,IF(Calc!$A$90,INDEX(Motor!$Y$1:$Y$1223,A129,1),INDEX(LinMotor!$W$1:$W$1355,A129,1)),IF(Calc!$A$90,INDEX(Motor!$Z$1:$Z$1223,A129,1),INDEX(LinMotor!$X$1:$X$1355,A129,1))),TEXT(IF(move1,IF(Calc!$A$90,INDEX(Motor!$Y$1:$Y$1223,A129,1),INDEX(LinMotor!$W$1:$W$1355,A129,1)),IF(Calc!$A$90,INDEX(Motor!$Z$1:$Z$1223,A129,1),INDEX(LinMotor!$X$1:$X$1355,A129,1)))/1000,"0.0k")),"") -> 9 | I129: =IF(A129<>2,IF(ABS(IF(move1,IF(Calc!$A$90,INDEX(Motor!$Z$1:$Z$1223,A129,1),INDEX(LinMotor!$X$1:$X$1355,A129,1)),IF(Calc!$A$90,INDEX(Motor!$AB$1:$AB$1223,A129,1),INDEX(LinMotor!$Z$1:$Z$1355,A129,1))))<1000,IF(move1,IF(Calc!$A$90,INDEX(Motor!$Z$1:$Z$1223,A129,1),INDEX(LinMotor!$X$1:$X$1355,A129,1)),IF(Calc!$A$90,INDEX(Motor!$AB$1:$AB$1223,A129,1),INDEX(LinMotor!$Z$1:$Z$1355,A129,1))),TEXT(IF(move1,IF(Calc!$A$90,INDEX(Motor!$Z$1:$Z$1223,A129,1),INDEX(LinMotor!$X$1:$X$1355,A129,1)),IF(Calc!$A$90,INDEX(Motor!$AB$1:$AB$1223,A129,1),INDEX(LinMotor!$Z$1:$Z$1355,A129,1)))/1000,"0.0k")),"") -> 29.13386275 | J129: =IF(A129<>2,IF(ABS(IF(move1,IF(Calc!$A$90,INDEX(Motor!$AA$1:$AA$1223,A129,1),INDEX(LinMotor!$Y$1:$Y$1355,A129,1)),IF(Calc!$A$90,INDEX(Motor!$AD$1:$AD$1223,A129,1),INDEX(LinMotor!$AB$1:$AB$445,A129,1))))<1000,IF(move1,IF(Calc!$A$90,INDEX(Motor!$AA$1:$AA$1223,A129,1),INDEX(LinMotor!$Y$1:$Y$1355,A129,1)),IF(Calc!$A$90,INDEX(Motor!$AD$1:$AD$1223,A129,1),INDEX(LinMotor!$AB$1:$AB$445,A129,1))),TEXT(IF(move1,IF(Calc!$A$90,INDEX(Motor!$AA$1:$AA$1223,A129,1),INDEX(LinMotor!$Y$1:$Y$1355,A129,1)),IF(Calc!$A$90,INDEX(Motor!$AD$1:$AD$1223,A129,1),INDEX(LinMotor!$AB$1:$AB$445,A129,1)))/1000,"0.0k")),"") -> 9 | K129: =IF(Calc!$A$90,INDEX(Motor!$AF$1:$AF$1223,A129,1),INDEX(LinMotor!$AD$1:$AD$1355,A129,1)) -> 0.809331513 | L129: =IF(Calc!$A$90,INDEX(Motor!$AG$1:$AG$1223,A129,1),INDEX(LinMotor!$AE$1:$AE$1355,A129,1)) -> 1.189137255 | M129: =IF(Calc!$A$90,INDEX(Motor!$AH$1:$AH$1223,A129,1),INDEX(LinMotor!$AF$1:$AF$1355,A129,1)) -> 19.42395631 | N129: =IF(Calc!$A$90,INDEX(Motor!$AI$1:$AI$1223,A129,1),INDEX(LinMotor!$AG$1:$AG$1355,A129,1)) -> 57.07858825 | O129: =IF(A129<>2,IF(IF(Calc!$A$90,INDEX(Motor!$AK$1:$AK$1223,A129,1),INDEX(LinMotor!$AI$1:$AI$1355,A129,1))<1000,IF(Calc!$A$90,INDEX(Motor!$AK$1:$AK$1223,A129,1),INDEX(LinMotor!$AI$1:$AI$1355,A129,1)),TEXT(IF(Calc!$A$90,INDEX(Motor!$AK$1:$AK$1223,A129,1),INDEX(LinMotor!$AI$1:$AI$1355,A129,1))/1000,"0.0k")),"") -> 23.03232626 | P129: =IF(A129<>2,IF(IF(Calc!$A$90,INDEX(Motor!$AL$1:$AL$1223,A129,1),INDEX(LinMotor!$AJ$1:$AJ$1355,A129,1))<1000,IF(Calc!$A$90,INDEX(Motor!$AL$1:$AL$1223,A129,1),INDEX(LinMotor!$AJ$1:$AJ$1355,A129,1)),TEXT(IF(Calc!$A$90,INDEX(Motor!$AL$1:$AL$1223,A129,1),INDEX(LinMotor!$AJ$1:$AJ$1355,A129,1))/1000,"0.0k")),"") -> 2.414204081 | Q129: =IF(A129<>2,IF(IF(Calc!$A$90,INDEX(Motor!$AM$1:$AM$1223,A129,1),INDEX(LinMotor!$AK$1:$AK$1355,A129,1))<1000,IF(Calc!$A$90,INDEX(Motor!$AM$1:$AM$1223,A129,1),INDEX(LinMotor!$AK$1:$AK$1355,A129,1)),TEXT(IF(Calc!$A$90,INDEX(Motor!$AM$1:$AM$1223,A129,1),INDEX(LinMotor!$AK$1:$AK$1355,A129,1))/1000,"0.0k")),"") -> 147.8923537
A130: 57 | B130: =IF(Calc!$A$90,INDEX(Motor!$B$1:$B$1223,A130,1),INDEX(LinMotor!$B$1:$B$1341,A130,1)) -> AKM43L | C130: =IF(Calc!$A$90,INDEX(Motor!$T$1:$T$1223,A130,1),INDEX(LinMotor!$R$1:$R$1355,A130,1)) -> 535.7142857 | D130: =IF(Calc!$A$90,INDEX(Motor!$U$1:$U$1223,A130,1),INDEX(LinMotor!$S$1:$S$1355,A130,1)) -> 2.099659931 | E130: =IF(Calc!$A$90,INDEX(Motor!$V$1:$V$1223,A130,1),INDEX(LinMotor!$T$1:$T$1355,A130,1)) -> 1.820866422 | F130: =IF(Calc!$A$90,INDEX(Motor!$W$1:$W$1223,A130,1),INDEX(LinMotor!$U$1:$U$1355,A130,1)) -> 0.02122065908 | G130: =IF(A130<>2,IF(ABS(IF(Calc!$A$90,INDEX(Motor!$X$1:$X$1223,A130,1),INDEX(LinMotor!$V$1:$V$1355,A130,1)))<1000,IF(Calc!$A$90,INDEX(Motor!$X$1:$X$1223,A130,1),INDEX(LinMotor!$V$1:$V$1355,A130,1)),TEXT(IF(Calc!$A$90,INDEX(Motor!$X$1:$X$1223,A130,1),INDEX(LinMotor!$V$1:$V$1355,A130,1))/1000,"0.0k")),"") -> -22.56032439 | H130: =IF(A130<>2,IF(ABS(IF(move1,IF(Calc!$A$90,INDEX(Motor!$Y$1:$Y$1223,A130,1),INDEX(LinMotor!$W$1:$W$1355,A130,1)),IF(Calc!$A$90,INDEX(Motor!$Z$1:$Z$1068,A130,1),INDEX(LinMotor!$X$1:$X$1355,A130,1))))<1000,IF(move1,IF(Calc!$A$90,INDEX(Motor!$Y$1:$Y$1223,A130,1),INDEX(LinMotor!$W$1:$W$1355,A130,1)),IF(Calc!$A$90,INDEX(Motor!$Z$1:$Z$1223,A130,1),INDEX(LinMotor!$X$1:$X$1355,A130,1))),TEXT(IF(move1,IF(Calc!$A$90,INDEX(Motor!$Y$1:$Y$1223,A130,1),INDEX(LinMotor!$W$1:$W$1355,A130,1)),IF(Calc!$A$90,INDEX(Motor!$Z$1:$Z$1223,A130,1),INDEX(LinMotor!$X$1:$X$1355,A130,1)))/1000,"0.0k")),"") -> 9 | I130: =IF(A130<>2,IF(ABS(IF(move1,IF(Calc!$A$90,INDEX(Motor!$Z$1:$Z$1223,A130,1),INDEX(LinMotor!$X$1:$X$1355,A130,1)),IF(Calc!$A$90,INDEX(Motor!$AB$1:$AB$1223,A130,1),INDEX(LinMotor!$Z$1:$Z$1355,A130,1))))<1000,IF(move1,IF(Calc!$A$90,INDEX(Motor!$Z$1:$Z$1223,A130,1),INDEX(LinMotor!$X$1:$X$1355,A130,1)),IF(Calc!$A$90,INDEX(Motor!$AB$1:$AB$1223,A130,1),INDEX(LinMotor!$Z$1:$Z$1355,A130,1))),TEXT(IF(move1,IF(Calc!$A$90,INDEX(Motor!$Z$1:$Z$1223,A130,1),INDEX(LinMotor!$X$1:$X$1355,A130,1)),IF(Calc!$A$90,INDEX(Motor!$AB$1:$AB$1223,A130,1),INDEX(LinMotor!$Z$1:$Z$1355,A130,1)))/1000,"0.0k")),"") -> 29.13386275 | J130: =IF(A130<>2,IF(ABS(IF(move1,IF(Calc!$A$90,INDEX(Motor!$AA$1:$AA$1223,A130,1),INDEX(LinMotor!$Y$1:$Y$1355,A130,1)),IF(Calc!$A$90,INDEX(Motor!$AD$1:$AD$1223,A130,1),INDEX(LinMotor!$AB$1:$AB$445,A130,1))))<1000,IF(move1,IF(Calc!$A$90,INDEX(Motor!$AA$1:$AA$1223,A130,1),INDEX(LinMotor!$Y$1:$Y$1355,A130,1)),IF(Calc!$A$90,INDEX(Motor!$AD$1:$AD$1223,A130,1),INDEX(LinMotor!$AB$1:$AB$445,A130,1))),TEXT(IF(move1,IF(Calc!$A$90,INDEX(Motor!$AA$1:$AA$1223,A130,1),INDEX(LinMotor!$Y$1:$Y$1355,A130,1)),IF(Calc!$A$90,INDEX(Motor!$AD$1:$AD$1223,A130,1),INDEX(LinMotor!$AB$1:$AB$445,A130,1)))/1000,"0.0k")),"") -> 9 | K130: =IF(Calc!$A$90,INDEX(Motor!$AF$1:$AF$1223,A130,1),INDEX(LinMotor!$AD$1:$AD$1355,A130,1)) -> 0.9781561274 | L130: =IF(Calc!$A$90,INDEX(Motor!$AG$1:$AG$1223,A130,1),INDEX(LinMotor!$AE$1:$AE$1355,A130,1)) -> 1.437188437 | M130: =IF(Calc!$A$90,INDEX(Motor!$AH$1:$AH$1223,A130,1),INDEX(LinMotor!$AF$1:$AF$1355,A130,1)) -> 23.47574706 | N130: =IF(Calc!$A$90,INDEX(Motor!$AI$1:$AI$1223,A130,1),INDEX(LinMotor!$AG$1:$AG$1355,A130,1)) -> 68.98504499 | O130: =IF(A130<>2,IF(IF(Calc!$A$90,INDEX(Motor!$AK$1:$AK$1223,A130,1),INDEX(LinMotor!$AI$1:$AI$1355,A130,1))<1000,IF(Calc!$A$90,INDEX(Motor!$AK$1:$AK$1223,A130,1),INDEX(LinMotor!$AI$1:$AI$1355,A130,1)),TEXT(IF(Calc!$A$90,INDEX(Motor!$AK$1:$AK$1223,A130,1),INDEX(LinMotor!$AI$1:$AI$1355,A130,1))/1000,"0.0k")),"") -> 23.03232626 | P130: =IF(A130<>2,IF(IF(Calc!$A$90,INDEX(Motor!$AL$1:$AL$1223,A130,1),INDEX(LinMotor!$AJ$1:$AJ$1355,A130,1))<1000,IF(Calc!$A$90,INDEX(Motor!$AL$1:$AL$1223,A130,1),INDEX(LinMotor!$AJ$1:$AJ$1355,A130,1)),TEXT(IF(Calc!$A$90,INDEX(Motor!$AL$1:$AL$1223,A130,1),INDEX(LinMotor!$AJ$1:$AJ$1355,A130,1))/1000,"0.0k")),"") -> 2.414204081 | Q130: =IF(A130<>2,IF(IF(Calc!$A$90,INDEX(Motor!$AM$1:$AM$1223,A130,1),INDEX(LinMotor!$AK$1:$AK$1355,A130,1))<1000,IF(Calc!$A$90,INDEX(Motor!$AM$1:$AM$1223,A130,1),INDEX(LinMotor!$AK$1:$AK$1355,A130,1)),TEXT(IF(Calc!$A$90,INDEX(Motor!$AM$1:$AM$1223,A130,1),INDEX(LinMotor!$AK$1:$AK$1355,A130,1))/1000,"0.0k")),"") -> 147.8923537
A131: 58 | B131: =IF(Calc!$A$90,INDEX(Motor!$B$1:$B$1223,A131,1),INDEX(LinMotor!$B$1:$B$1341,A131,1)) -> AKM44E | C131: =IF(Calc!$A$90,INDEX(Motor!$T$1:$T$1223,A131,1),INDEX(LinMotor!$R$1:$R$1355,A131,1)) -> 416.6666667 | D131: =IF(Calc!$A$90,INDEX(Motor!$U$1:$U$1223,A131,1),INDEX(LinMotor!$S$1:$S$1355,A131,1)) -> 1.724605205 | E131: =IF(Calc!$A$90,INDEX(Motor!$V$1:$V$1223,A131,1),INDEX(LinMotor!$T$1:$T$1355,A131,1)) -> 1.464632051 | F131: =IF(Calc!$A$90,INDEX(Motor!$W$1:$W$1223,A131,1),INDEX(LinMotor!$U$1:$U$1355,A131,1)) -> 0.08029254916 | G131: =IF(A131<>2,IF(ABS(IF(Calc!$A$90,INDEX(Motor!$X$1:$X$1223,A131,1),INDEX(LinMotor!$V$1:$V$1355,A131,1)))<1000,IF(Calc!$A$90,INDEX(Motor!$X$1:$X$1223,A131,1),INDEX(LinMotor!$V$1:$V$1355,A131,1)),TEXT(IF(Calc!$A$90,INDEX(Motor!$X$1:$X$1223,A131,1),INDEX(LinMotor!$V$1:$V$1355,A131,1))/1000,"0.0k")),"") -> -22.57552818 | H131: =IF(A131<>2,IF(ABS(IF(move1,IF(Calc!$A$90,INDEX(Motor!$Y$1:$Y$1223,A131,1),INDEX(LinMotor!$W$1:$W$1355,A131,1)),IF(Calc!$A$90,INDEX(Motor!$Z$1:$Z$1068,A131,1),INDEX(LinMotor!$X$1:$X$1355,A131,1))))<1000,IF(move1,IF(Calc!$A$90,INDEX(Motor!$Y$1:$Y$1223,A131,1),INDEX(LinMotor!$W$1:$W$1355,A131,1)),IF(Calc!$A$90,INDEX(Motor!$Z$1:$Z$1223,A131,1),INDEX(LinMotor!$X$1:$X$1355,A131,1))),TEXT(IF(move1,IF(Calc!$A$90,INDEX(Motor!$Y$1:$Y$1223,A131,1),INDEX(LinMotor!$W$1:$W$1355,A131,1)),IF(Calc!$A$90,INDEX(Motor!$Z$1:$Z$1223,A131,1),INDEX(LinMotor!$X$1:$X$1355,A131,1)))/1000,"0.0k")),"") -> 9 | I131: =IF(A131<>2,IF(ABS(IF(move1,IF(Calc!$A$90,INDEX(Motor!$Z$1:$Z$1223,A131,1),INDEX(LinMotor!$X$1:$X$1355,A131,1)),IF(Calc!$A$90,INDEX(Motor!$AB$1:$AB$1223,A131,1),INDEX(LinMotor!$Z$1:$Z$1355,A131,1))))<1000,IF(move1,IF(Calc!$A$90,INDEX(Motor!$Z$1:$Z$1223,A131,1),INDEX(LinMotor!$X$1:$X$1355,A131,1)),IF(Calc!$A$90,INDEX(Motor!$AB$1:$AB$1223,A131,1),INDEX(LinMotor!$Z$1:$Z$1355,A131,1))),TEXT(IF(move1,IF(Calc!$A$90,INDEX(Motor!$Z$1:$Z$1223,A131,1),INDEX(LinMotor!$X$1:$X$1355,A131,1)),IF(Calc!$A$90,INDEX(Motor!$AB$1:$AB$1223,A131,1),INDEX(LinMotor!$Z$1:$Z$1355,A131,1)))/1000,"0.0k")),"") -> 29.14617782 | J131: =IF(A131<>2,IF(ABS(IF(move1,IF(Calc!$A$90,INDEX(Motor!$AA$1:$AA$1223,A131,1),INDEX(LinMotor!$Y$1:$Y$1355,A131,1)),IF(Calc!$A$90,INDEX(Motor!$AD$1:$AD$1223,A131,1),INDEX(LinMotor!$AB$1:$AB$445,A131,1))))<1000,IF(move1,IF(Calc!$A$90,INDEX(Motor!$AA$1:$AA$1223,A131,1),INDEX(LinMotor!$Y$1:$Y$1355,A131,1)),IF(Calc!$A$90,INDEX(Motor!$AD$1:$AD$1223,A131,1),INDEX(LinMotor!$AB$1:$AB$445,A131,1))),TEXT(IF(move1,IF(Calc!$A$90,INDEX(Motor!$AA$1:$AA$1223,A131,1),INDEX(LinMotor!$Y$1:$Y$1355,A131,1)),IF(Calc!$A$90,INDEX(Motor!$AD$1:$AD$1223,A131,1),INDEX(LinMotor!$AB$1:$AB$445,A131,1)))/1000,"0.0k")),"") -> 9 | K131: =IF(Calc!$A$90,INDEX(Motor!$AF$1:$AF$1223,A131,1),INDEX(LinMotor!$AD$1:$AD$1355,A131,1)) -> 0.208004518 | L131: =IF(Calc!$A$90,INDEX(Motor!$AG$1:$AG$1223,A131,1),INDEX(LinMotor!$AE$1:$AE$1355,A131,1)) -> 0.3057143941 | M131: =IF(Calc!$A$90,INDEX(Motor!$AH$1:$AH$1223,A131,1),INDEX(LinMotor!$AF$1:$AF$1355,A131,1)) -> 4.992108432 | N131: =IF(Calc!$A$90,INDEX(Motor!$AI$1:$AI$1223,A131,1),INDEX(LinMotor!$AG$1:$AG$1355,A131,1)) -> 14.67429092 | O131: =IF(A131<>2,IF(IF(Calc!$A$90,INDEX(Motor!$AK$1:$AK$1223,A131,1),INDEX(LinMotor!$AI$1:$AI$1355,A131,1))<1000,IF(Calc!$A$90,INDEX(Motor!$AK$1:$AK$1223,A131,1),INDEX(LinMotor!$AI$1:$AI$1355,A131,1)),TEXT(IF(Calc!$A$90,INDEX(Motor!$AK$1:$AK$1223,A131,1),INDEX(LinMotor!$AI$1:$AI$1355,A131,1))/1000,"0.0k")),"") -> 23.03476361 | P131: =IF(A131<>2,IF(IF(Calc!$A$90,INDEX(Motor!$AL$1:$AL$1223,A131,1),INDEX(LinMotor!$AJ$1:$AJ$1355,A131,1))<1000,IF(Calc!$A$90,INDEX(Motor!$AL$1:$AL$1223,A131,1),INDEX(LinMotor!$AJ$1:$AJ$1355,A131,1)),TEXT(IF(Calc!$A$90,INDEX(Motor!$AL$1:$AL$1223,A131,1),INDEX(LinMotor!$AJ$1:$AJ$1355,A131,1))/1000,"0.0k")),"") -> 2.416310763 | Q131: =IF(A131<>2,IF(IF(Calc!$A$90,INDEX(Motor!$AM$1:$AM$1223,A131,1),INDEX(LinMotor!$AK$1:$AK$1355,A131,1))<1000,IF(Calc!$A$90,INDEX(Motor!$AM$1:$AM$1223,A131,1),INDEX(LinMotor!$AK$1:$AK$1355,A131,1)),TEXT(IF(Calc!$A$90,INDEX(Motor!$AM$1:$AM$1223,A131,1),INDEX(LinMotor!$AK$1:$AK$1355,A131,1))/1000,"0.0k")),"") -> 148.0214075
A132: 59 | B132: =IF(Calc!$A$90,INDEX(Motor!$B$1:$B$1223,A132,1),INDEX(LinMotor!$B$1:$B$1341,A132,1)) -> AKM44G | C132: =IF(Calc!$A$90,INDEX(Motor!$T$1:$T$1223,A132,1),INDEX(LinMotor!$R$1:$R$1355,A132,1)) -> 416.6666667 | D132: =IF(Calc!$A$90,INDEX(Motor!$U$1:$U$1223,A132,1),INDEX(LinMotor!$S$1:$S$1355,A132,1)) -> 1.689664666 | E132: =IF(Calc!$A$90,INDEX(Motor!$V$1:$V$1223,A132,1),INDEX(LinMotor!$T$1:$T$1355,A132,1)) -> 1.435772307 | F132: =IF(Calc!$A$90,INDEX(Motor!$W$1:$W$1223,A132,1),INDEX(LinMotor!$U$1:$U$1355,A132,1)) -> 0.04315636093 | G132: =IF(A132<>2,IF(ABS(IF(Calc!$A$90,INDEX(Motor!$X$1:$X$1223,A132,1),INDEX(LinMotor!$V$1:$V$1355,A132,1)))<1000,IF(Calc!$A$90,INDEX(Motor!$X$1:$X$1223,A132,1),INDEX(LinMotor!$V$1:$V$1355,A132,1)),TEXT(IF(Calc!$A$90,INDEX(Motor!$X$1:$X$1223,A132,1),INDEX(LinMotor!$V$1:$V$1355,A132,1))/1000,"0.0k")),"") -> -22.57552818 | H132: =IF(A132<>2,IF(ABS(IF(move1,IF(Calc!$A$90,INDEX(Motor!$Y$1:$Y$1223,A132,1),INDEX(LinMotor!$W$1:$W$1355,A132,1)),IF(Calc!$A$90,INDEX(Motor!$Z$1:$Z$1068,A132,1),INDEX(LinMotor!$X$1:$X$1355,A132,1))))<1000,IF(move1,IF(Calc!$A$90,INDEX(Motor!$Y$1:$Y$1223,A132,1),INDEX(LinMotor!$W$1:$W$1355,A132,1)),IF(Calc!$A$90,INDEX(Motor!$Z$1:$Z$1223,A132,1),INDEX(LinMotor!$X$1:$X$1355,A132,1))),TEXT(IF(move1,IF(Calc!$A$90,INDEX(Motor!$Y$1:$Y$1223,A132,1),INDEX(LinMotor!$W$1:$W$1355,A132,1)),IF(Calc!$A$90,INDEX(Motor!$Z$1:$Z$1223,A132,1),INDEX(LinMotor!$X$1:$X$1355,A132,1)))/1000,"0.0k")),"") -> 9 | I132: =IF(A132<>2,IF(ABS(IF(move1,IF(Calc!$A$90,INDEX(Motor!$Z$1:$Z$1223,A132,1),INDEX(LinMotor!$X$1:$X$1355,A132,1)),IF(Calc!$A$90,INDEX(Motor!$AB$1:$AB$1223,A132,1),INDEX(LinMotor!$Z$1:$Z$1355,A132,1))))<1000,IF(move1,IF(Calc!$A$90,INDEX(Motor!$Z$1:$Z$1223,A132,1),INDEX(LinMotor!$X$1:$X$1355,A132,1)),IF(Calc!$A$90,INDEX(Motor!$AB$1:$AB$1223,A132,1),INDEX(LinMotor!$Z$1:$Z$1355,A132,1))),TEXT(IF(move1,IF(Calc!$A$90,INDEX(Motor!$Z$1:$Z$1223,A132,1),INDEX(LinMotor!$X$1:$X$1355,A132,1)),IF(Calc!$A$90,INDEX(Motor!$AB$1:$AB$1223,A132,1),INDEX(LinMotor!$Z$1:$Z$1355,A132,1)))/1000,"0.0k")),"") -> 29.14617782 | J132: =IF(A132<>2,IF(ABS(IF(move1,IF(Calc!$A$90,INDEX(Motor!$AA$1:$AA$1223,A132,1),INDEX(LinMotor!$Y$1:$Y$1355,A132,1)),IF(Calc!$A$90,INDEX(Motor!$AD$1:$AD$1223,A132,1),INDEX(LinMotor!$AB$1:$AB$445,A132,1))))<1000,IF(move1,IF(Calc!$A$90,INDEX(Motor!$AA$1:$AA$1223,A132,1),INDEX(LinMotor!$Y$1:$Y$1355,A132,1)),IF(Calc!$A$90,INDEX(Motor!$AD$1:$AD$1223,A132,1),INDEX(LinMotor!$AB$1:$AB$445,A132,1))),TEXT(IF(move1,IF(Calc!$A$90,INDEX(Motor!$AA$1:$AA$1223,A132,1),INDEX(LinMotor!$Y$1:$Y$1355,A132,1)),IF(Calc!$A$90,INDEX(Motor!$AD$1:$AD$1223,A132,1),INDEX(LinMotor!$AB$1:$AB$445,A132,1)))/1000,"0.0k")),"") -> 9 | K132: =IF(Calc!$A$90,INDEX(Motor!$AF$1:$AF$1223,A132,1),INDEX(LinMotor!$AD$1:$AD$1355,A132,1)) -> 0.3513095307 | L132: =IF(Calc!$A$90,INDEX(Motor!$AG$1:$AG$1223,A132,1),INDEX(LinMotor!$AE$1:$AE$1355,A132,1)) -> 0.516336767 | M132: =IF(Calc!$A$90,INDEX(Motor!$AH$1:$AH$1223,A132,1),INDEX(LinMotor!$AF$1:$AF$1355,A132,1)) -> 8.431428738 | N132: =IF(Calc!$A$90,INDEX(Motor!$AI$1:$AI$1223,A132,1),INDEX(LinMotor!$AG$1:$AG$1355,A132,1)) -> 24.78416482 | O132: =IF(A132<>2,IF(IF(Calc!$A$90,INDEX(Motor!$AK$1:$AK$1223,A132,1),INDEX(LinMotor!$AI$1:$AI$1355,A132,1))<1000,IF(Calc!$A$90,INDEX(Motor!$AK$1:$AK$1223,A132,1),INDEX(LinMotor!$AI$1:$AI$1355,A132,1)),TEXT(IF(Calc!$A$90,INDEX(Motor!$AK$1:$AK$1223,A132,1),INDEX(LinMotor!$AI$1:$AI$1355,A132,1))/1000,"0.0k")),"") -> 23.03476361 | P132: =IF(A132<>2,IF(IF(Calc!$A$90,INDEX(Motor!$AL$1:$AL$1223,A132,1),INDEX(LinMotor!$AJ$1:$AJ$1355,A132,1))<1000,IF(Calc!$A$90,INDEX(Motor!$AL$1:$AL$1223,A132,1),INDEX(LinMotor!$AJ$1:$AJ$1355,A132,1)),TEXT(IF(Calc!$A$90,INDEX(Motor!$AL$1:$AL$1223,A132,1),INDEX(LinMotor!$AJ$1:$AJ$1355,A132,1))/1000,"0.0k")),"") -> 2.416310763 | Q132: =IF(A132<>2,IF(IF(Calc!$A$90,INDEX(Motor!$AM$1:$AM$1223,A132,1),INDEX(LinMotor!$AK$1:$AK$1355,A132,1))<1000,IF(Calc!$A$90,INDEX(Motor!$AM$1:$AM$1223,A132,1),INDEX(LinMotor!$AK$1:$AK$1355,A132,1)),TEXT(IF(Calc!$A$90,INDEX(Motor!$AM$1:$AM$1223,A132,1),INDEX(LinMotor!$AK$1:$AK$1355,A132,1))/1000,"0.0k")),"") -> 148.0214075
A133: 60 | B133: =IF(Calc!$A$90,INDEX(Motor!$B$1:$B$1223,A133,1),INDEX(LinMotor!$B$1:$B$1341,A133,1)) -> AKM44H | C133: =IF(Calc!$A$90,INDEX(Motor!$T$1:$T$1223,A133,1),INDEX(LinMotor!$R$1:$R$1355,A133,1)) -> 416.6666667 | D133: =IF(Calc!$A$90,INDEX(Motor!$U$1:$U$1223,A133,1),INDEX(LinMotor!$S$1:$S$1355,A133,1)) -> 1.686853893 | E133: =IF(Calc!$A$90,INDEX(Motor!$V$1:$V$1223,A133,1),INDEX(LinMotor!$T$1:$T$1355,A133,1)) -> 1.44288009 | F133: =IF(Calc!$A$90,INDEX(Motor!$W$1:$W$1223,A133,1),INDEX(LinMotor!$U$1:$U$1355,A133,1)) -> 0.0380569176 | G133: =IF(A133<>2,IF(ABS(IF(Calc!$A$90,INDEX(Motor!$X$1:$X$1223,A133,1),INDEX(LinMotor!$V$1:$V$1355,A133,1)))<1000,IF(Calc!$A$90,INDEX(Motor!$X$1:$X$1223,A133,1),INDEX(LinMotor!$V$1:$V$1355,A133,1)),TEXT(IF(Calc!$A$90,INDEX(Motor!$X$1:$X$1223,A133,1),INDEX(LinMotor!$V$1:$V$1355,A133,1))/1000,"0.0k")),"") -> -22.57552818 | H133: =IF(A133<>2,IF(ABS(IF(move1,IF(Calc!$A$90,INDEX(Motor!$Y$1:$Y$1223,A133,1),INDEX(LinMotor!$W$1:$W$1355,A133,1)),IF(Calc!$A$90,INDEX(Motor!$Z$1:$Z$1068,A133,1),INDEX(LinMotor!$X$1:$X$1355,A133,1))))<1000,IF(move1,IF(Calc!$A$90,INDEX(Motor!$Y$1:$Y$1223,A133,1),INDEX(LinMotor!$W$1:$W$1355,A133,1)),IF(Calc!$A$90,INDEX(Motor!$Z$1:$Z$1223,A133,1),INDEX(LinMotor!$X$1:$X$1355,A133,1))),TEXT(IF(move1,IF(Calc!$A$90,INDEX(Motor!$Y$1:$Y$1223,A133,1),INDEX(LinMotor!$W$1:$W$1355,A133,1)),IF(Calc!$A$90,INDEX(Motor!$Z$1:$Z$1223,A133,1),INDEX(LinMotor!$X$1:$X$1355,A133,1)))/1000,"0.0k")),"") -> 9 | I133: =IF(A133<>2,IF(ABS(IF(move1,IF(Calc!$A$90,INDEX(Motor!$Z$1:$Z$1223,A133,1),INDEX(LinMotor!$X$1:$X$1355,A133,1)),IF(Calc!$A$90,INDEX(Motor!$AB$1:$AB$1223,A133,1),INDEX(LinMotor!$Z$1:$Z$1355,A133,1))))<1000,IF(move1,IF(Calc!$A$90,INDEX(Motor!$Z$1:$Z$1223,A133,1),INDEX(LinMotor!$X$1:$X$1355,A133,1)),IF(Calc!$A$90,INDEX(Motor!$AB$1:$AB$1223,A133,1),INDEX(LinMotor!$Z$1:$Z$1355,A133,1))),TEXT(IF(move1,IF(Calc!$A$90,INDEX(Motor!$Z$1:$Z$1223,A133,1),INDEX(LinMotor!$X$1:$X$1355,A133,1)),IF(Calc!$A$90,INDEX(Motor!$AB$1:$AB$1223,A133,1),INDEX(LinMotor!$Z$1:$Z$1355,A133,1)))/1000,"0.0k")),"") -> 29.14617782 | J133: =IF(A133<>2,IF(ABS(IF(move1,IF(Calc!$A$90,INDEX(Motor!$AA$1:$AA$1223,A133,1),INDEX(LinMotor!$Y$1:$Y$1355,A133,1)),IF(Calc!$A$90,INDEX(Motor!$AD$1:$AD$1223,A133,1),INDEX(LinMotor!$AB$1:$AB$445,A133,1))))<1000,IF(move1,IF(Calc!$A$90,INDEX(Motor!$AA$1:$AA$1223,A133,1),INDEX(LinMotor!$Y$1:$Y$1355,A133,1)),IF(Calc!$A$90,INDEX(Motor!$AD$1:$AD$1223,A133,1),INDEX(LinMotor!$AB$1:$AB$445,A133,1))),TEXT(IF(move1,IF(Calc!$A$90,INDEX(Motor!$AA$1:$AA$1223,A133,1),INDEX(LinMotor!$Y$1:$Y$1355,A133,1)),IF(Calc!$A$90,INDEX(Motor!$AD$1:$AD$1223,A133,1),INDEX(LinMotor!$AB$1:$AB$445,A133,1)))/1000,"0.0k")),"") -> 9 | K133: =IF(Calc!$A$90,INDEX(Motor!$AF$1:$AF$1223,A133,1),INDEX(LinMotor!$AD$1:$AD$1355,A133,1)) -> 0.3927986495 | L133: =IF(Calc!$A$90,INDEX(Motor!$AG$1:$AG$1223,A133,1),INDEX(LinMotor!$AE$1:$AE$1355,A133,1)) -> 0.5773153502 | M133: =IF(Calc!$A$90,INDEX(Motor!$AH$1:$AH$1223,A133,1),INDEX(LinMotor!$AF$1:$AF$1355,A133,1)) -> 9.427167588 | N133: =IF(Calc!$A$90,INDEX(Motor!$AI$1:$AI$1223,A133,1),INDEX(LinMotor!$AG$1:$AG$1355,A133,1)) -> 27.71113681 | O133: =IF(A133<>2,IF(IF(Calc!$A$90,INDEX(Motor!$AK$1:$AK$1223,A133,1),INDEX(LinMotor!$AI$1:$AI$1355,A133,1))<1000,IF(Calc!$A$90,INDEX(Motor!$AK$1:$AK$1223,A133,1),INDEX(LinMotor!$AI$1:$AI$1355,A133,1)),TEXT(IF(Calc!$A$90,INDEX(Motor!$AK$1:$AK$1223,A133,1),INDEX(LinMotor!$AI$1:$AI$1355,A133,1))/1000,"0.0k")),"") -> 23.03476361 | P133: =IF(A133<>2,IF(IF(Calc!$A$90,INDEX(Motor!$AL$1:$AL$1223,A133,1),INDEX(LinMotor!$AJ$1:$AJ$1355,A133,1))<1000,IF(Calc!$A$90,INDEX(Motor!$AL$1:$AL$1223,A133,1),INDEX(LinMotor!$AJ$1:$AJ$1355,A133,1)),TEXT(IF(Calc!$A$90,INDEX(Motor!$AL$1:$AL$1223,A133,1),INDEX(LinMotor!$AJ$1:$AJ$1355,A133,1))/1000,"0.0k")),"") -> 2.416310763 | Q133: =IF(A133<>2,IF(IF(Calc!$A$90,INDEX(Motor!$AM$1:$AM$1223,A133,1),INDEX(LinMotor!$AK$1:$AK$1355,A133,1))<1000,IF(Calc!$A$90,INDEX(Motor!$AM$1:$AM$1223,A133,1),INDEX(LinMotor!$AK$1:$AK$1355,A133,1)),TEXT(IF(Calc!$A$90,INDEX(Motor!$AM$1:$AM$1223,A133,1),INDEX(LinMotor!$AK$1:$AK$1355,A133,1))/1000,"0.0k")),"") -> 148.0214075
A134: 61 | B134: =IF(Calc!$A$90,INDEX(Motor!$B$1:$B$1223,A134,1),INDEX(LinMotor!$B$1:$B$1341,A134,1)) -> AKM44J | C134: =IF(Calc!$A$90,INDEX(Motor!$T$1:$T$1223,A134,1),INDEX(LinMotor!$R$1:$R$1355,A134,1)) -> 416.6666667 | D134: =IF(Calc!$A$90,INDEX(Motor!$U$1:$U$1223,A134,1),INDEX(LinMotor!$S$1:$S$1355,A134,1)) -> 1.65587659 | E134: =IF(Calc!$A$90,INDEX(Motor!$V$1:$V$1223,A134,1),INDEX(LinMotor!$T$1:$T$1355,A134,1)) -> 1.428734207 | F134: =IF(Calc!$A$90,INDEX(Motor!$W$1:$W$1223,A134,1),INDEX(LinMotor!$U$1:$U$1355,A134,1)) -> 0.02391712461 | G134: =IF(A134<>2,IF(ABS(IF(Calc!$A$90,INDEX(Motor!$X$1:$X$1223,A134,1),INDEX(LinMotor!$V$1:$V$1355,A134,1)))<1000,IF(Calc!$A$90,INDEX(Motor!$X$1:$X$1223,A134,1),INDEX(LinMotor!$V$1:$V$1355,A134,1)),TEXT(IF(Calc!$A$90,INDEX(Motor!$X$1:$X$1223,A134,1),INDEX(LinMotor!$V$1:$V$1355,A134,1))/1000,"0.0k")),"") -> -22.57552818 | H134: =IF(A134<>2,IF(ABS(IF(move1,IF(Calc!$A$90,INDEX(Motor!$Y$1:$Y$1223,A134,1),INDEX(LinMotor!$W$1:$W$1355,A134,1)),IF(Calc!$A$90,INDEX(Motor!$Z$1:$Z$1068,A134,1),INDEX(LinMotor!$X$1:$X$1355,A134,1))))<1000,IF(move1,IF(Calc!$A$90,INDEX(Motor!$Y$1:$Y$1223,A134,1),INDEX(LinMotor!$W$1:$W$1355,A134,1)),IF(Calc!$A$90,INDEX(Motor!$Z$1:$Z$1223,A134,1),INDEX(LinMotor!$X$1:$X$1355,A134,1))),TEXT(IF(move1,IF(Calc!$A$90,INDEX(Motor!$Y$1:$Y$1223,A134,1),INDEX(LinMotor!$W$1:$W$1355,A134,1)),IF(Calc!$A$90,INDEX(Motor!$Z$1:$Z$1223,A134,1),INDEX(LinMotor!$X$1:$X$1355,A134,1)))/1000,"0.0k")),"") -> 9 | I134: =IF(A134<>2,IF(ABS(IF(move1,IF(Calc!$A$90,INDEX(Motor!$Z$1:$Z$1223,A134,1),INDEX(LinMotor!$X$1:$X$1355,A134,1)),IF(Calc!$A$90,INDEX(Motor!$AB$1:$AB$1223,A134,1),INDEX(LinMotor!$Z$1:$Z$1355,A134,1))))<1000,IF(move1,IF(Calc!$A$90,INDEX(Motor!$Z$1:$Z$1223,A134,1),INDEX(LinMotor!$X$1:$X$1355,A134,1)),IF(Calc!$A$90,INDEX(Motor!$AB$1:$AB$1223,A134,1),INDEX(LinMotor!$Z$1:$Z$1355,A134,1))),TEXT(IF(move1,IF(Calc!$A$90,INDEX(Motor!$Z$1:$Z$1223,A134,1),INDEX(LinMotor!$X$1:$X$1355,A134,1)),IF(Calc!$A$90,INDEX(Motor!$AB$1:$AB$1223,A134,1),INDEX(LinMotor!$Z$1:$Z$1355,A134,1)))/1000,"0.0k")),"") -> 29.14617782 | J134: =IF(A134<>2,IF(ABS(IF(move1,IF(Calc!$A$90,INDEX(Motor!$AA$1:$AA$1223,A134,1),INDEX(LinMotor!$Y$1:$Y$1355,A134,1)),IF(Calc!$A$90,INDEX(Motor!$AD$1:$AD$1223,A134,1),INDEX(LinMotor!$AB$1:$AB$445,A134,1))))<1000,IF(move1,IF(Calc!$A$90,INDEX(Motor!$AA$1:$AA$1223,A134,1),INDEX(LinMotor!$Y$1:$Y$1355,A134,1)),IF(Calc!$A$90,INDEX(Motor!$AD$1:$AD$1223,A134,1),INDEX(LinMotor!$AB$1:$AB$445,A134,1))),TEXT(IF(move1,IF(Calc!$A$90,INDEX(Motor!$AA$1:$AA$1223,A134,1),INDEX(LinMotor!$Y$1:$Y$1355,A134,1)),IF(Calc!$A$90,INDEX(Motor!$AD$1:$AD$1223,A134,1),INDEX(LinMotor!$AB$1:$AB$445,A134,1)))/1000,"0.0k")),"") -> 9 | K134: =IF(Calc!$A$90,INDEX(Motor!$AF$1:$AF$1223,A134,1),INDEX(LinMotor!$AD$1:$AD$1355,A134,1)) -> 0.6059386786 | L134: =IF(Calc!$A$90,INDEX(Motor!$AG$1:$AG$1223,A134,1),INDEX(LinMotor!$AE$1:$AE$1355,A134,1)) -> 0.8905776557 | M134: =IF(Calc!$A$90,INDEX(Motor!$AH$1:$AH$1223,A134,1),INDEX(LinMotor!$AF$1:$AF$1355,A134,1)) -> 14.54252829 | N134: =IF(Calc!$A$90,INDEX(Motor!$AI$1:$AI$1223,A134,1),INDEX(LinMotor!$AG$1:$AG$1355,A134,1)) -> 42.74772748 | O134: =IF(A134<>2,IF(IF(Calc!$A$90,INDEX(Motor!$AK$1:$AK$1223,A134,1),INDEX(LinMotor!$AI$1:$AI$1355,A134,1))<1000,IF(Calc!$A$90,INDEX(Motor!$AK$1:$AK$1223,A134,1),INDEX(LinMotor!$AI$1:$AI$1355,A134,1)),TEXT(IF(Calc!$A$90,INDEX(Motor!$AK$1:$AK$1223,A134,1),INDEX(LinMotor!$AI$1:$AI$1355,A134,1))/1000,"0.0k")),"") -> 23.03476361 | P134: =IF(A134<>2,IF(IF(Calc!$A$90,INDEX(Motor!$AL$1:$AL$1223,A134,1),INDEX(LinMotor!$AJ$1:$AJ$1355,A134,1))<1000,IF(Calc!$A$90,INDEX(Motor!$AL$1:$AL$1223,A134,1),INDEX(LinMotor!$AJ$1:$AJ$1355,A134,1)),TEXT(IF(Calc!$A$90,INDEX(Motor!$AL$1:$AL$1223,A134,1),INDEX(LinMotor!$AJ$1:$AJ$1355,A134,1))/1000,"0.0k")),"") -> 2.416310763 | Q134: =IF(A134<>2,IF(IF(Calc!$A$90,INDEX(Motor!$AM$1:$AM$1223,A134,1),INDEX(LinMotor!$AK$1:$AK$1355,A134,1))<1000,IF(Calc!$A$90,INDEX(Motor!$AM$1:$AM$1223,A134,1),INDEX(LinMotor!$AK$1:$AK$1355,A134,1)),TEXT(IF(Calc!$A$90,INDEX(Motor!$AM$1:$AM$1223,A134,1),INDEX(LinMotor!$AK$1:$AK$1355,A134,1))/1000,"0.0k")),"") -> 148.0214075
A135: 62 | B135: =IF(Calc!$A$90,INDEX(Motor!$B$1:$B$1223,A135,1),INDEX(LinMotor!$B$1:$B$1341,A135,1)) -> AKM44K | C135: =IF(Calc!$A$90,INDEX(Motor!$T$1:$T$1223,A135,1),INDEX(LinMotor!$R$1:$R$1355,A135,1)) -> 416.6666667 | D135: =IF(Calc!$A$90,INDEX(Motor!$U$1:$U$1223,A135,1),INDEX(LinMotor!$S$1:$S$1355,A135,1)) -> 1.689728549 | E135: =IF(Calc!$A$90,INDEX(Motor!$V$1:$V$1223,A135,1),INDEX(LinMotor!$T$1:$T$1355,A135,1)) -> 1.450058598 | F135: =IF(Calc!$A$90,INDEX(Motor!$W$1:$W$1223,A135,1),INDEX(LinMotor!$U$1:$U$1355,A135,1)) -> 0.02122065908 | G135: =IF(A135<>2,IF(ABS(IF(Calc!$A$90,INDEX(Motor!$X$1:$X$1223,A135,1),INDEX(LinMotor!$V$1:$V$1355,A135,1)))<1000,IF(Calc!$A$90,INDEX(Motor!$X$1:$X$1223,A135,1),INDEX(LinMotor!$V$1:$V$1355,A135,1)),TEXT(IF(Calc!$A$90,INDEX(Motor!$X$1:$X$1223,A135,1),INDEX(LinMotor!$V$1:$V$1355,A135,1))/1000,"0.0k")),"") -> -22.57552818 | H135: =IF(A135<>2,IF(ABS(IF(move1,IF(Calc!$A$90,INDEX(Motor!$Y$1:$Y$1223,A135,1),INDEX(LinMotor!$W$1:$W$1355,A135,1)),IF(Calc!$A$90,INDEX(Motor!$Z$1:$Z$1068,A135,1),INDEX(LinMotor!$X$1:$X$1355,A135,1))))<1000,IF(move1,IF(Calc!$A$90,INDEX(Motor!$Y$1:$Y$1223,A135,1),INDEX(LinMotor!$W$1:$W$1355,A135,1)),IF(Calc!$A$90,INDEX(Motor!$Z$1:$Z$1223,A135,1),INDEX(LinMotor!$X$1:$X$1355,A135,1))),TEXT(IF(move1,IF(Calc!$A$90,INDEX(Motor!$Y$1:$Y$1223,A135,1),INDEX(LinMotor!$W$1:$W$1355,A135,1)),IF(Calc!$A$90,INDEX(Motor!$Z$1:$Z$1223,A135,1),INDEX(LinMotor!$X$1:$X$1355,A135,1)))/1000,"0.0k")),"") -> 9 | I135: =IF(A135<>2,IF(ABS(IF(move1,IF(Calc!$A$90,INDEX(Motor!$Z$1:$Z$1223,A135,1),INDEX(LinMotor!$X$1:$X$1355,A135,1)),IF(Calc!$A$90,INDEX(Motor!$AB$1:$AB$1223,A135,1),INDEX(LinMotor!$Z$1:$Z$1355,A135,1))))<1000,IF(move1,IF(Calc!$A$90,INDEX(Motor!$Z$1:$Z$1223,A135,1),INDEX(LinMotor!$X$1:$X$1355,A135,1)),IF(Calc!$A$90,INDEX(Motor!$AB$1:$AB$1223,A135,1),INDEX(LinMotor!$Z$1:$Z$1355,A135,1))),TEXT(IF(move1,IF(Calc!$A$90,INDEX(Motor!$Z$1:$Z$1223,A135,1),INDEX(LinMotor!$X$1:$X$1355,A135,1)),IF(Calc!$A$90,INDEX(Motor!$AB$1:$AB$1223,A135,1),INDEX(LinMotor!$Z$1:$Z$1355,A135,1)))/1000,"0.0k")),"") -> 29.14617782 | J135: =IF(A135<>2,IF(ABS(IF(move1,IF(Calc!$A$90,INDEX(Motor!$AA$1:$AA$1223,A135,1),INDEX(LinMotor!$Y$1:$Y$1355,A135,1)),IF(Calc!$A$90,INDEX(Motor!$AD$1:$AD$1223,A135,1),INDEX(LinMotor!$AB$1:$AB$445,A135,1))))<1000,IF(move1,IF(Calc!$A$90,INDEX(Motor!$AA$1:$AA$1223,A135,1),INDEX(LinMotor!$Y$1:$Y$1355,A135,1)),IF(Calc!$A$90,INDEX(Motor!$AD$1:$AD$1223,A135,1),INDEX(LinMotor!$AB$1:$AB$445,A135,1))),TEXT(IF(move1,IF(Calc!$A$90,INDEX(Motor!$AA$1:$AA$1223,A135,1),INDEX(LinMotor!$Y$1:$Y$1355,A135,1)),IF(Calc!$A$90,INDEX(Motor!$AD$1:$AD$1223,A135,1),INDEX(LinMotor!$AB$1:$AB$445,A135,1)))/1000,"0.0k")),"") -> 9 | K135: =IF(Calc!$A$90,INDEX(Motor!$AF$1:$AF$1223,A135,1),INDEX(LinMotor!$AD$1:$AD$1355,A135,1)) -> 0.7096452521 | L135: =IF(Calc!$A$90,INDEX(Motor!$AG$1:$AG$1223,A135,1),INDEX(LinMotor!$AE$1:$AE$1355,A135,1)) -> 1.043000269 | M135: =IF(Calc!$A$90,INDEX(Motor!$AH$1:$AH$1223,A135,1),INDEX(LinMotor!$AF$1:$AF$1355,A135,1)) -> 17.03148605 | N135: =IF(Calc!$A$90,INDEX(Motor!$AI$1:$AI$1223,A135,1),INDEX(LinMotor!$AG$1:$AG$1355,A135,1)) -> 50.06401293 | O135: =IF(A135<>2,IF(IF(Calc!$A$90,INDEX(Motor!$AK$1:$AK$1223,A135,1),INDEX(LinMotor!$AI$1:$AI$1355,A135,1))<1000,IF(Calc!$A$90,INDEX(Motor!$AK$1:$AK$1223,A135,1),INDEX(LinMotor!$AI$1:$AI$1355,A135,1)),TEXT(IF(Calc!$A$90,INDEX(Motor!$AK$1:$AK$1223,A135,1),INDEX(LinMotor!$AI$1:$AI$1355,A135,1))/1000,"0.0k")),"") -> 23.03476361 | P135: =IF(A135<>2,IF(IF(Calc!$A$90,INDEX(Motor!$AL$1:$AL$1223,A135,1),INDEX(LinMotor!$AJ$1:$AJ$1355,A135,1))<1000,IF(Calc!$A$90,INDEX(Motor!$AL$1:$AL$1223,A135,1),INDEX(LinMotor!$AJ$1:$AJ$1355,A135,1)),TEXT(IF(Calc!$A$90,INDEX(Motor!$AL$1:$AL$1223,A135,1),INDEX(LinMotor!$AJ$1:$AJ$1355,A135,1))/1000,"0.0k")),"") -> 2.416310763 | Q135: =IF(A135<>2,IF(IF(Calc!$A$90,INDEX(Motor!$AM$1:$AM$1223,A135,1),INDEX(LinMotor!$AK$1:$AK$1355,A135,1))<1000,IF(Calc!$A$90,INDEX(Motor!$AM$1:$AM$1223,A135,1),INDEX(LinMotor!$AK$1:$AK$1355,A135,1)),TEXT(IF(Calc!$A$90,INDEX(Motor!$AM$1:$AM$1223,A135,1),INDEX(LinMotor!$AK$1:$AK$1355,A135,1))/1000,"0.0k")),"") -> 148.0214075
A136: 63 | B136: =IF(Calc!$A$90,INDEX(Motor!$B$1:$B$1223,A136,1),INDEX(LinMotor!$B$1:$B$1341,A136,1)) -> AKM51E | C136: =IF(Calc!$A$90,INDEX(Motor!$T$1:$T$1223,A136,1),INDEX(LinMotor!$R$1:$R$1355,A136,1)) -> 330.8823529 | D136: =IF(Calc!$A$90,INDEX(Motor!$U$1:$U$1223,A136,1),INDEX(LinMotor!$S$1:$S$1355,A136,1)) -> 2.112783946 | E136: =IF(Calc!$A$90,INDEX(Motor!$V$1:$V$1223,A136,1),INDEX(LinMotor!$T$1:$T$1355,A136,1)) -> 2.513840121 | F136: =IF(Calc!$A$90,INDEX(Motor!$W$1:$W$1223,A136,1),INDEX(LinMotor!$U$1:$U$1355,A136,1)) -> 0.08947168168 | G136: =IF(A136<>2,IF(ABS(IF(Calc!$A$90,INDEX(Motor!$X$1:$X$1223,A136,1),INDEX(LinMotor!$V$1:$V$1355,A136,1)))<1000,IF(Calc!$A$90,INDEX(Motor!$X$1:$X$1223,A136,1),INDEX(LinMotor!$V$1:$V$1355,A136,1)),TEXT(IF(Calc!$A$90,INDEX(Motor!$X$1:$X$1223,A136,1),INDEX(LinMotor!$V$1:$V$1355,A136,1))/1000,"0.0k")),"") -> -22.59326594 | H136: =IF(A136<>2,IF(ABS(IF(move1,IF(Calc!$A$90,INDEX(Motor!$Y$1:$Y$1223,A136,1),INDEX(LinMotor!$W$1:$W$1355,A136,1)),IF(Calc!$A$90,INDEX(Motor!$Z$1:$Z$1068,A136,1),INDEX(LinMotor!$X$1:$X$1355,A136,1))))<1000,IF(move1,IF(Calc!$A$90,INDEX(Motor!$Y$1:$Y$1223,A136,1),INDEX(LinMotor!$W$1:$W$1355,A136,1)),IF(Calc!$A$90,INDEX(Motor!$Z$1:$Z$1223,A136,1),INDEX(LinMotor!$X$1:$X$1355,A136,1))),TEXT(IF(move1,IF(Calc!$A$90,INDEX(Motor!$Y$1:$Y$1223,A136,1),INDEX(LinMotor!$W$1:$W$1355,A136,1)),IF(Calc!$A$90,INDEX(Motor!$Z$1:$Z$1223,A136,1),INDEX(LinMotor!$X$1:$X$1355,A136,1)))/1000,"0.0k")),"") -> 9 | I136: =IF(A136<>2,IF(ABS(IF(move1,IF(Calc!$A$90,INDEX(Motor!$Z$1:$Z$1223,A136,1),INDEX(LinMotor!$X$1:$X$1355,A136,1)),IF(Calc!$A$90,INDEX(Motor!$AB$1:$AB$1223,A136,1),INDEX(LinMotor!$Z$1:$Z$1355,A136,1))))<1000,IF(move1,IF(Calc!$A$90,INDEX(Motor!$Z$1:$Z$1223,A136,1),INDEX(LinMotor!$X$1:$X$1355,A136,1)),IF(Calc!$A$90,INDEX(Motor!$AB$1:$AB$1223,A136,1),INDEX(LinMotor!$Z$1:$Z$1355,A136,1))),TEXT(IF(move1,IF(Calc!$A$90,INDEX(Motor!$Z$1:$Z$1223,A136,1),INDEX(LinMotor!$X$1:$X$1355,A136,1)),IF(Calc!$A$90,INDEX(Motor!$AB$1:$AB$1223,A136,1),INDEX(LinMotor!$Z$1:$Z$1355,A136,1)))/1000,"0.0k")),"") -> 29.16054541 | J136: =IF(A136<>2,IF(ABS(IF(move1,IF(Calc!$A$90,INDEX(Motor!$AA$1:$AA$1223,A136,1),INDEX(LinMotor!$Y$1:$Y$1355,A136,1)),IF(Calc!$A$90,INDEX(Motor!$AD$1:$AD$1223,A136,1),INDEX(LinMotor!$AB$1:$AB$445,A136,1))))<1000,IF(move1,IF(Calc!$A$90,INDEX(Motor!$AA$1:$AA$1223,A136,1),INDEX(LinMotor!$Y$1:$Y$1355,A136,1)),IF(Calc!$A$90,INDEX(Motor!$AD$1:$AD$1223,A136,1),INDEX(LinMotor!$AB$1:$AB$445,A136,1))),TEXT(IF(move1,IF(Calc!$A$90,INDEX(Motor!$AA$1:$AA$1223,A136,1),INDEX(LinMotor!$Y$1:$Y$1355,A136,1)),IF(Calc!$A$90,INDEX(Motor!$AD$1:$AD$1223,A136,1),INDEX(LinMotor!$AB$1:$AB$445,A136,1)))/1000,"0.0k")),"") -> 9 | K136: =IF(Calc!$A$90,INDEX(Motor!$AF$1:$AF$1223,A136,1),INDEX(LinMotor!$AD$1:$AD$1355,A136,1)) -> 0.2417607106 | L136: =IF(Calc!$A$90,INDEX(Motor!$AG$1:$AG$1223,A136,1),INDEX(LinMotor!$AE$1:$AE$1355,A136,1)) -> 0.355458776 | M136: =IF(Calc!$A$90,INDEX(Motor!$AH$1:$AH$1223,A136,1),INDEX(LinMotor!$AF$1:$AF$1355,A136,1)) -> 5.802257053 | N136: =IF(Calc!$A$90,INDEX(Motor!$AI$1:$AI$1223,A136,1),INDEX(LinMotor!$AG$1:$AG$1355,A136,1)) -> 17.06202125 | O136: =IF(A136<>2,IF(IF(Calc!$A$90,INDEX(Motor!$AK$1:$AK$1223,A136,1),INDEX(LinMotor!$AI$1:$AI$1355,A136,1))<1000,IF(Calc!$A$90,INDEX(Motor!$AK$1:$AK$1223,A136,1),INDEX(LinMotor!$AI$1:$AI$1355,A136,1)),TEXT(IF(Calc!$A$90,INDEX(Motor!$AK$1:$AK$1223,A136,1),INDEX(LinMotor!$AI$1:$AI$1355,A136,1))/1000,"0.0k")),"") -> 23.0376085 | P136: =IF(A136<>2,IF(IF(Calc!$A$90,INDEX(Motor!$AL$1:$AL$1223,A136,1),INDEX(LinMotor!$AJ$1:$AJ$1355,A136,1))<1000,IF(Calc!$A$90,INDEX(Motor!$AL$1:$AL$1223,A136,1),INDEX(LinMotor!$AJ$1:$AJ$1355,A136,1)),TEXT(IF(Calc!$A$90,INDEX(Motor!$AL$1:$AL$1223,A136,1),INDEX(LinMotor!$AJ$1:$AJ$1355,A136,1))/1000,"0.0k")),"") -> 2.418768559 | Q136: =IF(A136<>2,IF(IF(Calc!$A$90,INDEX(Motor!$AM$1:$AM$1223,A136,1),INDEX(LinMotor!$AK$1:$AK$1355,A136,1))<1000,IF(Calc!$A$90,INDEX(Motor!$AM$1:$AM$1223,A136,1),INDEX(LinMotor!$AK$1:$AK$1355,A136,1)),TEXT(IF(Calc!$A$90,INDEX(Motor!$AM$1:$AM$1223,A136,1),INDEX(LinMotor!$AK$1:$AK$1355,A136,1))/1000,"0.0k")),"") -> 148.1719702
A137: 64 | B137: =IF(Calc!$A$90,INDEX(Motor!$B$1:$B$1223,A137,1),INDEX(LinMotor!$B$1:$B$1341,A137,1)) -> AKM51G | C137: =IF(Calc!$A$90,INDEX(Motor!$T$1:$T$1223,A137,1),INDEX(LinMotor!$R$1:$R$1355,A137,1)) -> 330.8823529 | D137: =IF(Calc!$A$90,INDEX(Motor!$U$1:$U$1223,A137,1),INDEX(LinMotor!$S$1:$S$1355,A137,1)) -> 2.091864309 | E137: =IF(Calc!$A$90,INDEX(Motor!$V$1:$V$1223,A137,1),INDEX(LinMotor!$T$1:$T$1355,A137,1)) -> 2.492354308 | F137: =IF(Calc!$A$90,INDEX(Motor!$W$1:$W$1223,A137,1),INDEX(LinMotor!$U$1:$U$1355,A137,1)) -> 0.04805589789 | G137: =IF(A137<>2,IF(ABS(IF(Calc!$A$90,INDEX(Motor!$X$1:$X$1223,A137,1),INDEX(LinMotor!$V$1:$V$1355,A137,1)))<1000,IF(Calc!$A$90,INDEX(Motor!$X$1:$X$1223,A137,1),INDEX(LinMotor!$V$1:$V$1355,A137,1)),TEXT(IF(Calc!$A$90,INDEX(Motor!$X$1:$X$1223,A137,1),INDEX(LinMotor!$V$1:$V$1355,A137,1))/1000,"0.0k")),"") -> -22.59326594 | H137: =IF(A137<>2,IF(ABS(IF(move1,IF(Calc!$A$90,INDEX(Motor!$Y$1:$Y$1223,A137,1),INDEX(LinMotor!$W$1:$W$1355,A137,1)),IF(Calc!$A$90,INDEX(Motor!$Z$1:$Z$1068,A137,1),INDEX(LinMotor!$X$1:$X$1355,A137,1))))<1000,IF(move1,IF(Calc!$A$90,INDEX(Motor!$Y$1:$Y$1223,A137,1),INDEX(LinMotor!$W$1:$W$1355,A137,1)),IF(Calc!$A$90,INDEX(Motor!$Z$1:$Z$1223,A137,1),INDEX(LinMotor!$X$1:$X$1355,A137,1))),TEXT(IF(move1,IF(Calc!$A$90,INDEX(Motor!$Y$1:$Y$1223,A137,1),INDEX(LinMotor!$W$1:$W$1355,A137,1)),IF(Calc!$A$90,INDEX(Motor!$Z$1:$Z$1223,A137,1),INDEX(LinMotor!$X$1:$X$1355,A137,1)))/1000,"0.0k")),"") -> 9 | I137: =IF(A137<>2,IF(ABS(IF(move1,IF(Calc!$A$90,INDEX(Motor!$Z$1:$Z$1223,A137,1),INDEX(LinMotor!$X$1:$X$1355,A137,1)),IF(Calc!$A$90,INDEX(Motor!$AB$1:$AB$1223,A137,1),INDEX(LinMotor!$Z$1:$Z$1355,A137,1))))<1000,IF(move1,IF(Calc!$A$90,INDEX(Motor!$Z$1:$Z$1223,A137,1),INDEX(LinMotor!$X$1:$X$1355,A137,1)),IF(Calc!$A$90,INDEX(Motor!$AB$1:$AB$1223,A137,1),INDEX(LinMotor!$Z$1:$Z$1355,A137,1))),TEXT(IF(move1,IF(Calc!$A$90,INDEX(Motor!$Z$1:$Z$1223,A137,1),INDEX(LinMotor!$X$1:$X$1355,A137,1)),IF(Calc!$A$90,INDEX(Motor!$AB$1:$AB$1223,A137,1),INDEX(LinMotor!$Z$1:$Z$1355,A137,1)))/1000,"0.0k")),"") -> 29.16054541 | J137: =IF(A137<>2,IF(ABS(IF(move1,IF(Calc!$A$90,INDEX(Motor!$AA$1:$AA$1223,A137,1),INDEX(LinMotor!$Y$1:$Y$1355,A137,1)),IF(Calc!$A$90,INDEX(Motor!$AD$1:$AD$1223,A137,1),INDEX(LinMotor!$AB$1:$AB$445,A137,1))))<1000,IF(move1,IF(Calc!$A$90,INDEX(Motor!$AA$1:$AA$1223,A137,1),INDEX(LinMotor!$Y$1:$Y$1355,A137,1)),IF(Calc!$A$90,INDEX(Motor!$AD$1:$AD$1223,A137,1),INDEX(LinMotor!$AB$1:$AB$445,A137,1))),TEXT(IF(move1,IF(Calc!$A$90,INDEX(Motor!$AA$1:$AA$1223,A137,1),INDEX(LinMotor!$Y$1:$Y$1355,A137,1)),IF(Calc!$A$90,INDEX(Motor!$AD$1:$AD$1223,A137,1),INDEX(LinMotor!$AB$1:$AB$445,A137,1)))/1000,"0.0k")),"") -> 9 | K137: =IF(Calc!$A$90,INDEX(Motor!$AF$1:$AF$1223,A137,1),INDEX(LinMotor!$AD$1:$AD$1355,A137,1)) -> 0.4210199153 | L137: =IF(Calc!$A$90,INDEX(Motor!$AG$1:$AG$1223,A137,1),INDEX(LinMotor!$AE$1:$AE$1355,A137,1)) -> 0.6190221043 | M137: =IF(Calc!$A$90,INDEX(Motor!$AH$1:$AH$1223,A137,1),INDEX(LinMotor!$AF$1:$AF$1355,A137,1)) -> 10.10447797 | N137: =IF(Calc!$A$90,INDEX(Motor!$AI$1:$AI$1223,A137,1),INDEX(LinMotor!$AG$1:$AG$1355,A137,1)) -> 29.71306101 | O137: =IF(A137<>2,IF(IF(Calc!$A$90,INDEX(Motor!$AK$1:$AK$1223,A137,1),INDEX(LinMotor!$AI$1:$AI$1355,A137,1))<1000,IF(Calc!$A$90,INDEX(Motor!$AK$1:$AK$1223,A137,1),INDEX(LinMotor!$AI$1:$AI$1355,A137,1)),TEXT(IF(Calc!$A$90,INDEX(Motor!$AK$1:$AK$1223,A137,1),INDEX(LinMotor!$AI$1:$AI$1355,A137,1))/1000,"0.0k")),"") -> 23.0376085 | P137: =IF(A137<>2,IF(IF(Calc!$A$90,INDEX(Motor!$AL$1:$AL$1223,A137,1),INDEX(LinMotor!$AJ$1:$AJ$1355,A137,1))<1000,IF(Calc!$A$90,INDEX(Motor!$AL$1:$AL$1223,A137,1),INDEX(LinMotor!$AJ$1:$AJ$1355,A137,1)),TEXT(IF(Calc!$A$90,INDEX(Motor!$AL$1:$AL$1223,A137,1),INDEX(LinMotor!$AJ$1:$AJ$1355,A137,1))/1000,"0.0k")),"") -> 2.418768559 | Q137: =IF(A137<>2,IF(IF(Calc!$A$90,INDEX(Motor!$AM$1:$AM$1223,A137,1),INDEX(LinMotor!$AK$1:$AK$1355,A137,1))<1000,IF(Calc!$A$90,INDEX(Motor!$AM$1:$AM$1223,A137,1),INDEX(LinMotor!$AK$1:$AK$1355,A137,1)),TEXT(IF(Calc!$A$90,INDEX(Motor!$AM$1:$AM$1223,A137,1),INDEX(LinMotor!$AK$1:$AK$1355,A137,1))/1000,"0.0k")),"") -> 148.1719702
A138: 65 | B138: =IF(Calc!$A$90,INDEX(Motor!$B$1:$B$1223,A138,1),INDEX(LinMotor!$B$1:$B$1341,A138,1)) -> AKM51H | C138: =IF(Calc!$A$90,INDEX(Motor!$T$1:$T$1223,A138,1),INDEX(LinMotor!$R$1:$R$1355,A138,1)) -> 330.8823529 | D138: =IF(Calc!$A$90,INDEX(Motor!$U$1:$U$1223,A138,1),INDEX(LinMotor!$S$1:$S$1355,A138,1)) -> 2.07481695 | E138: =IF(Calc!$A$90,INDEX(Motor!$V$1:$V$1223,A138,1),INDEX(LinMotor!$T$1:$T$1355,A138,1)) -> 2.492354308 | F138: =IF(Calc!$A$90,INDEX(Motor!$W$1:$W$1223,A138,1),INDEX(LinMotor!$U$1:$U$1355,A138,1)) -> 0.0382464191 | G138: =IF(A138<>2,IF(ABS(IF(Calc!$A$90,INDEX(Motor!$X$1:$X$1223,A138,1),INDEX(LinMotor!$V$1:$V$1355,A138,1)))<1000,IF(Calc!$A$90,INDEX(Motor!$X$1:$X$1223,A138,1),INDEX(LinMotor!$V$1:$V$1355,A138,1)),TEXT(IF(Calc!$A$90,INDEX(Motor!$X$1:$X$1223,A138,1),INDEX(LinMotor!$V$1:$V$1355,A138,1))/1000,"0.0k")),"") -> -22.59326594 | H138: =IF(A138<>2,IF(ABS(IF(move1,IF(Calc!$A$90,INDEX(Motor!$Y$1:$Y$1223,A138,1),INDEX(LinMotor!$W$1:$W$1355,A138,1)),IF(Calc!$A$90,INDEX(Motor!$Z$1:$Z$1068,A138,1),INDEX(LinMotor!$X$1:$X$1355,A138,1))))<1000,IF(move1,IF(Calc!$A$90,INDEX(Motor!$Y$1:$Y$1223,A138,1),INDEX(LinMotor!$W$1:$W$1355,A138,1)),IF(Calc!$A$90,INDEX(Motor!$Z$1:$Z$1223,A138,1),INDEX(LinMotor!$X$1:$X$1355,A138,1))),TEXT(IF(move1,IF(Calc!$A$90,INDEX(Motor!$Y$1:$Y$1223,A138,1),INDEX(LinMotor!$W$1:$W$1355,A138,1)),IF(Calc!$A$90,INDEX(Motor!$Z$1:$Z$1223,A138,1),INDEX(LinMotor!$X$1:$X$1355,A138,1)))/1000,"0.0k")),"") -> 9 | I138: =IF(A138<>2,IF(ABS(IF(move1,IF(Calc!$A$90,INDEX(Motor!$Z$1:$Z$1223,A138,1),INDEX(LinMotor!$X$1:$X$1355,A138,1)),IF(Calc!$A$90,INDEX(Motor!$AB$1:$AB$1223,A138,1),INDEX(LinMotor!$Z$1:$Z$1355,A138,1))))<1000,IF(move1,IF(Calc!$A$90,INDEX(Motor!$Z$1:$Z$1223,A138,1),INDEX(LinMotor!$X$1:$X$1355,A138,1)),IF(Calc!$A$90,INDEX(Motor!$AB$1:$AB$1223,A138,1),INDEX(LinMotor!$Z$1:$Z$1355,A138,1))),TEXT(IF(move1,IF(Calc!$A$90,INDEX(Motor!$Z$1:$Z$1223,A138,1),INDEX(LinMotor!$X$1:$X$1355,A138,1)),IF(Calc!$A$90,INDEX(Motor!$AB$1:$AB$1223,A138,1),INDEX(LinMotor!$Z$1:$Z$1355,A138,1)))/1000,"0.0k")),"") -> 29.16054541 | J138: =IF(A138<>2,IF(ABS(IF(move1,IF(Calc!$A$90,INDEX(Motor!$AA$1:$AA$1223,A138,1),INDEX(LinMotor!$Y$1:$Y$1355,A138,1)),IF(Calc!$A$90,INDEX(Motor!$AD$1:$AD$1223,A138,1),INDEX(LinMotor!$AB$1:$AB$445,A138,1))))<1000,IF(move1,IF(Calc!$A$90,INDEX(Motor!$AA$1:$AA$1223,A138,1),INDEX(LinMotor!$Y$1:$Y$1355,A138,1)),IF(Calc!$A$90,INDEX(Motor!$AD$1:$AD$1223,A138,1),INDEX(LinMotor!$AB$1:$AB$445,A138,1))),TEXT(IF(move1,IF(Calc!$A$90,INDEX(Motor!$AA$1:$AA$1223,A138,1),INDEX(LinMotor!$Y$1:$Y$1355,A138,1)),IF(Calc!$A$90,INDEX(Motor!$AD$1:$AD$1223,A138,1),INDEX(LinMotor!$AB$1:$AB$445,A138,1)))/1000,"0.0k")),"") -> 9 | K138: =IF(Calc!$A$90,INDEX(Motor!$AF$1:$AF$1223,A138,1),INDEX(LinMotor!$AD$1:$AD$1355,A138,1)) -> 0.5175670554 | L138: =IF(Calc!$A$90,INDEX(Motor!$AG$1:$AG$1223,A138,1),INDEX(LinMotor!$AE$1:$AE$1355,A138,1)) -> 0.760974567 | M138: =IF(Calc!$A$90,INDEX(Motor!$AH$1:$AH$1223,A138,1),INDEX(LinMotor!$AF$1:$AF$1355,A138,1)) -> 12.42160933 | N138: =IF(Calc!$A$90,INDEX(Motor!$AI$1:$AI$1223,A138,1),INDEX(LinMotor!$AG$1:$AG$1355,A138,1)) -> 36.52677922 | O138: =IF(A138<>2,IF(IF(Calc!$A$90,INDEX(Motor!$AK$1:$AK$1223,A138,1),INDEX(LinMotor!$AI$1:$AI$1355,A138,1))<1000,IF(Calc!$A$90,INDEX(Motor!$AK$1:$AK$1223,A138,1),INDEX(LinMotor!$AI$1:$AI$1355,A138,1)),TEXT(IF(Calc!$A$90,INDEX(Motor!$AK$1:$AK$1223,A138,1),INDEX(LinMotor!$AI$1:$AI$1355,A138,1))/1000,"0.0k")),"") -> 23.0376085 | P138: =IF(A138<>2,IF(IF(Calc!$A$90,INDEX(Motor!$AL$1:$AL$1223,A138,1),INDEX(LinMotor!$AJ$1:$AJ$1355,A138,1))<1000,IF(Calc!$A$90,INDEX(Motor!$AL$1:$AL$1223,A138,1),INDEX(LinMotor!$AJ$1:$AJ$1355,A138,1)),TEXT(IF(Calc!$A$90,INDEX(Motor!$AL$1:$AL$1223,A138,1),INDEX(LinMotor!$AJ$1:$AJ$1355,A138,1))/1000,"0.0k")),"") -> 2.418768559 | Q138: =IF(A138<>2,IF(IF(Calc!$A$90,INDEX(Motor!$AM$1:$AM$1223,A138,1),INDEX(LinMotor!$AK$1:$AK$1355,A138,1))<1000,IF(Calc!$A$90,INDEX(Motor!$AM$1:$AM$1223,A138,1),INDEX(LinMotor!$AK$1:$AK$1355,A138,1)),TEXT(IF(Calc!$A$90,INDEX(Motor!$AM$1:$AM$1223,A138,1),INDEX(LinMotor!$AK$1:$AK$1355,A138,1))/1000,"0.0k")),"") -> 148.1719702
A139: 66 | B139: =IF(Calc!$A$90,INDEX(Motor!$B$1:$B$1223,A139,1),INDEX(LinMotor!$B$1:$B$1341,A139,1)) -> AKM51I | C139: =IF(Calc!$A$90,INDEX(Motor!$T$1:$T$1223,A139,1),INDEX(LinMotor!$R$1:$R$1355,A139,1)) -> 330.8823529 | D139: =IF(Calc!$A$90,INDEX(Motor!$U$1:$U$1223,A139,1),INDEX(LinMotor!$S$1:$S$1355,A139,1)) -> 2.057628334 | E139: =IF(Calc!$A$90,INDEX(Motor!$V$1:$V$1223,A139,1),INDEX(LinMotor!$T$1:$T$1355,A139,1)) -> 2.471232662 | F139: =IF(Calc!$A$90,INDEX(Motor!$W$1:$W$1223,A139,1),INDEX(LinMotor!$U$1:$U$1355,A139,1)) -> 0.03051085844 | G139: =IF(A139<>2,IF(ABS(IF(Calc!$A$90,INDEX(Motor!$X$1:$X$1223,A139,1),INDEX(LinMotor!$V$1:$V$1355,A139,1)))<1000,IF(Calc!$A$90,INDEX(Motor!$X$1:$X$1223,A139,1),INDEX(LinMotor!$V$1:$V$1355,A139,1)),TEXT(IF(Calc!$A$90,INDEX(Motor!$X$1:$X$1223,A139,1),INDEX(LinMotor!$V$1:$V$1355,A139,1))/1000,"0.0k")),"") -> -22.59326594 | H139: =IF(A139<>2,IF(ABS(IF(move1,IF(Calc!$A$90,INDEX(Motor!$Y$1:$Y$1223,A139,1),INDEX(LinMotor!$W$1:$W$1355,A139,1)),IF(Calc!$A$90,INDEX(Motor!$Z$1:$Z$1068,A139,1),INDEX(LinMotor!$X$1:$X$1355,A139,1))))<1000,IF(move1,IF(Calc!$A$90,INDEX(Motor!$Y$1:$Y$1223,A139,1),INDEX(LinMotor!$W$1:$W$1355,A139,1)),IF(Calc!$A$90,INDEX(Motor!$Z$1:$Z$1223,A139,1),INDEX(LinMotor!$X$1:$X$1355,A139,1))),TEXT(IF(move1,IF(Calc!$A$90,INDEX(Motor!$Y$1:$Y$1223,A139,1),INDEX(LinMotor!$W$1:$W$1355,A139,1)),IF(Calc!$A$90,INDEX(Motor!$Z$1:$Z$1223,A139,1),INDEX(LinMotor!$X$1:$X$1355,A139,1)))/1000,"0.0k")),"") -> 9 | I139: =IF(A139<>2,IF(ABS(IF(move1,IF(Calc!$A$90,INDEX(Motor!$Z$1:$Z$1223,A139,1),INDEX(LinMotor!$X$1:$X$1355,A139,1)),IF(Calc!$A$90,INDEX(Motor!$AB$1:$AB$1223,A139,1),INDEX(LinMotor!$Z$1:$Z$1355,A139,1))))<1000,IF(move1,IF(Calc!$A$90,INDEX(Motor!$Z$1:$Z$1223,A139,1),INDEX(LinMotor!$X$1:$X$1355,A139,1)),IF(Calc!$A$90,INDEX(Motor!$AB$1:$AB$1223,A139,1),INDEX(LinMotor!$Z$1:$Z$1355,A139,1))),TEXT(IF(move1,IF(Calc!$A$90,INDEX(Motor!$Z$1:$Z$1223,A139,1),INDEX(LinMotor!$X$1:$X$1355,A139,1)),IF(Calc!$A$90,INDEX(Motor!$AB$1:$AB$1223,A139,1),INDEX(LinMotor!$Z$1:$Z$1355,A139,1)))/1000,"0.0k")),"") -> 29.16054541 | J139: =IF(A139<>2,IF(ABS(IF(move1,IF(Calc!$A$90,INDEX(Motor!$AA$1:$AA$1223,A139,1),INDEX(LinMotor!$Y$1:$Y$1355,A139,1)),IF(Calc!$A$90,INDEX(Motor!$AD$1:$AD$1223,A139,1),INDEX(LinMotor!$AB$1:$AB$445,A139,1))))<1000,IF(move1,IF(Calc!$A$90,INDEX(Motor!$AA$1:$AA$1223,A139,1),INDEX(LinMotor!$Y$1:$Y$1355,A139,1)),IF(Calc!$A$90,INDEX(Motor!$AD$1:$AD$1223,A139,1),INDEX(LinMotor!$AB$1:$AB$445,A139,1))),TEXT(IF(move1,IF(Calc!$A$90,INDEX(Motor!$AA$1:$AA$1223,A139,1),INDEX(LinMotor!$Y$1:$Y$1355,A139,1)),IF(Calc!$A$90,INDEX(Motor!$AD$1:$AD$1223,A139,1),INDEX(LinMotor!$AB$1:$AB$445,A139,1)))/1000,"0.0k")),"") -> 9 | K139: =IF(Calc!$A$90,INDEX(Motor!$AF$1:$AF$1223,A139,1),INDEX(LinMotor!$AD$1:$AD$1355,A139,1)) -> 0.6416009823 | L139: =IF(Calc!$A$90,INDEX(Motor!$AG$1:$AG$1223,A139,1),INDEX(LinMotor!$AE$1:$AE$1355,A139,1)) -> 0.9433406253 | M139: =IF(Calc!$A$90,INDEX(Motor!$AH$1:$AH$1223,A139,1),INDEX(LinMotor!$AF$1:$AF$1355,A139,1)) -> 15.39842358 | N139: =IF(Calc!$A$90,INDEX(Motor!$AI$1:$AI$1223,A139,1),INDEX(LinMotor!$AG$1:$AG$1355,A139,1)) -> 45.28035001 | O139: =IF(A139<>2,IF(IF(Calc!$A$90,INDEX(Motor!$AK$1:$AK$1223,A139,1),INDEX(LinMotor!$AI$1:$AI$1355,A139,1))<1000,IF(Calc!$A$90,INDEX(Motor!$AK$1:$AK$1223,A139,1),INDEX(LinMotor!$AI$1:$AI$1355,A139,1)),TEXT(IF(Calc!$A$90,INDEX(Motor!$AK$1:$AK$1223,A139,1),INDEX(LinMotor!$AI$1:$AI$1355,A139,1))/1000,"0.0k")),"") -> 23.0376085 | P139: =IF(A139<>2,IF(IF(Calc!$A$90,INDEX(Motor!$AL$1:$AL$1223,A139,1),INDEX(LinMotor!$AJ$1:$AJ$1355,A139,1))<1000,IF(Calc!$A$90,INDEX(Motor!$AL$1:$AL$1223,A139,1),INDEX(LinMotor!$AJ$1:$AJ$1355,A139,1)),TEXT(IF(Calc!$A$90,INDEX(Motor!$AL$1:$AL$1223,A139,1),INDEX(LinMotor!$AJ$1:$AJ$1355,A139,1))/1000,"0.0k")),"") -> 2.418768559 | Q139: =IF(A139<>2,IF(IF(Calc!$A$90,INDEX(Motor!$AM$1:$AM$1223,A139,1),INDEX(LinMotor!$AK$1:$AK$1355,A139,1))<1000,IF(Calc!$A$90,INDEX(Motor!$AM$1:$AM$1223,A139,1),INDEX(LinMotor!$AK$1:$AK$1355,A139,1)),TEXT(IF(Calc!$A$90,INDEX(Motor!$AM$1:$AM$1223,A139,1),INDEX(LinMotor!$AK$1:$AK$1355,A139,1))/1000,"0.0k")),"") -> 148.1719702
A140: 67 | B140: =IF(Calc!$A$90,INDEX(Motor!$B$1:$B$1223,A140,1),INDEX(LinMotor!$B$1:$B$1341,A140,1)) -> AKM51K | C140: =IF(Calc!$A$90,INDEX(Motor!$T$1:$T$1223,A140,1),INDEX(LinMotor!$R$1:$R$1355,A140,1)) -> 330.8823529 | D140: =IF(Calc!$A$90,INDEX(Motor!$U$1:$U$1223,A140,1),INDEX(LinMotor!$S$1:$S$1355,A140,1)) -> 2.028050157 | E140: =IF(Calc!$A$90,INDEX(Motor!$V$1:$V$1223,A140,1),INDEX(LinMotor!$T$1:$T$1355,A140,1)) -> 2.450466001 | F140: =IF(Calc!$A$90,INDEX(Motor!$W$1:$W$1223,A140,1),INDEX(LinMotor!$U$1:$U$1355,A140,1)) -> 0.02445778301 | G140: =IF(A140<>2,IF(ABS(IF(Calc!$A$90,INDEX(Motor!$X$1:$X$1223,A140,1),INDEX(LinMotor!$V$1:$V$1355,A140,1)))<1000,IF(Calc!$A$90,INDEX(Motor!$X$1:$X$1223,A140,1),INDEX(LinMotor!$V$1:$V$1355,A140,1)),TEXT(IF(Calc!$A$90,INDEX(Motor!$X$1:$X$1223,A140,1),INDEX(LinMotor!$V$1:$V$1355,A140,1))/1000,"0.0k")),"") -> -22.59326594 | H140: =IF(A140<>2,IF(ABS(IF(move1,IF(Calc!$A$90,INDEX(Motor!$Y$1:$Y$1223,A140,1),INDEX(LinMotor!$W$1:$W$1355,A140,1)),IF(Calc!$A$90,INDEX(Motor!$Z$1:$Z$1068,A140,1),INDEX(LinMotor!$X$1:$X$1355,A140,1))))<1000,IF(move1,IF(Calc!$A$90,INDEX(Motor!$Y$1:$Y$1223,A140,1),INDEX(LinMotor!$W$1:$W$1355,A140,1)),IF(Calc!$A$90,INDEX(Motor!$Z$1:$Z$1223,A140,1),INDEX(LinMotor!$X$1:$X$1355,A140,1))),TEXT(IF(move1,IF(Calc!$A$90,INDEX(Motor!$Y$1:$Y$1223,A140,1),INDEX(LinMotor!$W$1:$W$1355,A140,1)),IF(Calc!$A$90,INDEX(Motor!$Z$1:$Z$1223,A140,1),INDEX(LinMotor!$X$1:$X$1355,A140,1)))/1000,"0.0k")),"") -> 9 | I140: =IF(A140<>2,IF(ABS(IF(move1,IF(Calc!$A$90,INDEX(Motor!$Z$1:$Z$1223,A140,1),INDEX(LinMotor!$X$1:$X$1355,A140,1)),IF(Calc!$A$90,INDEX(Motor!$AB$1:$AB$1223,A140,1),INDEX(LinMotor!$Z$1:$Z$1355,A140,1))))<1000,IF(move1,IF(Calc!$A$90,INDEX(Motor!$Z$1:$Z$1223,A140,1),INDEX(LinMotor!$X$1:$X$1355,A140,1)),IF(Calc!$A$90,INDEX(Motor!$AB$1:$AB$1223,A140,1),INDEX(LinMotor!$Z$1:$Z$1355,A140,1))),TEXT(IF(move1,IF(Calc!$A$90,INDEX(Motor!$Z$1:$Z$1223,A140,1),INDEX(LinMotor!$X$1:$X$1355,A140,1)),IF(Calc!$A$90,INDEX(Motor!$AB$1:$AB$1223,A140,1),INDEX(LinMotor!$Z$1:$Z$1355,A140,1)))/1000,"0.0k")),"") -> 29.16054541 | J140: =IF(A140<>2,IF(ABS(IF(move1,IF(Calc!$A$90,INDEX(Motor!$AA$1:$AA$1223,A140,1),INDEX(LinMotor!$Y$1:$Y$1355,A140,1)),IF(Calc!$A$90,INDEX(Motor!$AD$1:$AD$1223,A140,1),INDEX(LinMotor!$AB$1:$AB$445,A140,1))))<1000,IF(move1,IF(Calc!$A$90,INDEX(Motor!$AA$1:$AA$1223,A140,1),INDEX(LinMotor!$Y$1:$Y$1355,A140,1)),IF(Calc!$A$90,INDEX(Motor!$AD$1:$AD$1223,A140,1),INDEX(LinMotor!$AB$1:$AB$445,A140,1))),TEXT(IF(move1,IF(Calc!$A$90,INDEX(Motor!$AA$1:$AA$1223,A140,1),INDEX(LinMotor!$Y$1:$Y$1355,A140,1)),IF(Calc!$A$90,INDEX(Motor!$AD$1:$AD$1223,A140,1),INDEX(LinMotor!$AB$1:$AB$445,A140,1)))/1000,"0.0k")),"") -> 9 | K140: =IF(Calc!$A$90,INDEX(Motor!$AF$1:$AF$1223,A140,1),INDEX(LinMotor!$AD$1:$AD$1355,A140,1)) -> 0.792652185 | L140: =IF(Calc!$A$90,INDEX(Motor!$AG$1:$AG$1223,A140,1),INDEX(LinMotor!$AE$1:$AE$1355,A140,1)) -> 1.165429961 | M140: =IF(Calc!$A$90,INDEX(Motor!$AH$1:$AH$1223,A140,1),INDEX(LinMotor!$AF$1:$AF$1355,A140,1)) -> 19.02365244 | N140: =IF(Calc!$A$90,INDEX(Motor!$AI$1:$AI$1223,A140,1),INDEX(LinMotor!$AG$1:$AG$1355,A140,1)) -> 55.94063813 | O140: =IF(A140<>2,IF(IF(Calc!$A$90,INDEX(Motor!$AK$1:$AK$1223,A140,1),INDEX(LinMotor!$AI$1:$AI$1355,A140,1))<1000,IF(Calc!$A$90,INDEX(Motor!$AK$1:$AK$1223,A140,1),INDEX(LinMotor!$AI$1:$AI$1355,A140,1)),TEXT(IF(Calc!$A$90,INDEX(Motor!$AK$1:$AK$1223,A140,1),INDEX(LinMotor!$AI$1:$AI$1355,A140,1))/1000,"0.0k")),"") -> 23.0376085 | P140: =IF(A140<>2,IF(IF(Calc!$A$90,INDEX(Motor!$AL$1:$AL$1223,A140,1),INDEX(LinMotor!$AJ$1:$AJ$1355,A140,1))<1000,IF(Calc!$A$90,INDEX(Motor!$AL$1:$AL$1223,A140,1),INDEX(LinMotor!$AJ$1:$AJ$1355,A140,1)),TEXT(IF(Calc!$A$90,INDEX(Motor!$AL$1:$AL$1223,A140,1),INDEX(LinMotor!$AJ$1:$AJ$1355,A140,1))/1000,"0.0k")),"") -> 2.418768559 | Q140: =IF(A140<>2,IF(IF(Calc!$A$90,INDEX(Motor!$AM$1:$AM$1223,A140,1),INDEX(LinMotor!$AK$1:$AK$1355,A140,1))<1000,IF(Calc!$A$90,INDEX(Motor!$AM$1:$AM$1223,A140,1),INDEX(LinMotor!$AK$1:$AK$1355,A140,1)),TEXT(IF(Calc!$A$90,INDEX(Motor!$AM$1:$AM$1223,A140,1),INDEX(LinMotor!$AK$1:$AK$1355,A140,1))/1000,"0.0k")),"") -> 148.1719702
A141: 68 | B141: =IF(Calc!$A$90,INDEX(Motor!$B$1:$B$1223,A141,1),INDEX(LinMotor!$B$1:$B$1341,A141,1)) -> AKM51L | C141: =IF(Calc!$A$90,INDEX(Motor!$T$1:$T$1223,A141,1),INDEX(LinMotor!$R$1:$R$1355,A141,1)) -> 330.8823529 | D141: =IF(Calc!$A$90,INDEX(Motor!$U$1:$U$1223,A141,1),INDEX(LinMotor!$S$1:$S$1355,A141,1)) -> 2.032372847 | E141: =IF(Calc!$A$90,INDEX(Motor!$V$1:$V$1223,A141,1),INDEX(LinMotor!$T$1:$T$1355,A141,1)) -> 2.430045451 | F141: =IF(Calc!$A$90,INDEX(Motor!$W$1:$W$1223,A141,1),INDEX(LinMotor!$U$1:$U$1355,A141,1)) -> 0.02122065908 | G141: =IF(A141<>2,IF(ABS(IF(Calc!$A$90,INDEX(Motor!$X$1:$X$1223,A141,1),INDEX(LinMotor!$V$1:$V$1355,A141,1)))<1000,IF(Calc!$A$90,INDEX(Motor!$X$1:$X$1223,A141,1),INDEX(LinMotor!$V$1:$V$1355,A141,1)),TEXT(IF(Calc!$A$90,INDEX(Motor!$X$1:$X$1223,A141,1),INDEX(LinMotor!$V$1:$V$1355,A141,1))/1000,"0.0k")),"") -> -22.59326594 | H141: =IF(A141<>2,IF(ABS(IF(move1,IF(Calc!$A$90,INDEX(Motor!$Y$1:$Y$1223,A141,1),INDEX(LinMotor!$W$1:$W$1355,A141,1)),IF(Calc!$A$90,INDEX(Motor!$Z$1:$Z$1068,A141,1),INDEX(LinMotor!$X$1:$X$1355,A141,1))))<1000,IF(move1,IF(Calc!$A$90,INDEX(Motor!$Y$1:$Y$1223,A141,1),INDEX(LinMotor!$W$1:$W$1355,A141,1)),IF(Calc!$A$90,INDEX(Motor!$Z$1:$Z$1223,A141,1),INDEX(LinMotor!$X$1:$X$1355,A141,1))),TEXT(IF(move1,IF(Calc!$A$90,INDEX(Motor!$Y$1:$Y$1223,A141,1),INDEX(LinMotor!$W$1:$W$1355,A141,1)),IF(Calc!$A$90,INDEX(Motor!$Z$1:$Z$1223,A141,1),INDEX(LinMotor!$X$1:$X$1355,A141,1)))/1000,"0.0k")),"") -> 9 | I141: =IF(A141<>2,IF(ABS(IF(move1,IF(Calc!$A$90,INDEX(Motor!$Z$1:$Z$1223,A141,1),INDEX(LinMotor!$X$1:$X$1355,A141,1)),IF(Calc!$A$90,INDEX(Motor!$AB$1:$AB$1223,A141,1),INDEX(LinMotor!$Z$1:$Z$1355,A141,1))))<1000,IF(move1,IF(Calc!$A$90,INDEX(Motor!$Z$1:$Z$1223,A141,1),INDEX(LinMotor!$X$1:$X$1355,A141,1)),IF(Calc!$A$90,INDEX(Motor!$AB$1:$AB$1223,A141,1),INDEX(LinMotor!$Z$1:$Z$1355,A141,1))),TEXT(IF(move1,IF(Calc!$A$90,INDEX(Motor!$Z$1:$Z$1223,A141,1),INDEX(LinMotor!$X$1:$X$1355,A141,1)),IF(Calc!$A$90,INDEX(Motor!$AB$1:$AB$1223,A141,1),INDEX(LinMotor!$Z$1:$Z$1355,A141,1)))/1000,"0.0k")),"") -> 29.16054541 | J141: =IF(A141<>2,IF(ABS(IF(move1,IF(Calc!$A$90,INDEX(Motor!$AA$1:$AA$1223,A141,1),INDEX(LinMotor!$Y$1:$Y$1355,A141,1)),IF(Calc!$A$90,INDEX(Motor!$AD$1:$AD$1223,A141,1),INDEX(LinMotor!$AB$1:$AB$445,A141,1))))<1000,IF(move1,IF(Calc!$A$90,INDEX(Motor!$AA$1:$AA$1223,A141,1),INDEX(LinMotor!$Y$1:$Y$1355,A141,1)),IF(Calc!$A$90,INDEX(Motor!$AD$1:$AD$1223,A141,1),INDEX(LinMotor!$AB$1:$AB$445,A141,1))),TEXT(IF(move1,IF(Calc!$A$90,INDEX(Motor!$AA$1:$AA$1223,A141,1),INDEX(LinMotor!$Y$1:$Y$1355,A141,1)),IF(Calc!$A$90,INDEX(Motor!$AD$1:$AD$1223,A141,1),INDEX(LinMotor!$AB$1:$AB$445,A141,1)))/1000,"0.0k")),"") -> 9 | K141: =IF(Calc!$A$90,INDEX(Motor!$AF$1:$AF$1223,A141,1),INDEX(LinMotor!$AD$1:$AD$1355,A141,1)) -> 1.00551601 | L141: =IF(Calc!$A$90,INDEX(Motor!$AG$1:$AG$1223,A141,1),INDEX(LinMotor!$AE$1:$AE$1355,A141,1)) -> 1.478401885 | M141: =IF(Calc!$A$90,INDEX(Motor!$AH$1:$AH$1223,A141,1),INDEX(LinMotor!$AF$1:$AF$1355,A141,1)) -> 24.13238424 | N141: =IF(Calc!$A$90,INDEX(Motor!$AI$1:$AI$1223,A141,1),INDEX(LinMotor!$AG$1:$AG$1355,A141,1)) -> 70.96329046 | O141: =IF(A141<>2,IF(IF(Calc!$A$90,INDEX(Motor!$AK$1:$AK$1223,A141,1),INDEX(LinMotor!$AI$1:$AI$1355,A141,1))<1000,IF(Calc!$A$90,INDEX(Motor!$AK$1:$AK$1223,A141,1),INDEX(LinMotor!$AI$1:$AI$1355,A141,1)),TEXT(IF(Calc!$A$90,INDEX(Motor!$AK$1:$AK$1223,A141,1),INDEX(LinMotor!$AI$1:$AI$1355,A141,1))/1000,"0.0k")),"") -> 23.0376085 | P141: =IF(A141<>2,IF(IF(Calc!$A$90,INDEX(Motor!$AL$1:$AL$1223,A141,1),INDEX(LinMotor!$AJ$1:$AJ$1355,A141,1))<1000,IF(Calc!$A$90,INDEX(Motor!$AL$1:$AL$1223,A141,1),INDEX(LinMotor!$AJ$1:$AJ$1355,A141,1)),TEXT(IF(Calc!$A$90,INDEX(Motor!$AL$1:$AL$1223,A141,1),INDEX(LinMotor!$AJ$1:$AJ$1355,A141,1))/1000,"0.0k")),"") -> 2.418768559 | Q141: =IF(A141<>2,IF(IF(Calc!$A$90,INDEX(Motor!$AM$1:$AM$1223,A141,1),INDEX(LinMotor!$AK$1:$AK$1355,A141,1))<1000,IF(Calc!$A$90,INDEX(Motor!$AM$1:$AM$1223,A141,1),INDEX(LinMotor!$AK$1:$AK$1355,A141,1)),TEXT(IF(Calc!$A$90,INDEX(Motor!$AM$1:$AM$1223,A141,1),INDEX(LinMotor!$AK$1:$AK$1355,A141,1))/1000,"0.0k")),"") -> 148.1719702
A142: 69 | B142: =IF(Calc!$A$90,INDEX(Motor!$B$1:$B$1223,A142,1),INDEX(LinMotor!$B$1:$B$1341,A142,1)) -> AKM52E | C142: =IF(Calc!$A$90,INDEX(Motor!$T$1:$T$1223,A142,1),INDEX(LinMotor!$R$1:$R$1355,A142,1)) -> 181.4516129 | D142: =IF(Calc!$A$90,INDEX(Motor!$U$1:$U$1223,A142,1),INDEX(LinMotor!$S$1:$S$1355,A142,1)) -> 1.191169122 | E142: =IF(Calc!$A$90,INDEX(Motor!$V$1:$V$1223,A142,1),INDEX(LinMotor!$T$1:$T$1355,A142,1)) -> 1.371737828 | F142: =IF(Calc!$A$90,INDEX(Motor!$W$1:$W$1223,A142,1),INDEX(LinMotor!$U$1:$U$1355,A142,1)) -> 0.08796967123 | G142: =IF(A142<>2,IF(ABS(IF(Calc!$A$90,INDEX(Motor!$X$1:$X$1223,A142,1),INDEX(LinMotor!$V$1:$V$1355,A142,1)))<1000,IF(Calc!$A$90,INDEX(Motor!$X$1:$X$1223,A142,1),INDEX(LinMotor!$V$1:$V$1355,A142,1)),TEXT(IF(Calc!$A$90,INDEX(Motor!$X$1:$X$1223,A142,1),INDEX(LinMotor!$V$1:$V$1355,A142,1))/1000,"0.0k")),"") -> -22.66421697 | H142: =IF(A142<>2,IF(ABS(IF(move1,IF(Calc!$A$90,INDEX(Motor!$Y$1:$Y$1223,A142,1),INDEX(LinMotor!$W$1:$W$1355,A142,1)),IF(Calc!$A$90,INDEX(Motor!$Z$1:$Z$1068,A142,1),INDEX(LinMotor!$X$1:$X$1355,A142,1))))<1000,IF(move1,IF(Calc!$A$90,INDEX(Motor!$Y$1:$Y$1223,A142,1),INDEX(LinMotor!$W$1:$W$1355,A142,1)),IF(Calc!$A$90,INDEX(Motor!$Z$1:$Z$1223,A142,1),INDEX(LinMotor!$X$1:$X$1355,A142,1))),TEXT(IF(move1,IF(Calc!$A$90,INDEX(Motor!$Y$1:$Y$1223,A142,1),INDEX(LinMotor!$W$1:$W$1355,A142,1)),IF(Calc!$A$90,INDEX(Motor!$Z$1:$Z$1223,A142,1),INDEX(LinMotor!$X$1:$X$1355,A142,1)))/1000,"0.0k")),"") -> 9 | I142: =IF(A142<>2,IF(ABS(IF(move1,IF(Calc!$A$90,INDEX(Motor!$Z$1:$Z$1223,A142,1),INDEX(LinMotor!$X$1:$X$1355,A142,1)),IF(Calc!$A$90,INDEX(Motor!$AB$1:$AB$1223,A142,1),INDEX(LinMotor!$Z$1:$Z$1355,A142,1))))<1000,IF(move1,IF(Calc!$A$90,INDEX(Motor!$Z$1:$Z$1223,A142,1),INDEX(LinMotor!$X$1:$X$1355,A142,1)),IF(Calc!$A$90,INDEX(Motor!$AB$1:$AB$1223,A142,1),INDEX(LinMotor!$Z$1:$Z$1355,A142,1))),TEXT(IF(move1,IF(Calc!$A$90,INDEX(Motor!$Z$1:$Z$1223,A142,1),INDEX(LinMotor!$X$1:$X$1355,A142,1)),IF(Calc!$A$90,INDEX(Motor!$AB$1:$AB$1223,A142,1),INDEX(LinMotor!$Z$1:$Z$1355,A142,1)))/1000,"0.0k")),"") -> 29.21801574 | J142: =IF(A142<>2,IF(ABS(IF(move1,IF(Calc!$A$90,INDEX(Motor!$AA$1:$AA$1223,A142,1),INDEX(LinMotor!$Y$1:$Y$1355,A142,1)),IF(Calc!$A$90,INDEX(Motor!$AD$1:$AD$1223,A142,1),INDEX(LinMotor!$AB$1:$AB$445,A142,1))))<1000,IF(move1,IF(Calc!$A$90,INDEX(Motor!$AA$1:$AA$1223,A142,1),INDEX(LinMotor!$Y$1:$Y$1355,A142,1)),IF(Calc!$A$90,INDEX(Motor!$AD$1:$AD$1223,A142,1),INDEX(LinMotor!$AB$1:$AB$445,A142,1))),TEXT(IF(move1,IF(Calc!$A$90,INDEX(Motor!$AA$1:$AA$1223,A142,1),INDEX(LinMotor!$Y$1:$Y$1355,A142,1)),IF(Calc!$A$90,INDEX(Motor!$AD$1:$AD$1223,A142,1),INDEX(LinMotor!$AB$1:$AB$445,A142,1)))/1000,"0.0k")),"") -> 9 | K142: =IF(Calc!$A$90,INDEX(Motor!$AF$1:$AF$1223,A142,1),INDEX(LinMotor!$AD$1:$AD$1355,A142,1)) -> 0.1482076976 | L142: =IF(Calc!$A$90,INDEX(Motor!$AG$1:$AG$1223,A142,1),INDEX(LinMotor!$AE$1:$AE$1355,A142,1)) -> 0.2182300836 | M142: =IF(Calc!$A$90,INDEX(Motor!$AH$1:$AH$1223,A142,1),INDEX(LinMotor!$AF$1:$AF$1355,A142,1)) -> 3.556984742 | N142: =IF(Calc!$A$90,INDEX(Motor!$AI$1:$AI$1223,A142,1),INDEX(LinMotor!$AG$1:$AG$1355,A142,1)) -> 10.47504401 | O142: =IF(A142<>2,IF(IF(Calc!$A$90,INDEX(Motor!$AK$1:$AK$1223,A142,1),INDEX(LinMotor!$AI$1:$AI$1355,A142,1))<1000,IF(Calc!$A$90,INDEX(Motor!$AK$1:$AK$1223,A142,1),INDEX(LinMotor!$AI$1:$AI$1355,A142,1)),TEXT(IF(Calc!$A$90,INDEX(Motor!$AK$1:$AK$1223,A142,1),INDEX(LinMotor!$AI$1:$AI$1355,A142,1))/1000,"0.0k")),"") -> 23.04900217 | P142: =IF(A142<>2,IF(IF(Calc!$A$90,INDEX(Motor!$AL$1:$AL$1223,A142,1),INDEX(LinMotor!$AJ$1:$AJ$1355,A142,1))<1000,IF(Calc!$A$90,INDEX(Motor!$AL$1:$AL$1223,A142,1),INDEX(LinMotor!$AJ$1:$AJ$1355,A142,1)),TEXT(IF(Calc!$A$90,INDEX(Motor!$AL$1:$AL$1223,A142,1),INDEX(LinMotor!$AJ$1:$AJ$1355,A142,1))/1000,"0.0k")),"") -> 2.428599743 | Q142: =IF(A142<>2,IF(IF(Calc!$A$90,INDEX(Motor!$AM$1:$AM$1223,A142,1),INDEX(LinMotor!$AK$1:$AK$1355,A142,1))<1000,IF(Calc!$A$90,INDEX(Motor!$AM$1:$AM$1223,A142,1),INDEX(LinMotor!$AK$1:$AK$1355,A142,1)),TEXT(IF(Calc!$A$90,INDEX(Motor!$AM$1:$AM$1223,A142,1),INDEX(LinMotor!$AK$1:$AK$1355,A142,1))/1000,"0.0k")),"") -> 148.7742213
A143: 70 | B143: =IF(Calc!$A$90,INDEX(Motor!$B$1:$B$1223,A143,1),INDEX(LinMotor!$B$1:$B$1341,A143,1)) -> AKM52G | C143: =IF(Calc!$A$90,INDEX(Motor!$T$1:$T$1223,A143,1),INDEX(LinMotor!$R$1:$R$1355,A143,1)) -> 181.4516129 | D143: =IF(Calc!$A$90,INDEX(Motor!$U$1:$U$1223,A143,1),INDEX(LinMotor!$S$1:$S$1355,A143,1)) -> 1.178626198 | E143: =IF(Calc!$A$90,INDEX(Motor!$V$1:$V$1223,A143,1),INDEX(LinMotor!$T$1:$T$1355,A143,1)) -> 1.358977476 | F143: =IF(Calc!$A$90,INDEX(Motor!$W$1:$W$1223,A143,1),INDEX(LinMotor!$U$1:$U$1355,A143,1)) -> 0.05396961421 | G143: =IF(A143<>2,IF(ABS(IF(Calc!$A$90,INDEX(Motor!$X$1:$X$1223,A143,1),INDEX(LinMotor!$V$1:$V$1355,A143,1)))<1000,IF(Calc!$A$90,INDEX(Motor!$X$1:$X$1223,A143,1),INDEX(LinMotor!$V$1:$V$1355,A143,1)),TEXT(IF(Calc!$A$90,INDEX(Motor!$X$1:$X$1223,A143,1),INDEX(LinMotor!$V$1:$V$1355,A143,1))/1000,"0.0k")),"") -> -22.66421697 | H143: =IF(A143<>2,IF(ABS(IF(move1,IF(Calc!$A$90,INDEX(Motor!$Y$1:$Y$1223,A143,1),INDEX(LinMotor!$W$1:$W$1355,A143,1)),IF(Calc!$A$90,INDEX(Motor!$Z$1:$Z$1068,A143,1),INDEX(LinMotor!$X$1:$X$1355,A143,1))))<1000,IF(move1,IF(Calc!$A$90,INDEX(Motor!$Y$1:$Y$1223,A143,1),INDEX(LinMotor!$W$1:$W$1355,A143,1)),IF(Calc!$A$90,INDEX(Motor!$Z$1:$Z$1223,A143,1),INDEX(LinMotor!$X$1:$X$1355,A143,1))),TEXT(IF(move1,IF(Calc!$A$90,INDEX(Motor!$Y$1:$Y$1223,A143,1),INDEX(LinMotor!$W$1:$W$1355,A143,1)),IF(Calc!$A$90,INDEX(Motor!$Z$1:$Z$1223,A143,1),INDEX(LinMotor!$X$1:$X$1355,A143,1)))/1000,"0.0k")),"") -> 9 | I143: =IF(A143<>2,IF(ABS(IF(move1,IF(Calc!$A$90,INDEX(Motor!$Z$1:$Z$1223,A143,1),INDEX(LinMotor!$X$1:$X$1355,A143,1)),IF(Calc!$A$90,INDEX(Motor!$AB$1:$AB$1223,A143,1),INDEX(LinMotor!$Z$1:$Z$1355,A143,1))))<1000,IF(move1,IF(Calc!$A$90,INDEX(Motor!$Z$1:$Z$1223,A143,1),INDEX(LinMotor!$X$1:$X$1355,A143,1)),IF(Calc!$A$90,INDEX(Motor!$AB$1:$AB$1223,A143,1),INDEX(LinMotor!$Z$1:$Z$1355,A143,1))),TEXT(IF(move1,IF(Calc!$A$90,INDEX(Motor!$Z$1:$Z$1223,A143,1),INDEX(LinMotor!$X$1:$X$1355,A143,1)),IF(Calc!$A$90,INDEX(Motor!$AB$1:$AB$1223,A143,1),INDEX(LinMotor!$Z$1:$Z$1355,A143,1)))/1000,"0.0k")),"") -> 29.21801574 | J143: =IF(A143<>2,IF(ABS(IF(move1,IF(Calc!$A$90,INDEX(Motor!$AA$1:$AA$1223,A143,1),INDEX(LinMotor!$Y$1:$Y$1355,A143,1)),IF(Calc!$A$90,INDEX(Motor!$AD$1:$AD$1223,A143,1),INDEX(LinMotor!$AB$1:$AB$445,A143,1))))<1000,IF(move1,IF(Calc!$A$90,INDEX(Motor!$AA$1:$AA$1223,A143,1),INDEX(LinMotor!$Y$1:$Y$1355,A143,1)),IF(Calc!$A$90,INDEX(Motor!$AD$1:$AD$1223,A143,1),INDEX(LinMotor!$AB$1:$AB$445,A143,1))),TEXT(IF(move1,IF(Calc!$A$90,INDEX(Motor!$AA$1:$AA$1223,A143,1),INDEX(LinMotor!$Y$1:$Y$1355,A143,1)),IF(Calc!$A$90,INDEX(Motor!$AD$1:$AD$1223,A143,1),INDEX(LinMotor!$AB$1:$AB$445,A143,1)))/1000,"0.0k")),"") -> 9 | K143: =IF(Calc!$A$90,INDEX(Motor!$AF$1:$AF$1223,A143,1),INDEX(LinMotor!$AD$1:$AD$1355,A143,1)) -> 0.2314621841 | L143: =IF(Calc!$A$90,INDEX(Motor!$AG$1:$AG$1223,A143,1),INDEX(LinMotor!$AE$1:$AE$1355,A143,1)) -> 0.3408190844 | M143: =IF(Calc!$A$90,INDEX(Motor!$AH$1:$AH$1223,A143,1),INDEX(LinMotor!$AF$1:$AF$1355,A143,1)) -> 5.555092418 | N143: =IF(Calc!$A$90,INDEX(Motor!$AI$1:$AI$1223,A143,1),INDEX(LinMotor!$AG$1:$AG$1355,A143,1)) -> 16.35931605 | O143: =IF(A143<>2,IF(IF(Calc!$A$90,INDEX(Motor!$AK$1:$AK$1223,A143,1),INDEX(LinMotor!$AI$1:$AI$1355,A143,1))<1000,IF(Calc!$A$90,INDEX(Motor!$AK$1:$AK$1223,A143,1),INDEX(LinMotor!$AI$1:$AI$1355,A143,1)),TEXT(IF(Calc!$A$90,INDEX(Motor!$AK$1:$AK$1223,A143,1),INDEX(LinMotor!$AI$1:$AI$1355,A143,1))/1000,"0.0k")),"") -> 23.04900217 | P143: =IF(A143<>2,IF(IF(Calc!$A$90,INDEX(Motor!$AL$1:$AL$1223,A143,1),INDEX(LinMotor!$AJ$1:$AJ$1355,A143,1))<1000,IF(Calc!$A$90,INDEX(Motor!$AL$1:$AL$1223,A143,1),INDEX(LinMotor!$AJ$1:$AJ$1355,A143,1)),TEXT(IF(Calc!$A$90,INDEX(Motor!$AL$1:$AL$1223,A143,1),INDEX(LinMotor!$AJ$1:$AJ$1355,A143,1))/1000,"0.0k")),"") -> 2.428599743 | Q143: =IF(A143<>2,IF(IF(Calc!$A$90,INDEX(Motor!$AM$1:$AM$1223,A143,1),INDEX(LinMotor!$AK$1:$AK$1355,A143,1))<1000,IF(Calc!$A$90,INDEX(Motor!$AM$1:$AM$1223,A143,1),INDEX(LinMotor!$AK$1:$AK$1355,A143,1)),TEXT(IF(Calc!$A$90,INDEX(Motor!$AM$1:$AM$1223,A143,1),INDEX(LinMotor!$AK$1:$AK$1355,A143,1))/1000,"0.0k")),"") -> 148.7742213
A144: 71 | B144: =IF(Calc!$A$90,INDEX(Motor!$B$1:$B$1223,A144,1),INDEX(LinMotor!$B$1:$B$1341,A144,1)) -> AKM52H | C144: =IF(Calc!$A$90,INDEX(Motor!$T$1:$T$1223,A144,1),INDEX(LinMotor!$R$1:$R$1355,A144,1)) -> 181.4516129 | D144: =IF(Calc!$A$90,INDEX(Motor!$U$1:$U$1223,A144,1),INDEX(LinMotor!$S$1:$S$1355,A144,1)) -> 1.171931713 | E144: =IF(Calc!$A$90,INDEX(Motor!$V$1:$V$1223,A144,1),INDEX(LinMotor!$T$1:$T$1355,A144,1)) -> 1.352685914 | F144: =IF(Calc!$A$90,INDEX(Motor!$W$1:$W$1223,A144,1),INDEX(LinMotor!$U$1:$U$1355,A144,1)) -> 0.04281373516 | G144: =IF(A144<>2,IF(ABS(IF(Calc!$A$90,INDEX(Motor!$X$1:$X$1223,A144,1),INDEX(LinMotor!$V$1:$V$1355,A144,1)))<1000,IF(Calc!$A$90,INDEX(Motor!$X$1:$X$1223,A144,1),INDEX(LinMotor!$V$1:$V$1355,A144,1)),TEXT(IF(Calc!$A$90,INDEX(Motor!$X$1:$X$1223,A144,1),INDEX(LinMotor!$V$1:$V$1355,A144,1))/1000,"0.0k")),"") -> -22.66421697 | H144: =IF(A144<>2,IF(ABS(IF(move1,IF(Calc!$A$90,INDEX(Motor!$Y$1:$Y$1223,A144,1),INDEX(LinMotor!$W$1:$W$1355,A144,1)),IF(Calc!$A$90,INDEX(Motor!$Z$1:$Z$1068,A144,1),INDEX(LinMotor!$X$1:$X$1355,A144,1))))<1000,IF(move1,IF(Calc!$A$90,INDEX(Motor!$Y$1:$Y$1223,A144,1),INDEX(LinMotor!$W$1:$W$1355,A144,1)),IF(Calc!$A$90,INDEX(Motor!$Z$1:$Z$1223,A144,1),INDEX(LinMotor!$X$1:$X$1355,A144,1))),TEXT(IF(move1,IF(Calc!$A$90,INDEX(Motor!$Y$1:$Y$1223,A144,1),INDEX(LinMotor!$W$1:$W$1355,A144,1)),IF(Calc!$A$90,INDEX(Motor!$Z$1:$Z$1223,A144,1),INDEX(LinMotor!$X$1:$X$1355,A144,1)))/1000,"0.0k")),"") -> 9 | I144: =IF(A144<>2,IF(ABS(IF(move1,IF(Calc!$A$90,INDEX(Motor!$Z$1:$Z$1223,A144,1),INDEX(LinMotor!$X$1:$X$1355,A144,1)),IF(Calc!$A$90,INDEX(Motor!$AB$1:$AB$1223,A144,1),INDEX(LinMotor!$Z$1:$Z$1355,A144,1))))<1000,IF(move1,IF(Calc!$A$90,INDEX(Motor!$Z$1:$Z$1223,A144,1),INDEX(LinMotor!$X$1:$X$1355,A144,1)),IF(Calc!$A$90,INDEX(Motor!$AB$1:$AB$1223,A144,1),INDEX(LinMotor!$Z$1:$Z$1355,A144,1))),TEXT(IF(move1,IF(Calc!$A$90,INDEX(Motor!$Z$1:$Z$1223,A144,1),INDEX(LinMotor!$X$1:$X$1355,A144,1)),IF(Calc!$A$90,INDEX(Motor!$AB$1:$AB$1223,A144,1),INDEX(LinMotor!$Z$1:$Z$1355,A144,1)))/1000,"0.0k")),"") -> 29.21801574 | J144: =IF(A144<>2,IF(ABS(IF(move1,IF(Calc!$A$90,INDEX(Motor!$AA$1:$AA$1223,A144,1),INDEX(LinMotor!$Y$1:$Y$1355,A144,1)),IF(Calc!$A$90,INDEX(Motor!$AD$1:$AD$1223,A144,1),INDEX(LinMotor!$AB$1:$AB$445,A144,1))))<1000,IF(move1,IF(Calc!$A$90,INDEX(Motor!$AA$1:$AA$1223,A144,1),INDEX(LinMotor!$Y$1:$Y$1355,A144,1)),IF(Calc!$A$90,INDEX(Motor!$AD$1:$AD$1223,A144,1),INDEX(LinMotor!$AB$1:$AB$445,A144,1))),TEXT(IF(move1,IF(Calc!$A$90,INDEX(Motor!$AA$1:$AA$1223,A144,1),INDEX(LinMotor!$Y$1:$Y$1355,A144,1)),IF(Calc!$A$90,INDEX(Motor!$AD$1:$AD$1223,A144,1),INDEX(LinMotor!$AB$1:$AB$445,A144,1)))/1000,"0.0k")),"") -> 9 | K144: =IF(Calc!$A$90,INDEX(Motor!$AF$1:$AF$1223,A144,1),INDEX(LinMotor!$AD$1:$AD$1355,A144,1)) -> 0.2876217883 | L144: =IF(Calc!$A$90,INDEX(Motor!$AG$1:$AG$1223,A144,1),INDEX(LinMotor!$AE$1:$AE$1355,A144,1)) -> 0.4235119224 | M144: =IF(Calc!$A$90,INDEX(Motor!$AH$1:$AH$1223,A144,1),INDEX(LinMotor!$AF$1:$AF$1355,A144,1)) -> 6.902922919 | N144: =IF(Calc!$A$90,INDEX(Motor!$AI$1:$AI$1223,A144,1),INDEX(LinMotor!$AG$1:$AG$1355,A144,1)) -> 20.32857227 | O144: =IF(A144<>2,IF(IF(Calc!$A$90,INDEX(Motor!$AK$1:$AK$1223,A144,1),INDEX(LinMotor!$AI$1:$AI$1355,A144,1))<1000,IF(Calc!$A$90,INDEX(Motor!$AK$1:$AK$1223,A144,1),INDEX(LinMotor!$AI$1:$AI$1355,A144,1)),TEXT(IF(Calc!$A$90,INDEX(Motor!$AK$1:$AK$1223,A144,1),INDEX(LinMotor!$AI$1:$AI$1355,A144,1))/1000,"0.0k")),"") -> 23.04900217 | P144: =IF(A144<>2,IF(IF(Calc!$A$90,INDEX(Motor!$AL$1:$AL$1223,A144,1),INDEX(LinMotor!$AJ$1:$AJ$1355,A144,1))<1000,IF(Calc!$A$90,INDEX(Motor!$AL$1:$AL$1223,A144,1),INDEX(LinMotor!$AJ$1:$AJ$1355,A144,1)),TEXT(IF(Calc!$A$90,INDEX(Motor!$AL$1:$AL$1223,A144,1),INDEX(LinMotor!$AJ$1:$AJ$1355,A144,1))/1000,"0.0k")),"") -> 2.428599743 | Q144: =IF(A144<>2,IF(IF(Calc!$A$90,INDEX(Motor!$AM$1:$AM$1223,A144,1),INDEX(LinMotor!$AK$1:$AK$1355,A144,1))<1000,IF(Calc!$A$90,INDEX(Motor!$AM$1:$AM$1223,A144,1),INDEX(LinMotor!$AK$1:$AK$1355,A144,1)),TEXT(IF(Calc!$A$90,INDEX(Motor!$AM$1:$AM$1223,A144,1),INDEX(LinMotor!$AK$1:$AK$1355,A144,1))/1000,"0.0k")),"") -> 148.7742213
A145: 72 | B145: =IF(Calc!$A$90,INDEX(Motor!$B$1:$B$1223,A145,1),INDEX(LinMotor!$B$1:$B$1341,A145,1)) -> AKM52I | C145: =IF(Calc!$A$90,INDEX(Motor!$T$1:$T$1223,A145,1),INDEX(LinMotor!$R$1:$R$1355,A145,1)) -> 181.4516129 | D145: =IF(Calc!$A$90,INDEX(Motor!$U$1:$U$1223,A145,1),INDEX(LinMotor!$S$1:$S$1355,A145,1)) -> 1.165398842 | E145: =IF(Calc!$A$90,INDEX(Motor!$V$1:$V$1223,A145,1),INDEX(LinMotor!$T$1:$T$1355,A145,1)) -> 1.340275952 | F145: =IF(Calc!$A$90,INDEX(Motor!$W$1:$W$1223,A145,1),INDEX(LinMotor!$U$1:$U$1355,A145,1)) -> 0.03438300601 | G145: =IF(A145<>2,IF(ABS(IF(Calc!$A$90,INDEX(Motor!$X$1:$X$1223,A145,1),INDEX(LinMotor!$V$1:$V$1355,A145,1)))<1000,IF(Calc!$A$90,INDEX(Motor!$X$1:$X$1223,A145,1),INDEX(LinMotor!$V$1:$V$1355,A145,1)),TEXT(IF(Calc!$A$90,INDEX(Motor!$X$1:$X$1223,A145,1),INDEX(LinMotor!$V$1:$V$1355,A145,1))/1000,"0.0k")),"") -> -22.66421697 | H145: =IF(A145<>2,IF(ABS(IF(move1,IF(Calc!$A$90,INDEX(Motor!$Y$1:$Y$1223,A145,1),INDEX(LinMotor!$W$1:$W$1355,A145,1)),IF(Calc!$A$90,INDEX(Motor!$Z$1:$Z$1068,A145,1),INDEX(LinMotor!$X$1:$X$1355,A145,1))))<1000,IF(move1,IF(Calc!$A$90,INDEX(Motor!$Y$1:$Y$1223,A145,1),INDEX(LinMotor!$W$1:$W$1355,A145,1)),IF(Calc!$A$90,INDEX(Motor!$Z$1:$Z$1223,A145,1),INDEX(LinMotor!$X$1:$X$1355,A145,1))),TEXT(IF(move1,IF(Calc!$A$90,INDEX(Motor!$Y$1:$Y$1223,A145,1),INDEX(LinMotor!$W$1:$W$1355,A145,1)),IF(Calc!$A$90,INDEX(Motor!$Z$1:$Z$1223,A145,1),INDEX(LinMotor!$X$1:$X$1355,A145,1)))/1000,"0.0k")),"") -> 9 | I145: =IF(A145<>2,IF(ABS(IF(move1,IF(Calc!$A$90,INDEX(Motor!$Z$1:$Z$1223,A145,1),INDEX(LinMotor!$X$1:$X$1355,A145,1)),IF(Calc!$A$90,INDEX(Motor!$AB$1:$AB$1223,A145,1),INDEX(LinMotor!$Z$1:$Z$1355,A145,1))))<1000,IF(move1,IF(Calc!$A$90,INDEX(Motor!$Z$1:$Z$1223,A145,1),INDEX(LinMotor!$X$1:$X$1355,A145,1)),IF(Calc!$A$90,INDEX(Motor!$AB$1:$AB$1223,A145,1),INDEX(LinMotor!$Z$1:$Z$1355,A145,1))),TEXT(IF(move1,IF(Calc!$A$90,INDEX(Motor!$Z$1:$Z$1223,A145,1),INDEX(LinMotor!$X$1:$X$1355,A145,1)),IF(Calc!$A$90,INDEX(Motor!$AB$1:$AB$1223,A145,1),INDEX(LinMotor!$Z$1:$Z$1355,A145,1)))/1000,"0.0k")),"") -> 29.21801574 | J145: =IF(A145<>2,IF(ABS(IF(move1,IF(Calc!$A$90,INDEX(Motor!$AA$1:$AA$1223,A145,1),INDEX(LinMotor!$Y$1:$Y$1355,A145,1)),IF(Calc!$A$90,INDEX(Motor!$AD$1:$AD$1223,A145,1),INDEX(LinMotor!$AB$1:$AB$445,A145,1))))<1000,IF(move1,IF(Calc!$A$90,INDEX(Motor!$AA$1:$AA$1223,A145,1),INDEX(LinMotor!$Y$1:$Y$1355,A145,1)),IF(Calc!$A$90,INDEX(Motor!$AD$1:$AD$1223,A145,1),INDEX(LinMotor!$AB$1:$AB$445,A145,1))),TEXT(IF(move1,IF(Calc!$A$90,INDEX(Motor!$AA$1:$AA$1223,A145,1),INDEX(LinMotor!$Y$1:$Y$1355,A145,1)),IF(Calc!$A$90,INDEX(Motor!$AD$1:$AD$1223,A145,1),INDEX(LinMotor!$AB$1:$AB$445,A145,1)))/1000,"0.0k")),"") -> 9 | K145: =IF(Calc!$A$90,INDEX(Motor!$AF$1:$AF$1223,A145,1),INDEX(LinMotor!$AD$1:$AD$1355,A145,1)) -> 0.3586313998 | L145: =IF(Calc!$A$90,INDEX(Motor!$AG$1:$AG$1223,A145,1),INDEX(LinMotor!$AE$1:$AE$1355,A145,1)) -> 0.5280708199 | M145: =IF(Calc!$A$90,INDEX(Motor!$AH$1:$AH$1223,A145,1),INDEX(LinMotor!$AF$1:$AF$1355,A145,1)) -> 8.607153596 | N145: =IF(Calc!$A$90,INDEX(Motor!$AI$1:$AI$1223,A145,1),INDEX(LinMotor!$AG$1:$AG$1355,A145,1)) -> 25.34739936 | O145: =IF(A145<>2,IF(IF(Calc!$A$90,INDEX(Motor!$AK$1:$AK$1223,A145,1),INDEX(LinMotor!$AI$1:$AI$1355,A145,1))<1000,IF(Calc!$A$90,INDEX(Motor!$AK$1:$AK$1223,A145,1),INDEX(LinMotor!$AI$1:$AI$1355,A145,1)),TEXT(IF(Calc!$A$90,INDEX(Motor!$AK$1:$AK$1223,A145,1),INDEX(LinMotor!$AI$1:$AI$1355,A145,1))/1000,"0.0k")),"") -> 23.04900217 | P145: =IF(A145<>2,IF(IF(Calc!$A$90,INDEX(Motor!$AL$1:$AL$1223,A145,1),INDEX(LinMotor!$AJ$1:$AJ$1355,A145,1))<1000,IF(Calc!$A$90,INDEX(Motor!$AL$1:$AL$1223,A145,1),INDEX(LinMotor!$AJ$1:$AJ$1355,A145,1)),TEXT(IF(Calc!$A$90,INDEX(Motor!$AL$1:$AL$1223,A145,1),INDEX(LinMotor!$AJ$1:$AJ$1355,A145,1))/1000,"0.0k")),"") -> 2.428599743 | Q145: =IF(A145<>2,IF(IF(Calc!$A$90,INDEX(Motor!$AM$1:$AM$1223,A145,1),INDEX(LinMotor!$AK$1:$AK$1355,A145,1))<1000,IF(Calc!$A$90,INDEX(Motor!$AM$1:$AM$1223,A145,1),INDEX(LinMotor!$AK$1:$AK$1355,A145,1)),TEXT(IF(Calc!$A$90,INDEX(Motor!$AM$1:$AM$1223,A145,1),INDEX(LinMotor!$AK$1:$AK$1355,A145,1))/1000,"0.0k")),"") -> 148.7742213
A146: 73 | B146: =IF(Calc!$A$90,INDEX(Motor!$B$1:$B$1223,A146,1),INDEX(LinMotor!$B$1:$B$1341,A146,1)) -> AKM52K | C146: =IF(Calc!$A$90,INDEX(Motor!$T$1:$T$1223,A146,1),INDEX(LinMotor!$R$1:$R$1355,A146,1)) -> 181.4516129 | D146: =IF(Calc!$A$90,INDEX(Motor!$U$1:$U$1223,A146,1),INDEX(LinMotor!$S$1:$S$1355,A146,1)) -> 1.156210433 | E146: =IF(Calc!$A$90,INDEX(Motor!$V$1:$V$1223,A146,1),INDEX(LinMotor!$T$1:$T$1355,A146,1)) -> 1.33415597 | F146: =IF(Calc!$A$90,INDEX(Motor!$W$1:$W$1223,A146,1),INDEX(LinMotor!$U$1:$U$1355,A146,1)) -> 0.02716055314 | G146: =IF(A146<>2,IF(ABS(IF(Calc!$A$90,INDEX(Motor!$X$1:$X$1223,A146,1),INDEX(LinMotor!$V$1:$V$1355,A146,1)))<1000,IF(Calc!$A$90,INDEX(Motor!$X$1:$X$1223,A146,1),INDEX(LinMotor!$V$1:$V$1355,A146,1)),TEXT(IF(Calc!$A$90,INDEX(Motor!$X$1:$X$1223,A146,1),INDEX(LinMotor!$V$1:$V$1355,A146,1))/1000,"0.0k")),"") -> -22.66421697 | H146: =IF(A146<>2,IF(ABS(IF(move1,IF(Calc!$A$90,INDEX(Motor!$Y$1:$Y$1223,A146,1),INDEX(LinMotor!$W$1:$W$1355,A146,1)),IF(Calc!$A$90,INDEX(Motor!$Z$1:$Z$1068,A146,1),INDEX(LinMotor!$X$1:$X$1355,A146,1))))<1000,IF(move1,IF(Calc!$A$90,INDEX(Motor!$Y$1:$Y$1223,A146,1),INDEX(LinMotor!$W$1:$W$1355,A146,1)),IF(Calc!$A$90,INDEX(Motor!$Z$1:$Z$1223,A146,1),INDEX(LinMotor!$X$1:$X$1355,A146,1))),TEXT(IF(move1,IF(Calc!$A$90,INDEX(Motor!$Y$1:$Y$1223,A146,1),INDEX(LinMotor!$W$1:$W$1355,A146,1)),IF(Calc!$A$90,INDEX(Motor!$Z$1:$Z$1223,A146,1),INDEX(LinMotor!$X$1:$X$1355,A146,1)))/1000,"0.0k")),"") -> 9 | I146: =IF(A146<>2,IF(ABS(IF(move1,IF(Calc!$A$90,INDEX(Motor!$Z$1:$Z$1223,A146,1),INDEX(LinMotor!$X$1:$X$1355,A146,1)),IF(Calc!$A$90,INDEX(Motor!$AB$1:$AB$1223,A146,1),INDEX(LinMotor!$Z$1:$Z$1355,A146,1))))<1000,IF(move1,IF(Calc!$A$90,INDEX(Motor!$Z$1:$Z$1223,A146,1),INDEX(LinMotor!$X$1:$X$1355,A146,1)),IF(Calc!$A$90,INDEX(Motor!$AB$1:$AB$1223,A146,1),INDEX(LinMotor!$Z$1:$Z$1355,A146,1))),TEXT(IF(move1,IF(Calc!$A$90,INDEX(Motor!$Z$1:$Z$1223,A146,1),INDEX(LinMotor!$X$1:$X$1355,A146,1)),IF(Calc!$A$90,INDEX(Motor!$AB$1:$AB$1223,A146,1),INDEX(LinMotor!$Z$1:$Z$1355,A146,1)))/1000,"0.0k")),"") -> 29.21801574 | J146: =IF(A146<>2,IF(ABS(IF(move1,IF(Calc!$A$90,INDEX(Motor!$AA$1:$AA$1223,A146,1),INDEX(LinMotor!$Y$1:$Y$1355,A146,1)),IF(Calc!$A$90,INDEX(Motor!$AD$1:$AD$1223,A146,1),INDEX(LinMotor!$AB$1:$AB$445,A146,1))))<1000,IF(move1,IF(Calc!$A$90,INDEX(Motor!$AA$1:$AA$1223,A146,1),INDEX(LinMotor!$Y$1:$Y$1355,A146,1)),IF(Calc!$A$90,INDEX(Motor!$AD$1:$AD$1223,A146,1),INDEX(LinMotor!$AB$1:$AB$445,A146,1))),TEXT(IF(move1,IF(Calc!$A$90,INDEX(Motor!$AA$1:$AA$1223,A146,1),INDEX(LinMotor!$Y$1:$Y$1355,A146,1)),IF(Calc!$A$90,INDEX(Motor!$AD$1:$AD$1223,A146,1),INDEX(LinMotor!$AB$1:$AB$445,A146,1)))/1000,"0.0k")),"") -> 9 | K146: =IF(Calc!$A$90,INDEX(Motor!$AF$1:$AF$1223,A146,1),INDEX(LinMotor!$AD$1:$AD$1355,A146,1)) -> 0.4470438453 | L146: =IF(Calc!$A$90,INDEX(Motor!$AG$1:$AG$1223,A146,1),INDEX(LinMotor!$AE$1:$AE$1355,A146,1)) -> 0.6582547152 | M146: =IF(Calc!$A$90,INDEX(Motor!$AH$1:$AH$1223,A146,1),INDEX(LinMotor!$AF$1:$AF$1355,A146,1)) -> 10.72905229 | N146: =IF(Calc!$A$90,INDEX(Motor!$AI$1:$AI$1223,A146,1),INDEX(LinMotor!$AG$1:$AG$1355,A146,1)) -> 31.59622633 | O146: =IF(A146<>2,IF(IF(Calc!$A$90,INDEX(Motor!$AK$1:$AK$1223,A146,1),INDEX(LinMotor!$AI$1:$AI$1355,A146,1))<1000,IF(Calc!$A$90,INDEX(Motor!$AK$1:$AK$1223,A146,1),INDEX(LinMotor!$AI$1:$AI$1355,A146,1)),TEXT(IF(Calc!$A$90,INDEX(Motor!$AK$1:$AK$1223,A146,1),INDEX(LinMotor!$AI$1:$AI$1355,A146,1))/1000,"0.0k")),"") -> 23.04900217 | P146: =IF(A146<>2,IF(IF(Calc!$A$90,INDEX(Motor!$AL$1:$AL$1223,A146,1),INDEX(LinMotor!$AJ$1:$AJ$1355,A146,1))<1000,IF(Calc!$A$90,INDEX(Motor!$AL$1:$AL$1223,A146,1),INDEX(LinMotor!$AJ$1:$AJ$1355,A146,1)),TEXT(IF(Calc!$A$90,INDEX(Motor!$AL$1:$AL$1223,A146,1),INDEX(LinMotor!$AJ$1:$AJ$1355,A146,1))/1000,"0.0k")),"") -> 2.428599743 | Q146: =IF(A146<>2,IF(IF(Calc!$A$90,INDEX(Motor!$AM$1:$AM$1223,A146,1),INDEX(LinMotor!$AK$1:$AK$1355,A146,1))<1000,IF(Calc!$A$90,INDEX(Motor!$AM$1:$AM$1223,A146,1),INDEX(LinMotor!$AK$1:$AK$1355,A146,1)),TEXT(IF(Calc!$A$90,INDEX(Motor!$AM$1:$AM$1223,A146,1),INDEX(LinMotor!$AK$1:$AK$1355,A146,1))/1000,"0.0k")),"") -> 148.7742213
A147: 74 | B147: =IF(Calc!$A$90,INDEX(Motor!$B$1:$B$1223,A147,1),INDEX(LinMotor!$B$1:$B$1341,A147,1)) -> AKM52L | C147: =IF(Calc!$A$90,INDEX(Motor!$T$1:$T$1223,A147,1),INDEX(LinMotor!$R$1:$R$1355,A147,1)) -> 181.4516129 | D147: =IF(Calc!$A$90,INDEX(Motor!$U$1:$U$1223,A147,1),INDEX(LinMotor!$S$1:$S$1355,A147,1)) -> 1.146988647 | E147: =IF(Calc!$A$90,INDEX(Motor!$V$1:$V$1223,A147,1),INDEX(LinMotor!$T$1:$T$1355,A147,1)) -> 1.328091625 | F147: =IF(Calc!$A$90,INDEX(Motor!$W$1:$W$1223,A147,1),INDEX(LinMotor!$U$1:$U$1355,A147,1)) -> 0.02164774267 | G147: =IF(A147<>2,IF(ABS(IF(Calc!$A$90,INDEX(Motor!$X$1:$X$1223,A147,1),INDEX(LinMotor!$V$1:$V$1355,A147,1)))<1000,IF(Calc!$A$90,INDEX(Motor!$X$1:$X$1223,A147,1),INDEX(LinMotor!$V$1:$V$1355,A147,1)),TEXT(IF(Calc!$A$90,INDEX(Motor!$X$1:$X$1223,A147,1),INDEX(LinMotor!$V$1:$V$1355,A147,1))/1000,"0.0k")),"") -> -22.66421697 | H147: =IF(A147<>2,IF(ABS(IF(move1,IF(Calc!$A$90,INDEX(Motor!$Y$1:$Y$1223,A147,1),INDEX(LinMotor!$W$1:$W$1355,A147,1)),IF(Calc!$A$90,INDEX(Motor!$Z$1:$Z$1068,A147,1),INDEX(LinMotor!$X$1:$X$1355,A147,1))))<1000,IF(move1,IF(Calc!$A$90,INDEX(Motor!$Y$1:$Y$1223,A147,1),INDEX(LinMotor!$W$1:$W$1355,A147,1)),IF(Calc!$A$90,INDEX(Motor!$Z$1:$Z$1223,A147,1),INDEX(LinMotor!$X$1:$X$1355,A147,1))),TEXT(IF(move1,IF(Calc!$A$90,INDEX(Motor!$Y$1:$Y$1223,A147,1),INDEX(LinMotor!$W$1:$W$1355,A147,1)),IF(Calc!$A$90,INDEX(Motor!$Z$1:$Z$1223,A147,1),INDEX(LinMotor!$X$1:$X$1355,A147,1)))/1000,"0.0k")),"") -> 9 | I147: =IF(A147<>2,IF(ABS(IF(move1,IF(Calc!$A$90,INDEX(Motor!$Z$1:$Z$1223,A147,1),INDEX(LinMotor!$X$1:$X$1355,A147,1)),IF(Calc!$A$90,INDEX(Motor!$AB$1:$AB$1223,A147,1),INDEX(LinMotor!$Z$1:$Z$1355,A147,1))))<1000,IF(move1,IF(Calc!$A$90,INDEX(Motor!$Z$1:$Z$1223,A147,1),INDEX(LinMotor!$X$1:$X$1355,A147,1)),IF(Calc!$A$90,INDEX(Motor!$AB$1:$AB$1223,A147,1),INDEX(LinMotor!$Z$1:$Z$1355,A147,1))),TEXT(IF(move1,IF(Calc!$A$90,INDEX(Motor!$Z$1:$Z$1223,A147,1),INDEX(LinMotor!$X$1:$X$1355,A147,1)),IF(Calc!$A$90,INDEX(Motor!$AB$1:$AB$1223,A147,1),INDEX(LinMotor!$Z$1:$Z$1355,A147,1)))/1000,"0.0k")),"") -> 29.21801574 | J147: =IF(A147<>2,IF(ABS(IF(move1,IF(Calc!$A$90,INDEX(Motor!$AA$1:$AA$1223,A147,1),INDEX(LinMotor!$Y$1:$Y$1355,A147,1)),IF(Calc!$A$90,INDEX(Motor!$AD$1:$AD$1223,A147,1),INDEX(LinMotor!$AB$1:$AB$445,A147,1))))<1000,IF(move1,IF(Calc!$A$90,INDEX(Motor!$AA$1:$AA$1223,A147,1),INDEX(LinMotor!$Y$1:$Y$1355,A147,1)),IF(Calc!$A$90,INDEX(Motor!$AD$1:$AD$1223,A147,1),INDEX(LinMotor!$AB$1:$AB$445,A147,1))),TEXT(IF(move1,IF(Calc!$A$90,INDEX(Motor!$AA$1:$AA$1223,A147,1),INDEX(LinMotor!$Y$1:$Y$1355,A147,1)),IF(Calc!$A$90,INDEX(Motor!$AD$1:$AD$1223,A147,1),INDEX(LinMotor!$AB$1:$AB$445,A147,1)))/1000,"0.0k")),"") -> 9 | K147: =IF(Calc!$A$90,INDEX(Motor!$AF$1:$AF$1223,A147,1),INDEX(LinMotor!$AD$1:$AD$1355,A147,1)) -> 0.5531010903 | L147: =IF(Calc!$A$90,INDEX(Motor!$AG$1:$AG$1223,A147,1),INDEX(LinMotor!$AE$1:$AE$1355,A147,1)) -> 0.8144198929 | M147: =IF(Calc!$A$90,INDEX(Motor!$AH$1:$AH$1223,A147,1),INDEX(LinMotor!$AF$1:$AF$1355,A147,1)) -> 13.27442617 | N147: =IF(Calc!$A$90,INDEX(Motor!$AI$1:$AI$1223,A147,1),INDEX(LinMotor!$AG$1:$AG$1355,A147,1)) -> 39.09215486 | O147: =IF(A147<>2,IF(IF(Calc!$A$90,INDEX(Motor!$AK$1:$AK$1223,A147,1),INDEX(LinMotor!$AI$1:$AI$1355,A147,1))<1000,IF(Calc!$A$90,INDEX(Motor!$AK$1:$AK$1223,A147,1),INDEX(LinMotor!$AI$1:$AI$1355,A147,1)),TEXT(IF(Calc!$A$90,INDEX(Motor!$AK$1:$AK$1223,A147,1),INDEX(LinMotor!$AI$1:$AI$1355,A147,1))/1000,"0.0k")),"") -> 23.04900217 | P147: =IF(A147<>2,IF(IF(Calc!$A$90,INDEX(Motor!$AL$1:$AL$1223,A147,1),INDEX(LinMotor!$AJ$1:$AJ$1355,A147,1))<1000,IF(Calc!$A$90,INDEX(Motor!$AL$1:$AL$1223,A147,1),INDEX(LinMotor!$AJ$1:$AJ$1355,A147,1)),TEXT(IF(Calc!$A$90,INDEX(Motor!$AL$1:$AL$1223,A147,1),INDEX(LinMotor!$AJ$1:$AJ$1355,A147,1))/1000,"0.0k")),"") -> 2.428599743 | Q147: =IF(A147<>2,IF(IF(Calc!$A$90,INDEX(Motor!$AM$1:$AM$1223,A147,1),INDEX(LinMotor!$AK$1:$AK$1355,A147,1))<1000,IF(Calc!$A$90,INDEX(Motor!$AM$1:$AM$1223,A147,1),INDEX(LinMotor!$AK$1:$AK$1355,A147,1)),TEXT(IF(Calc!$A$90,INDEX(Motor!$AM$1:$AM$1223,A147,1),INDEX(LinMotor!$AK$1:$AK$1355,A147,1))/1000,"0.0k")),"") -> 148.7742213
A148: 75 | B148: =IF(Calc!$A$90,INDEX(Motor!$B$1:$B$1223,A148,1),INDEX(LinMotor!$B$1:$B$1341,A148,1)) -> AKM52M | C148: =IF(Calc!$A$90,INDEX(Motor!$T$1:$T$1223,A148,1),INDEX(LinMotor!$R$1:$R$1355,A148,1)) -> 181.4516129 | D148: =IF(Calc!$A$90,INDEX(Motor!$U$1:$U$1223,A148,1),INDEX(LinMotor!$S$1:$S$1355,A148,1)) -> 1.155914594 | E148: =IF(Calc!$A$90,INDEX(Motor!$V$1:$V$1223,A148,1),INDEX(LinMotor!$T$1:$T$1355,A148,1)) -> 1.33415597 | F148: =IF(Calc!$A$90,INDEX(Motor!$W$1:$W$1223,A148,1),INDEX(LinMotor!$U$1:$U$1355,A148,1)) -> 0.02122065908 | G148: =IF(A148<>2,IF(ABS(IF(Calc!$A$90,INDEX(Motor!$X$1:$X$1223,A148,1),INDEX(LinMotor!$V$1:$V$1355,A148,1)))<1000,IF(Calc!$A$90,INDEX(Motor!$X$1:$X$1223,A148,1),INDEX(LinMotor!$V$1:$V$1355,A148,1)),TEXT(IF(Calc!$A$90,INDEX(Motor!$X$1:$X$1223,A148,1),INDEX(LinMotor!$V$1:$V$1355,A148,1))/1000,"0.0k")),"") -> -22.66421697 | H148: =IF(A148<>2,IF(ABS(IF(move1,IF(Calc!$A$90,INDEX(Motor!$Y$1:$Y$1223,A148,1),INDEX(LinMotor!$W$1:$W$1355,A148,1)),IF(Calc!$A$90,INDEX(Motor!$Z$1:$Z$1068,A148,1),INDEX(LinMotor!$X$1:$X$1355,A148,1))))<1000,IF(move1,IF(Calc!$A$90,INDEX(Motor!$Y$1:$Y$1223,A148,1),INDEX(LinMotor!$W$1:$W$1355,A148,1)),IF(Calc!$A$90,INDEX(Motor!$Z$1:$Z$1223,A148,1),INDEX(LinMotor!$X$1:$X$1355,A148,1))),TEXT(IF(move1,IF(Calc!$A$90,INDEX(Motor!$Y$1:$Y$1223,A148,1),INDEX(LinMotor!$W$1:$W$1355,A148,1)),IF(Calc!$A$90,INDEX(Motor!$Z$1:$Z$1223,A148,1),INDEX(LinMotor!$X$1:$X$1355,A148,1)))/1000,"0.0k")),"") -> 9 | I148: =IF(A148<>2,IF(ABS(IF(move1,IF(Calc!$A$90,INDEX(Motor!$Z$1:$Z$1223,A148,1),INDEX(LinMotor!$X$1:$X$1355,A148,1)),IF(Calc!$A$90,INDEX(Motor!$AB$1:$AB$1223,A148,1),INDEX(LinMotor!$Z$1:$Z$1355,A148,1))))<1000,IF(move1,IF(Calc!$A$90,INDEX(Motor!$Z$1:$Z$1223,A148,1),INDEX(LinMotor!$X$1:$X$1355,A148,1)),IF(Calc!$A$90,INDEX(Motor!$AB$1:$AB$1223,A148,1),INDEX(LinMotor!$Z$1:$Z$1355,A148,1))),TEXT(IF(move1,IF(Calc!$A$90,INDEX(Motor!$Z$1:$Z$1223,A148,1),INDEX(LinMotor!$X$1:$X$1355,A148,1)),IF(Calc!$A$90,INDEX(Motor!$AB$1:$AB$1223,A148,1),INDEX(LinMotor!$Z$1:$Z$1355,A148,1)))/1000,"0.0k")),"") -> 29.21801574 | J148: =IF(A148<>2,IF(ABS(IF(move1,IF(Calc!$A$90,INDEX(Motor!$AA$1:$AA$1223,A148,1),INDEX(LinMotor!$Y$1:$Y$1355,A148,1)),IF(Calc!$A$90,INDEX(Motor!$AD$1:$AD$1223,A148,1),INDEX(LinMotor!$AB$1:$AB$445,A148,1))))<1000,IF(move1,IF(Calc!$A$90,INDEX(Motor!$AA$1:$AA$1223,A148,1),INDEX(LinMotor!$Y$1:$Y$1355,A148,1)),IF(Calc!$A$90,INDEX(Motor!$AD$1:$AD$1223,A148,1),INDEX(LinMotor!$AB$1:$AB$445,A148,1))),TEXT(IF(move1,IF(Calc!$A$90,INDEX(Motor!$AA$1:$AA$1223,A148,1),INDEX(LinMotor!$Y$1:$Y$1355,A148,1)),IF(Calc!$A$90,INDEX(Motor!$AD$1:$AD$1223,A148,1),INDEX(LinMotor!$AB$1:$AB$445,A148,1)))/1000,"0.0k")),"") -> 9 | K148: =IF(Calc!$A$90,INDEX(Motor!$AF$1:$AF$1223,A148,1),INDEX(LinMotor!$AD$1:$AD$1355,A148,1)) -> 0.6297069219 | L148: =IF(Calc!$A$90,INDEX(Motor!$AG$1:$AG$1223,A148,1),INDEX(LinMotor!$AE$1:$AE$1355,A148,1)) -> 0.9272190074 | M148: =IF(Calc!$A$90,INDEX(Motor!$AH$1:$AH$1223,A148,1),INDEX(LinMotor!$AF$1:$AF$1355,A148,1)) -> 15.11296613 | N148: =IF(Calc!$A$90,INDEX(Motor!$AI$1:$AI$1223,A148,1),INDEX(LinMotor!$AG$1:$AG$1355,A148,1)) -> 44.50651235 | O148: =IF(A148<>2,IF(IF(Calc!$A$90,INDEX(Motor!$AK$1:$AK$1223,A148,1),INDEX(LinMotor!$AI$1:$AI$1355,A148,1))<1000,IF(Calc!$A$90,INDEX(Motor!$AK$1:$AK$1223,A148,1),INDEX(LinMotor!$AI$1:$AI$1355,A148,1)),TEXT(IF(Calc!$A$90,INDEX(Motor!$AK$1:$AK$1223,A148,1),INDEX(LinMotor!$AI$1:$AI$1355,A148,1))/1000,"0.0k")),"") -> 23.04900217 | P148: =IF(A148<>2,IF(IF(Calc!$A$90,INDEX(Motor!$AL$1:$AL$1223,A148,1),INDEX(LinMotor!$AJ$1:$AJ$1355,A148,1))<1000,IF(Calc!$A$90,INDEX(Motor!$AL$1:$AL$1223,A148,1),INDEX(LinMotor!$AJ$1:$AJ$1355,A148,1)),TEXT(IF(Calc!$A$90,INDEX(Motor!$AL$1:$AL$1223,A148,1),INDEX(LinMotor!$AJ$1:$AJ$1355,A148,1))/1000,"0.0k")),"") -> 2.428599743 | Q148: =IF(A148<>2,IF(IF(Calc!$A$90,INDEX(Motor!$AM$1:$AM$1223,A148,1),INDEX(LinMotor!$AK$1:$AK$1355,A148,1))<1000,IF(Calc!$A$90,INDEX(Motor!$AM$1:$AM$1223,A148,1),INDEX(LinMotor!$AK$1:$AK$1355,A148,1)),TEXT(IF(Calc!$A$90,INDEX(Motor!$AM$1:$AM$1223,A148,1),INDEX(LinMotor!$AK$1:$AK$1355,A148,1))/1000,"0.0k")),"") -> 148.7742213
A149: 76 | B149: =IF(Calc!$A$90,INDEX(Motor!$B$1:$B$1223,A149,1),INDEX(LinMotor!$B$1:$B$1341,A149,1)) -> AKM53G | C149: =IF(Calc!$A$90,INDEX(Motor!$T$1:$T$1223,A149,1),INDEX(LinMotor!$R$1:$R$1355,A149,1)) -> 123.6263736 | D149: =IF(Calc!$A$90,INDEX(Motor!$U$1:$U$1223,A149,1),INDEX(LinMotor!$S$1:$S$1355,A149,1)) -> 0.8720678511 | E149: =IF(Calc!$A$90,INDEX(Motor!$V$1:$V$1223,A149,1),INDEX(LinMotor!$T$1:$T$1355,A149,1)) -> 0.9857757102 | F149: =IF(Calc!$A$90,INDEX(Motor!$W$1:$W$1223,A149,1),INDEX(LinMotor!$U$1:$U$1355,A149,1)) -> 0.0618122716 | G149: =IF(A149<>2,IF(ABS(IF(Calc!$A$90,INDEX(Motor!$X$1:$X$1223,A149,1),INDEX(LinMotor!$V$1:$V$1355,A149,1)))<1000,IF(Calc!$A$90,INDEX(Motor!$X$1:$X$1223,A149,1),INDEX(LinMotor!$V$1:$V$1355,A149,1)),TEXT(IF(Calc!$A$90,INDEX(Motor!$X$1:$X$1223,A149,1),INDEX(LinMotor!$V$1:$V$1355,A149,1))/1000,"0.0k")),"") -> -22.73770197 | H149: =IF(A149<>2,IF(ABS(IF(move1,IF(Calc!$A$90,INDEX(Motor!$Y$1:$Y$1223,A149,1),INDEX(LinMotor!$W$1:$W$1355,A149,1)),IF(Calc!$A$90,INDEX(Motor!$Z$1:$Z$1068,A149,1),INDEX(LinMotor!$X$1:$X$1355,A149,1))))<1000,IF(move1,IF(Calc!$A$90,INDEX(Motor!$Y$1:$Y$1223,A149,1),INDEX(LinMotor!$W$1:$W$1355,A149,1)),IF(Calc!$A$90,INDEX(Motor!$Z$1:$Z$1223,A149,1),INDEX(LinMotor!$X$1:$X$1355,A149,1))),TEXT(IF(move1,IF(Calc!$A$90,INDEX(Motor!$Y$1:$Y$1223,A149,1),INDEX(LinMotor!$W$1:$W$1355,A149,1)),IF(Calc!$A$90,INDEX(Motor!$Z$1:$Z$1223,A149,1),INDEX(LinMotor!$X$1:$X$1355,A149,1)))/1000,"0.0k")),"") -> 9 | I149: =IF(A149<>2,IF(ABS(IF(move1,IF(Calc!$A$90,INDEX(Motor!$Z$1:$Z$1223,A149,1),INDEX(LinMotor!$X$1:$X$1355,A149,1)),IF(Calc!$A$90,INDEX(Motor!$AB$1:$AB$1223,A149,1),INDEX(LinMotor!$Z$1:$Z$1355,A149,1))))<1000,IF(move1,IF(Calc!$A$90,INDEX(Motor!$Z$1:$Z$1223,A149,1),INDEX(LinMotor!$X$1:$X$1355,A149,1)),IF(Calc!$A$90,INDEX(Motor!$AB$1:$AB$1223,A149,1),INDEX(LinMotor!$Z$1:$Z$1355,A149,1))),TEXT(IF(move1,IF(Calc!$A$90,INDEX(Motor!$Z$1:$Z$1223,A149,1),INDEX(LinMotor!$X$1:$X$1355,A149,1)),IF(Calc!$A$90,INDEX(Motor!$AB$1:$AB$1223,A149,1),INDEX(LinMotor!$Z$1:$Z$1355,A149,1)))/1000,"0.0k")),"") -> 29.27753859 | J149: =IF(A149<>2,IF(ABS(IF(move1,IF(Calc!$A$90,INDEX(Motor!$AA$1:$AA$1223,A149,1),INDEX(LinMotor!$Y$1:$Y$1355,A149,1)),IF(Calc!$A$90,INDEX(Motor!$AD$1:$AD$1223,A149,1),INDEX(LinMotor!$AB$1:$AB$445,A149,1))))<1000,IF(move1,IF(Calc!$A$90,INDEX(Motor!$AA$1:$AA$1223,A149,1),INDEX(LinMotor!$Y$1:$Y$1355,A149,1)),IF(Calc!$A$90,INDEX(Motor!$AD$1:$AD$1223,A149,1),INDEX(LinMotor!$AB$1:$AB$445,A149,1))),TEXT(IF(move1,IF(Calc!$A$90,INDEX(Motor!$AA$1:$AA$1223,A149,1),INDEX(LinMotor!$Y$1:$Y$1355,A149,1)),IF(Calc!$A$90,INDEX(Motor!$AD$1:$AD$1223,A149,1),INDEX(LinMotor!$AB$1:$AB$445,A149,1)))/1000,"0.0k")),"") -> 9 | K149: =IF(Calc!$A$90,INDEX(Motor!$AF$1:$AF$1223,A149,1),INDEX(LinMotor!$AD$1:$AD$1355,A149,1)) -> 0.173062069 | L149: =IF(Calc!$A$90,INDEX(Motor!$AG$1:$AG$1223,A149,1),INDEX(LinMotor!$AE$1:$AE$1355,A149,1)) -> 0.2552153858 | M149: =IF(Calc!$A$90,INDEX(Motor!$AH$1:$AH$1223,A149,1),INDEX(LinMotor!$AF$1:$AF$1355,A149,1)) -> 4.153489655 | N149: =IF(Calc!$A$90,INDEX(Motor!$AI$1:$AI$1223,A149,1),INDEX(LinMotor!$AG$1:$AG$1355,A149,1)) -> 12.25033852 | O149: =IF(A149<>2,IF(IF(Calc!$A$90,INDEX(Motor!$AK$1:$AK$1223,A149,1),INDEX(LinMotor!$AI$1:$AI$1355,A149,1))<1000,IF(Calc!$A$90,INDEX(Motor!$AK$1:$AK$1223,A149,1),INDEX(LinMotor!$AI$1:$AI$1355,A149,1)),TEXT(IF(Calc!$A$90,INDEX(Motor!$AK$1:$AK$1223,A149,1),INDEX(LinMotor!$AI$1:$AI$1355,A149,1))/1000,"0.0k")),"") -> 23.06082657 | P149: =IF(A149<>2,IF(IF(Calc!$A$90,INDEX(Motor!$AL$1:$AL$1223,A149,1),INDEX(LinMotor!$AJ$1:$AJ$1355,A149,1))<1000,IF(Calc!$A$90,INDEX(Motor!$AL$1:$AL$1223,A149,1),INDEX(LinMotor!$AJ$1:$AJ$1355,A149,1)),TEXT(IF(Calc!$A$90,INDEX(Motor!$AL$1:$AL$1223,A149,1),INDEX(LinMotor!$AJ$1:$AJ$1355,A149,1))/1000,"0.0k")),"") -> 2.438782041 | Q149: =IF(A149<>2,IF(IF(Calc!$A$90,INDEX(Motor!$AM$1:$AM$1223,A149,1),INDEX(LinMotor!$AK$1:$AK$1355,A149,1))<1000,IF(Calc!$A$90,INDEX(Motor!$AM$1:$AM$1223,A149,1),INDEX(LinMotor!$AK$1:$AK$1355,A149,1)),TEXT(IF(Calc!$A$90,INDEX(Motor!$AM$1:$AM$1223,A149,1),INDEX(LinMotor!$AK$1:$AK$1355,A149,1))/1000,"0.0k")),"") -> 149.3979813
A150: 77 | B150: =IF(Calc!$A$90,INDEX(Motor!$B$1:$B$1223,A150,1),INDEX(LinMotor!$B$1:$B$1341,A150,1)) -> AKM53H | C150: =IF(Calc!$A$90,INDEX(Motor!$T$1:$T$1223,A150,1),INDEX(LinMotor!$R$1:$R$1355,A150,1)) -> 123.6263736 | D150: =IF(Calc!$A$90,INDEX(Motor!$U$1:$U$1223,A150,1),INDEX(LinMotor!$S$1:$S$1355,A150,1)) -> 0.8639184589 | E150: =IF(Calc!$A$90,INDEX(Motor!$V$1:$V$1223,A150,1),INDEX(LinMotor!$T$1:$T$1355,A150,1)) -> 0.9759179531 | F150: =IF(Calc!$A$90,INDEX(Motor!$W$1:$W$1223,A150,1),INDEX(LinMotor!$U$1:$U$1355,A150,1)) -> 0.04442470056 | G150: =IF(A150<>2,IF(ABS(IF(Calc!$A$90,INDEX(Motor!$X$1:$X$1223,A150,1),INDEX(LinMotor!$V$1:$V$1355,A150,1)))<1000,IF(Calc!$A$90,INDEX(Motor!$X$1:$X$1223,A150,1),INDEX(LinMotor!$V$1:$V$1355,A150,1)),TEXT(IF(Calc!$A$90,INDEX(Motor!$X$1:$X$1223,A150,1),INDEX(LinMotor!$V$1:$V$1355,A150,1))/1000,"0.0k")),"") -> -22.73770197 | H150: =IF(A150<>2,IF(ABS(IF(move1,IF(Calc!$A$90,INDEX(Motor!$Y$1:$Y$1223,A150,1),INDEX(LinMotor!$W$1:$W$1355,A150,1)),IF(Calc!$A$90,INDEX(Motor!$Z$1:$Z$1068,A150,1),INDEX(LinMotor!$X$1:$X$1355,A150,1))))<1000,IF(move1,IF(Calc!$A$90,INDEX(Motor!$Y$1:$Y$1223,A150,1),INDEX(LinMotor!$W$1:$W$1355,A150,1)),IF(Calc!$A$90,INDEX(Motor!$Z$1:$Z$1223,A150,1),INDEX(LinMotor!$X$1:$X$1355,A150,1))),TEXT(IF(move1,IF(Calc!$A$90,INDEX(Motor!$Y$1:$Y$1223,A150,1),INDEX(LinMotor!$W$1:$W$1355,A150,1)),IF(Calc!$A$90,INDEX(Motor!$Z$1:$Z$1223,A150,1),INDEX(LinMotor!$X$1:$X$1355,A150,1)))/1000,"0.0k")),"") -> 9 | I150: =IF(A150<>2,IF(ABS(IF(move1,IF(Calc!$A$90,INDEX(Motor!$Z$1:$Z$1223,A150,1),INDEX(LinMotor!$X$1:$X$1355,A150,1)),IF(Calc!$A$90,INDEX(Motor!$AB$1:$AB$1223,A150,1),INDEX(LinMotor!$Z$1:$Z$1355,A150,1))))<1000,IF(move1,IF(Calc!$A$90,INDEX(Motor!$Z$1:$Z$1223,A150,1),INDEX(LinMotor!$X$1:$X$1355,A150,1)),IF(Calc!$A$90,INDEX(Motor!$AB$1:$AB$1223,A150,1),INDEX(LinMotor!$Z$1:$Z$1355,A150,1))),TEXT(IF(move1,IF(Calc!$A$90,INDEX(Motor!$Z$1:$Z$1223,A150,1),INDEX(LinMotor!$X$1:$X$1355,A150,1)),IF(Calc!$A$90,INDEX(Motor!$AB$1:$AB$1223,A150,1),INDEX(LinMotor!$Z$1:$Z$1355,A150,1)))/1000,"0.0k")),"") -> 29.27753859 | J150: =IF(A150<>2,IF(ABS(IF(move1,IF(Calc!$A$90,INDEX(Motor!$AA$1:$AA$1223,A150,1),INDEX(LinMotor!$Y$1:$Y$1355,A150,1)),IF(Calc!$A$90,INDEX(Motor!$AD$1:$AD$1223,A150,1),INDEX(LinMotor!$AB$1:$AB$445,A150,1))))<1000,IF(move1,IF(Calc!$A$90,INDEX(Motor!$AA$1:$AA$1223,A150,1),INDEX(LinMotor!$Y$1:$Y$1355,A150,1)),IF(Calc!$A$90,INDEX(Motor!$AD$1:$AD$1223,A150,1),INDEX(LinMotor!$AB$1:$AB$445,A150,1))),TEXT(IF(move1,IF(Calc!$A$90,INDEX(Motor!$AA$1:$AA$1223,A150,1),INDEX(LinMotor!$Y$1:$Y$1355,A150,1)),IF(Calc!$A$90,INDEX(Motor!$AD$1:$AD$1223,A150,1),INDEX(LinMotor!$AB$1:$AB$445,A150,1)))/1000,"0.0k")),"") -> 9 | K150: =IF(Calc!$A$90,INDEX(Motor!$AF$1:$AF$1223,A150,1),INDEX(LinMotor!$AD$1:$AD$1355,A150,1)) -> 0.2371684829 | L150: =IF(Calc!$A$90,INDEX(Motor!$AG$1:$AG$1223,A150,1),INDEX(LinMotor!$AE$1:$AE$1355,A150,1)) -> 0.3497533933 | M150: =IF(Calc!$A$90,INDEX(Motor!$AH$1:$AH$1223,A150,1),INDEX(LinMotor!$AF$1:$AF$1355,A150,1)) -> 5.692043591 | N150: =IF(Calc!$A$90,INDEX(Motor!$AI$1:$AI$1223,A150,1),INDEX(LinMotor!$AG$1:$AG$1355,A150,1)) -> 16.78816288 | O150: =IF(A150<>2,IF(IF(Calc!$A$90,INDEX(Motor!$AK$1:$AK$1223,A150,1),INDEX(LinMotor!$AI$1:$AI$1355,A150,1))<1000,IF(Calc!$A$90,INDEX(Motor!$AK$1:$AK$1223,A150,1),INDEX(LinMotor!$AI$1:$AI$1355,A150,1)),TEXT(IF(Calc!$A$90,INDEX(Motor!$AK$1:$AK$1223,A150,1),INDEX(LinMotor!$AI$1:$AI$1355,A150,1))/1000,"0.0k")),"") -> 23.06082657 | P150: =IF(A150<>2,IF(IF(Calc!$A$90,INDEX(Motor!$AL$1:$AL$1223,A150,1),INDEX(LinMotor!$AJ$1:$AJ$1355,A150,1))<1000,IF(Calc!$A$90,INDEX(Motor!$AL$1:$AL$1223,A150,1),INDEX(LinMotor!$AJ$1:$AJ$1355,A150,1)),TEXT(IF(Calc!$A$90,INDEX(Motor!$AL$1:$AL$1223,A150,1),INDEX(LinMotor!$AJ$1:$AJ$1355,A150,1))/1000,"0.0k")),"") -> 2.438782041 | Q150: =IF(A150<>2,IF(IF(Calc!$A$90,INDEX(Motor!$AM$1:$AM$1223,A150,1),INDEX(LinMotor!$AK$1:$AK$1355,A150,1))<1000,IF(Calc!$A$90,INDEX(Motor!$AM$1:$AM$1223,A150,1),INDEX(LinMotor!$AK$1:$AK$1355,A150,1)),TEXT(IF(Calc!$A$90,INDEX(Motor!$AM$1:$AM$1223,A150,1),INDEX(LinMotor!$AK$1:$AK$1355,A150,1))/1000,"0.0k")),"") -> 149.3979813
A151: 1185 | B151: =IF(Calc!$A$90,INDEX(Motor!$B$1:$B$1223,A151,1),INDEX(LinMotor!$B$1:$B$1341,A151,1)) -> KBMS-60S01-A (240 V) | C151: =IF(Calc!$A$90,INDEX(Motor!$T$1:$T$1223,A151,1),INDEX(LinMotor!$R$1:$R$1355,A151,1)) -> 4.39453125 | D151: =IF(Calc!$A$90,INDEX(Motor!$U$1:$U$1223,A151,1),INDEX(LinMotor!$S$1:$S$1355,A151,1)) -> 0.1936471066 | E151: =IF(Calc!$A$90,INDEX(Motor!$V$1:$V$1223,A151,1),INDEX(LinMotor!$T$1:$T$1355,A151,1)) -> 0.2704345726 | F151: =IF(Calc!$A$90,INDEX(Motor!$W$1:$W$1223,A151,1),INDEX(LinMotor!$U$1:$U$1355,A151,1)) -> 0.1295258947 | G151: =IF(A151<>2,IF(ABS(IF(Calc!$A$90,INDEX(Motor!$X$1:$X$1223,A151,1),INDEX(LinMotor!$V$1:$V$1355,A151,1)))<1000,IF(Calc!$A$90,INDEX(Motor!$X$1:$X$1223,A151,1),INDEX(LinMotor!$V$1:$V$1355,A151,1)),TEXT(IF(Calc!$A$90,INDEX(Motor!$X$1:$X$1223,A151,1),INDEX(LinMotor!$V$1:$V$1355,A151,1))/1000,"0.0k")),"") -> -28.99406262 | H151: =IF(A151<>2,IF(ABS(IF(move1,IF(Calc!$A$90,INDEX(Motor!$Y$1:$Y$1223,A151,1),INDEX(LinMotor!$W$1:$W$1355,A151,1)),IF(Calc!$A$90,INDEX(Motor!$Z$1:$Z$1068,A151,1),INDEX(LinMotor!$X$1:$X$1355,A151,1))))<1000,IF(move1,IF(Calc!$A$90,INDEX(Motor!$Y$1:$Y$1223,A151,1),INDEX(LinMotor!$W$1:$W$1355,A151,1)),IF(Calc!$A$90,INDEX(Motor!$Z$1:$Z$1223,A151,1),INDEX(LinMotor!$X$1:$X$1355,A151,1))),TEXT(IF(move1,IF(Calc!$A$90,INDEX(Motor!$Y$1:$Y$1223,A151,1),INDEX(LinMotor!$W$1:$W$1355,A151,1)),IF(Calc!$A$90,INDEX(Motor!$Z$1:$Z$1223,A151,1),INDEX(LinMotor!$X$1:$X$1355,A151,1)))/1000,"0.0k")),"") -> 9 | I151: =IF(A151<>2,IF(ABS(IF(move1,IF(Calc!$A$90,INDEX(Motor!$Z$1:$Z$1223,A151,1),INDEX(LinMotor!$X$1:$X$1355,A151,1)),IF(Calc!$A$90,INDEX(Motor!$AB$1:$AB$1223,A151,1),INDEX(LinMotor!$Z$1:$Z$1355,A151,1))))<1000,IF(move1,IF(Calc!$A$90,INDEX(Motor!$Z$1:$Z$1223,A151,1),INDEX(LinMotor!$X$1:$X$1355,A151,1)),IF(Calc!$A$90,INDEX(Motor!$AB$1:$AB$1223,A151,1),INDEX(LinMotor!$Z$1:$Z$1355,A151,1))),TEXT(IF(move1,IF(Calc!$A$90,INDEX(Motor!$Z$1:$Z$1223,A151,1),INDEX(LinMotor!$X$1:$X$1355,A151,1)),IF(Calc!$A$90,INDEX(Motor!$AB$1:$AB$1223,A151,1),INDEX(LinMotor!$Z$1:$Z$1355,A151,1)))/1000,"0.0k")),"") -> 34.34519072 | J151: =IF(A151<>2,IF(ABS(IF(move1,IF(Calc!$A$90,INDEX(Motor!$AA$1:$AA$1223,A151,1),INDEX(LinMotor!$Y$1:$Y$1355,A151,1)),IF(Calc!$A$90,INDEX(Motor!$AD$1:$AD$1223,A151,1),INDEX(LinMotor!$AB$1:$AB$445,A151,1))))<1000,IF(move1,IF(Calc!$A$90,INDEX(Motor!$AA$1:$AA$1223,A151,1),INDEX(LinMotor!$Y$1:$Y$1355,A151,1)),IF(Calc!$A$90,INDEX(Motor!$AD$1:$AD$1223,A151,1),INDEX(LinMotor!$AB$1:$AB$445,A151,1))),TEXT(IF(move1,IF(Calc!$A$90,INDEX(Motor!$AA$1:$AA$1223,A151,1),INDEX(LinMotor!$Y$1:$Y$1355,A151,1)),IF(Calc!$A$90,INDEX(Motor!$AD$1:$AD$1223,A151,1),INDEX(LinMotor!$AB$1:$AB$445,A151,1)))/1000,"0.0k")),"") -> 9 | K151: =IF(Calc!$A$90,INDEX(Motor!$AF$1:$AF$1223,A151,1),INDEX(LinMotor!$AD$1:$AD$1355,A151,1)) -> 0.1099008314 | L151: =IF(Calc!$A$90,INDEX(Motor!$AG$1:$AG$1223,A151,1),INDEX(LinMotor!$AE$1:$AE$1355,A151,1)) -> 0.1815312935 | M151: =IF(Calc!$A$90,INDEX(Motor!$AH$1:$AH$1223,A151,1),INDEX(LinMotor!$AF$1:$AF$1355,A151,1)) -> 2.637619953 | N151: =IF(Calc!$A$90,INDEX(Motor!$AI$1:$AI$1223,A151,1),INDEX(LinMotor!$AG$1:$AG$1355,A151,1)) -> 8.71350209 | O151: =IF(A151<>2,IF(IF(Calc!$A$90,INDEX(Motor!$AK$1:$AK$1223,A151,1),INDEX(LinMotor!$AI$1:$AI$1355,A151,1))<1000,IF(Calc!$A$90,INDEX(Motor!$AK$1:$AK$1223,A151,1),INDEX(LinMotor!$AI$1:$AI$1355,A151,1)),TEXT(IF(Calc!$A$90,INDEX(Motor!$AK$1:$AK$1223,A151,1),INDEX(LinMotor!$AI$1:$AI$1355,A151,1))/1000,"0.0k")),"") -> 24.15242134 | P151: =IF(A151<>2,IF(IF(Calc!$A$90,INDEX(Motor!$AL$1:$AL$1223,A151,1),INDEX(LinMotor!$AJ$1:$AJ$1355,A151,1))<1000,IF(Calc!$A$90,INDEX(Motor!$AL$1:$AL$1223,A151,1),INDEX(LinMotor!$AJ$1:$AJ$1355,A151,1)),TEXT(IF(Calc!$A$90,INDEX(Motor!$AL$1:$AL$1223,A151,1),INDEX(LinMotor!$AJ$1:$AJ$1355,A151,1))/1000,"0.0k")),"") -> 3.305681825 | Q151: =IF(A151<>2,IF(IF(Calc!$A$90,INDEX(Motor!$AM$1:$AM$1223,A151,1),INDEX(LinMotor!$AK$1:$AK$1355,A151,1))<1000,IF(Calc!$A$90,INDEX(Motor!$AM$1:$AM$1223,A151,1),INDEX(LinMotor!$AK$1:$AK$1355,A151,1)),TEXT(IF(Calc!$A$90,INDEX(Motor!$AM$1:$AM$1223,A151,1),INDEX(LinMotor!$AK$1:$AK$1355,A151,1))/1000,"0.0k")),"") -> 202.5036199
A152: 1186 | B152: =IF(Calc!$A$90,INDEX(Motor!$B$1:$B$1223,A152,1),INDEX(LinMotor!$B$1:$B$1341,A152,1)) -> KBMS-60S02-A (240 V) | C152: =IF(Calc!$A$90,INDEX(Motor!$T$1:$T$1223,A152,1),INDEX(LinMotor!$R$1:$R$1355,A152,1)) -> 2.678571429 | D152: =IF(Calc!$A$90,INDEX(Motor!$U$1:$U$1223,A152,1),INDEX(LinMotor!$S$1:$S$1355,A152,1)) -> 0.100137078 | E152: =IF(Calc!$A$90,INDEX(Motor!$V$1:$V$1223,A152,1),INDEX(LinMotor!$T$1:$T$1355,A152,1)) -> 0.1478874918 | F152: =IF(Calc!$A$90,INDEX(Motor!$W$1:$W$1223,A152,1),INDEX(LinMotor!$U$1:$U$1355,A152,1)) -> 0.21802047 | G152: =IF(A152<>2,IF(ABS(IF(Calc!$A$90,INDEX(Motor!$X$1:$X$1223,A152,1),INDEX(LinMotor!$V$1:$V$1355,A152,1)))<1000,IF(Calc!$A$90,INDEX(Motor!$X$1:$X$1223,A152,1),INDEX(LinMotor!$V$1:$V$1355,A152,1)),TEXT(IF(Calc!$A$90,INDEX(Motor!$X$1:$X$1223,A152,1),INDEX(LinMotor!$V$1:$V$1355,A152,1))/1000,"0.0k")),"") -> -33.14976593 | H152: =IF(A152<>2,IF(ABS(IF(move1,IF(Calc!$A$90,INDEX(Motor!$Y$1:$Y$1223,A152,1),INDEX(LinMotor!$W$1:$W$1355,A152,1)),IF(Calc!$A$90,INDEX(Motor!$Z$1:$Z$1068,A152,1),INDEX(LinMotor!$X$1:$X$1355,A152,1))))<1000,IF(move1,IF(Calc!$A$90,INDEX(Motor!$Y$1:$Y$1223,A152,1),INDEX(LinMotor!$W$1:$W$1355,A152,1)),IF(Calc!$A$90,INDEX(Motor!$Z$1:$Z$1223,A152,1),INDEX(LinMotor!$X$1:$X$1355,A152,1))),TEXT(IF(move1,IF(Calc!$A$90,INDEX(Motor!$Y$1:$Y$1223,A152,1),INDEX(LinMotor!$W$1:$W$1355,A152,1)),IF(Calc!$A$90,INDEX(Motor!$Z$1:$Z$1223,A152,1),INDEX(LinMotor!$X$1:$X$1355,A152,1)))/1000,"0.0k")),"") -> 9 | I152: =IF(A152<>2,IF(ABS(IF(move1,IF(Calc!$A$90,INDEX(Motor!$Z$1:$Z$1223,A152,1),INDEX(LinMotor!$X$1:$X$1355,A152,1)),IF(Calc!$A$90,INDEX(Motor!$AB$1:$AB$1223,A152,1),INDEX(LinMotor!$Z$1:$Z$1355,A152,1))))<1000,IF(move1,IF(Calc!$A$90,INDEX(Motor!$Z$1:$Z$1223,A152,1),INDEX(LinMotor!$X$1:$X$1355,A152,1)),IF(Calc!$A$90,INDEX(Motor!$AB$1:$AB$1223,A152,1),INDEX(LinMotor!$Z$1:$Z$1355,A152,1))),TEXT(IF(move1,IF(Calc!$A$90,INDEX(Motor!$Z$1:$Z$1223,A152,1),INDEX(LinMotor!$X$1:$X$1355,A152,1)),IF(Calc!$A$90,INDEX(Motor!$AB$1:$AB$1223,A152,1),INDEX(LinMotor!$Z$1:$Z$1355,A152,1)))/1000,"0.0k")),"") -> 37.7113104 | J152: =IF(A152<>2,IF(ABS(IF(move1,IF(Calc!$A$90,INDEX(Motor!$AA$1:$AA$1223,A152,1),INDEX(LinMotor!$Y$1:$Y$1355,A152,1)),IF(Calc!$A$90,INDEX(Motor!$AD$1:$AD$1223,A152,1),INDEX(LinMotor!$AB$1:$AB$445,A152,1))))<1000,IF(move1,IF(Calc!$A$90,INDEX(Motor!$AA$1:$AA$1223,A152,1),INDEX(LinMotor!$Y$1:$Y$1355,A152,1)),IF(Calc!$A$90,INDEX(Motor!$AD$1:$AD$1223,A152,1),INDEX(LinMotor!$AB$1:$AB$445,A152,1))),TEXT(IF(move1,IF(Calc!$A$90,INDEX(Motor!$AA$1:$AA$1223,A152,1),INDEX(LinMotor!$Y$1:$Y$1355,A152,1)),IF(Calc!$A$90,INDEX(Motor!$AD$1:$AD$1223,A152,1),INDEX(LinMotor!$AB$1:$AB$445,A152,1)))/1000,"0.0k")),"") -> 9 | K152: =IF(Calc!$A$90,INDEX(Motor!$AF$1:$AF$1223,A152,1),INDEX(LinMotor!$AD$1:$AD$1355,A152,1)) -> 0.06798847296 | L152: =IF(Calc!$A$90,INDEX(Motor!$AG$1:$AG$1223,A152,1),INDEX(LinMotor!$AE$1:$AE$1355,A152,1)) -> 0.1193027567 | M152: =IF(Calc!$A$90,INDEX(Motor!$AH$1:$AH$1223,A152,1),INDEX(LinMotor!$AF$1:$AF$1355,A152,1)) -> 1.631723351 | N152: =IF(Calc!$A$90,INDEX(Motor!$AI$1:$AI$1223,A152,1),INDEX(LinMotor!$AG$1:$AG$1355,A152,1)) -> 5.72653232 | O152: =IF(A152<>2,IF(IF(Calc!$A$90,INDEX(Motor!$AK$1:$AK$1223,A152,1),INDEX(LinMotor!$AI$1:$AI$1355,A152,1))<1000,IF(Calc!$A$90,INDEX(Motor!$AK$1:$AK$1223,A152,1),INDEX(LinMotor!$AI$1:$AI$1355,A152,1)),TEXT(IF(Calc!$A$90,INDEX(Motor!$AK$1:$AK$1223,A152,1),INDEX(LinMotor!$AI$1:$AI$1355,A152,1))/1000,"0.0k")),"") -> 24.96328301 | P152: =IF(A152<>2,IF(IF(Calc!$A$90,INDEX(Motor!$AL$1:$AL$1223,A152,1),INDEX(LinMotor!$AJ$1:$AJ$1355,A152,1))<1000,IF(Calc!$A$90,INDEX(Motor!$AL$1:$AL$1223,A152,1),INDEX(LinMotor!$AJ$1:$AJ$1355,A152,1)),TEXT(IF(Calc!$A$90,INDEX(Motor!$AL$1:$AL$1223,A152,1),INDEX(LinMotor!$AJ$1:$AJ$1355,A152,1))/1000,"0.0k")),"") -> 3.881508331 | Q152: =IF(A152<>2,IF(IF(Calc!$A$90,INDEX(Motor!$AM$1:$AM$1223,A152,1),INDEX(LinMotor!$AK$1:$AK$1355,A152,1))<1000,IF(Calc!$A$90,INDEX(Motor!$AM$1:$AM$1223,A152,1),INDEX(LinMotor!$AK$1:$AK$1355,A152,1)),TEXT(IF(Calc!$A$90,INDEX(Motor!$AM$1:$AM$1223,A152,1),INDEX(LinMotor!$AK$1:$AK$1355,A152,1))/1000,"0.0k")),"") -> 237.7783252
A153: 1187 | B153: =IF(Calc!$A$90,INDEX(Motor!$B$1:$B$1223,A153,1),INDEX(LinMotor!$B$1:$B$1341,A153,1)) -> KBMS-60S03-A (240 V) | C153: =IF(Calc!$A$90,INDEX(Motor!$T$1:$T$1223,A153,1),INDEX(LinMotor!$R$1:$R$1355,A153,1)) -> 2.126654064 | D153: =IF(Calc!$A$90,INDEX(Motor!$U$1:$U$1223,A153,1),INDEX(LinMotor!$S$1:$S$1355,A153,1)) -> 0.07205703826 | E153: =IF(Calc!$A$90,INDEX(Motor!$V$1:$V$1223,A153,1),INDEX(LinMotor!$T$1:$T$1355,A153,1)) -> 0.1016502506 | F153: =IF(Calc!$A$90,INDEX(Motor!$W$1:$W$1223,A153,1),INDEX(LinMotor!$U$1:$U$1355,A153,1)) -> 0.2726423008 | G153: =IF(A153<>2,IF(ABS(IF(Calc!$A$90,INDEX(Motor!$X$1:$X$1223,A153,1),INDEX(LinMotor!$V$1:$V$1355,A153,1)))<1000,IF(Calc!$A$90,INDEX(Motor!$X$1:$X$1223,A153,1),INDEX(LinMotor!$V$1:$V$1355,A153,1)),TEXT(IF(Calc!$A$90,INDEX(Motor!$X$1:$X$1223,A153,1),INDEX(LinMotor!$V$1:$V$1355,A153,1))/1000,"0.0k")),"") -> -35.91178825 | H153: =IF(A153<>2,IF(ABS(IF(move1,IF(Calc!$A$90,INDEX(Motor!$Y$1:$Y$1223,A153,1),INDEX(LinMotor!$W$1:$W$1355,A153,1)),IF(Calc!$A$90,INDEX(Motor!$Z$1:$Z$1068,A153,1),INDEX(LinMotor!$X$1:$X$1355,A153,1))))<1000,IF(move1,IF(Calc!$A$90,INDEX(Motor!$Y$1:$Y$1223,A153,1),INDEX(LinMotor!$W$1:$W$1355,A153,1)),IF(Calc!$A$90,INDEX(Motor!$Z$1:$Z$1223,A153,1),INDEX(LinMotor!$X$1:$X$1355,A153,1))),TEXT(IF(move1,IF(Calc!$A$90,INDEX(Motor!$Y$1:$Y$1223,A153,1),INDEX(LinMotor!$W$1:$W$1355,A153,1)),IF(Calc!$A$90,INDEX(Motor!$Z$1:$Z$1223,A153,1),INDEX(LinMotor!$X$1:$X$1355,A153,1)))/1000,"0.0k")),"") -> 9 | I153: =IF(A153<>2,IF(ABS(IF(move1,IF(Calc!$A$90,INDEX(Motor!$Z$1:$Z$1223,A153,1),INDEX(LinMotor!$X$1:$X$1355,A153,1)),IF(Calc!$A$90,INDEX(Motor!$AB$1:$AB$1223,A153,1),INDEX(LinMotor!$Z$1:$Z$1355,A153,1))))<1000,IF(move1,IF(Calc!$A$90,INDEX(Motor!$Z$1:$Z$1223,A153,1),INDEX(LinMotor!$X$1:$X$1355,A153,1)),IF(Calc!$A$90,INDEX(Motor!$AB$1:$AB$1223,A153,1),INDEX(LinMotor!$Z$1:$Z$1355,A153,1))),TEXT(IF(move1,IF(Calc!$A$90,INDEX(Motor!$Z$1:$Z$1223,A153,1),INDEX(LinMotor!$X$1:$X$1355,A153,1)),IF(Calc!$A$90,INDEX(Motor!$AB$1:$AB$1223,A153,1),INDEX(LinMotor!$Z$1:$Z$1355,A153,1)))/1000,"0.0k")),"") -> 39.94854848 | J153: =IF(A153<>2,IF(ABS(IF(move1,IF(Calc!$A$90,INDEX(Motor!$AA$1:$AA$1223,A153,1),INDEX(LinMotor!$Y$1:$Y$1355,A153,1)),IF(Calc!$A$90,INDEX(Motor!$AD$1:$AD$1223,A153,1),INDEX(LinMotor!$AB$1:$AB$445,A153,1))))<1000,IF(move1,IF(Calc!$A$90,INDEX(Motor!$AA$1:$AA$1223,A153,1),INDEX(LinMotor!$Y$1:$Y$1355,A153,1)),IF(Calc!$A$90,INDEX(Motor!$AD$1:$AD$1223,A153,1),INDEX(LinMotor!$AB$1:$AB$445,A153,1))),TEXT(IF(move1,IF(Calc!$A$90,INDEX(Motor!$AA$1:$AA$1223,A153,1),INDEX(LinMotor!$Y$1:$Y$1355,A153,1)),IF(Calc!$A$90,INDEX(Motor!$AD$1:$AD$1223,A153,1),INDEX(LinMotor!$AB$1:$AB$445,A153,1)))/1000,"0.0k")),"") -> 9 | K153: =IF(Calc!$A$90,INDEX(Motor!$AF$1:$AF$1223,A153,1),INDEX(LinMotor!$AD$1:$AD$1355,A153,1)) -> 0.0556151503 | L153: =IF(Calc!$A$90,INDEX(Motor!$AG$1:$AG$1223,A153,1),INDEX(LinMotor!$AE$1:$AE$1355,A153,1)) -> 0.1010603161 | M153: =IF(Calc!$A$90,INDEX(Motor!$AH$1:$AH$1223,A153,1),INDEX(LinMotor!$AF$1:$AF$1355,A153,1)) -> 1.334763607 | N153: =IF(Calc!$A$90,INDEX(Motor!$AI$1:$AI$1223,A153,1),INDEX(LinMotor!$AG$1:$AG$1355,A153,1)) -> 4.850895173 | O153: =IF(A153<>2,IF(IF(Calc!$A$90,INDEX(Motor!$AK$1:$AK$1223,A153,1),INDEX(LinMotor!$AI$1:$AI$1355,A153,1))<1000,IF(Calc!$A$90,INDEX(Motor!$AK$1:$AK$1223,A153,1),INDEX(LinMotor!$AI$1:$AI$1355,A153,1)),TEXT(IF(Calc!$A$90,INDEX(Motor!$AK$1:$AK$1223,A153,1),INDEX(LinMotor!$AI$1:$AI$1355,A153,1))/1000,"0.0k")),"") -> 25.53634491 | P153: =IF(A153<>2,IF(IF(Calc!$A$90,INDEX(Motor!$AL$1:$AL$1223,A153,1),INDEX(LinMotor!$AJ$1:$AJ$1355,A153,1))<1000,IF(Calc!$A$90,INDEX(Motor!$AL$1:$AL$1223,A153,1),INDEX(LinMotor!$AJ$1:$AJ$1355,A153,1)),TEXT(IF(Calc!$A$90,INDEX(Motor!$AL$1:$AL$1223,A153,1),INDEX(LinMotor!$AJ$1:$AJ$1355,A153,1))/1000,"0.0k")),"") -> 4.26422229 | Q153: =IF(A153<>2,IF(IF(Calc!$A$90,INDEX(Motor!$AM$1:$AM$1223,A153,1),INDEX(LinMotor!$AK$1:$AK$1355,A153,1))<1000,IF(Calc!$A$90,INDEX(Motor!$AM$1:$AM$1223,A153,1),INDEX(LinMotor!$AK$1:$AK$1355,A153,1)),TEXT(IF(Calc!$A$90,INDEX(Motor!$AM$1:$AM$1223,A153,1),INDEX(LinMotor!$AK$1:$AK$1355,A153,1))/1000,"0.0k")),"") -> 261.2230988
A154: 1188 | B154: =IF(Calc!$A$90,INDEX(Motor!$B$1:$B$1223,A154,1),INDEX(LinMotor!$B$1:$B$1341,A154,1)) -> KBMS-88H01-A (400 V) | C154: =IF(Calc!$A$90,INDEX(Motor!$T$1:$T$1223,A154,1),INDEX(LinMotor!$R$1:$R$1355,A154,1)) -> 0.7705479452 | D154: =IF(Calc!$A$90,INDEX(Motor!$U$1:$U$1223,A154,1),INDEX(LinMotor!$S$1:$S$1355,A154,1)) -> 0.06644291624 | E154: =IF(Calc!$A$90,INDEX(Motor!$V$1:$V$1223,A154,1),INDEX(LinMotor!$T$1:$T$1355,A154,1)) -> 0.1437270686 | F154: =IF(Calc!$A$90,INDEX(Motor!$W$1:$W$1223,A154,1),INDEX(LinMotor!$U$1:$U$1355,A154,1)) -> 0.2432389138 | G154: =IF(A154<>2,IF(ABS(IF(Calc!$A$90,INDEX(Motor!$X$1:$X$1223,A154,1),INDEX(LinMotor!$V$1:$V$1355,A154,1)))<1000,IF(Calc!$A$90,INDEX(Motor!$X$1:$X$1223,A154,1),INDEX(LinMotor!$V$1:$V$1355,A154,1)),TEXT(IF(Calc!$A$90,INDEX(Motor!$X$1:$X$1223,A154,1),INDEX(LinMotor!$V$1:$V$1355,A154,1))/1000,"0.0k")),"") -> -59.50300642 | H154: =IF(A154<>2,IF(ABS(IF(move1,IF(Calc!$A$90,INDEX(Motor!$Y$1:$Y$1223,A154,1),INDEX(LinMotor!$W$1:$W$1355,A154,1)),IF(Calc!$A$90,INDEX(Motor!$Z$1:$Z$1068,A154,1),INDEX(LinMotor!$X$1:$X$1355,A154,1))))<1000,IF(move1,IF(Calc!$A$90,INDEX(Motor!$Y$1:$Y$1223,A154,1),INDEX(LinMotor!$W$1:$W$1355,A154,1)),IF(Calc!$A$90,INDEX(Motor!$Z$1:$Z$1223,A154,1),INDEX(LinMotor!$X$1:$X$1355,A154,1))),TEXT(IF(move1,IF(Calc!$A$90,INDEX(Motor!$Y$1:$Y$1223,A154,1),INDEX(LinMotor!$W$1:$W$1355,A154,1)),IF(Calc!$A$90,INDEX(Motor!$Z$1:$Z$1223,A154,1),INDEX(LinMotor!$X$1:$X$1355,A154,1)))/1000,"0.0k")),"") -> 9 | I154: =IF(A154<>2,IF(ABS(IF(move1,IF(Calc!$A$90,INDEX(Motor!$Z$1:$Z$1223,A154,1),INDEX(LinMotor!$X$1:$X$1355,A154,1)),IF(Calc!$A$90,INDEX(Motor!$AB$1:$AB$1223,A154,1),INDEX(LinMotor!$Z$1:$Z$1355,A154,1))))<1000,IF(move1,IF(Calc!$A$90,INDEX(Motor!$Z$1:$Z$1223,A154,1),INDEX(LinMotor!$X$1:$X$1355,A154,1)),IF(Calc!$A$90,INDEX(Motor!$AB$1:$AB$1223,A154,1),INDEX(LinMotor!$Z$1:$Z$1355,A154,1))),TEXT(IF(move1,IF(Calc!$A$90,INDEX(Motor!$Z$1:$Z$1223,A154,1),INDEX(LinMotor!$X$1:$X$1355,A154,1)),IF(Calc!$A$90,INDEX(Motor!$AB$1:$AB$1223,A154,1),INDEX(LinMotor!$Z$1:$Z$1355,A154,1)))/1000,"0.0k")),"") -> 59.0574352 | J154: =IF(A154<>2,IF(ABS(IF(move1,IF(Calc!$A$90,INDEX(Motor!$AA$1:$AA$1223,A154,1),INDEX(LinMotor!$Y$1:$Y$1355,A154,1)),IF(Calc!$A$90,INDEX(Motor!$AD$1:$AD$1223,A154,1),INDEX(LinMotor!$AB$1:$AB$445,A154,1))))<1000,IF(move1,IF(Calc!$A$90,INDEX(Motor!$AA$1:$AA$1223,A154,1),INDEX(LinMotor!$Y$1:$Y$1355,A154,1)),IF(Calc!$A$90,INDEX(Motor!$AD$1:$AD$1223,A154,1),INDEX(LinMotor!$AB$1:$AB$445,A154,1))),TEXT(IF(move1,IF(Calc!$A$90,INDEX(Motor!$AA$1:$AA$1223,A154,1),INDEX(LinMotor!$Y$1:$Y$1355,A154,1)),IF(Calc!$A$90,INDEX(Motor!$AD$1:$AD$1223,A154,1),INDEX(LinMotor!$AB$1:$AB$445,A154,1)))/1000,"0.0k")),"") -> 9 | K154: =IF(Calc!$A$90,INDEX(Motor!$AF$1:$AF$1223,A154,1),INDEX(LinMotor!$AD$1:$AD$1355,A154,1)) -> 0.0465524474 | L154: =IF(Calc!$A$90,INDEX(Motor!$AG$1:$AG$1223,A154,1),INDEX(LinMotor!$AE$1:$AE$1355,A154,1)) -> 0.1027999095 | M154: =IF(Calc!$A$90,INDEX(Motor!$AH$1:$AH$1223,A154,1),INDEX(LinMotor!$AF$1:$AF$1355,A154,1)) -> 1.117258738 | N154: =IF(Calc!$A$90,INDEX(Motor!$AI$1:$AI$1223,A154,1),INDEX(LinMotor!$AG$1:$AG$1355,A154,1)) -> 4.934395654 | O154: =IF(A154<>2,IF(IF(Calc!$A$90,INDEX(Motor!$AK$1:$AK$1223,A154,1),INDEX(LinMotor!$AI$1:$AI$1355,A154,1))<1000,IF(Calc!$A$90,INDEX(Motor!$AK$1:$AK$1223,A154,1),INDEX(LinMotor!$AI$1:$AI$1355,A154,1)),TEXT(IF(Calc!$A$90,INDEX(Motor!$AK$1:$AK$1223,A154,1),INDEX(LinMotor!$AI$1:$AI$1355,A154,1))/1000,"0.0k")),"") -> 31.29925236 | P154: =IF(A154<>2,IF(IF(Calc!$A$90,INDEX(Motor!$AL$1:$AL$1223,A154,1),INDEX(LinMotor!$AJ$1:$AJ$1355,A154,1))<1000,IF(Calc!$A$90,INDEX(Motor!$AL$1:$AL$1223,A154,1),INDEX(LinMotor!$AJ$1:$AJ$1355,A154,1)),TEXT(IF(Calc!$A$90,INDEX(Motor!$AL$1:$AL$1223,A154,1),INDEX(LinMotor!$AJ$1:$AJ$1355,A154,1))/1000,"0.0k")),"") -> 7.533091056 | Q154: =IF(A154<>2,IF(IF(Calc!$A$90,INDEX(Motor!$AM$1:$AM$1223,A154,1),INDEX(LinMotor!$AK$1:$AK$1355,A154,1))<1000,IF(Calc!$A$90,INDEX(Motor!$AM$1:$AM$1223,A154,1),INDEX(LinMotor!$AK$1:$AK$1355,A154,1)),TEXT(IF(Calc!$A$90,INDEX(Motor!$AM$1:$AM$1223,A154,1),INDEX(LinMotor!$AK$1:$AK$1355,A154,1))/1000,"0.0k")),"") -> 461.471578
A155: 1189 | B155: =IF(Calc!$A$90,INDEX(Motor!$B$1:$B$1223,A155,1),INDEX(LinMotor!$B$1:$B$1341,A155,1)) -> KBMS-88H01-A (480 V) | C155: =IF(Calc!$A$90,INDEX(Motor!$T$1:$T$1223,A155,1),INDEX(LinMotor!$R$1:$R$1355,A155,1)) -> 0.7705479452 | D155: =IF(Calc!$A$90,INDEX(Motor!$U$1:$U$1223,A155,1),INDEX(LinMotor!$S$1:$S$1355,A155,1)) -> 0.06646364442 | E155: =IF(Calc!$A$90,INDEX(Motor!$V$1:$V$1223,A155,1),INDEX(LinMotor!$T$1:$T$1355,A155,1)) -> 0.1437270686 | F155: =IF(Calc!$A$90,INDEX(Motor!$W$1:$W$1223,A155,1),INDEX(LinMotor!$U$1:$U$1355,A155,1)) -> 0.2432389138 | G155: =IF(A155<>2,IF(ABS(IF(Calc!$A$90,INDEX(Motor!$X$1:$X$1223,A155,1),INDEX(LinMotor!$V$1:$V$1355,A155,1)))<1000,IF(Calc!$A$90,INDEX(Motor!$X$1:$X$1223,A155,1),INDEX(LinMotor!$V$1:$V$1355,A155,1)),TEXT(IF(Calc!$A$90,INDEX(Motor!$X$1:$X$1223,A155,1),INDEX(LinMotor!$V$1:$V$1355,A155,1))/1000,"0.0k")),"") -> -59.50300642 | H155: =IF(A155<>2,IF(ABS(IF(move1,IF(Calc!$A$90,INDEX(Motor!$Y$1:$Y$1223,A155,1),INDEX(LinMotor!$W$1:$W$1355,A155,1)),IF(Calc!$A$90,INDEX(Motor!$Z$1:$Z$1068,A155,1),INDEX(LinMotor!$X$1:$X$1355,A155,1))))<1000,IF(move1,IF(Calc!$A$90,INDEX(Motor!$Y$1:$Y$1223,A155,1),INDEX(LinMotor!$W$1:$W$1355,A155,1)),IF(Calc!$A$90,INDEX(Motor!$Z$1:$Z$1223,A155,1),INDEX(LinMotor!$X$1:$X$1355,A155,1))),TEXT(IF(move1,IF(Calc!$A$90,INDEX(Motor!$Y$1:$Y$1223,A155,1),INDEX(LinMotor!$W$1:$W$1355,A155,1)),IF(Calc!$A$90,INDEX(Motor!$Z$1:$Z$1223,A155,1),INDEX(LinMotor!$X$1:$X$1355,A155,1)))/1000,"0.0k")),"") -> 9 | I155: =IF(A155<>2,IF(ABS(IF(move1,IF(Calc!$A$90,INDEX(Motor!$Z$1:$Z$1223,A155,1),INDEX(LinMotor!$X$1:$X$1355,A155,1)),IF(Calc!$A$90,INDEX(Motor!$AB$1:$AB$1223,A155,1),INDEX(LinMotor!$Z$1:$Z$1355,A155,1))))<1000,IF(move1,IF(Calc!$A$90,INDEX(Motor!$Z$1:$Z$1223,A155,1),INDEX(LinMotor!$X$1:$X$1355,A155,1)),IF(Calc!$A$90,INDEX(Motor!$AB$1:$AB$1223,A155,1),INDEX(LinMotor!$Z$1:$Z$1355,A155,1))),TEXT(IF(move1,IF(Calc!$A$90,INDEX(Motor!$Z$1:$Z$1223,A155,1),INDEX(LinMotor!$X$1:$X$1355,A155,1)),IF(Calc!$A$90,INDEX(Motor!$AB$1:$AB$1223,A155,1),INDEX(LinMotor!$Z$1:$Z$1355,A155,1)))/1000,"0.0k")),"") -> 59.0574352 | J155: =IF(A155<>2,IF(ABS(IF(move1,IF(Calc!$A$90,INDEX(Motor!$AA$1:$AA$1223,A155,1),INDEX(LinMotor!$Y$1:$Y$1355,A155,1)),IF(Calc!$A$90,INDEX(Motor!$AD$1:$AD$1223,A155,1),INDEX(LinMotor!$AB$1:$AB$445,A155,1))))<1000,IF(move1,IF(Calc!$A$90,INDEX(Motor!$AA$1:$AA$1223,A155,1),INDEX(LinMotor!$Y$1:$Y$1355,A155,1)),IF(Calc!$A$90,INDEX(Motor!$AD$1:$AD$1223,A155,1),INDEX(LinMotor!$AB$1:$AB$445,A155,1))),TEXT(IF(move1,IF(Calc!$A$90,INDEX(Motor!$AA$1:$AA$1223,A155,1),INDEX(LinMotor!$Y$1:$Y$1355,A155,1)),IF(Calc!$A$90,INDEX(Motor!$AD$1:$AD$1223,A155,1),INDEX(LinMotor!$AB$1:$AB$445,A155,1)))/1000,"0.0k")),"") -> 9 | K155: =IF(Calc!$A$90,INDEX(Motor!$AF$1:$AF$1223,A155,1),INDEX(LinMotor!$AD$1:$AD$1355,A155,1)) -> 0.0465524474 | L155: =IF(Calc!$A$90,INDEX(Motor!$AG$1:$AG$1223,A155,1),INDEX(LinMotor!$AE$1:$AE$1355,A155,1)) -> 0.1027999095 | M155: =IF(Calc!$A$90,INDEX(Motor!$AH$1:$AH$1223,A155,1),INDEX(LinMotor!$AF$1:$AF$1355,A155,1)) -> 1.117258738 | N155: =IF(Calc!$A$90,INDEX(Motor!$AI$1:$AI$1223,A155,1),INDEX(LinMotor!$AG$1:$AG$1355,A155,1)) -> 4.934395654 | O155: =IF(A155<>2,IF(IF(Calc!$A$90,INDEX(Motor!$AK$1:$AK$1223,A155,1),INDEX(LinMotor!$AI$1:$AI$1355,A155,1))<1000,IF(Calc!$A$90,INDEX(Motor!$AK$1:$AK$1223,A155,1),INDEX(LinMotor!$AI$1:$AI$1355,A155,1)),TEXT(IF(Calc!$A$90,INDEX(Motor!$AK$1:$AK$1223,A155,1),INDEX(LinMotor!$AI$1:$AI$1355,A155,1))/1000,"0.0k")),"") -> 31.29925236 | P155: =IF(A155<>2,IF(IF(Calc!$A$90,INDEX(Motor!$AL$1:$AL$1223,A155,1),INDEX(LinMotor!$AJ$1:$AJ$1355,A155,1))<1000,IF(Calc!$A$90,INDEX(Motor!$AL$1:$AL$1223,A155,1),INDEX(LinMotor!$AJ$1:$AJ$1355,A155,1)),TEXT(IF(Calc!$A$90,INDEX(Motor!$AL$1:$AL$1223,A155,1),INDEX(LinMotor!$AJ$1:$AJ$1355,A155,1))/1000,"0.0k")),"") -> 7.533091056 | Q155: =IF(A155<>2,IF(IF(Calc!$A$90,INDEX(Motor!$AM$1:$AM$1223,A155,1),INDEX(LinMotor!$AK$1:$AK$1355,A155,1))<1000,IF(Calc!$A$90,INDEX(Motor!$AM$1:$AM$1223,A155,1),INDEX(LinMotor!$AK$1:$AK$1355,A155,1)),TEXT(IF(Calc!$A$90,INDEX(Motor!$AM$1:$AM$1223,A155,1),INDEX(LinMotor!$AK$1:$AK$1355,A155,1))/1000,"0.0k")),"") -> 461.471578
A156: 1192 | B156: =IF(Calc!$A$90,INDEX(Motor!$B$1:$B$1223,A156,1),INDEX(LinMotor!$B$1:$B$1341,A156,1)) -> KBMS-88H02-A (400 V) | C156: =IF(Calc!$A$90,INDEX(Motor!$T$1:$T$1223,A156,1),INDEX(LinMotor!$R$1:$R$1355,A156,1)) -> 0.455465587 | D156: =IF(Calc!$A$90,INDEX(Motor!$U$1:$U$1223,A156,1),INDEX(LinMotor!$S$1:$S$1355,A156,1)) -> 0.0439794245 | E156: =IF(Calc!$A$90,INDEX(Motor!$V$1:$V$1223,A156,1),INDEX(LinMotor!$T$1:$T$1355,A156,1)) -> 0.1078530511 | F156: =IF(Calc!$A$90,INDEX(Motor!$W$1:$W$1223,A156,1),INDEX(LinMotor!$U$1:$U$1355,A156,1)) -> 0.512329448 | G156: =IF(A156<>2,IF(ABS(IF(Calc!$A$90,INDEX(Motor!$X$1:$X$1223,A156,1),INDEX(LinMotor!$V$1:$V$1355,A156,1)))<1000,IF(Calc!$A$90,INDEX(Motor!$X$1:$X$1223,A156,1),INDEX(LinMotor!$V$1:$V$1355,A156,1)),TEXT(IF(Calc!$A$90,INDEX(Motor!$X$1:$X$1223,A156,1),INDEX(LinMotor!$V$1:$V$1355,A156,1))/1000,"0.0k")),"") -> -85.09605728 | H156: =IF(A156<>2,IF(ABS(IF(move1,IF(Calc!$A$90,INDEX(Motor!$Y$1:$Y$1223,A156,1),INDEX(LinMotor!$W$1:$W$1355,A156,1)),IF(Calc!$A$90,INDEX(Motor!$Z$1:$Z$1068,A156,1),INDEX(LinMotor!$X$1:$X$1355,A156,1))))<1000,IF(move1,IF(Calc!$A$90,INDEX(Motor!$Y$1:$Y$1223,A156,1),INDEX(LinMotor!$W$1:$W$1355,A156,1)),IF(Calc!$A$90,INDEX(Motor!$Z$1:$Z$1223,A156,1),INDEX(LinMotor!$X$1:$X$1355,A156,1))),TEXT(IF(move1,IF(Calc!$A$90,INDEX(Motor!$Y$1:$Y$1223,A156,1),INDEX(LinMotor!$W$1:$W$1355,A156,1)),IF(Calc!$A$90,INDEX(Motor!$Z$1:$Z$1223,A156,1),INDEX(LinMotor!$X$1:$X$1355,A156,1)))/1000,"0.0k")),"") -> 9 | I156: =IF(A156<>2,IF(ABS(IF(move1,IF(Calc!$A$90,INDEX(Motor!$Z$1:$Z$1223,A156,1),INDEX(LinMotor!$X$1:$X$1355,A156,1)),IF(Calc!$A$90,INDEX(Motor!$AB$1:$AB$1223,A156,1),INDEX(LinMotor!$Z$1:$Z$1355,A156,1))))<1000,IF(move1,IF(Calc!$A$90,INDEX(Motor!$Z$1:$Z$1223,A156,1),INDEX(LinMotor!$X$1:$X$1355,A156,1)),IF(Calc!$A$90,INDEX(Motor!$AB$1:$AB$1223,A156,1),INDEX(LinMotor!$Z$1:$Z$1355,A156,1))),TEXT(IF(move1,IF(Calc!$A$90,INDEX(Motor!$Z$1:$Z$1223,A156,1),INDEX(LinMotor!$X$1:$X$1355,A156,1)),IF(Calc!$A$90,INDEX(Motor!$AB$1:$AB$1223,A156,1),INDEX(LinMotor!$Z$1:$Z$1355,A156,1)))/1000,"0.0k")),"") -> 79.7878064 | J156: =IF(A156<>2,IF(ABS(IF(move1,IF(Calc!$A$90,INDEX(Motor!$AA$1:$AA$1223,A156,1),INDEX(LinMotor!$Y$1:$Y$1355,A156,1)),IF(Calc!$A$90,INDEX(Motor!$AD$1:$AD$1223,A156,1),INDEX(LinMotor!$AB$1:$AB$445,A156,1))))<1000,IF(move1,IF(Calc!$A$90,INDEX(Motor!$AA$1:$AA$1223,A156,1),INDEX(LinMotor!$Y$1:$Y$1355,A156,1)),IF(Calc!$A$90,INDEX(Motor!$AD$1:$AD$1223,A156,1),INDEX(LinMotor!$AB$1:$AB$445,A156,1))),TEXT(IF(move1,IF(Calc!$A$90,INDEX(Motor!$AA$1:$AA$1223,A156,1),INDEX(LinMotor!$Y$1:$Y$1355,A156,1)),IF(Calc!$A$90,INDEX(Motor!$AD$1:$AD$1223,A156,1),INDEX(LinMotor!$AB$1:$AB$445,A156,1)))/1000,"0.0k")),"") -> 9 | K156: =IF(Calc!$A$90,INDEX(Motor!$AF$1:$AF$1223,A156,1),INDEX(LinMotor!$AD$1:$AD$1355,A156,1)) -> 0.02704289796 | L156: =IF(Calc!$A$90,INDEX(Motor!$AG$1:$AG$1223,A156,1),INDEX(LinMotor!$AE$1:$AE$1355,A156,1)) -> 0.06907147507 | M156: =IF(Calc!$A$90,INDEX(Motor!$AH$1:$AH$1223,A156,1),INDEX(LinMotor!$AF$1:$AF$1355,A156,1)) -> 0.6490295509 | N156: =IF(Calc!$A$90,INDEX(Motor!$AI$1:$AI$1223,A156,1),INDEX(LinMotor!$AG$1:$AG$1355,A156,1)) -> 3.315430803 | O156: =IF(A156<>2,IF(IF(Calc!$A$90,INDEX(Motor!$AK$1:$AK$1223,A156,1),INDEX(LinMotor!$AI$1:$AI$1355,A156,1))<1000,IF(Calc!$A$90,INDEX(Motor!$AK$1:$AK$1223,A156,1),INDEX(LinMotor!$AI$1:$AI$1355,A156,1)),TEXT(IF(Calc!$A$90,INDEX(Motor!$AK$1:$AK$1223,A156,1),INDEX(LinMotor!$AI$1:$AI$1355,A156,1))/1000,"0.0k")),"") -> 38.69984324 | P156: =IF(A156<>2,IF(IF(Calc!$A$90,INDEX(Motor!$AL$1:$AL$1223,A156,1),INDEX(LinMotor!$AJ$1:$AJ$1355,A156,1))<1000,IF(Calc!$A$90,INDEX(Motor!$AL$1:$AL$1223,A156,1),INDEX(LinMotor!$AJ$1:$AJ$1355,A156,1)),TEXT(IF(Calc!$A$90,INDEX(Motor!$AL$1:$AL$1223,A156,1),INDEX(LinMotor!$AJ$1:$AJ$1355,A156,1))/1000,"0.0k")),"") -> 11.07933966 | Q156: =IF(A156<>2,IF(IF(Calc!$A$90,INDEX(Motor!$AM$1:$AM$1223,A156,1),INDEX(LinMotor!$AK$1:$AK$1355,A156,1))<1000,IF(Calc!$A$90,INDEX(Motor!$AM$1:$AM$1223,A156,1),INDEX(LinMotor!$AK$1:$AK$1355,A156,1)),TEXT(IF(Calc!$A$90,INDEX(Motor!$AM$1:$AM$1223,A156,1),INDEX(LinMotor!$AK$1:$AK$1355,A156,1))/1000,"0.0k")),"") -> 678.7121409
A157: 1193 | B157: =IF(Calc!$A$90,INDEX(Motor!$B$1:$B$1223,A157,1),INDEX(LinMotor!$B$1:$B$1341,A157,1)) -> KBMS-88H02-A (480 V) | C157: =IF(Calc!$A$90,INDEX(Motor!$T$1:$T$1223,A157,1),INDEX(LinMotor!$R$1:$R$1355,A157,1)) -> 0.455465587 | D157: =IF(Calc!$A$90,INDEX(Motor!$U$1:$U$1223,A157,1),INDEX(LinMotor!$S$1:$S$1355,A157,1)) -> 0.04393607 | E157: =IF(Calc!$A$90,INDEX(Motor!$V$1:$V$1223,A157,1),INDEX(LinMotor!$T$1:$T$1355,A157,1)) -> 0.1078530511 | F157: =IF(Calc!$A$90,INDEX(Motor!$W$1:$W$1223,A157,1),INDEX(LinMotor!$U$1:$U$1355,A157,1)) -> 0.512329448 | G157: =IF(A157<>2,IF(ABS(IF(Calc!$A$90,INDEX(Motor!$X$1:$X$1223,A157,1),INDEX(LinMotor!$V$1:$V$1355,A157,1)))<1000,IF(Calc!$A$90,INDEX(Motor!$X$1:$X$1223,A157,1),INDEX(LinMotor!$V$1:$V$1355,A157,1)),TEXT(IF(Calc!$A$90,INDEX(Motor!$X$1:$X$1223,A157,1),INDEX(LinMotor!$V$1:$V$1355,A157,1))/1000,"0.0k")),"") -> -85.09605728 | H157: =IF(A157<>2,IF(ABS(IF(move1,IF(Calc!$A$90,INDEX(Motor!$Y$1:$Y$1223,A157,1),INDEX(LinMotor!$W$1:$W$1355,A157,1)),IF(Calc!$A$90,INDEX(Motor!$Z$1:$Z$1068,A157,1),INDEX(LinMotor!$X$1:$X$1355,A157,1))))<1000,IF(move1,IF(Calc!$A$90,INDEX(Motor!$Y$1:$Y$1223,A157,1),INDEX(LinMotor!$W$1:$W$1355,A157,1)),IF(Calc!$A$90,INDEX(Motor!$Z$1:$Z$1223,A157,1),INDEX(LinMotor!$X$1:$X$1355,A157,1))),TEXT(IF(move1,IF(Calc!$A$90,INDEX(Motor!$Y$1:$Y$1223,A157,1),INDEX(LinMotor!$W$1:$W$1355,A157,1)),IF(Calc!$A$90,INDEX(Motor!$Z$1:$Z$1223,A157,1),INDEX(LinMotor!$X$1:$X$1355,A157,1)))/1000,"0.0k")),"") -> 9 | I157: =IF(A157<>2,IF(ABS(IF(move1,IF(Calc!$A$90,INDEX(Motor!$Z$1:$Z$1223,A157,1),INDEX(LinMotor!$X$1:$X$1355,A157,1)),IF(Calc!$A$90,INDEX(Motor!$AB$1:$AB$1223,A157,1),INDEX(LinMotor!$Z$1:$Z$1355,A157,1))))<1000,IF(move1,IF(Calc!$A$90,INDEX(Motor!$Z$1:$Z$1223,A157,1),INDEX(LinMotor!$X$1:$X$1355,A157,1)),IF(Calc!$A$90,INDEX(Motor!$AB$1:$AB$1223,A157,1),INDEX(LinMotor!$Z$1:$Z$1355,A157,1))),TEXT(IF(move1,IF(Calc!$A$90,INDEX(Motor!$Z$1:$Z$1223,A157,1),INDEX(LinMotor!$X$1:$X$1355,A157,1)),IF(Calc!$A$90,INDEX(Motor!$AB$1:$AB$1223,A157,1),INDEX(LinMotor!$Z$1:$Z$1355,A157,1)))/1000,"0.0k")),"") -> 79.7878064 | J157: =IF(A157<>2,IF(ABS(IF(move1,IF(Calc!$A$90,INDEX(Motor!$AA$1:$AA$1223,A157,1),INDEX(LinMotor!$Y$1:$Y$1355,A157,1)),IF(Calc!$A$90,INDEX(Motor!$AD$1:$AD$1223,A157,1),INDEX(LinMotor!$AB$1:$AB$445,A157,1))))<1000,IF(move1,IF(Calc!$A$90,INDEX(Motor!$AA$1:$AA$1223,A157,1),INDEX(LinMotor!$Y$1:$Y$1355,A157,1)),IF(Calc!$A$90,INDEX(Motor!$AD$1:$AD$1223,A157,1),INDEX(LinMotor!$AB$1:$AB$445,A157,1))),TEXT(IF(move1,IF(Calc!$A$90,INDEX(Motor!$AA$1:$AA$1223,A157,1),INDEX(LinMotor!$Y$1:$Y$1355,A157,1)),IF(Calc!$A$90,INDEX(Motor!$AD$1:$AD$1223,A157,1),INDEX(LinMotor!$AB$1:$AB$445,A157,1)))/1000,"0.0k")),"") -> 9 | K157: =IF(Calc!$A$90,INDEX(Motor!$AF$1:$AF$1223,A157,1),INDEX(LinMotor!$AD$1:$AD$1355,A157,1)) -> 0.02704289796 | L157: =IF(Calc!$A$90,INDEX(Motor!$AG$1:$AG$1223,A157,1),INDEX(LinMotor!$AE$1:$AE$1355,A157,1)) -> 0.06907147507 | M157: =IF(Calc!$A$90,INDEX(Motor!$AH$1:$AH$1223,A157,1),INDEX(LinMotor!$AF$1:$AF$1355,A157,1)) -> 0.6490295509 | N157: =IF(Calc!$A$90,INDEX(Motor!$AI$1:$AI$1223,A157,1),INDEX(LinMotor!$AG$1:$AG$1355,A157,1)) -> 3.315430803 | O157: =IF(A157<>2,IF(IF(Calc!$A$90,INDEX(Motor!$AK$1:$AK$1223,A157,1),INDEX(LinMotor!$AI$1:$AI$1355,A157,1))<1000,IF(Calc!$A$90,INDEX(Motor!$AK$1:$AK$1223,A157,1),INDEX(LinMotor!$AI$1:$AI$1355,A157,1)),TEXT(IF(Calc!$A$90,INDEX(Motor!$AK$1:$AK$1223,A157,1),INDEX(LinMotor!$AI$1:$AI$1355,A157,1))/1000,"0.0k")),"") -> 38.69984324 | P157: =IF(A157<>2,IF(IF(Calc!$A$90,INDEX(Motor!$AL$1:$AL$1223,A157,1),INDEX(LinMotor!$AJ$1:$AJ$1355,A157,1))<1000,IF(Calc!$A$90,INDEX(Motor!$AL$1:$AL$1223,A157,1),INDEX(LinMotor!$AJ$1:$AJ$1355,A157,1)),TEXT(IF(Calc!$A$90,INDEX(Motor!$AL$1:$AL$1223,A157,1),INDEX(LinMotor!$AJ$1:$AJ$1355,A157,1))/1000,"0.0k")),"") -> 11.07933966 | Q157: =IF(A157<>2,IF(IF(Calc!$A$90,INDEX(Motor!$AM$1:$AM$1223,A157,1),INDEX(LinMotor!$AK$1:$AK$1355,A157,1))<1000,IF(Calc!$A$90,INDEX(Motor!$AM$1:$AM$1223,A157,1),INDEX(LinMotor!$AK$1:$AK$1355,A157,1)),TEXT(IF(Calc!$A$90,INDEX(Motor!$AM$1:$AM$1223,A157,1),INDEX(LinMotor!$AK$1:$AK$1355,A157,1))/1000,"0.0k")),"") -> 678.7121409
A158: 1196 | B158: =IF(Calc!$A$90,INDEX(Motor!$B$1:$B$1223,A158,1),INDEX(LinMotor!$B$1:$B$1341,A158,1)) -> KBMS-88H03-A (400 V) | C158: =IF(Calc!$A$90,INDEX(Motor!$T$1:$T$1223,A158,1),INDEX(LinMotor!$R$1:$R$1355,A158,1)) -> 0.3571428571 | D158: =IF(Calc!$A$90,INDEX(Motor!$U$1:$U$1223,A158,1),INDEX(LinMotor!$S$1:$S$1355,A158,1)) -> 0.03593606321 | E158: =IF(Calc!$A$90,INDEX(Motor!$V$1:$V$1223,A158,1),INDEX(LinMotor!$T$1:$T$1355,A158,1)) -> 0.08527251852 | F158: =IF(Calc!$A$90,INDEX(Motor!$W$1:$W$1223,A158,1),INDEX(LinMotor!$U$1:$U$1355,A158,1)) -> 0.593638183 | G158: =IF(A158<>2,IF(ABS(IF(Calc!$A$90,INDEX(Motor!$X$1:$X$1223,A158,1),INDEX(LinMotor!$V$1:$V$1355,A158,1)))<1000,IF(Calc!$A$90,INDEX(Motor!$X$1:$X$1223,A158,1),INDEX(LinMotor!$V$1:$V$1355,A158,1)),TEXT(IF(Calc!$A$90,INDEX(Motor!$X$1:$X$1223,A158,1),INDEX(LinMotor!$V$1:$V$1355,A158,1))/1000,"0.0k")),"") -> -102.3270222 | H158: =IF(A158<>2,IF(ABS(IF(move1,IF(Calc!$A$90,INDEX(Motor!$Y$1:$Y$1223,A158,1),INDEX(LinMotor!$W$1:$W$1355,A158,1)),IF(Calc!$A$90,INDEX(Motor!$Z$1:$Z$1068,A158,1),INDEX(LinMotor!$X$1:$X$1355,A158,1))))<1000,IF(move1,IF(Calc!$A$90,INDEX(Motor!$Y$1:$Y$1223,A158,1),INDEX(LinMotor!$W$1:$W$1355,A158,1)),IF(Calc!$A$90,INDEX(Motor!$Z$1:$Z$1223,A158,1),INDEX(LinMotor!$X$1:$X$1355,A158,1))),TEXT(IF(move1,IF(Calc!$A$90,INDEX(Motor!$Y$1:$Y$1223,A158,1),INDEX(LinMotor!$W$1:$W$1355,A158,1)),IF(Calc!$A$90,INDEX(Motor!$Z$1:$Z$1223,A158,1),INDEX(LinMotor!$X$1:$X$1355,A158,1)))/1000,"0.0k")),"") -> 9 | I158: =IF(A158<>2,IF(ABS(IF(move1,IF(Calc!$A$90,INDEX(Motor!$Z$1:$Z$1223,A158,1),INDEX(LinMotor!$X$1:$X$1355,A158,1)),IF(Calc!$A$90,INDEX(Motor!$AB$1:$AB$1223,A158,1),INDEX(LinMotor!$Z$1:$Z$1355,A158,1))))<1000,IF(move1,IF(Calc!$A$90,INDEX(Motor!$Z$1:$Z$1223,A158,1),INDEX(LinMotor!$X$1:$X$1355,A158,1)),IF(Calc!$A$90,INDEX(Motor!$AB$1:$AB$1223,A158,1),INDEX(LinMotor!$Z$1:$Z$1355,A158,1))),TEXT(IF(move1,IF(Calc!$A$90,INDEX(Motor!$Z$1:$Z$1223,A158,1),INDEX(LinMotor!$X$1:$X$1355,A158,1)),IF(Calc!$A$90,INDEX(Motor!$AB$1:$AB$1223,A158,1),INDEX(LinMotor!$Z$1:$Z$1355,A158,1)))/1000,"0.0k")),"") -> 93.744888 | J158: =IF(A158<>2,IF(ABS(IF(move1,IF(Calc!$A$90,INDEX(Motor!$AA$1:$AA$1223,A158,1),INDEX(LinMotor!$Y$1:$Y$1355,A158,1)),IF(Calc!$A$90,INDEX(Motor!$AD$1:$AD$1223,A158,1),INDEX(LinMotor!$AB$1:$AB$445,A158,1))))<1000,IF(move1,IF(Calc!$A$90,INDEX(Motor!$AA$1:$AA$1223,A158,1),INDEX(LinMotor!$Y$1:$Y$1355,A158,1)),IF(Calc!$A$90,INDEX(Motor!$AD$1:$AD$1223,A158,1),INDEX(LinMotor!$AB$1:$AB$445,A158,1))),TEXT(IF(move1,IF(Calc!$A$90,INDEX(Motor!$AA$1:$AA$1223,A158,1),INDEX(LinMotor!$Y$1:$Y$1355,A158,1)),IF(Calc!$A$90,INDEX(Motor!$AD$1:$AD$1223,A158,1),INDEX(LinMotor!$AB$1:$AB$445,A158,1)))/1000,"0.0k")),"") -> 9 | K158: =IF(Calc!$A$90,INDEX(Motor!$AF$1:$AF$1223,A158,1),INDEX(LinMotor!$AD$1:$AD$1355,A158,1)) -> 0.02658982602 | L158: =IF(Calc!$A$90,INDEX(Motor!$AG$1:$AG$1223,A158,1),INDEX(LinMotor!$AE$1:$AE$1355,A158,1)) -> 0.07172084504 | M158: =IF(Calc!$A$90,INDEX(Motor!$AH$1:$AH$1223,A158,1),INDEX(LinMotor!$AF$1:$AF$1355,A158,1)) -> 0.6381558245 | N158: =IF(Calc!$A$90,INDEX(Motor!$AI$1:$AI$1223,A158,1),INDEX(LinMotor!$AG$1:$AG$1355,A158,1)) -> 3.442600562 | O158: =IF(A158<>2,IF(IF(Calc!$A$90,INDEX(Motor!$AK$1:$AK$1223,A158,1),INDEX(LinMotor!$AI$1:$AI$1355,A158,1))<1000,IF(Calc!$A$90,INDEX(Motor!$AK$1:$AK$1223,A158,1),INDEX(LinMotor!$AI$1:$AI$1355,A158,1)),TEXT(IF(Calc!$A$90,INDEX(Motor!$AK$1:$AK$1223,A158,1),INDEX(LinMotor!$AI$1:$AI$1355,A158,1))/1000,"0.0k")),"") -> 44.06621028 | P158: =IF(A158<>2,IF(IF(Calc!$A$90,INDEX(Motor!$AL$1:$AL$1223,A158,1),INDEX(LinMotor!$AJ$1:$AJ$1355,A158,1))<1000,IF(Calc!$A$90,INDEX(Motor!$AL$1:$AL$1223,A158,1),INDEX(LinMotor!$AJ$1:$AJ$1355,A158,1)),TEXT(IF(Calc!$A$90,INDEX(Motor!$AL$1:$AL$1223,A158,1),INDEX(LinMotor!$AJ$1:$AJ$1355,A158,1))/1000,"0.0k")),"") -> 13.46691298 | Q158: =IF(A158<>2,IF(IF(Calc!$A$90,INDEX(Motor!$AM$1:$AM$1223,A158,1),INDEX(LinMotor!$AK$1:$AK$1355,A158,1))<1000,IF(Calc!$A$90,INDEX(Motor!$AM$1:$AM$1223,A158,1),INDEX(LinMotor!$AK$1:$AK$1355,A158,1)),TEXT(IF(Calc!$A$90,INDEX(Motor!$AM$1:$AM$1223,A158,1),INDEX(LinMotor!$AK$1:$AK$1355,A158,1))/1000,"0.0k")),"") -> 824.9731139
A159: 1197 | B159: =IF(Calc!$A$90,INDEX(Motor!$B$1:$B$1223,A159,1),INDEX(LinMotor!$B$1:$B$1341,A159,1)) -> KBMS-88H03-A (480 V) | C159: =IF(Calc!$A$90,INDEX(Motor!$T$1:$T$1223,A159,1),INDEX(LinMotor!$R$1:$R$1355,A159,1)) -> 0.3571428571 | D159: =IF(Calc!$A$90,INDEX(Motor!$U$1:$U$1223,A159,1),INDEX(LinMotor!$S$1:$S$1355,A159,1)) -> 0.03588140424 | E159: =IF(Calc!$A$90,INDEX(Motor!$V$1:$V$1223,A159,1),INDEX(LinMotor!$T$1:$T$1355,A159,1)) -> 0.08527251852 | F159: =IF(Calc!$A$90,INDEX(Motor!$W$1:$W$1223,A159,1),INDEX(LinMotor!$U$1:$U$1355,A159,1)) -> 0.593638183 | G159: =IF(A159<>2,IF(ABS(IF(Calc!$A$90,INDEX(Motor!$X$1:$X$1223,A159,1),INDEX(LinMotor!$V$1:$V$1355,A159,1)))<1000,IF(Calc!$A$90,INDEX(Motor!$X$1:$X$1223,A159,1),INDEX(LinMotor!$V$1:$V$1355,A159,1)),TEXT(IF(Calc!$A$90,INDEX(Motor!$X$1:$X$1223,A159,1),INDEX(LinMotor!$V$1:$V$1355,A159,1))/1000,"0.0k")),"") -> -102.3270222 | H159: =IF(A159<>2,IF(ABS(IF(move1,IF(Calc!$A$90,INDEX(Motor!$Y$1:$Y$1223,A159,1),INDEX(LinMotor!$W$1:$W$1355,A159,1)),IF(Calc!$A$90,INDEX(Motor!$Z$1:$Z$1068,A159,1),INDEX(LinMotor!$X$1:$X$1355,A159,1))))<1000,IF(move1,IF(Calc!$A$90,INDEX(Motor!$Y$1:$Y$1223,A159,1),INDEX(LinMotor!$W$1:$W$1355,A159,1)),IF(Calc!$A$90,INDEX(Motor!$Z$1:$Z$1223,A159,1),INDEX(LinMotor!$X$1:$X$1355,A159,1))),TEXT(IF(move1,IF(Calc!$A$90,INDEX(Motor!$Y$1:$Y$1223,A159,1),INDEX(LinMotor!$W$1:$W$1355,A159,1)),IF(Calc!$A$90,INDEX(Motor!$Z$1:$Z$1223,A159,1),INDEX(LinMotor!$X$1:$X$1355,A159,1)))/1000,"0.0k")),"") -> 9 | I159: =IF(A159<>2,IF(ABS(IF(move1,IF(Calc!$A$90,INDEX(Motor!$Z$1:$Z$1223,A159,1),INDEX(LinMotor!$X$1:$X$1355,A159,1)),IF(Calc!$A$90,INDEX(Motor!$AB$1:$AB$1223,A159,1),INDEX(LinMotor!$Z$1:$Z$1355,A159,1))))<1000,IF(move1,IF(Calc!$A$90,INDEX(Motor!$Z$1:$Z$1223,A159,1),INDEX(LinMotor!$X$1:$X$1355,A159,1)),IF(Calc!$A$90,INDEX(Motor!$AB$1:$AB$1223,A159,1),INDEX(LinMotor!$Z$1:$Z$1355,A159,1))),TEXT(IF(move1,IF(Calc!$A$90,INDEX(Motor!$Z$1:$Z$1223,A159,1),INDEX(LinMotor!$X$1:$X$1355,A159,1)),IF(Calc!$A$90,INDEX(Motor!$AB$1:$AB$1223,A159,1),INDEX(LinMotor!$Z$1:$Z$1355,A159,1)))/1000,"0.0k")),"") -> 93.744888 | J159: =IF(A159<>2,IF(ABS(IF(move1,IF(Calc!$A$90,INDEX(Motor!$AA$1:$AA$1223,A159,1),INDEX(LinMotor!$Y$1:$Y$1355,A159,1)),IF(Calc!$A$90,INDEX(Motor!$AD$1:$AD$1223,A159,1),INDEX(LinMotor!$AB$1:$AB$445,A159,1))))<1000,IF(move1,IF(Calc!$A$90,INDEX(Motor!$AA$1:$AA$1223,A159,1),INDEX(LinMotor!$Y$1:$Y$1355,A159,1)),IF(Calc!$A$90,INDEX(Motor!$AD$1:$AD$1223,A159,1),INDEX(LinMotor!$AB$1:$AB$445,A159,1))),TEXT(IF(move1,IF(Calc!$A$90,INDEX(Motor!$AA$1:$AA$1223,A159,1),INDEX(LinMotor!$Y$1:$Y$1355,A159,1)),IF(Calc!$A$90,INDEX(Motor!$AD$1:$AD$1223,A159,1),INDEX(LinMotor!$AB$1:$AB$445,A159,1)))/1000,"0.0k")),"") -> 9 | K159: =IF(Calc!$A$90,INDEX(Motor!$AF$1:$AF$1223,A159,1),INDEX(LinMotor!$AD$1:$AD$1355,A159,1)) -> 0.02658982602 | L159: =IF(Calc!$A$90,INDEX(Motor!$AG$1:$AG$1223,A159,1),INDEX(LinMotor!$AE$1:$AE$1355,A159,1)) -> 0.07172084504 | M159: =IF(Calc!$A$90,INDEX(Motor!$AH$1:$AH$1223,A159,1),INDEX(LinMotor!$AF$1:$AF$1355,A159,1)) -> 0.6381558245 | N159: =IF(Calc!$A$90,INDEX(Motor!$AI$1:$AI$1223,A159,1),INDEX(LinMotor!$AG$1:$AG$1355,A159,1)) -> 3.442600562 | O159: =IF(A159<>2,IF(IF(Calc!$A$90,INDEX(Motor!$AK$1:$AK$1223,A159,1),INDEX(LinMotor!$AI$1:$AI$1355,A159,1))<1000,IF(Calc!$A$90,INDEX(Motor!$AK$1:$AK$1223,A159,1),INDEX(LinMotor!$AI$1:$AI$1355,A159,1)),TEXT(IF(Calc!$A$90,INDEX(Motor!$AK$1:$AK$1223,A159,1),INDEX(LinMotor!$AI$1:$AI$1355,A159,1))/1000,"0.0k")),"") -> 44.06621028 | P159: =IF(A159<>2,IF(IF(Calc!$A$90,INDEX(Motor!$AL$1:$AL$1223,A159,1),INDEX(LinMotor!$AJ$1:$AJ$1355,A159,1))<1000,IF(Calc!$A$90,INDEX(Motor!$AL$1:$AL$1223,A159,1),INDEX(LinMotor!$AJ$1:$AJ$1355,A159,1)),TEXT(IF(Calc!$A$90,INDEX(Motor!$AL$1:$AL$1223,A159,1),INDEX(LinMotor!$AJ$1:$AJ$1355,A159,1))/1000,"0.0k")),"") -> 13.46691298 | Q159: =IF(A159<>2,IF(IF(Calc!$A$90,INDEX(Motor!$AM$1:$AM$1223,A159,1),INDEX(LinMotor!$AK$1:$AK$1355,A159,1))<1000,IF(Calc!$A$90,INDEX(Motor!$AM$1:$AM$1223,A159,1),INDEX(LinMotor!$AK$1:$AK$1355,A159,1)),TEXT(IF(Calc!$A$90,INDEX(Motor!$AM$1:$AM$1223,A159,1),INDEX(LinMotor!$AK$1:$AK$1355,A159,1))/1000,"0.0k")),"") -> 824.9731139
A160: 1198 | B160: =IF(Calc!$A$90,INDEX(Motor!$B$1:$B$1223,A160,1),INDEX(LinMotor!$B$1:$B$1341,A160,1)) -> KBMS-88H03-B (400 V) | C160: =IF(Calc!$A$90,INDEX(Motor!$T$1:$T$1223,A160,1),INDEX(LinMotor!$R$1:$R$1355,A160,1)) -> 0.3571428571 | D160: =IF(Calc!$A$90,INDEX(Motor!$U$1:$U$1223,A160,1),INDEX(LinMotor!$S$1:$S$1355,A160,1)) -> 0.03540802816 | E160: =IF(Calc!$A$90,INDEX(Motor!$V$1:$V$1223,A160,1),INDEX(LinMotor!$T$1:$T$1355,A160,1)) -> 0.08527251852 | F160: =IF(Calc!$A$90,INDEX(Motor!$W$1:$W$1223,A160,1),INDEX(LinMotor!$U$1:$U$1355,A160,1)) -> 0.3069631107 | G160: =IF(A160<>2,IF(ABS(IF(Calc!$A$90,INDEX(Motor!$X$1:$X$1223,A160,1),INDEX(LinMotor!$V$1:$V$1355,A160,1)))<1000,IF(Calc!$A$90,INDEX(Motor!$X$1:$X$1223,A160,1),INDEX(LinMotor!$V$1:$V$1355,A160,1)),TEXT(IF(Calc!$A$90,INDEX(Motor!$X$1:$X$1223,A160,1),INDEX(LinMotor!$V$1:$V$1355,A160,1))/1000,"0.0k")),"") -> -102.3270222 | H160: =IF(A160<>2,IF(ABS(IF(move1,IF(Calc!$A$90,INDEX(Motor!$Y$1:$Y$1223,A160,1),INDEX(LinMotor!$W$1:$W$1355,A160,1)),IF(Calc!$A$90,INDEX(Motor!$Z$1:$Z$1068,A160,1),INDEX(LinMotor!$X$1:$X$1355,A160,1))))<1000,IF(move1,IF(Calc!$A$90,INDEX(Motor!$Y$1:$Y$1223,A160,1),INDEX(LinMotor!$W$1:$W$1355,A160,1)),IF(Calc!$A$90,INDEX(Motor!$Z$1:$Z$1223,A160,1),INDEX(LinMotor!$X$1:$X$1355,A160,1))),TEXT(IF(move1,IF(Calc!$A$90,INDEX(Motor!$Y$1:$Y$1223,A160,1),INDEX(LinMotor!$W$1:$W$1355,A160,1)),IF(Calc!$A$90,INDEX(Motor!$Z$1:$Z$1223,A160,1),INDEX(LinMotor!$X$1:$X$1355,A160,1)))/1000,"0.0k")),"") -> 9 | I160: =IF(A160<>2,IF(ABS(IF(move1,IF(Calc!$A$90,INDEX(Motor!$Z$1:$Z$1223,A160,1),INDEX(LinMotor!$X$1:$X$1355,A160,1)),IF(Calc!$A$90,INDEX(Motor!$AB$1:$AB$1223,A160,1),INDEX(LinMotor!$Z$1:$Z$1355,A160,1))))<1000,IF(move1,IF(Calc!$A$90,INDEX(Motor!$Z$1:$Z$1223,A160,1),INDEX(LinMotor!$X$1:$X$1355,A160,1)),IF(Calc!$A$90,INDEX(Motor!$AB$1:$AB$1223,A160,1),INDEX(LinMotor!$Z$1:$Z$1355,A160,1))),TEXT(IF(move1,IF(Calc!$A$90,INDEX(Motor!$Z$1:$Z$1223,A160,1),INDEX(LinMotor!$X$1:$X$1355,A160,1)),IF(Calc!$A$90,INDEX(Motor!$AB$1:$AB$1223,A160,1),INDEX(LinMotor!$Z$1:$Z$1355,A160,1)))/1000,"0.0k")),"") -> 93.744888 | J160: =IF(A160<>2,IF(ABS(IF(move1,IF(Calc!$A$90,INDEX(Motor!$AA$1:$AA$1223,A160,1),INDEX(LinMotor!$Y$1:$Y$1355,A160,1)),IF(Calc!$A$90,INDEX(Motor!$AD$1:$AD$1223,A160,1),INDEX(LinMotor!$AB$1:$AB$445,A160,1))))<1000,IF(move1,IF(Calc!$A$90,INDEX(Motor!$AA$1:$AA$1223,A160,1),INDEX(LinMotor!$Y$1:$Y$1355,A160,1)),IF(Calc!$A$90,INDEX(Motor!$AD$1:$AD$1223,A160,1),INDEX(LinMotor!$AB$1:$AB$445,A160,1))),TEXT(IF(move1,IF(Calc!$A$90,INDEX(Motor!$AA$1:$AA$1223,A160,1),INDEX(LinMotor!$Y$1:$Y$1355,A160,1)),IF(Calc!$A$90,INDEX(Motor!$AD$1:$AD$1223,A160,1),INDEX(LinMotor!$AB$1:$AB$445,A160,1)))/1000,"0.0k")),"") -> 9 | K160: =IF(Calc!$A$90,INDEX(Motor!$AF$1:$AF$1223,A160,1),INDEX(LinMotor!$AD$1:$AD$1355,A160,1)) -> 0.05148148281 | L160: =IF(Calc!$A$90,INDEX(Motor!$AG$1:$AG$1223,A160,1),INDEX(LinMotor!$AE$1:$AE$1355,A160,1)) -> 0.1388612113 | M160: =IF(Calc!$A$90,INDEX(Motor!$AH$1:$AH$1223,A160,1),INDEX(LinMotor!$AF$1:$AF$1355,A160,1)) -> 1.235555587 | N160: =IF(Calc!$A$90,INDEX(Motor!$AI$1:$AI$1223,A160,1),INDEX(LinMotor!$AG$1:$AG$1355,A160,1)) -> 6.665338145 | O160: =IF(A160<>2,IF(IF(Calc!$A$90,INDEX(Motor!$AK$1:$AK$1223,A160,1),INDEX(LinMotor!$AI$1:$AI$1355,A160,1))<1000,IF(Calc!$A$90,INDEX(Motor!$AK$1:$AK$1223,A160,1),INDEX(LinMotor!$AI$1:$AI$1355,A160,1)),TEXT(IF(Calc!$A$90,INDEX(Motor!$AK$1:$AK$1223,A160,1),INDEX(LinMotor!$AI$1:$AI$1355,A160,1))/1000,"0.0k")),"") -> 44.06621028 | P160: =IF(A160<>2,IF(IF(Calc!$A$90,INDEX(Motor!$AL$1:$AL$1223,A160,1),INDEX(LinMotor!$AJ$1:$AJ$1355,A160,1))<1000,IF(Calc!$A$90,INDEX(Motor!$AL$1:$AL$1223,A160,1),INDEX(LinMotor!$AJ$1:$AJ$1355,A160,1)),TEXT(IF(Calc!$A$90,INDEX(Motor!$AL$1:$AL$1223,A160,1),INDEX(LinMotor!$AJ$1:$AJ$1355,A160,1))/1000,"0.0k")),"") -> 13.46691298 | Q160: =IF(A160<>2,IF(IF(Calc!$A$90,INDEX(Motor!$AM$1:$AM$1223,A160,1),INDEX(LinMotor!$AK$1:$AK$1355,A160,1))<1000,IF(Calc!$A$90,INDEX(Motor!$AM$1:$AM$1223,A160,1),INDEX(LinMotor!$AK$1:$AK$1355,A160,1)),TEXT(IF(Calc!$A$90,INDEX(Motor!$AM$1:$AM$1223,A160,1),INDEX(LinMotor!$AK$1:$AK$1355,A160,1))/1000,"0.0k")),"") -> 824.9731139
A161: 1199 | B161: =IF(Calc!$A$90,INDEX(Motor!$B$1:$B$1223,A161,1),INDEX(LinMotor!$B$1:$B$1341,A161,1)) -> KBMS-88H03-B (480 V) | C161: =IF(Calc!$A$90,INDEX(Motor!$T$1:$T$1223,A161,1),INDEX(LinMotor!$R$1:$R$1355,A161,1)) -> 0.3571428571 | D161: =IF(Calc!$A$90,INDEX(Motor!$U$1:$U$1223,A161,1),INDEX(LinMotor!$S$1:$S$1355,A161,1)) -> 0.03543396136 | E161: =IF(Calc!$A$90,INDEX(Motor!$V$1:$V$1223,A161,1),INDEX(LinMotor!$T$1:$T$1355,A161,1)) -> 0.08527251852 | F161: =IF(Calc!$A$90,INDEX(Motor!$W$1:$W$1223,A161,1),INDEX(LinMotor!$U$1:$U$1355,A161,1)) -> 0.3069631107 | G161: =IF(A161<>2,IF(ABS(IF(Calc!$A$90,INDEX(Motor!$X$1:$X$1223,A161,1),INDEX(LinMotor!$V$1:$V$1355,A161,1)))<1000,IF(Calc!$A$90,INDEX(Motor!$X$1:$X$1223,A161,1),INDEX(LinMotor!$V$1:$V$1355,A161,1)),TEXT(IF(Calc!$A$90,INDEX(Motor!$X$1:$X$1223,A161,1),INDEX(LinMotor!$V$1:$V$1355,A161,1))/1000,"0.0k")),"") -> -102.3270222 | H161: =IF(A161<>2,IF(ABS(IF(move1,IF(Calc!$A$90,INDEX(Motor!$Y$1:$Y$1223,A161,1),INDEX(LinMotor!$W$1:$W$1355,A161,1)),IF(Calc!$A$90,INDEX(Motor!$Z$1:$Z$1068,A161,1),INDEX(LinMotor!$X$1:$X$1355,A161,1))))<1000,IF(move1,IF(Calc!$A$90,INDEX(Motor!$Y$1:$Y$1223,A161,1),INDEX(LinMotor!$W$1:$W$1355,A161,1)),IF(Calc!$A$90,INDEX(Motor!$Z$1:$Z$1223,A161,1),INDEX(LinMotor!$X$1:$X$1355,A161,1))),TEXT(IF(move1,IF(Calc!$A$90,INDEX(Motor!$Y$1:$Y$1223,A161,1),INDEX(LinMotor!$W$1:$W$1355,A161,1)),IF(Calc!$A$90,INDEX(Motor!$Z$1:$Z$1223,A161,1),INDEX(LinMotor!$X$1:$X$1355,A161,1)))/1000,"0.0k")),"") -> 9 | I161: =IF(A161<>2,IF(ABS(IF(move1,IF(Calc!$A$90,INDEX(Motor!$Z$1:$Z$1223,A161,1),INDEX(LinMotor!$X$1:$X$1355,A161,1)),IF(Calc!$A$90,INDEX(Motor!$AB$1:$AB$1223,A161,1),INDEX(LinMotor!$Z$1:$Z$1355,A161,1))))<1000,IF(move1,IF(Calc!$A$90,INDEX(Motor!$Z$1:$Z$1223,A161,1),INDEX(LinMotor!$X$1:$X$1355,A161,1)),IF(Calc!$A$90,INDEX(Motor!$AB$1:$AB$1223,A161,1),INDEX(LinMotor!$Z$1:$Z$1355,A161,1))),TEXT(IF(move1,IF(Calc!$A$90,INDEX(Motor!$Z$1:$Z$1223,A161,1),INDEX(LinMotor!$X$1:$X$1355,A161,1)),IF(Calc!$A$90,INDEX(Motor!$AB$1:$AB$1223,A161,1),INDEX(LinMotor!$Z$1:$Z$1355,A161,1)))/1000,"0.0k")),"") -> 93.744888 | J161: =IF(A161<>2,IF(ABS(IF(move1,IF(Calc!$A$90,INDEX(Motor!$AA$1:$AA$1223,A161,1),INDEX(LinMotor!$Y$1:$Y$1355,A161,1)),IF(Calc!$A$90,INDEX(Motor!$AD$1:$AD$1223,A161,1),INDEX(LinMotor!$AB$1:$AB$445,A161,1))))<1000,IF(move1,IF(Calc!$A$90,INDEX(Motor!$AA$1:$AA$1223,A161,1),INDEX(LinMotor!$Y$1:$Y$1355,A161,1)),IF(Calc!$A$90,INDEX(Motor!$AD$1:$AD$1223,A161,1),INDEX(LinMotor!$AB$1:$AB$445,A161,1))),TEXT(IF(move1,IF(Calc!$A$90,INDEX(Motor!$AA$1:$AA$1223,A161,1),INDEX(LinMotor!$Y$1:$Y$1355,A161,1)),IF(Calc!$A$90,INDEX(Motor!$AD$1:$AD$1223,A161,1),INDEX(LinMotor!$AB$1:$AB$445,A161,1)))/1000,"0.0k")),"") -> 9 | K161: =IF(Calc!$A$90,INDEX(Motor!$AF$1:$AF$1223,A161,1),INDEX(LinMotor!$AD$1:$AD$1355,A161,1)) -> 0.05148148281 | L161: =IF(Calc!$A$90,INDEX(Motor!$AG$1:$AG$1223,A161,1),INDEX(LinMotor!$AE$1:$AE$1355,A161,1)) -> 0.1388612113 | M161: =IF(Calc!$A$90,INDEX(Motor!$AH$1:$AH$1223,A161,1),INDEX(LinMotor!$AF$1:$AF$1355,A161,1)) -> 1.235555587 | N161: =IF(Calc!$A$90,INDEX(Motor!$AI$1:$AI$1223,A161,1),INDEX(LinMotor!$AG$1:$AG$1355,A161,1)) -> 6.665338145 | O161: =IF(A161<>2,IF(IF(Calc!$A$90,INDEX(Motor!$AK$1:$AK$1223,A161,1),INDEX(LinMotor!$AI$1:$AI$1355,A161,1))<1000,IF(Calc!$A$90,INDEX(Motor!$AK$1:$AK$1223,A161,1),INDEX(LinMotor!$AI$1:$AI$1355,A161,1)),TEXT(IF(Calc!$A$90,INDEX(Motor!$AK$1:$AK$1223,A161,1),INDEX(LinMotor!$AI$1:$AI$1355,A161,1))/1000,"0.0k")),"") -> 44.06621028 | P161: =IF(A161<>2,IF(IF(Calc!$A$90,INDEX(Motor!$AL$1:$AL$1223,A161,1),INDEX(LinMotor!$AJ$1:$AJ$1355,A161,1))<1000,IF(Calc!$A$90,INDEX(Motor!$AL$1:$AL$1223,A161,1),INDEX(LinMotor!$AJ$1:$AJ$1355,A161,1)),TEXT(IF(Calc!$A$90,INDEX(Motor!$AL$1:$AL$1223,A161,1),INDEX(LinMotor!$AJ$1:$AJ$1355,A161,1))/1000,"0.0k")),"") -> 13.46691298 | Q161: =IF(A161<>2,IF(IF(Calc!$A$90,INDEX(Motor!$AM$1:$AM$1223,A161,1),INDEX(LinMotor!$AK$1:$AK$1355,A161,1))<1000,IF(Calc!$A$90,INDEX(Motor!$AM$1:$AM$1223,A161,1),INDEX(LinMotor!$AK$1:$AK$1355,A161,1)),TEXT(IF(Calc!$A$90,INDEX(Motor!$AM$1:$AM$1223,A161,1),INDEX(LinMotor!$AK$1:$AK$1355,A161,1))/1000,"0.0k")),"") -> 824.9731139
A162: 1200 | B162: =IF(Calc!$A$90,INDEX(Motor!$B$1:$B$1223,A162,1),INDEX(LinMotor!$B$1:$B$1341,A162,1)) -> KBMS-88S01-A (240 V) | C162: =IF(Calc!$A$90,INDEX(Motor!$T$1:$T$1223,A162,1),INDEX(LinMotor!$R$1:$R$1355,A162,1)) -> 0.7705479452 | D162: =IF(Calc!$A$90,INDEX(Motor!$U$1:$U$1223,A162,1),INDEX(LinMotor!$S$1:$S$1355,A162,1)) -> 0.06654321785 | E162: =IF(Calc!$A$90,INDEX(Motor!$V$1:$V$1223,A162,1),INDEX(LinMotor!$T$1:$T$1355,A162,1)) -> 0.1437270686 | F162: =IF(Calc!$A$90,INDEX(Motor!$W$1:$W$1223,A162,1),INDEX(LinMotor!$U$1:$U$1355,A162,1)) -> 0.3917660138 | G162: =IF(A162<>2,IF(ABS(IF(Calc!$A$90,INDEX(Motor!$X$1:$X$1223,A162,1),INDEX(LinMotor!$V$1:$V$1355,A162,1)))<1000,IF(Calc!$A$90,INDEX(Motor!$X$1:$X$1223,A162,1),INDEX(LinMotor!$V$1:$V$1355,A162,1)),TEXT(IF(Calc!$A$90,INDEX(Motor!$X$1:$X$1223,A162,1),INDEX(LinMotor!$V$1:$V$1355,A162,1))/1000,"0.0k")),"") -> -59.50300642 | H162: =IF(A162<>2,IF(ABS(IF(move1,IF(Calc!$A$90,INDEX(Motor!$Y$1:$Y$1223,A162,1),INDEX(LinMotor!$W$1:$W$1355,A162,1)),IF(Calc!$A$90,INDEX(Motor!$Z$1:$Z$1068,A162,1),INDEX(LinMotor!$X$1:$X$1355,A162,1))))<1000,IF(move1,IF(Calc!$A$90,INDEX(Motor!$Y$1:$Y$1223,A162,1),INDEX(LinMotor!$W$1:$W$1355,A162,1)),IF(Calc!$A$90,INDEX(Motor!$Z$1:$Z$1223,A162,1),INDEX(LinMotor!$X$1:$X$1355,A162,1))),TEXT(IF(move1,IF(Calc!$A$90,INDEX(Motor!$Y$1:$Y$1223,A162,1),INDEX(LinMotor!$W$1:$W$1355,A162,1)),IF(Calc!$A$90,INDEX(Motor!$Z$1:$Z$1223,A162,1),INDEX(LinMotor!$X$1:$X$1355,A162,1)))/1000,"0.0k")),"") -> 9 | I162: =IF(A162<>2,IF(ABS(IF(move1,IF(Calc!$A$90,INDEX(Motor!$Z$1:$Z$1223,A162,1),INDEX(LinMotor!$X$1:$X$1355,A162,1)),IF(Calc!$A$90,INDEX(Motor!$AB$1:$AB$1223,A162,1),INDEX(LinMotor!$Z$1:$Z$1355,A162,1))))<1000,IF(move1,IF(Calc!$A$90,INDEX(Motor!$Z$1:$Z$1223,A162,1),INDEX(LinMotor!$X$1:$X$1355,A162,1)),IF(Calc!$A$90,INDEX(Motor!$AB$1:$AB$1223,A162,1),INDEX(LinMotor!$Z$1:$Z$1355,A162,1))),TEXT(IF(move1,IF(Calc!$A$90,INDEX(Motor!$Z$1:$Z$1223,A162,1),INDEX(LinMotor!$X$1:$X$1355,A162,1)),IF(Calc!$A$90,INDEX(Motor!$AB$1:$AB$1223,A162,1),INDEX(LinMotor!$Z$1:$Z$1355,A162,1)))/1000,"0.0k")),"") -> 59.0574352 | J162: =IF(A162<>2,IF(ABS(IF(move1,IF(Calc!$A$90,INDEX(Motor!$AA$1:$AA$1223,A162,1),INDEX(LinMotor!$Y$1:$Y$1355,A162,1)),IF(Calc!$A$90,INDEX(Motor!$AD$1:$AD$1223,A162,1),INDEX(LinMotor!$AB$1:$AB$445,A162,1))))<1000,IF(move1,IF(Calc!$A$90,INDEX(Motor!$AA$1:$AA$1223,A162,1),INDEX(LinMotor!$Y$1:$Y$1355,A162,1)),IF(Calc!$A$90,INDEX(Motor!$AD$1:$AD$1223,A162,1),INDEX(LinMotor!$AB$1:$AB$445,A162,1))),TEXT(IF(move1,IF(Calc!$A$90,INDEX(Motor!$AA$1:$AA$1223,A162,1),INDEX(LinMotor!$Y$1:$Y$1355,A162,1)),IF(Calc!$A$90,INDEX(Motor!$AD$1:$AD$1223,A162,1),INDEX(LinMotor!$AB$1:$AB$445,A162,1)))/1000,"0.0k")),"") -> 9 | K162: =IF(Calc!$A$90,INDEX(Motor!$AF$1:$AF$1223,A162,1),INDEX(LinMotor!$AD$1:$AD$1355,A162,1)) -> 0.0465524474 | L162: =IF(Calc!$A$90,INDEX(Motor!$AG$1:$AG$1223,A162,1),INDEX(LinMotor!$AE$1:$AE$1355,A162,1)) -> 0.1027999095 | M162: =IF(Calc!$A$90,INDEX(Motor!$AH$1:$AH$1223,A162,1),INDEX(LinMotor!$AF$1:$AF$1355,A162,1)) -> 1.117258738 | N162: =IF(Calc!$A$90,INDEX(Motor!$AI$1:$AI$1223,A162,1),INDEX(LinMotor!$AG$1:$AG$1355,A162,1)) -> 4.934395654 | O162: =IF(A162<>2,IF(IF(Calc!$A$90,INDEX(Motor!$AK$1:$AK$1223,A162,1),INDEX(LinMotor!$AI$1:$AI$1355,A162,1))<1000,IF(Calc!$A$90,INDEX(Motor!$AK$1:$AK$1223,A162,1),INDEX(LinMotor!$AI$1:$AI$1355,A162,1)),TEXT(IF(Calc!$A$90,INDEX(Motor!$AK$1:$AK$1223,A162,1),INDEX(LinMotor!$AI$1:$AI$1355,A162,1))/1000,"0.0k")),"") -> 31.29925236 | P162: =IF(A162<>2,IF(IF(Calc!$A$90,INDEX(Motor!$AL$1:$AL$1223,A162,1),INDEX(LinMotor!$AJ$1:$AJ$1355,A162,1))<1000,IF(Calc!$A$90,INDEX(Motor!$AL$1:$AL$1223,A162,1),INDEX(LinMotor!$AJ$1:$AJ$1355,A162,1)),TEXT(IF(Calc!$A$90,INDEX(Motor!$AL$1:$AL$1223,A162,1),INDEX(LinMotor!$AJ$1:$AJ$1355,A162,1))/1000,"0.0k")),"") -> 7.533091056 | Q162: =IF(A162<>2,IF(IF(Calc!$A$90,INDEX(Motor!$AM$1:$AM$1223,A162,1),INDEX(LinMotor!$AK$1:$AK$1355,A162,1))<1000,IF(Calc!$A$90,INDEX(Motor!$AM$1:$AM$1223,A162,1),INDEX(LinMotor!$AK$1:$AK$1355,A162,1)),TEXT(IF(Calc!$A$90,INDEX(Motor!$AM$1:$AM$1223,A162,1),INDEX(LinMotor!$AK$1:$AK$1355,A162,1))/1000,"0.0k")),"") -> 461.471578 | R162: =IF(T162=1,"L<Lmin",IF(T162=2,"Udc>Umot",IF(T162=3,"L<Lmin & Udc>Umot",IF(T162=4,"L>Lmax",IF(T162=5,"L>Lmax & Udc>Umot",""))))) -> 
A163: 1202 | B163: =IF(Calc!$A$90,INDEX(Motor!$B$1:$B$1223,A163,1),INDEX(LinMotor!$B$1:$B$1341,A163,1)) -> KBMS-88S02-A (240 V) | C163: =IF(Calc!$A$90,INDEX(Motor!$T$1:$T$1223,A163,1),INDEX(LinMotor!$R$1:$R$1355,A163,1)) -> 0.455465587 | D163: =IF(Calc!$A$90,INDEX(Motor!$U$1:$U$1223,A163,1),INDEX(LinMotor!$S$1:$S$1355,A163,1)) -> 0.04424673797 | E163: =IF(Calc!$A$90,INDEX(Motor!$V$1:$V$1223,A163,1),INDEX(LinMotor!$T$1:$T$1355,A163,1)) -> 0.1078530511 | F163: =IF(Calc!$A$90,INDEX(Motor!$W$1:$W$1223,A163,1),INDEX(LinMotor!$U$1:$U$1355,A163,1)) -> 0.8267789252 | G163: =IF(A163<>2,IF(ABS(IF(Calc!$A$90,INDEX(Motor!$X$1:$X$1223,A163,1),INDEX(LinMotor!$V$1:$V$1355,A163,1)))<1000,IF(Calc!$A$90,INDEX(Motor!$X$1:$X$1223,A163,1),INDEX(LinMotor!$V$1:$V$1355,A163,1)),TEXT(IF(Calc!$A$90,INDEX(Motor!$X$1:$X$1223,A163,1),INDEX(LinMotor!$V$1:$V$1355,A163,1))/1000,"0.0k")),"") -> -85.09605728 | H163: =IF(A163<>2,IF(ABS(IF(move1,IF(Calc!$A$90,INDEX(Motor!$Y$1:$Y$1223,A163,1),INDEX(LinMotor!$W$1:$W$1355,A163,1)),IF(Calc!$A$90,INDEX(Motor!$Z$1:$Z$1068,A163,1),INDEX(LinMotor!$X$1:$X$1355,A163,1))))<1000,IF(move1,IF(Calc!$A$90,INDEX(Motor!$Y$1:$Y$1223,A163,1),INDEX(LinMotor!$W$1:$W$1355,A163,1)),IF(Calc!$A$90,INDEX(Motor!$Z$1:$Z$1223,A163,1),INDEX(LinMotor!$X$1:$X$1355,A163,1))),TEXT(IF(move1,IF(Calc!$A$90,INDEX(Motor!$Y$1:$Y$1223,A163,1),INDEX(LinMotor!$W$1:$W$1355,A163,1)),IF(Calc!$A$90,INDEX(Motor!$Z$1:$Z$1223,A163,1),INDEX(LinMotor!$X$1:$X$1355,A163,1)))/1000,"0.0k")),"") -> 9 | I163: =IF(A163<>2,IF(ABS(IF(move1,IF(Calc!$A$90,INDEX(Motor!$Z$1:$Z$1223,A163,1),INDEX(LinMotor!$X$1:$X$1355,A163,1)),IF(Calc!$A$90,INDEX(Motor!$AB$1:$AB$1223,A163,1),INDEX(LinMotor!$Z$1:$Z$1355,A163,1))))<1000,IF(move1,IF(Calc!$A$90,INDEX(Motor!$Z$1:$Z$1223,A163,1),INDEX(LinMotor!$X$1:$X$1355,A163,1)),IF(Calc!$A$90,INDEX(Motor!$AB$1:$AB$1223,A163,1),INDEX(LinMotor!$Z$1:$Z$1355,A163,1))),TEXT(IF(move1,IF(Calc!$A$90,INDEX(Motor!$Z$1:$Z$1223,A163,1),INDEX(LinMotor!$X$1:$X$1355,A163,1)),IF(Calc!$A$90,INDEX(Motor!$AB$1:$AB$1223,A163,1),INDEX(LinMotor!$Z$1:$Z$1355,A163,1)))/1000,"0.0k")),"") -> 79.7878064 | J163: =IF(A163<>2,IF(ABS(IF(move1,IF(Calc!$A$90,INDEX(Motor!$AA$1:$AA$1223,A163,1),INDEX(LinMotor!$Y$1:$Y$1355,A163,1)),IF(Calc!$A$90,INDEX(Motor!$AD$1:$AD$1223,A163,1),INDEX(LinMotor!$AB$1:$AB$445,A163,1))))<1000,IF(move1,IF(Calc!$A$90,INDEX(Motor!$AA$1:$AA$1223,A163,1),INDEX(LinMotor!$Y$1:$Y$1355,A163,1)),IF(Calc!$A$90,INDEX(Motor!$AD$1:$AD$1223,A163,1),INDEX(LinMotor!$AB$1:$AB$445,A163,1))),TEXT(IF(move1,IF(Calc!$A$90,INDEX(Motor!$AA$1:$AA$1223,A163,1),INDEX(LinMotor!$Y$1:$Y$1355,A163,1)),IF(Calc!$A$90,INDEX(Motor!$AD$1:$AD$1223,A163,1),INDEX(LinMotor!$AB$1:$AB$445,A163,1)))/1000,"0.0k")),"") -> 9 | K163: =IF(Calc!$A$90,INDEX(Motor!$AF$1:$AF$1223,A163,1),INDEX(LinMotor!$AD$1:$AD$1355,A163,1)) -> 0.02704289796 | L163: =IF(Calc!$A$90,INDEX(Motor!$AG$1:$AG$1223,A163,1),INDEX(LinMotor!$AE$1:$AE$1355,A163,1)) -> 0.06907147507 | M163: =IF(Calc!$A$90,INDEX(Motor!$AH$1:$AH$1223,A163,1),INDEX(LinMotor!$AF$1:$AF$1355,A163,1)) -> 0.6490295509 | N163: =IF(Calc!$A$90,INDEX(Motor!$AI$1:$AI$1223,A163,1),INDEX(LinMotor!$AG$1:$AG$1355,A163,1)) -> 3.315430803 | O163: =IF(A163<>2,IF(IF(Calc!$A$90,INDEX(Motor!$AK$1:$AK$1223,A163,1),INDEX(LinMotor!$AI$1:$AI$1355,A163,1))<1000,IF(Calc!$A$90,INDEX(Motor!$AK$1:$AK$1223,A163,1),INDEX(LinMotor!$AI$1:$AI$1355,A163,1)),TEXT(IF(Calc!$A$90,INDEX(Motor!$AK$1:$AK$1223,A163,1),INDEX(LinMotor!$AI$1:$AI$1355,A163,1))/1000,"0.0k")),"") -> 38.69984324 | P163: =IF(A163<>2,IF(IF(Calc!$A$90,INDEX(Motor!$AL$1:$AL$1223,A163,1),INDEX(LinMotor!$AJ$1:$AJ$1355,A163,1))<1000,IF(Calc!$A$90,INDEX(Motor!$AL$1:$AL$1223,A163,1),INDEX(LinMotor!$AJ$1:$AJ$1355,A163,1)),TEXT(IF(Calc!$A$90,INDEX(Motor!$AL$1:$AL$1223,A163,1),INDEX(LinMotor!$AJ$1:$AJ$1355,A163,1))/1000,"0.0k")),"") -> 11.07933966 | Q163: =IF(A163<>2,IF(IF(Calc!$A$90,INDEX(Motor!$AM$1:$AM$1223,A163,1),INDEX(LinMotor!$AK$1:$AK$1355,A163,1))<1000,IF(Calc!$A$90,INDEX(Motor!$AM$1:$AM$1223,A163,1),INDEX(LinMotor!$AK$1:$AK$1355,A163,1)),TEXT(IF(Calc!$A$90,INDEX(Motor!$AM$1:$AM$1223,A163,1),INDEX(LinMotor!$AK$1:$AK$1355,A163,1))/1000,"0.0k")),"") -> 678.7121409
A164: 1204 | B164: =IF(Calc!$A$90,INDEX(Motor!$B$1:$B$1223,A164,1),INDEX(LinMotor!$B$1:$B$1341,A164,1)) -> KBMS-88S03-A (240 V) | C164: =IF(Calc!$A$90,INDEX(Motor!$T$1:$T$1223,A164,1),INDEX(LinMotor!$R$1:$R$1355,A164,1)) -> 0.3571428571 | D164: =IF(Calc!$A$90,INDEX(Motor!$U$1:$U$1223,A164,1),INDEX(LinMotor!$S$1:$S$1355,A164,1)) -> 0.03617262375 | E164: =IF(Calc!$A$90,INDEX(Motor!$V$1:$V$1223,A164,1),INDEX(LinMotor!$T$1:$T$1355,A164,1)) -> 0.08527251852 | F164: =IF(Calc!$A$90,INDEX(Motor!$W$1:$W$1223,A164,1),INDEX(LinMotor!$U$1:$U$1355,A164,1)) -> 0.9645754127 | G164: =IF(A164<>2,IF(ABS(IF(Calc!$A$90,INDEX(Motor!$X$1:$X$1223,A164,1),INDEX(LinMotor!$V$1:$V$1355,A164,1)))<1000,IF(Calc!$A$90,INDEX(Motor!$X$1:$X$1223,A164,1),INDEX(LinMotor!$V$1:$V$1355,A164,1)),TEXT(IF(Calc!$A$90,INDEX(Motor!$X$1:$X$1223,A164,1),INDEX(LinMotor!$V$1:$V$1355,A164,1))/1000,"0.0k")),"") -> -102.3270222 | H164: =IF(A164<>2,IF(ABS(IF(move1,IF(Calc!$A$90,INDEX(Motor!$Y$1:$Y$1223,A164,1),INDEX(LinMotor!$W$1:$W$1355,A164,1)),IF(Calc!$A$90,INDEX(Motor!$Z$1:$Z$1068,A164,1),INDEX(LinMotor!$X$1:$X$1355,A164,1))))<1000,IF(move1,IF(Calc!$A$90,INDEX(Motor!$Y$1:$Y$1223,A164,1),INDEX(LinMotor!$W$1:$W$1355,A164,1)),IF(Calc!$A$90,INDEX(Motor!$Z$1:$Z$1223,A164,1),INDEX(LinMotor!$X$1:$X$1355,A164,1))),TEXT(IF(move1,IF(Calc!$A$90,INDEX(Motor!$Y$1:$Y$1223,A164,1),INDEX(LinMotor!$W$1:$W$1355,A164,1)),IF(Calc!$A$90,INDEX(Motor!$Z$1:$Z$1223,A164,1),INDEX(LinMotor!$X$1:$X$1355,A164,1)))/1000,"0.0k")),"") -> 9 | I164: =IF(A164<>2,IF(ABS(IF(move1,IF(Calc!$A$90,INDEX(Motor!$Z$1:$Z$1223,A164,1),INDEX(LinMotor!$X$1:$X$1355,A164,1)),IF(Calc!$A$90,INDEX(Motor!$AB$1:$AB$1223,A164,1),INDEX(LinMotor!$Z$1:$Z$1355,A164,1))))<1000,IF(move1,IF(Calc!$A$90,INDEX(Motor!$Z$1:$Z$1223,A164,1),INDEX(LinMotor!$X$1:$X$1355,A164,1)),IF(Calc!$A$90,INDEX(Motor!$AB$1:$AB$1223,A164,1),INDEX(LinMotor!$Z$1:$Z$1355,A164,1))),TEXT(IF(move1,IF(Calc!$A$90,INDEX(Motor!$Z$1:$Z$1223,A164,1),INDEX(LinMotor!$X$1:$X$1355,A164,1)),IF(Calc!$A$90,INDEX(Motor!$AB$1:$AB$1223,A164,1),INDEX(LinMotor!$Z$1:$Z$1355,A164,1)))/1000,"0.0k")),"") -> 93.744888 | J164: =IF(A164<>2,IF(ABS(IF(move1,IF(Calc!$A$90,INDEX(Motor!$AA$1:$AA$1223,A164,1),INDEX(LinMotor!$Y$1:$Y$1355,A164,1)),IF(Calc!$A$90,INDEX(Motor!$AD$1:$AD$1223,A164,1),INDEX(LinMotor!$AB$1:$AB$445,A164,1))))<1000,IF(move1,IF(Calc!$A$90,INDEX(Motor!$AA$1:$AA$1223,A164,1),INDEX(LinMotor!$Y$1:$Y$1355,A164,1)),IF(Calc!$A$90,INDEX(Motor!$AD$1:$AD$1223,A164,1),INDEX(LinMotor!$AB$1:$AB$445,A164,1))),TEXT(IF(move1,IF(Calc!$A$90,INDEX(Motor!$AA$1:$AA$1223,A164,1),INDEX(LinMotor!$Y$1:$Y$1355,A164,1)),IF(Calc!$A$90,INDEX(Motor!$AD$1:$AD$1223,A164,1),INDEX(LinMotor!$AB$1:$AB$445,A164,1)))/1000,"0.0k")),"") -> 9 | K164: =IF(Calc!$A$90,INDEX(Motor!$AF$1:$AF$1223,A164,1),INDEX(LinMotor!$AD$1:$AD$1355,A164,1)) -> 0.02658982602 | L164: =IF(Calc!$A$90,INDEX(Motor!$AG$1:$AG$1223,A164,1),INDEX(LinMotor!$AE$1:$AE$1355,A164,1)) -> 0.07172084504 | M164: =IF(Calc!$A$90,INDEX(Motor!$AH$1:$AH$1223,A164,1),INDEX(LinMotor!$AF$1:$AF$1355,A164,1)) -> 0.6381558245 | N164: =IF(Calc!$A$90,INDEX(Motor!$AI$1:$AI$1223,A164,1),INDEX(LinMotor!$AG$1:$AG$1355,A164,1)) -> 3.442600562 | O164: =IF(A164<>2,IF(IF(Calc!$A$90,INDEX(Motor!$AK$1:$AK$1223,A164,1),INDEX(LinMotor!$AI$1:$AI$1355,A164,1))<1000,IF(Calc!$A$90,INDEX(Motor!$AK$1:$AK$1223,A164,1),INDEX(LinMotor!$AI$1:$AI$1355,A164,1)),TEXT(IF(Calc!$A$90,INDEX(Motor!$AK$1:$AK$1223,A164,1),INDEX(LinMotor!$AI$1:$AI$1355,A164,1))/1000,"0.0k")),"") -> 44.06621028 | P164: =IF(A164<>2,IF(IF(Calc!$A$90,INDEX(Motor!$AL$1:$AL$1223,A164,1),INDEX(LinMotor!$AJ$1:$AJ$1355,A164,1))<1000,IF(Calc!$A$90,INDEX(Motor!$AL$1:$AL$1223,A164,1),INDEX(LinMotor!$AJ$1:$AJ$1355,A164,1)),TEXT(IF(Calc!$A$90,INDEX(Motor!$AL$1:$AL$1223,A164,1),INDEX(LinMotor!$AJ$1:$AJ$1355,A164,1))/1000,"0.0k")),"") -> 13.46691298 | Q164: =IF(A164<>2,IF(IF(Calc!$A$90,INDEX(Motor!$AM$1:$AM$1223,A164,1),INDEX(LinMotor!$AK$1:$AK$1355,A164,1))<1000,IF(Calc!$A$90,INDEX(Motor!$AM$1:$AM$1223,A164,1),INDEX(LinMotor!$AK$1:$AK$1355,A164,1)),TEXT(IF(Calc!$A$90,INDEX(Motor!$AM$1:$AM$1223,A164,1),INDEX(LinMotor!$AK$1:$AK$1355,A164,1))/1000,"0.0k")),"") -> 824.9731139
A165: 1205 | B165: =IF(Calc!$A$90,INDEX(Motor!$B$1:$B$1223,A165,1),INDEX(LinMotor!$B$1:$B$1341,A165,1)) -> KBMS-88S03-B (240 V) | C165: =IF(Calc!$A$90,INDEX(Motor!$T$1:$T$1223,A165,1),INDEX(LinMotor!$R$1:$R$1355,A165,1)) -> 0.3571428571 | D165: =IF(Calc!$A$90,INDEX(Motor!$U$1:$U$1223,A165,1),INDEX(LinMotor!$S$1:$S$1355,A165,1)) -> 0.03545653532 | E165: =IF(Calc!$A$90,INDEX(Motor!$V$1:$V$1223,A165,1),INDEX(LinMotor!$T$1:$T$1355,A165,1)) -> 0.08527251852 | F165: =IF(Calc!$A$90,INDEX(Motor!$W$1:$W$1223,A165,1),INDEX(LinMotor!$U$1:$U$1355,A165,1)) -> 0.4993096254 | G165: =IF(A165<>2,IF(ABS(IF(Calc!$A$90,INDEX(Motor!$X$1:$X$1223,A165,1),INDEX(LinMotor!$V$1:$V$1355,A165,1)))<1000,IF(Calc!$A$90,INDEX(Motor!$X$1:$X$1223,A165,1),INDEX(LinMotor!$V$1:$V$1355,A165,1)),TEXT(IF(Calc!$A$90,INDEX(Motor!$X$1:$X$1223,A165,1),INDEX(LinMotor!$V$1:$V$1355,A165,1))/1000,"0.0k")),"") -> -102.3270222 | H165: =IF(A165<>2,IF(ABS(IF(move1,IF(Calc!$A$90,INDEX(Motor!$Y$1:$Y$1223,A165,1),INDEX(LinMotor!$W$1:$W$1355,A165,1)),IF(Calc!$A$90,INDEX(Motor!$Z$1:$Z$1068,A165,1),INDEX(LinMotor!$X$1:$X$1355,A165,1))))<1000,IF(move1,IF(Calc!$A$90,INDEX(Motor!$Y$1:$Y$1223,A165,1),INDEX(LinMotor!$W$1:$W$1355,A165,1)),IF(Calc!$A$90,INDEX(Motor!$Z$1:$Z$1223,A165,1),INDEX(LinMotor!$X$1:$X$1355,A165,1))),TEXT(IF(move1,IF(Calc!$A$90,INDEX(Motor!$Y$1:$Y$1223,A165,1),INDEX(LinMotor!$W$1:$W$1355,A165,1)),IF(Calc!$A$90,INDEX(Motor!$Z$1:$Z$1223,A165,1),INDEX(LinMotor!$X$1:$X$1355,A165,1)))/1000,"0.0k")),"") -> 9 | I165: =IF(A165<>2,IF(ABS(IF(move1,IF(Calc!$A$90,INDEX(Motor!$Z$1:$Z$1223,A165,1),INDEX(LinMotor!$X$1:$X$1355,A165,1)),IF(Calc!$A$90,INDEX(Motor!$AB$1:$AB$1223,A165,1),INDEX(LinMotor!$Z$1:$Z$1355,A165,1))))<1000,IF(move1,IF(Calc!$A$90,INDEX(Motor!$Z$1:$Z$1223,A165,1),INDEX(LinMotor!$X$1:$X$1355,A165,1)),IF(Calc!$A$90,INDEX(Motor!$AB$1:$AB$1223,A165,1),INDEX(LinMotor!$Z$1:$Z$1355,A165,1))),TEXT(IF(move1,IF(Calc!$A$90,INDEX(Motor!$Z$1:$Z$1223,A165,1),INDEX(LinMotor!$X$1:$X$1355,A165,1)),IF(Calc!$A$90,INDEX(Motor!$AB$1:$AB$1223,A165,1),INDEX(LinMotor!$Z$1:$Z$1355,A165,1)))/1000,"0.0k")),"") -> 93.744888 | J165: =IF(A165<>2,IF(ABS(IF(move1,IF(Calc!$A$90,INDEX(Motor!$AA$1:$AA$1223,A165,1),INDEX(LinMotor!$Y$1:$Y$1355,A165,1)),IF(Calc!$A$90,INDEX(Motor!$AD$1:$AD$1223,A165,1),INDEX(LinMotor!$AB$1:$AB$445,A165,1))))<1000,IF(move1,IF(Calc!$A$90,INDEX(Motor!$AA$1:$AA$1223,A165,1),INDEX(LinMotor!$Y$1:$Y$1355,A165,1)),IF(Calc!$A$90,INDEX(Motor!$AD$1:$AD$1223,A165,1),INDEX(LinMotor!$AB$1:$AB$445,A165,1))),TEXT(IF(move1,IF(Calc!$A$90,INDEX(Motor!$AA$1:$AA$1223,A165,1),INDEX(LinMotor!$Y$1:$Y$1355,A165,1)),IF(Calc!$A$90,INDEX(Motor!$AD$1:$AD$1223,A165,1),INDEX(LinMotor!$AB$1:$AB$445,A165,1)))/1000,"0.0k")),"") -> 9 | K165: =IF(Calc!$A$90,INDEX(Motor!$AF$1:$AF$1223,A165,1),INDEX(LinMotor!$AD$1:$AD$1355,A165,1)) -> 0.05148148281 | L165: =IF(Calc!$A$90,INDEX(Motor!$AG$1:$AG$1223,A165,1),INDEX(LinMotor!$AE$1:$AE$1355,A165,1)) -> 0.1388612113 | M165: =IF(Calc!$A$90,INDEX(Motor!$AH$1:$AH$1223,A165,1),INDEX(LinMotor!$AF$1:$AF$1355,A165,1)) -> 1.235555587 | N165: =IF(Calc!$A$90,INDEX(Motor!$AI$1:$AI$1223,A165,1),INDEX(LinMotor!$AG$1:$AG$1355,A165,1)) -> 6.665338145 | O165: =IF(A165<>2,IF(IF(Calc!$A$90,INDEX(Motor!$AK$1:$AK$1223,A165,1),INDEX(LinMotor!$AI$1:$AI$1355,A165,1))<1000,IF(Calc!$A$90,INDEX(Motor!$AK$1:$AK$1223,A165,1),INDEX(LinMotor!$AI$1:$AI$1355,A165,1)),TEXT(IF(Calc!$A$90,INDEX(Motor!$AK$1:$AK$1223,A165,1),INDEX(LinMotor!$AI$1:$AI$1355,A165,1))/1000,"0.0k")),"") -> 44.06621028 | P165: =IF(A165<>2,IF(IF(Calc!$A$90,INDEX(Motor!$AL$1:$AL$1223,A165,1),INDEX(LinMotor!$AJ$1:$AJ$1355,A165,1))<1000,IF(Calc!$A$90,INDEX(Motor!$AL$1:$AL$1223,A165,1),INDEX(LinMotor!$AJ$1:$AJ$1355,A165,1)),TEXT(IF(Calc!$A$90,INDEX(Motor!$AL$1:$AL$1223,A165,1),INDEX(LinMotor!$AJ$1:$AJ$1355,A165,1))/1000,"0.0k")),"") -> 13.46691298 | Q165: =IF(A165<>2,IF(IF(Calc!$A$90,INDEX(Motor!$AM$1:$AM$1223,A165,1),INDEX(LinMotor!$AK$1:$AK$1355,A165,1))<1000,IF(Calc!$A$90,INDEX(Motor!$AM$1:$AM$1223,A165,1),INDEX(LinMotor!$AK$1:$AK$1355,A165,1)),TEXT(IF(Calc!$A$90,INDEX(Motor!$AM$1:$AM$1223,A165,1),INDEX(LinMotor!$AK$1:$AK$1355,A165,1))/1000,"0.0k")),"") -> 824.9731139
A166: 1210 | B166: =IF(Calc!$A$90,INDEX(Motor!$B$1:$B$1223,A166,1),INDEX(LinMotor!$B$1:$B$1341,A166,1)) -> KBMS-163H03-A (400 V) | C166: =IF(Calc!$A$90,INDEX(Motor!$T$1:$T$1223,A166,1),INDEX(LinMotor!$R$1:$R$1355,A166,1)) -> 0.06147540984 | D166: =IF(Calc!$A$90,INDEX(Motor!$U$1:$U$1223,A166,1),INDEX(LinMotor!$S$1:$S$1355,A166,1)) -> 0.05737691652 | E166: =IF(Calc!$A$90,INDEX(Motor!$V$1:$V$1223,A166,1),INDEX(LinMotor!$T$1:$T$1355,A166,1)) -> 0.1237208105 | F166: =IF(Calc!$A$90,INDEX(Motor!$W$1:$W$1223,A166,1),INDEX(LinMotor!$U$1:$U$1355,A166,1)) -> 0.7225686176 | G166: =IF(A166<>2,IF(ABS(IF(Calc!$A$90,INDEX(Motor!$X$1:$X$1223,A166,1),INDEX(LinMotor!$V$1:$V$1355,A166,1)))<1000,IF(Calc!$A$90,INDEX(Motor!$X$1:$X$1223,A166,1),INDEX(LinMotor!$V$1:$V$1355,A166,1)),TEXT(IF(Calc!$A$90,INDEX(Motor!$X$1:$X$1223,A166,1),INDEX(LinMotor!$V$1:$V$1355,A166,1))/1000,"0.0k")),"") -> -486.2227852 | H166: =IF(A166<>2,IF(ABS(IF(move1,IF(Calc!$A$90,INDEX(Motor!$Y$1:$Y$1223,A166,1),INDEX(LinMotor!$W$1:$W$1355,A166,1)),IF(Calc!$A$90,INDEX(Motor!$Z$1:$Z$1068,A166,1),INDEX(LinMotor!$X$1:$X$1355,A166,1))))<1000,IF(move1,IF(Calc!$A$90,INDEX(Motor!$Y$1:$Y$1223,A166,1),INDEX(LinMotor!$W$1:$W$1355,A166,1)),IF(Calc!$A$90,INDEX(Motor!$Z$1:$Z$1223,A166,1),INDEX(LinMotor!$X$1:$X$1355,A166,1))),TEXT(IF(move1,IF(Calc!$A$90,INDEX(Motor!$Y$1:$Y$1223,A166,1),INDEX(LinMotor!$W$1:$W$1355,A166,1)),IF(Calc!$A$90,INDEX(Motor!$Z$1:$Z$1223,A166,1),INDEX(LinMotor!$X$1:$X$1355,A166,1)))/1000,"0.0k")),"") -> 9 | I166: =IF(A166<>2,IF(ABS(IF(move1,IF(Calc!$A$90,INDEX(Motor!$Z$1:$Z$1223,A166,1),INDEX(LinMotor!$X$1:$X$1355,A166,1)),IF(Calc!$A$90,INDEX(Motor!$AB$1:$AB$1223,A166,1),INDEX(LinMotor!$Z$1:$Z$1355,A166,1))))<1000,IF(move1,IF(Calc!$A$90,INDEX(Motor!$Z$1:$Z$1223,A166,1),INDEX(LinMotor!$X$1:$X$1355,A166,1)),IF(Calc!$A$90,INDEX(Motor!$AB$1:$AB$1223,A166,1),INDEX(LinMotor!$Z$1:$Z$1355,A166,1))),TEXT(IF(move1,IF(Calc!$A$90,INDEX(Motor!$Z$1:$Z$1223,A166,1),INDEX(LinMotor!$X$1:$X$1355,A166,1)),IF(Calc!$A$90,INDEX(Motor!$AB$1:$AB$1223,A166,1),INDEX(LinMotor!$Z$1:$Z$1355,A166,1)))/1000,"0.0k")),"") -> 404.700456 | J166: =IF(A166<>2,IF(ABS(IF(move1,IF(Calc!$A$90,INDEX(Motor!$AA$1:$AA$1223,A166,1),INDEX(LinMotor!$Y$1:$Y$1355,A166,1)),IF(Calc!$A$90,INDEX(Motor!$AD$1:$AD$1223,A166,1),INDEX(LinMotor!$AB$1:$AB$445,A166,1))))<1000,IF(move1,IF(Calc!$A$90,INDEX(Motor!$AA$1:$AA$1223,A166,1),INDEX(LinMotor!$Y$1:$Y$1355,A166,1)),IF(Calc!$A$90,INDEX(Motor!$AD$1:$AD$1223,A166,1),INDEX(LinMotor!$AB$1:$AB$445,A166,1))),TEXT(IF(move1,IF(Calc!$A$90,INDEX(Motor!$AA$1:$AA$1223,A166,1),INDEX(LinMotor!$Y$1:$Y$1355,A166,1)),IF(Calc!$A$90,INDEX(Motor!$AD$1:$AD$1223,A166,1),INDEX(LinMotor!$AB$1:$AB$445,A166,1)))/1000,"0.0k")),"") -> 9 | K166: =IF(Calc!$A$90,INDEX(Motor!$AF$1:$AF$1223,A166,1),INDEX(LinMotor!$AD$1:$AD$1355,A166,1)) -> 0.08970385882 | L166: =IF(Calc!$A$90,INDEX(Motor!$AG$1:$AG$1223,A166,1),INDEX(LinMotor!$AE$1:$AE$1355,A166,1)) -> 0.2843666592 | M166: =IF(Calc!$A$90,INDEX(Motor!$AH$1:$AH$1223,A166,1),INDEX(LinMotor!$AF$1:$AF$1355,A166,1)) -> 2.152892612 | N166: =IF(Calc!$A$90,INDEX(Motor!$AI$1:$AI$1223,A166,1),INDEX(LinMotor!$AG$1:$AG$1355,A166,1)) -> 13.64959964 | O166: =IF(A166<>2,IF(IF(Calc!$A$90,INDEX(Motor!$AK$1:$AK$1223,A166,1),INDEX(LinMotor!$AI$1:$AI$1355,A166,1))<1000,IF(Calc!$A$90,INDEX(Motor!$AK$1:$AK$1223,A166,1),INDEX(LinMotor!$AI$1:$AI$1355,A166,1)),TEXT(IF(Calc!$A$90,INDEX(Motor!$AK$1:$AK$1223,A166,1),INDEX(LinMotor!$AI$1:$AI$1355,A166,1))/1000,"0.0k")),"") -> 178.1611573 | P166: =IF(A166<>2,IF(IF(Calc!$A$90,INDEX(Motor!$AL$1:$AL$1223,A166,1),INDEX(LinMotor!$AJ$1:$AJ$1355,A166,1))<1000,IF(Calc!$A$90,INDEX(Motor!$AL$1:$AL$1223,A166,1),INDEX(LinMotor!$AJ$1:$AJ$1355,A166,1)),TEXT(IF(Calc!$A$90,INDEX(Motor!$AL$1:$AL$1223,A166,1),INDEX(LinMotor!$AJ$1:$AJ$1355,A166,1))/1000,"0.0k")),"") -> 66.6606421 | Q166: =IF(A166<>2,IF(IF(Calc!$A$90,INDEX(Motor!$AM$1:$AM$1223,A166,1),INDEX(LinMotor!$AK$1:$AK$1355,A166,1))<1000,IF(Calc!$A$90,INDEX(Motor!$AM$1:$AM$1223,A166,1),INDEX(LinMotor!$AK$1:$AK$1355,A166,1)),TEXT(IF(Calc!$A$90,INDEX(Motor!$AM$1:$AM$1223,A166,1),INDEX(LinMotor!$AK$1:$AK$1355,A166,1))/1000,"0.0k")),"") -> 4.1k
